Workbook

Sheet Matrix
AP1: APR MATRIX
EN2: DUE DATE: Friday, July 19, 2024
AP4: HOME Annual Performance Report
AP7: Reporting Period July 1, 2023 through June 30, 2024
ET10: FOR HOME RECIPIENT USE ONLY
ET13: Revision # | FK13: Date
E20: 1. Name of the HOME Recipient (HR)
CT21: 5. Contact Information:
E25: Select Option
CT30: Preparer's Name | ET30: Organization
E32: 2. HOME Recipient's Address:
KC33: , City of
KC34: , County of
KC35: , Town of
CT38: Phone | ET38: Email
E39: Street | AQ39: City | BZ39: Zip
FE42: By selecting "Yes", preparer's contact information will auto-populate all APR Forms.
CT43: Will the same person be preparing all APR forms? | GY43: 1
E44: 3. Name of the Administrative Subcontractor (if applicable) | BZ44: 4. Date
D53: 6. | G53: The questions below pertain to contract activity during the reporting period. Complete and submit all applicable Attachments for the questions that are answered with a "Yes." | DM53: Yes/ No | EA53: Attachment A | EO53: Attachment B | FC53: Attachment D | FQ53: Attachment E
EA58: Program Income | EO58: MBE/WBE Report | FC58: Relocation | FQ58: Fair Housing Demographic Analysis
G63: ("Yes" responses will have a bold "X" and be highlighted in Yellow.) | EA63: N/A for CHDOs or Developers
D67: APR FORMS FOR HOME RECIPIENT TO COMPLETE:
D70: a) | F70: Attachment A - Program Income (PI) | EA70: =IF(HU70=2,"X","") ->  | HU70: 1
F73: Is the HOME Recipient (HR) that is listed in Box #1 above a City or County?
A75: ` | HE75: Select Y/N
HE76: Yes
H77: Note: Not applicable for CHDOs or Developers. | HE77: No
D80: b) | F80: Attachment B - Minority Business Enterprise and Women Business Enterprise (MBE/WBE) | EO80: =IF(HU80=2,"X","") ->  | HU80: 1
F83: Did the HR enter into any contracts (construction or non-construction) with a general contractor, administrative subcontractor, architect, consultant, or any other party during the reporting period?
D89: c) | F89: Attachment D - Relocation | FC89: =IF(HU89=2,"X","") ->  | HU89: 1
F92: Did the HR assist a First-Time Homebuyer downpayment assistance activity and/or any activity which included the acquisition of real property and/or any temporary or permanent displacement (relocation) of any person, business, or non-profit organization during the reporting period?
D101: d) | F101: Attachment E - Fair Housing Demographic Analysis | FQ101: =IF(HU101=2,"X","") ->  | HU101: 1
F104: Did the HR have an active program activity during the reporting period?
D107: e) | F107: Attachment F - Section 3 | GE107: =IF(HD116=8,"X","") -> 
F108: 1) Did the HR have an active contract (HOME Standard Agreement) or a HOME Program Income/Recaptured Funds (PI/RF) activity? And | HU108: 1
F112: 2) Did the amount of HOME funds exceed $200,000? And | HU112: 1
F116: 3) Did this contract or PI/RF activity include any of the HOME activities (listed below) that resulted in new employment, contracting or training opportunities? | HD116: =(HU108+HU112)*HU116 -> 2 | HU116: 1 | IF116: =(HU108+HU112)*HU116+2 -> 4
I121: • | K121: Single-Family or Multi-Family New Construction Project | BJ121: • | BL121: CHDO First-Time Homebuyer Acquisition and Rehabilitation Program
I125: • | K125: Rental Rehabilitation Project With or Without Acquisition | BJ125: • | BL125: First-Time Home Buyer In-fill New Construction Program
HU128: =HU108+HU112+HU116 -> 3
D130: STAND-ALONE FORM FOR CONTRACTORS AND SUBCONTRACTORS TO COMPLETE: | HU130: =HU70+HU80+HU89+HU101+HU128 -> 7 | IL130: STOP! No additional reporting is required. Submit this page to HOME@hcd.ca.gov.
D133: 7. | F133: MBE/WBE Stand-Alone Form for Contractors and Subcontractors | DM133: Yes/ No | EO133: Att. B MBE/WBE Stand-Alone
D138: a) | F138: Did the HR have any Contractors or Subcontractors who executed contracts during the reporting period ? | EO138: =IF(HU139=2,"X","") -> 
HU139: 1 | IE139: 1 | IO139: =HU139*IE139 -> 1
D144: b) | F144: Did the HR have any Contractors or Subcontractors with construction or rehabilitation contracts exceeding $100,000 regardless of when the contracts were executed? | GE144: =IF(IE139=2,"X","") ->  | HU144: =HU70+HU80+HU89+HU101+IF116+HU139+IE139 -> 10 | IK144: Stop! No additional reporting is required. Submit this document to: HOME@hcd.ca.gov
D145: =IF(IO139=2,HT145,IF(IO139=4,HT145,IF(IO139=6,HT145,""))) ->  | HK145: yes | HT145: Please distribute "Attachment B and F - HOME MBE/WBE & Section 3 Stand-Alone" form to all Contractors and Subcontractors to complete.
D151: =IF(IO139=2,"Click link to retrieve Stand-Alone form:",IF(IO139=4,"Click link to retrieve Stand-Alone form:",IF(IO139=6,"Click link to retrieve Stand-Alone form:",""))) ->  | AZ151: Att B - HOME MBE/WBE Stand-Alone 2023/2024
HK153: no | HT153: No action necessary
A165: Select Option
A166: A
A167: Alameda, County of | BB167: Checked 2018-current HOME award list (2.22.24) - JB
A168: Allied Real Estate Partners
A169: Amador, County of
A170: American Canyon, City of
A171: Anaheim, City of
A172: Anderson, City of
A173: Angels, City of
A174: Angels Camp, City of
A175: Apple Valley, Town of
A176: Arcata, City of
A177: Artesia, City of
A178: Asociacion Campesina Lazaro Cardenas (ACLC, Inc.)
A179: Atwater, City of
A180: Auburn, City of
A181: Avenal, City of
A182: B
A183: Biggs, City of
A184: Bishop, City of
A185: Brawley, City of
A186: Buena Park, City of
A187: Butte, County of
A188: C
A189: Cabrillo Economic Development Corporation
A190: Calaveras, County of
A191: Calexico, City of
A192: California Housing Finance Agency
A193: California Human Development Corporation
A194: Calimesa, City of
A195: Calipatria, City of
A196: Calistoga Affordable Housing, Incorporated
A197: Calistoga, City of
A198: Capitola, City of
A199: Carson, City of
A200: Cathedral City, City of
A201: Central Coast Housing
A202: Central Sierra Planning Council
A203: Central Valley Christian Housing Development Corporation (CVC Housing)
A204: Central Valley Coalition for Affordable Housing
A205: Ceres, City of
A206: Chelsea Investment Corporation
A207: Chico, City of
A208: Chino, City of
A209: Chowchilla, City of
A210: Citadel Community Development Corporation
A211: Citrus Heights, City of
A212: Clearlake, City of
A213: Clovis, City of
A214: Coachella Valley Housing Coalition
A215: Coachella, City of
A216: Coalinga, City of
A217: Colusa, City of
A218: Colusa, County of
A219: Community Housing Assistance Program, Inc.
A220: Community Housing Improvement Program, Incorporated (CHIP)
A221: Community Housing Improvement Systems and Planning Association, Incorporated (CHISPA)
A222: Community Housing Opportunities Corporation
A223: Community Resource Project
A224: Corcoran, City of
A225: Corning, City of
A226: Corona, City of
A227: Corporation for Better Housing
A228: County of Madera Economic Development Commission
A229: County of San Benito Department of Community Services and Workforce Development
A230: Crescent City, City of
A231: D
A232: Davis, City of
A233: Del Norte, County of
A234: Delano, City of
A235: Dinuba, City of
A236: Dixon, City of
A237: Dorris, City of
A238: Dos Palos, City of
A239: Dunsmuir, City of
A240: E
A241: EAH Housing
A242: Eden Housing
A243: Eden South Bay, Incorporated
A244: El Cajon, City of
A245: El Centro, City of
A246: El Dorado County of Economic Development
A247: El Dorado, County of
A248: Elk Grove, City of
A249: Escondido, City of
A250: Esperanza Housing and Community Development Corporation
A251: Eureka, City of
A252: Exeter, City of
A253: F
A254: Fairfield, City of
A255: Family Apartments
A256: Farmersville, City of
A257: Firebaugh, City of
A258: Ford Street Project
A259: Fort Bragg, City of
A260: Fortuna, City of
A261: Fountain Valley, City of
A262: Fresno Housing Authority
A263: G
A264: Gardena, City of
A265: Glendora, City of
A266: Glenn County Human Resource Agency
A267: Glenn, County of
A268: Golden Empire Affordable Housing, Incorporated
A269: Gonzales, City of
A270: Grass Valley, City of
A271: Great Northern Corporation
A272: Greenfield, City of
A273: Gridley, City of
A274: Grover Beach, City of
A275: H
A276: Habitat for Humanity Monterey Bay
A277: Hanford, City of
A278: Hemet, City of
A279: Hesperia, City of
A280: Hollister, City of
A281: Holtville, City of
A282: Housing Assistance Corporation
A283: Housing Authority of the City and County of Fresno
A284: Housing Authority of the County of Fresno
A285: Housing Authority of the County of Kern
A286: Hughson, City of
A287: Humboldt Bay Housing Development Corporation
A288: Humboldt, County of
A289: Huron, City of
A290: I
A291: Imperial, City of
A292: Imperial, County of
A293: Indio, City of
A294: Inyo, County of
A295: Ione, City of
A296: Irvine, City of
A297: J
A298: Jackson, City of
A299: Jamboree Housing Corporation
A300: K
A301: King City, City of
A302: Kings, County of
A303: L
A304: La Habra, City of
A305: Lake Tahoe AIDS Task Force
A306: Lake, County of
A307: Lakeport, City of
A308: Lakewood, City of
A309: Lancaster, City of
A310: Lassen, County of
A311: Lemoore, City of
A312: LINC Community Development Corporation
A313: Lincoln, City of
A314: Lindsay, City of
A315: Live Oak, City of
... 171 more rows

Sheet Att A
AT1: Attachment A - Program Income and Recaptured Funds | FL1: PAGE 1
BK4: HOME Annual Performance Report
BK7: Reporting Period July 1, 2023 through June 30, 2024
D13: HOME Recipient Name | AC13: =IF(Matrix!E25=0,"",Matrix!E25) -> Select Option | DD13: =IF(OR(ISBLANK(BL46),ISBLANK(CK59),ISBLANK(DF59)+ISBLANK(CK63)+ISBLANK(DF63)+ISBLANK(CK72)+ISBLANK(DF72)+ISBLANK(CK78)+ISBLANK(DF78)+ISBLANK(BP84)+ISBLANK(BL101)+ISBLANK(CK105)+ISBLANK(CK113)+ISBLANK(CL127)+ISBLANK(DG127)), "Please do not leave any blank entries on page 1. Please enter data in all blank fields (yellow fields). Enter zeros where applicable.", "") -> Please do not leave any blank entries on page 1. Please enter data in all blank fields (yellow fields). Enter zeros where applicable.
D18: =IF(Matrix!GY43=2,Matrix!CT25,"") ->  | BK18: =IF(Matrix!GY43=2,Matrix!ET25,"") -> 
D20: Preparer's Name | BK20: Organization
D23: =IF(Matrix!GY43=2,Matrix!CT35,"") ->  | AM23: =IF(Matrix!GY43=2,Matrix!ET35,"") -> 
D25: Phone | AM25: Email | CE25: Date
FU26: If you report a negative balance at any time, you must attach a PI ledger to this report.
E28: Provide information for all Program Income and Recaptured Funds:
E30: HOME Recipients are required to differentiate between Program Income (PI) and Recaptured Funds (RF) due to the fact that 10% of PI can be used for administrative costs, whereas RF cannot be used for administrative costs. Additionally, the accounting of PI and RF should be separate from Admin PI Funds. NOTE: Do not leave any blanks (yellow fields) on page 1 (enter zeros where applicable). Reporting negative PI or PI Admin is not permissable.
J39: By checking this box, the HOME Recipient is certifying that they have no beginning PI/RF balance, have not received PI/RF, have no PI/RF expenditures, and do not anticipate receving any PI/RF. (Blank fields on page 1 will auto-populate with zeros.)
D42: Program Income/Recaptured Funds Summary | FU42: Amount retained for Admnistrative Funds cannot exceed 10% of P.I. received during the period.
CK44: Program Income | DF44: Recaptured Funds | EA44: Total
M46: Ending balance from 2022-23 APR, Attachment A (Line 8)
FU50: =IF(CK59=0,"",FU26) -> 
CL51: =IF(BL46<>EA59,"Total beginning balance must match ending balance from last APR Attachment A. If last year's ending balance was incorrect, please make adjusting entries on lines 2 or 4 below to get the correct ending balance on line 8, and explain in Comments box below.","") ->  | FU51: =IF(DF59<0,1,0) -> 0
S54: or check box if 2022-23 APR was not submitted to HCD | BL54: Not Submitted | FU54: =IF(EA59<0,1,0) -> 0 | GH54: FALSE
E59: 1. | I59: Beginning balance (balance from prior FY): | EA59: =DF59+(CK59) -> 0
BW61: 0
E63: 2. | I63: Amount received during reporting period July 1, 2023 through June 30, 2024: | EA63: =DF63+CK63 -> 0
FU64: =SUM(FU51:FY63) -> 0
I65: (Include interest earned on PI, RF and PI Admin funds)
E67: 3. | I67: Total Available for reporting period July 1, 2023 through June 30, 2024: | CK67: =CK59+CK63 -> 0 | DF67: =DF59+DF63 -> 0 | EA67: =EA59+EA63 -> 0
E72: 4. | I72: Amount Disbursed for units also funded with HOME funds drawn down from HCD: (Do not list these projects on page 2) | EA72: =DF72+CK72 -> 0
FU76: =CK63*0.1 -> 0
E78: 5. | I78: Amount Disbursed for units assisted with HOME Program Income or Recaptured Funds, but not with HOME funds drawn down from HCD (list each project on page 2): | EA78: =DF78+CK78 -> 0
CK83: =IF(BP84>(ROUND(CK63*0.1,0)),FU42,"") -> 
E84: 6. | I84: Amount Retained for Administrative Funds: (No more than 10% of received PI)
DA88: =IF(EA94<0,"Do not report a negative ending balance (line 8).","") -> 
E90: 7. | I90: Total Program Income/Recaptured Funds expended by the end of the reporting period: | EA90: =EA72+EA78 -> 0
E94: 8. | I94: Balance of Program Income/Recaptured Funds in local account at the end of the reporting period: | EA94: =EA67-EA72-EA78-BP84 -> 0
E98: Program Income Administrative Funds Summary
D101: Ending balance from 2022-23 APR, Attachment A (Line d) | CJ101: =IF(GH54=TRUE,BL54,"") ->  | DD101: =IF(BL101<>CK105,"Beginning balance must match ending balance from last APR (Line d)","") -> 
E105: a. | I105: Amount of PI Administrative Funds Beginning Balance: | DH105: Comments/Explanations:
E109: b. | I109: Amount of PI Administrative Funds Received this reporting period: | CK109: =BP84 -> 0
E113: c. | I113: Amount of PI Administrative Funds Expended this reporting period: | CK113: 0
E117: d. | I117: Balance of PI Administrative Funds Available: | CK117: =CK105+CK109-CK113 -> 0
E121: Anticipated Program Income/Recaptured Funds (2024/2025)
E124: Per 24 CFR 91.220 and 91.320 HOME Recipients are required to report PI/RF funds anticipated to be received during the next reporting period (July 1, 2024 through June 30, 2025).
E126: IMPORTANT! Submit with APR a Project Setup/Completion Report and Project Drawdown Request for each PI-only project, and an Administrative Funds Drawdown Request for line c. Administrative Funds expenditures, or else evidence of prior submittal to your HOME Representative.
CL127: Total anticipated HOME PI/RF receipts? | DG127: Total # of Units? | DP127: Anticipated PI-only HOME Activities (FTHB, OOR, TBRA, Multifamily Projects)
E129: 9. | I129: Anticipated PI/RF amount received, total # of units, and types of HOME activites using only HOME PI/RF during the next reporting period, July 1, 2024 - June 30, 2025:
C136: =AT1 -> Attachment A - Program Income and Recaptured Funds | FL136: PAGE 2
C139: =BK4 -> HOME Annual Performance Report
C142: =BK7 -> Reporting Period July 1, 2023 through June 30, 2024
E147: Chart 1 - Projects funded with HOME Program Income (PI) / Recaptured Funds (RF) Only (Do not include projects with HOME funds drawn down from HCD)
E150: Note: Yellow fields are required; blue fields will automatically populate. Click on the "Project Completed" box 9 and a "yes" or "no" drop-down box will appear. Any "yes" response will automatically populate the project address on the next page, on Chart 2, and that chart must be completed. IMPORTANT: Submit a HOME Project Setup/Completion Report and signed HOME Project Drawdown Request for each project, or attach evidence of prior submittal to HOME Program Representative.
E156: 1. Owner or Project Name (enter one household per line, regardless of Activity) | AF156: 2. Address of Project Location | BH156: 3. Activity (Choose activity) | CF156: 4. Were Program Guidelines approved by HCD? | CU156: 5. Amount of Activity Funds (PI & RF) Expended this Reporting Period | DF156: 6. Amount of Activity Delivery Costs, PI & RF Expended this Reporting Period | DP156: 7. Total Expenditures | EB156: 8. # of HOME-Assisted Units | EK156: 9. Is the Project Completed?
FU159: Yes
FU160: No
GE165: 1
GE169: 1
DP170: =CU170+DF170 -> 0 | GP170: 1 | GY170: FTHB Acquisition Only | IZ170: 1 (0-30%) | JY170: 09 - Vacant Unit | KS170: 1-Single/Non-Elderly
DP171: =CU171+DF171 -> 0 | GP171: 1 | GY171: OOR | IZ171: 2 (31 - 50%) | JY171: 10 - Manager's Unit | KS171: 2-Elderly
DP172: 0 | GP172: 1 | GY172: TBRA | IZ172: 3 (51 - 60%) | JY172: 11 - White | KS172: 3-Related/Single Parent
DP173: 0 | GP173: 1 | GY173: Rental New Const. acquisition | IZ173: 4 (61 - 80%) | JY173: 12 - Black/African American | KS173: 4-Related/Two Parents
DP174: 0 | GP174: 1 | GY174: Rental New Const. w/o acquisition | IZ174: 9 Vacant | JY174: 13 - Asian | KS174: 5-Other
DP175: 0 | GP175: 1 | GY175: Rental Rehabilitation | JY175: 14 - American Indian/Alaskan Native | KS175: 9-Vacant Unit
DP176: 0 | GP176: 1 | GY176: FTHB Acquisition Rehabilitation | IZ176: Yes | JY176: 15 - Native Hawaiian/Other Pacific Islander
DP177: 0 | GP177: 1 | IZ177: No | JY177: 16 - American Indian/Alaskan Native & White | KS177: 1-Section 8
DP178: 0 | GP178: 1 | GY178: 0 Bdrm | JY178: 17 - Asian & White | KS178: 2-HOME
DP179: 0 | GE179: 2 | GP179: 1 | GY179: 1 Bdrm | IP179: 1 Person | JY179: 18 - Black/African American & White | KS179: 3-Other
DP180: 0 | GP180: 1 | GY180: 2 Bdrms | IP180: 2 Persons | JY180: 19 - American Indian/Alaskan Native & Black/African | KS180: 4-No Assistance
DP181: 0 | GP181: 1 | GY181: 3 Bdrms | IP181: 3 Persons | JY181: 20 - Other | KS181: 5-Vacant Unit
DP182: 0 | GP182: 1 | GY182: 4 Bdrms | IP182: 4 Persons
DP183: 0 | GP183: 1 | GY183: 5 or more Bdrms | IP183: 5 Persons
DP184: 0 | GP184: 1 | IP184: 6 Persons
DP185: 0 | GP185: 1 | GY185: 1 - Tenant | IP185: 7 Persons
DP186: 0 | GP186: 1 | GY186: 2 - Owner | IP186: 8 or more
DP187: 0 | GP187: 1 | GY187: 3 - Vacant
E188: Total Expenditures (should equal line 5 "Total" from page 1). If more lines are needed, submit additional APRs with just Attachment A pages 2 and 3 completed. This is very common with TBRA PI-only projects. | DP188: =SUM(DP170:EA187) -> 0
FL193: PAGE 3
C194: =AT1 -> Attachment A - Program Income and Recaptured Funds
C197: =BK4 -> HOME Annual Performance Report
C200: =BK7 -> Reporting Period July 1, 2023 through June 30, 2024
D204: Chart 2 - Program Income Reporting By Household Characteristics
D207: List each assisted-unit funded with only State HOME Program Income (PI) / Recaptured Funds (RF). In the second column, indicate the Total HOME PI/RF in the project (this may not be the same as funds expended in the 2022/2023 Reporting Period, as additional funds may have been expended in prior Reporting Periods). For multi-family projects and TBRA, complete a line for each household. For TBRA only, complete the "Tenant Contribution" and "Subsidy Amount" columns, which are under the "Monthly Rent" heading. One household per line only.
D216: 1. Address of Project Location (automatically populates from Chart 1) | Z216: 2. Total HOME PI/RF Amount (include ADC) | AK216: 3. Number of Bedrooms | AT216: 4. Occupancy | BF216: 5. Monthly Rent (Include Tenant-Paid Utilities) | CK216: 6. Household Data | EO216: 7. Rental Assistance
CK220: a. Monthly Gross Income | CV220: b. % of Area Median Income | DG220: c. Head of Household (HH) | EB220: d. Household
BF222: a. Tenant Contribution (include Utilities) | BO222: b. Subsidy Amount | BZ222: c. Total Housing Cost
DG224: (1) Ethnicity Hispanic? | DN224: (2) Race | EB224: (1) Size | EH224: (2) Type
D231: =IF(GP170=2,AF170,"") ->  | BZ231: =SUM(BF231:BY231) -> 0
BZ232: =SUM(BF232:BY232) -> 0
D233: =IF(GP172=2,AF172,"") ->  | BZ233: =SUM(BF233:BY233) -> 0
BZ234: =SUM(BF234:BY234) -> 0
BZ235: 0
BZ236: 0
BZ237: 0
BZ238: 0
BZ239: 0
BZ240: 0
BZ241: 0
BZ242: 0
BZ243: 0
BZ244: 0
BZ245: 0
BZ246: 0
BZ247: 0
BZ248: 0
FL250: PAGE 4
C251: =AT1 -> Attachment A - Program Income and Recaptured Funds
C254: =BK4 -> HOME Annual Performance Report
C257: =BK7 -> Reporting Period July 1, 2023 through June 30, 2024
E262: Instructions
E266: Note:
E268: • All areas marked in blue are fields that will automatically populate based on the data you enter in other fields.
E271: • For name of HOME Recipient, insert your city or county’s name.
E275: Program Income/Recaptured Funds Summary
E279: (1) | I279: Enter the beginning balance of Program Income and Recaptured Funds in each column. The amount in each column should reflect the ending balance from the prior
I282: Reporting Period.
E285: (2) | I285: Identify the amount of funds received during the Reporting Period in both Program Income and Recaptured Funds.
E288: (3) | I288: Do not enter. Total Available for the reporting period will automatically populate.
E291: (4) | I291: Enter the amount of Program Income and Recaptured Funds used with funds from HOME contract.
E294: (5) | I294: Identify the amount of funds for units assisted with PI and RF, but not with HOME funds drawn down from HCD.
E297: (6) | I297: Enter the amount of PI retained for Administative Funds (no more than 10% of PI received).
E300: (7) | I300: Do not enter - Total Program Income/Recaptured Funds expended. This will automatically populate.
E303: (8) | I303: Do not enter - Balance of Program Income/Recaptured Funds. This will automatically populate.
E307: Program Income Administrative Funds Summary
E311: a) | I311: Enter beginning balance of Program Income Administrative Funds. This is the ending balance from the previous Annual PI Report.
E314: b) | I314: Do not enter - The Program Income Administrative Funds Received this Reporting Period will automatically populate from (6).
E317: c) | I317: Enter amount of Program Income Administrative Funds Expended in the Reporting Period.
E320: d) | I320: Do not enter - The balance of Program Income/Recaptured Funds Available will automatically populate from (a), (b) and (c).
E324: Chart 1 - Projects funded with HOME Program Income (PI) / Recaptured Funds (RF) Only (Do not include projects with HOME funds drawn down from HCD)
D328: Provide project information in each column:
D331: Column 1: Enter name of owner(s) or project name.
D334: Column 2: Enter address of project location.
D337: Column 3: From the drop-down menu, select the project activity.
D340: Column 4: From the drop-down menu, indicate whether or not the Program Guidelines were approved by HCD.
D343: Column 5: Enter the amount of expended Program Income/Recaptured Funds during the reporting period.
D346: Column 6: Enter the amount of Activity Delivery Costs and Program Income/Recaptured Funds expended (leave blank if TBRA) during the reporting period.
D349: Column 7: Do not enter total expenditures, as this will automatically populate.
D352: Column 8: Enter the number of HOME-Assisted units.
D355: Column 9: From the drop-down menu, indicate whether or not the project has been completed.
C359: =AT1 -> Attachment A - Program Income and Recaptured Funds | FL359: PAGE 5
C363: =BK4 -> HOME Annual Performance Report
C366: =BK7 -> Reporting Period July 1, 2023 through June 30, 2024
E371: Chart 2 - Program Income Reporting by Household Characteristics
E375: Column 1: Do not enter. If the project is complete and you marked "yes" in the "Project Completed" column in Chart 1, the address will automatically populate.
E378: Column 2: Enter the total amount of Program Income/Recaptured Funds. (Note: This total amount may not be the same as Chart 1, as additional funds may have been
P381: used in the prior reporting period.)
E384: Column 3: From the drop-down menu, select the total number of bedrooms.
E387: Column 4: From the drop-down menu, select the code for occupancy.
E390: Columns 5a, 5b, and 5c: For TBRA, enter the Tenant Contribution (including utilities) and HOME Subsidy Amount. The Total Housing Cost column will automatically populate.
E393: Column 6a: Enter the monthly gross income.
E396: Column 6b: From the drop-down menu, select the appropriate code for the AMI.
E399: Column 6c(1) and 6c(2): From the drop-down menus, select the appropriate codes for ethnicity and race.
E402: Column 6d(1): From the drop-down menu, select the household size.
E405: Column 6d(2): From the drop-down menu, select the household type.
E408: Column 7: From the drop-down menu, select the type of rental assistance.
C455: END OF DOCUMENT
FS660: FTHB Acquisition Only | GZ660: Rental New Const. acqusition
FS661: OOR | GZ661: Rental New Const. w/o acqusition
FS662: TBRA | GZ662: Rental Rehabilitation
FS663: Rental New Const. acqusition | GZ663: FTHB Acquisition Only
FS664: Rental New Const. w/o acqusition | GZ664: FTHB Acquisition Rehabilitation
FS665: Rental Rehabilitation | GZ665: OOR
FS666: FTHB Acquisition Rehabilitation | GZ666: TBRA

Sheet Link Data A (hidden)
A1: 2014-2015 HOME Recipient | G1: Activity Beginning Program Income Balance | H1: Activity Beginning Recaptured Funds Balance | I1: Activity Beginning Balance Sum 1a & 1b | J1: Activity Program Income Received | K1: Activity Recaptured Funds Received | L1: Total Pi & Recaptured Funds and Admin Received | M1: Activity Only PI RF Received (Total of 1 on form) 2A +2B-5 | N1: Activity Program Income Disb On HOME SA Activities | O1: Activities Recaptured Funds Disb with SA HOME Activities | P1: Activity HOMESA Activities Total Disb with 3a + 3b | Q1: PI Only Projects Disbursed | R1: Recap Only Projects Disbursed | S1: Amount Retained for Admin | T1: PI Only Projects Total Disbursed 4A + 4B | U1: Total LA PI & Recap Disbursed 3c + 4c | V1: Activity Ending Balance LA PI & Recap Balance | W1: PI Admin Beginning Balance (a) | X1: PI ADMIN Received (b) | Y1: PI ADMIN Disbursed (c) | Z1: PI ADMIN Balance | AA1: Total Begginning Balance | AB1: Total PI/Recaptured & ADMIN Disbursed | AC1: Total Ending Balance PI/Recaptured & ADMIN
G2: line 1a | H2: line 1b | I2: 1c | J2: line 2a (B1) | K2: line 2b | L2: B (2C) | M2: 2d | N2: line 3a | O2: line 3b | P2: line 3c | Q2: 4a | R2: 4b | S2: 5 | T2: 4c | U2: line 6 | V2: line 7 | W2: Admin | X2: Admin | Y2: Admin | Z2: Admin | AA2: A | AB2: C | AC2: D (7)
A3: 1 | B3: Formula | C3: Preparer | D3: Preparer Org | E3: Phone | F3: Email | G3: 2 | H3: 3 | I3: 4 | J3: 5 | K3: 6 | L3: 7 | M3: Formula | N3: 9 | O3: 10 | P3: 11 | Q3: 12 | R3: 13 | S3: 14 | T3: 15 | U3: 16 | V3: 17 | W3: 18 | X3: 19 | Y3: 20 | Z3: 21 | AA3: Formula | AB3: Formula | AC3: Formula | AD3: 22 | AE3: 23 | AF3: 24
A4: ='Att A'!AC13 -> Select Option | B4: =Matrix!GY43 -> 1 | C4: =IF(B2=2,Matrix!CT25,'Att A'!D18) ->  | D4: =IF(B2=2,Matrix!ET25,'Att A'!BK18) ->  | E4: =IF(B2=2,Matrix!CT35,'Att A'!D23) ->  | F4: =IF(B2=2,Matrix!ET35,'Att A'!AM23) ->  | G4: ='Att A'!CK59 -> 0 | H4: ='Att A'!DF59 -> 0 | I4: ='Att A'!EA59 -> 0 | J4: ='Att A'!CK63 -> 0 | K4: ='Att A'!DF63 -> 0 | L4: ='Att A'!EA63 -> 0 | N4: ='Att A'!CK72 -> 0 | O4: ='Att A'!DF72 -> 0 | P4: ='Att A'!EA72 -> 0 | Q4: ='Att A'!CK78 -> 0 | R4: ='Att A'!DF78 -> 0 | S4: ='Att A'!BP84 -> 0 | T4: ='Att A'!EA78 -> 0 | U4: ='Att A'!EA90 -> 0 | V4: ='Att A'!EA94 -> 0 | W4: ='Att A'!CK105 -> 0 | X4: ='Att A'!CK109 -> 0 | Y4: ='Att A'!CK113 -> 0 | Z4: ='Att A'!CK117 -> 0 | AD4: ='Att A'!CL130 -> 0 | AE4: ='Att A'!DG130 -> 0 | AF4: ='Att A'!DP130 -> 0

Sheet Link Data A1 (hidden)
A1: ='Att A'!AC13 -> Select Option | B1: ='Att A'!E170 -> 0 | C1: ='Att A'!AF170 -> 0 | D1: ='Att A'!BH170 -> 0 | E1: ='Att A'!EB170 -> 0 | F1: ='Att A'!Z231 -> 0 | G1: ='Att A'!AK231 -> 0 | H1: ='Att A'!AT231 -> 0 | I1: ='Att A'!CK231 -> 0 | J1: ='Att A'!CV231 -> 0 | K1: ='Att A'!DG231 -> 0 | L1: ='Att A'!DN231 -> 0 | M1: ='Att A'!EB231 -> 0 | N1: ='Att A'!EH231 -> 0 | O1: ='Att A'!EO231 -> 0
A2: ='Att A'!AC13 -> Select Option | B2: ='Att A'!E171 -> 0 | C2: ='Att A'!AF171 -> 0 | D2: ='Att A'!BH171 -> 0 | E2: ='Att A'!EB171 -> 0 | F2: ='Att A'!Z232 -> 0 | G2: ='Att A'!AK232 -> 0 | H2: ='Att A'!AT232 -> 0 | I2: ='Att A'!CK232 -> 0 | J2: ='Att A'!CV232 -> 0 | K2: ='Att A'!DG232 -> 0 | L2: ='Att A'!DN232 -> 0 | M2: ='Att A'!EB232 -> 0 | N2: ='Att A'!EH232 -> 0 | O2: ='Att A'!EO232 -> 0
A3: ='Att A'!AC13 -> Select Option | B3: ='Att A'!E172 -> 0 | C3: ='Att A'!AF172 -> 0 | D3: ='Att A'!BH172 -> 0 | E3: ='Att A'!EB172 -> 0 | F3: ='Att A'!Z233 -> 0 | G3: ='Att A'!AK233 -> 0 | H3: ='Att A'!AT233 -> 0 | I3: ='Att A'!CK233 -> 0 | J3: ='Att A'!CV233 -> 0 | K3: ='Att A'!DG233 -> 0 | L3: ='Att A'!DN233 -> 0 | M3: ='Att A'!EB233 -> 0 | N3: ='Att A'!EH233 -> 0 | O3: ='Att A'!EO233 -> 0
A4: ='Att A'!AC13 -> Select Option | B4: ='Att A'!E173 -> 0 | C4: ='Att A'!AF173 -> 0 | D4: ='Att A'!BH173 -> 0 | E4: ='Att A'!EB173 -> 0 | F4: ='Att A'!Z234 -> 0 | G4: ='Att A'!AK234 -> 0 | H4: ='Att A'!AT234 -> 0 | I4: ='Att A'!CK234 -> 0 | J4: ='Att A'!CV234 -> 0 | K4: ='Att A'!DG234 -> 0 | L4: ='Att A'!DN234 -> 0 | M4: ='Att A'!EB234 -> 0 | N4: ='Att A'!EH234 -> 0 | O4: ='Att A'!EO234 -> 0
A5: ='Att A'!AC13 -> Select Option | B5: ='Att A'!E174 -> 0 | C5: ='Att A'!AF174 -> 0 | D5: ='Att A'!BH174 -> 0 | E5: ='Att A'!EB174 -> 0 | F5: ='Att A'!Z235 -> 0 | G5: ='Att A'!AK235 -> 0 | H5: ='Att A'!AT235 -> 0 | I5: ='Att A'!CK235 -> 0 | J5: ='Att A'!CV235 -> 0 | K5: ='Att A'!DG235 -> 0 | L5: ='Att A'!DN235 -> 0 | M5: ='Att A'!EB235 -> 0 | N5: ='Att A'!EH235 -> 0 | O5: ='Att A'!EO235 -> 0
A6: ='Att A'!AC13 -> Select Option | B6: ='Att A'!E175 -> 0 | C6: ='Att A'!AF175 -> 0 | D6: ='Att A'!BH175 -> 0 | E6: ='Att A'!EB175 -> 0 | F6: ='Att A'!Z236 -> 0 | G6: ='Att A'!AK236 -> 0 | H6: ='Att A'!AT236 -> 0 | I6: ='Att A'!CK236 -> 0 | J6: ='Att A'!CV236 -> 0 | K6: ='Att A'!DG236 -> 0 | L6: ='Att A'!DN236 -> 0 | M6: ='Att A'!EB236 -> 0 | N6: ='Att A'!EH236 -> 0 | O6: ='Att A'!EO236 -> 0
A7: ='Att A'!AC13 -> Select Option | B7: ='Att A'!E176 -> 0 | C7: ='Att A'!AF176 -> 0 | D7: ='Att A'!BH176 -> 0 | E7: ='Att A'!EB176 -> 0 | F7: ='Att A'!Z237 -> 0 | G7: ='Att A'!AK237 -> 0 | H7: ='Att A'!AT237 -> 0 | I7: ='Att A'!CK237 -> 0 | J7: ='Att A'!CV237 -> 0 | K7: ='Att A'!DG237 -> 0 | L7: ='Att A'!DN237 -> 0 | M7: ='Att A'!EB237 -> 0 | N7: ='Att A'!EH237 -> 0 | O7: ='Att A'!EO237 -> 0
A8: ='Att A'!AC13 -> Select Option | B8: ='Att A'!E177 -> 0 | C8: ='Att A'!AF177 -> 0 | D8: ='Att A'!BH177 -> 0 | E8: ='Att A'!EB177 -> 0 | F8: ='Att A'!Z238 -> 0 | G8: ='Att A'!AK238 -> 0 | H8: ='Att A'!AT238 -> 0 | I8: ='Att A'!CK238 -> 0 | J8: ='Att A'!CV238 -> 0 | K8: ='Att A'!DG238 -> 0 | L8: ='Att A'!DN238 -> 0 | M8: ='Att A'!EB238 -> 0 | N8: ='Att A'!EH238 -> 0 | O8: ='Att A'!EO238 -> 0
A9: ='Att A'!AC13 -> Select Option | B9: ='Att A'!E178 -> 0 | C9: ='Att A'!AF178 -> 0 | D9: ='Att A'!BH178 -> 0 | E9: ='Att A'!EB178 -> 0 | F9: ='Att A'!Z239 -> 0 | G9: ='Att A'!AK239 -> 0 | H9: ='Att A'!AT239 -> 0 | I9: ='Att A'!CK239 -> 0 | J9: ='Att A'!CV239 -> 0 | K9: ='Att A'!DG239 -> 0 | L9: ='Att A'!DN239 -> 0 | M9: ='Att A'!EB239 -> 0 | N9: ='Att A'!EH239 -> 0 | O9: ='Att A'!EO239 -> 0
A10: ='Att A'!AC13 -> Select Option | B10: ='Att A'!E179 -> 0 | C10: ='Att A'!AF179 -> 0 | D10: ='Att A'!BH179 -> 0 | E10: ='Att A'!EB179 -> 0 | F10: ='Att A'!Z240 -> 0 | G10: ='Att A'!AK240 -> 0 | H10: ='Att A'!AT240 -> 0 | I10: ='Att A'!CK240 -> 0 | J10: ='Att A'!CV240 -> 0 | K10: ='Att A'!DG240 -> 0 | L10: ='Att A'!DN240 -> 0 | M10: ='Att A'!EB240 -> 0 | N10: ='Att A'!EH240 -> 0 | O10: ='Att A'!EO240 -> 0
A11: ='Att A'!AC13 -> Select Option | B11: ='Att A'!E180 -> 0 | C11: ='Att A'!AF180 -> 0 | D11: ='Att A'!BH180 -> 0 | E11: ='Att A'!EB180 -> 0 | F11: ='Att A'!Z241 -> 0 | G11: ='Att A'!AK241 -> 0 | H11: ='Att A'!AT241 -> 0 | I11: ='Att A'!CK241 -> 0 | J11: ='Att A'!CV241 -> 0 | K11: ='Att A'!DG241 -> 0 | L11: ='Att A'!DN241 -> 0 | M11: ='Att A'!EB241 -> 0 | N11: ='Att A'!EH241 -> 0 | O11: ='Att A'!EO241 -> 0
A12: ='Att A'!AC13 -> Select Option | B12: ='Att A'!E181 -> 0 | C12: ='Att A'!AF181 -> 0 | D12: ='Att A'!BH181 -> 0 | E12: ='Att A'!EB181 -> 0 | F12: ='Att A'!Z242 -> 0 | G12: ='Att A'!AK242 -> 0 | H12: ='Att A'!AT242 -> 0 | I12: ='Att A'!CK242 -> 0 | J12: ='Att A'!CV242 -> 0 | K12: ='Att A'!DG242 -> 0 | L12: ='Att A'!DN242 -> 0 | M12: ='Att A'!EB242 -> 0 | N12: ='Att A'!EH242 -> 0 | O12: ='Att A'!EO242 -> 0
A13: ='Att A'!AC13 -> Select Option | B13: ='Att A'!E182 -> 0 | C13: ='Att A'!AF182 -> 0 | D13: ='Att A'!BH182 -> 0 | E13: ='Att A'!EB182 -> 0 | F13: ='Att A'!Z243 -> 0 | G13: ='Att A'!AK243 -> 0 | H13: ='Att A'!AT243 -> 0 | I13: ='Att A'!CK243 -> 0 | J13: ='Att A'!CV243 -> 0 | K13: ='Att A'!DG243 -> 0 | L13: ='Att A'!DN243 -> 0 | M13: ='Att A'!EB243 -> 0 | N13: ='Att A'!EH243 -> 0 | O13: ='Att A'!EO243 -> 0
A14: ='Att A'!AC13 -> Select Option | B14: ='Att A'!E183 -> 0 | C14: ='Att A'!AF183 -> 0 | D14: ='Att A'!BH183 -> 0 | E14: ='Att A'!EB183 -> 0 | F14: ='Att A'!Z244 -> 0 | G14: ='Att A'!AK244 -> 0 | H14: ='Att A'!AT244 -> 0 | I14: ='Att A'!CK244 -> 0 | J14: ='Att A'!CV244 -> 0 | K14: ='Att A'!DG244 -> 0 | L14: ='Att A'!DN244 -> 0 | M14: ='Att A'!EB244 -> 0 | N14: ='Att A'!EH244 -> 0 | O14: ='Att A'!EO244 -> 0
A15: ='Att A'!AC13 -> Select Option | B15: ='Att A'!E184 -> 0 | C15: ='Att A'!AF184 -> 0 | D15: ='Att A'!BH184 -> 0 | E15: ='Att A'!EB184 -> 0 | F15: ='Att A'!Z245 -> 0 | G15: ='Att A'!AK245 -> 0 | H15: ='Att A'!AT245 -> 0 | I15: ='Att A'!CK245 -> 0 | J15: ='Att A'!CV245 -> 0 | K15: ='Att A'!DG245 -> 0 | L15: ='Att A'!DN245 -> 0 | M15: ='Att A'!EB245 -> 0 | N15: ='Att A'!EH245 -> 0 | O15: ='Att A'!EO245 -> 0
A16: ='Att A'!AC13 -> Select Option | B16: ='Att A'!E185 -> 0 | C16: ='Att A'!AF185 -> 0 | D16: ='Att A'!BH185 -> 0 | E16: ='Att A'!EB185 -> 0 | F16: ='Att A'!Z246 -> 0 | G16: ='Att A'!AK246 -> 0 | H16: ='Att A'!AT246 -> 0 | I16: ='Att A'!CK246 -> 0 | J16: ='Att A'!CV246 -> 0 | K16: ='Att A'!DG246 -> 0 | L16: ='Att A'!DN246 -> 0 | M16: ='Att A'!EB246 -> 0 | N16: ='Att A'!EH246 -> 0 | O16: ='Att A'!EO246 -> 0
A17: ='Att A'!AC13 -> Select Option | B17: ='Att A'!E186 -> 0 | C17: ='Att A'!AF186 -> 0 | D17: ='Att A'!BH186 -> 0 | E17: ='Att A'!EB186 -> 0 | F17: ='Att A'!Z247 -> 0 | G17: ='Att A'!AK247 -> 0 | H17: ='Att A'!AT247 -> 0 | I17: ='Att A'!CK247 -> 0 | J17: ='Att A'!CV247 -> 0 | K17: ='Att A'!DG247 -> 0 | L17: ='Att A'!DN247 -> 0 | M17: ='Att A'!EB247 -> 0 | N17: ='Att A'!EH247 -> 0 | O17: ='Att A'!EO247 -> 0
A18: ='Att A'!AC13 -> Select Option | B18: ='Att A'!E187 -> 0 | C18: ='Att A'!AF187 -> 0 | D18: ='Att A'!BH187 -> 0 | E18: ='Att A'!EB187 -> 0 | F18: ='Att A'!Z248 -> 0 | G18: ='Att A'!AK248 -> 0 | H18: ='Att A'!AT248 -> 0 | I18: ='Att A'!CK248 -> 0 | J18: ='Att A'!CV248 -> 0 | K18: ='Att A'!DG248 -> 0 | L18: ='Att A'!DN248 -> 0 | M18: ='Att A'!EB248 -> 0 | N18: ='Att A'!EH248 -> 0 | O18: ='Att A'!EO248 -> 0

Sheet Att B
GN1: PAGE 1
E2: Attachment B - MBE/WBE (for HOME Recipients only)
E5: HOME Annual Performance Report
E8: Reporting Period July 1, 2023 through June 30, 2024
C19: HOME Recipient Name | AF19: =IF(Matrix!E25=0,"",Matrix!E25) -> Select Option | EQ19: Date:
C24: =IF(Matrix!GY43=2,Matrix!CT25,"") ->  | AS24: =IF(Matrix!GY43=2,Matrix!ET25,"") ->  | CU24: =IF(Matrix!GY43=2,Matrix!CT35,"") ->  | EC24: =IF(Matrix!GY43=2,Matrix!ET35,"") -> 
C27: Preparer's Name | AS27: Organization | CU27: Phone | EC27: Email
C31: This form must be completed by HOME Recipients to report ALL contracts and subcontracts (regardless of dollar amount) executed during the reporting period. (NOTE: Multiple HOME contracts can be listed on this page. A separate "Attachment B" is not needed for each active HOME contract. Enter the codes in columns 9 and 10 which indicate the racial/ethnic and gender characteristics of the owner(s) and controller(s). If 51% or more is not owned and controlled by any single racial/ethnic or gender category, enter the code which is most appropriate.)
C41: It is the Home Recipient's responsibility to ensure that they collect the contract information from their Contractors and Subcontractors. HOME Recipients must distribute the "Attachment B - Stand-Alone Report" to all Contractors and Subcontractors to report all contracts and subcontracts (regardless of dollar amount) executed during the reporting period.
B44: 1. HOME Standard Agreement Number(s) | N44: 2. Is the HOME Recipient a CHDO or Developer? | X44: 3. Is this Activity a New Construction or Rental Rehab? Y or N | AJ44: 4. Total HOME Award Amount | AU44: 5. Contract or Subcontract Amount* (see note below) | BE44: 6. Contract or Subcontract Execution Date (mm/dd/yy) | BM44: 7. Contract Type | BY44: 8. Trade Code Type | CJ44: 9. Contractor or Subcontractor Business Racial/Ethnic Code | CW44: 10. Women- Owned Business? Y or N | DF44: 11. Section 3 Business? Y or N | DO44: 12. Contractor (C) or Subcontractor(S) and IRS Employer ID # (EIN) | EF44: 13. Contractor/Subcontractor Information
HQ48: 1
HQ49: 2
HQ50: 3
HQ51: 4 | IE51: =FN63 -> 0
HQ52: 5
HQ53: 6
HQ54: 7
HQ55: 8
DO56: C or S | DU56: EIN (Not SSN) (must be 9 digits) | EF56: Name | EV56: Address | FP56: City | GA56: State | GG56: Zip Code
IE57: =FN68 -> 0
IE59: =FN71 -> 0
IE61: =#REF! -> 
B73: *Dollar amount must be listed even if contract is "Based on Performance" or "Estimate."
B75: =E2 -> Attachment B - MBE/WBE (for HOME Recipients only) | GN75: PAGE 2
B76: Minority Business Enterprise (MBE) and Women Business Enterprise (WBE)
B77: =E8 -> Reporting Period July 1, 2023 through June 30, 2024
C80: HOME Recipient Name | AF80: =IF(AF19=0,"",AF19) -> Select Option | DC80: Preparer's Organization | EG80: =IF(AS24=0,"",AS24) -> 
B84: 1. HOME Standard Agreement Number(s) | N84: 2. Is the HOME Recipient a CHDO or Developer? | X84: 3. Is this Activity a New Construction or Rental Rehab? Y or N | AJ84: 4. Total HOME Award Amount | AU84: 5. Contract or Subcontract Amount* (see note below) | BE84: 6. Contract or Subcontract Execution Date (mm/dd/yy) | BM84: 7. Contract Type | BY84: 8. Trade Code Type | CJ84: 9. Contractor or Subcontractor Business Racial/Ethnic Code | CW84: 10. Women- Owned Business? Y or N | DF84: 11. Section 3 Business? Y or N | DO84: 12. Contractor (C) or Subcontractor(S) and IRS Employer ID # (EIN) | EF84: 13. Contractor/Subcontractor Information
DO96: C or S | DU96: EIN (Not SSN) (must be 9 digits) | EF96: Name | EV96: Address | FP96: City | GA96: State | GG96: Zip Code
HZ101: 1-Construction | JJ101: 1-New Construction
HZ102: 2-Non-Construction | JJ102: 2-Substantial Rehabilitation
JJ103: 3-Repair
JJ104: 4-Service
JJ105: 5-Project Management
HI106: 1-White Americans | IQ106: Yes | JJ106: 6-Professional Services
HI107: 2-Black Americans | IQ107: No | JJ107: 7-Tenant Services
HI108: 3-Native Americans | JJ108: 8-Education/ Training
HI109: 4-Hispanic Americans | JJ109: 9-Architect/ Engineering/ Appraisal
HI110: 5-Asian/Pacific Americans | IS110: C
HI111: 6-Hasidic Jews | IS111: S
HI112: 7-Governmental Agency
HI113: 8-Non-Profit
B119: *Dollar amount must be listed even if contract is "Based on Performance" or "Estimate."
B121: =E2 -> Attachment B - MBE/WBE (for HOME Recipients only) | GN121: PAGE 3
B122: Minority Business Enterprise (MBE) and Women Business Enterprise (WBE)
B123: =E8 -> Reporting Period July 1, 2023 through June 30, 2024
C126: HOME Recipient Name | AF126: =IF(AF19=0,"",AF19) -> Select Option | DC126: Preparer's Organization | EG126: =IF(AS24=0,"",AS24) -> 
B130: 1. HOME Standard Agreement Number(s) | N130: 2. Is the HOME Recipient a CHDO or Developer? | X130: 3. Is this Activity a New Construction or Rental Rehab? Y or N | AJ130: 4. Total HOME Award Amount | AU130: 5. Contract or Subcontract Amount* (see note below) | BE130: 6. Contract or Subcontract Execution Date (mm/dd/yy) | BM130: 7. Contract Type | BY130: 8. Trade Code Type | CJ130: 9. Contractor or Subcontractor Business Racial/Ethnic Code | CW130: 10. Women- Owned Business? Y or N | DF130: 11. Section 3 Business? Y or N | DO130: 12. Contractor (C) or Subcontractor(S) and IRS Employer ID # (EIN) | EF130: 13. Contractor/Subcontractor Information
DO142: C or S | DU142: EIN (Not SSN) (must be 9 digits) | EF142: Name | EV142: Address | FP142: City | GA142: State | GG142: Zip Code
B165: *Dollar amount must be listed even if contract is "Based on Performance" or "Estimate."

Sheet Link Data B (hidden)
A1: ='Att B'!AF19 -> Select Option | B1: ='Att B'!$AS$24 ->  | C1: ='Att B'!B61 -> 0 | D1: ='Att B'!N61 -> 0 | E1: ='Att B'!X61 -> 0 | F1: ='Att B'!AJ61 -> 0 | G1: ='Att B'!AU61 -> 0 | H1: ='Att B'!BE61 -> 00:00:00 | I1: ='Att B'!BM61 -> 0 | J1: ='Att B'!BY61 -> 0 | K1: ='Att B'!CJ61 -> 0 | L1: ='Att B'!CW61 -> 0 | M1: ='Att B'!DF61 -> 0 | N1: ='Att B'!DO61 -> 0 | O1: ='Att B'!DU61 -> 0 | P1: ='Att B'!EF61 -> 0 | Q1: ='Att B'!EV61 -> 0 | R1: ='Att B'!FP61 -> 0 | S1: ='Att B'!GA61 -> 0 | T1: ='Att B'!GG61 -> 0
A2: ='Att B'!AF19 -> Select Option | B2: ='Att B'!$AS$24 ->  | C2: ='Att B'!B62 -> 0 | D2: ='Att B'!N62 -> 0 | E2: ='Att B'!X62 -> 0 | F2: ='Att B'!AJ62 -> 0 | G2: ='Att B'!AU62 -> 0 | H2: ='Att B'!BE62 -> 00:00:00 | I2: ='Att B'!BM62 -> 0 | J2: ='Att B'!BY62 -> 0 | K2: ='Att B'!CJ62 -> 0 | L2: ='Att B'!CW62 -> 0 | M2: ='Att B'!DF62 -> 0 | N2: ='Att B'!DO62 -> 0 | O2: ='Att B'!DU62 -> 0 | P2: ='Att B'!EF62 -> 0 | Q2: ='Att B'!EV62 -> 0 | R2: ='Att B'!FP62 -> 0 | S2: ='Att B'!GA62 -> 0 | T2: ='Att B'!GG62 -> 0
A3: ='Att B'!AF19 -> Select Option | B3: ='Att B'!$AS$24 ->  | C3: ='Att B'!B63 -> 0 | D3: ='Att B'!N63 -> 0 | E3: ='Att B'!X63 -> 0 | F3: ='Att B'!AJ63 -> 0 | G3: ='Att B'!AU63 -> 0 | H3: ='Att B'!BE63 -> 00:00:00 | I3: ='Att B'!BM63 -> 0 | J3: ='Att B'!BY63 -> 0 | K3: ='Att B'!CJ63 -> 0 | L3: ='Att B'!CW63 -> 0 | M3: ='Att B'!DF63 -> 0 | N3: ='Att B'!DO63 -> 0 | O3: ='Att B'!DU63 -> 0 | P3: ='Att B'!EF63 -> 0 | Q3: ='Att B'!EV63 -> 0 | R3: ='Att B'!FP63 -> 0 | S3: ='Att B'!GA63 -> 0 | T3: ='Att B'!GG63 -> 0
A4: ='Att B'!AF19 -> Select Option | B4: ='Att B'!$AS$24 ->  | C4: ='Att B'!B64 -> 0 | D4: ='Att B'!N64 -> 0 | E4: ='Att B'!X64 -> 0 | F4: ='Att B'!AJ64 -> 0 | G4: ='Att B'!AU64 -> 0 | H4: ='Att B'!BE64 -> 00:00:00 | I4: ='Att B'!BM64 -> 0 | J4: ='Att B'!BY64 -> 0 | K4: ='Att B'!CJ64 -> 0 | L4: ='Att B'!CW64 -> 0 | M4: ='Att B'!DF64 -> 0 | N4: ='Att B'!DO64 -> 0 | O4: ='Att B'!DU64 -> 0 | P4: ='Att B'!EF64 -> 0 | Q4: ='Att B'!EV64 -> 0 | R4: ='Att B'!FP64 -> 0 | S4: ='Att B'!GA64 -> 0 | T4: ='Att B'!GG64 -> 0
A5: ='Att B'!AF19 -> Select Option | B5: ='Att B'!$AS$24 ->  | C5: ='Att B'!B65 -> 0 | D5: ='Att B'!N65 -> 0 | E5: ='Att B'!X65 -> 0 | F5: ='Att B'!AJ65 -> 0 | G5: ='Att B'!AU65 -> 0 | H5: ='Att B'!BE65 -> 00:00:00 | I5: ='Att B'!BM65 -> 0 | J5: ='Att B'!BY65 -> 0 | K5: ='Att B'!CJ65 -> 0 | L5: ='Att B'!CW65 -> 0 | M5: ='Att B'!DF65 -> 0 | N5: ='Att B'!DO65 -> 0 | O5: ='Att B'!DU65 -> 0 | P5: ='Att B'!EF65 -> 0 | Q5: ='Att B'!EV65 -> 0 | R5: ='Att B'!FP65 -> 0 | S5: ='Att B'!GA65 -> 0 | T5: ='Att B'!GG65 -> 0
A6: ='Att B'!AF19 -> Select Option | B6: ='Att B'!$AS$24 ->  | C6: ='Att B'!B66 -> 0 | D6: ='Att B'!N66 -> 0 | E6: ='Att B'!X66 -> 0 | F6: ='Att B'!AJ66 -> 0 | G6: ='Att B'!AU66 -> 0 | H6: ='Att B'!BE66 -> 00:00:00 | I6: ='Att B'!BM66 -> 0 | J6: ='Att B'!BY66 -> 0 | K6: ='Att B'!CJ66 -> 0 | L6: ='Att B'!CW66 -> 0 | M6: ='Att B'!DF66 -> 0 | N6: ='Att B'!DO66 -> 0 | O6: ='Att B'!DU66 -> 0 | P6: ='Att B'!EF66 -> 0 | Q6: ='Att B'!EV66 -> 0 | R6: ='Att B'!FP66 -> 0 | S6: ='Att B'!GA66 -> 0 | T6: ='Att B'!GG66 -> 0
A7: ='Att B'!AF19 -> Select Option | B7: ='Att B'!$AS$24 ->  | C7: ='Att B'!B67 -> 0 | D7: ='Att B'!N67 -> 0 | E7: ='Att B'!X67 -> 0 | F7: ='Att B'!AJ67 -> 0 | G7: ='Att B'!AU67 -> 0 | H7: ='Att B'!BE67 -> 00:00:00 | I7: ='Att B'!BM67 -> 0 | J7: ='Att B'!BY67 -> 0 | K7: ='Att B'!CJ67 -> 0 | L7: ='Att B'!CW67 -> 0 | M7: ='Att B'!DF67 -> 0 | N7: ='Att B'!DO67 -> 0 | O7: ='Att B'!DU67 -> 0 | P7: ='Att B'!EF67 -> 0 | Q7: ='Att B'!EV67 -> 0 | R7: ='Att B'!FP67 -> 0 | S7: ='Att B'!GA67 -> 0 | T7: ='Att B'!GG67 -> 0
A8: ='Att B'!AF19 -> Select Option | B8: ='Att B'!$AS$24 ->  | C8: ='Att B'!B68 -> 0 | D8: ='Att B'!N68 -> 0 | E8: ='Att B'!X68 -> 0 | F8: ='Att B'!AJ68 -> 0 | G8: ='Att B'!AU68 -> 0 | H8: ='Att B'!BE68 -> 00:00:00 | I8: ='Att B'!BM68 -> 0 | J8: ='Att B'!BY68 -> 0 | K8: ='Att B'!CJ68 -> 0 | L8: ='Att B'!CW68 -> 0 | M8: ='Att B'!DF68 -> 0 | N8: ='Att B'!DO68 -> 0 | O8: ='Att B'!DU68 -> 0 | P8: ='Att B'!EF68 -> 0 | Q8: ='Att B'!EV68 -> 0 | R8: ='Att B'!FP68 -> 0 | S8: ='Att B'!GA68 -> 0 | T8: ='Att B'!GG68 -> 0
A9: ='Att B'!AF19 -> Select Option | B9: ='Att B'!$AS$24 ->  | C9: ='Att B'!B69 -> 0 | D9: ='Att B'!N69 -> 0 | E9: ='Att B'!X69 -> 0 | F9: ='Att B'!AJ69 -> 0 | G9: ='Att B'!AU69 -> 0 | H9: ='Att B'!BE69 -> 00:00:00 | I9: ='Att B'!BM69 -> 0 | J9: ='Att B'!BY69 -> 0 | K9: ='Att B'!CJ69 -> 0 | L9: ='Att B'!CW69 -> 0 | M9: ='Att B'!DF69 -> 0 | N9: ='Att B'!DO69 -> 0 | O9: ='Att B'!DU69 -> 0 | P9: ='Att B'!EF69 -> 0 | Q9: ='Att B'!EV69 -> 0 | R9: ='Att B'!FP69 -> 0 | S9: ='Att B'!GA69 -> 0 | T9: ='Att B'!GG69 -> 0
A10: ='Att B'!AF19 -> Select Option | B10: ='Att B'!$AS$24 ->  | C10: ='Att B'!B70 -> 0 | D10: ='Att B'!N70 -> 0 | E10: ='Att B'!X70 -> 0 | F10: ='Att B'!AJ70 -> 0 | G10: ='Att B'!AU70 -> 0 | H10: ='Att B'!BE70 -> 00:00:00 | I10: ='Att B'!BM70 -> 0 | J10: ='Att B'!BY70 -> 0 | K10: ='Att B'!CJ70 -> 0 | L10: ='Att B'!CW70 -> 0 | M10: ='Att B'!DF70 -> 0 | N10: ='Att B'!DO70 -> 0 | O10: ='Att B'!DU70 -> 0 | P10: ='Att B'!EF70 -> 0 | Q10: ='Att B'!EV70 -> 0 | R10: ='Att B'!FP70 -> 0 | S10: ='Att B'!GA70 -> 0 | T10: ='Att B'!GG70 -> 0
A11: ='Att B'!AF19 -> Select Option | B11: ='Att B'!$AS$24 ->  | C11: ='Att B'!B71 -> 0 | D11: ='Att B'!N71 -> 0 | E11: ='Att B'!X71 -> 0 | F11: ='Att B'!AJ71 -> 0 | G11: ='Att B'!AU71 -> 0 | H11: ='Att B'!BE71 -> 00:00:00 | I11: ='Att B'!BM71 -> 0 | J11: ='Att B'!BY71 -> 0 | K11: ='Att B'!CJ71 -> 0 | L11: ='Att B'!CW71 -> 0 | M11: ='Att B'!DF71 -> 0 | N11: ='Att B'!DO71 -> 0 | O11: ='Att B'!DU71 -> 0 | P11: ='Att B'!EF71 -> 0 | Q11: ='Att B'!EV71 -> 0 | R11: ='Att B'!FP71 -> 0 | S11: ='Att B'!GA71 -> 0 | T11: ='Att B'!GG71 -> 0
A12: ='Att B'!AF19 -> Select Option | B12: ='Att B'!$AS$24 ->  | C12: ='Att B'!B72 -> 0 | D12: ='Att B'!N72 -> 0 | E12: ='Att B'!X72 -> 0 | F12: ='Att B'!AJ72 -> 0 | G12: ='Att B'!AU72 -> 0 | H12: ='Att B'!BE72 -> 00:00:00 | I12: ='Att B'!BM72 -> 0 | J12: ='Att B'!BY72 -> 0 | K12: ='Att B'!CJ72 -> 0 | L12: ='Att B'!CW72 -> 0 | M12: ='Att B'!DF72 -> 0 | N12: ='Att B'!DO72 -> 0 | O12: ='Att B'!DU72 -> 0 | P12: ='Att B'!EF72 -> 0 | Q12: ='Att B'!EV72 -> 0 | R12: ='Att B'!FP72 -> 0 | S12: ='Att B'!GA72 -> 0 | T12: ='Att B'!GG72 -> 0
A13: ='Att B'!AF19 -> Select Option | B13: ='Att B'!$AS$24 ->  | C13: ='Att B'!B101 -> 0 | D13: ='Att B'!N101 -> 0 | E13: ='Att B'!X101 -> 0 | F13: ='Att B'!AJ101 -> 0 | G13: ='Att B'!AU101 -> 0 | H13: ='Att B'!BE101 -> 00:00:00 | I13: ='Att B'!BM101 -> 0 | J13: ='Att B'!BY101 -> 0 | K13: ='Att B'!CJ101 -> 0 | L13: ='Att B'!CW101 -> 0 | M13: ='Att B'!DF101 -> 0 | N13: ='Att B'!DO101 -> 0 | O13: ='Att B'!DU101 -> 0 | P13: ='Att B'!EF101 -> 0 | Q13: ='Att B'!EV101 -> 0 | R13: ='Att B'!FP101 -> 0 | S13: ='Att B'!GA101 -> 0 | T13: ='Att B'!GG101 -> 0
A14: ='Att B'!AF19 -> Select Option | B14: ='Att B'!$AS$24 ->  | C14: ='Att B'!B102 -> 0 | D14: ='Att B'!N102 -> 0 | E14: ='Att B'!X102 -> 0 | F14: ='Att B'!AJ102 -> 0 | G14: ='Att B'!AU102 -> 0 | H14: ='Att B'!BE102 -> 00:00:00 | I14: ='Att B'!BM102 -> 0 | J14: ='Att B'!BY102 -> 0 | K14: ='Att B'!CJ102 -> 0 | L14: ='Att B'!CW102 -> 0 | M14: ='Att B'!DF102 -> 0 | N14: ='Att B'!DO102 -> 0 | O14: ='Att B'!DU102 -> 0 | P14: ='Att B'!EF102 -> 0 | Q14: ='Att B'!EV102 -> 0 | R14: ='Att B'!FP102 -> 0 | S14: ='Att B'!GA102 -> 0 | T14: ='Att B'!GG102 -> 0
A15: ='Att B'!AF19 -> Select Option | B15: ='Att B'!$AS$24 ->  | C15: ='Att B'!B103 -> 0 | D15: ='Att B'!N103 -> 0 | E15: ='Att B'!X103 -> 0 | F15: ='Att B'!AJ103 -> 0 | G15: ='Att B'!AU103 -> 0 | H15: ='Att B'!BE103 -> 00:00:00 | I15: ='Att B'!BM103 -> 0 | J15: ='Att B'!BY103 -> 0 | K15: ='Att B'!CJ103 -> 0 | L15: ='Att B'!CW103 -> 0 | M15: ='Att B'!DF103 -> 0 | N15: ='Att B'!DO103 -> 0 | O15: ='Att B'!DU103 -> 0 | P15: ='Att B'!EF103 -> 0 | Q15: ='Att B'!EV103 -> 0 | R15: ='Att B'!FP103 -> 0 | S15: ='Att B'!GA103 -> 0 | T15: ='Att B'!GG103 -> 0
A16: ='Att B'!AF19 -> Select Option | B16: ='Att B'!$AS$24 ->  | C16: ='Att B'!B104 -> 0 | D16: ='Att B'!N104 -> 0 | E16: ='Att B'!X104 -> 0 | F16: ='Att B'!AJ104 -> 0 | G16: ='Att B'!AU104 -> 0 | H16: ='Att B'!BE104 -> 00:00:00 | I16: ='Att B'!BM104 -> 0 | J16: ='Att B'!BY104 -> 0 | K16: ='Att B'!CJ104 -> 0 | L16: ='Att B'!CW104 -> 0 | M16: ='Att B'!DF104 -> 0 | N16: ='Att B'!DO104 -> 0 | O16: ='Att B'!DU104 -> 0 | P16: ='Att B'!EF104 -> 0 | Q16: ='Att B'!EV104 -> 0 | R16: ='Att B'!FP104 -> 0 | S16: ='Att B'!GA104 -> 0 | T16: ='Att B'!GG104 -> 0
A17: ='Att B'!AF19 -> Select Option | B17: ='Att B'!$AS$24 ->  | C17: ='Att B'!B105 -> 0 | D17: ='Att B'!N105 -> 0 | E17: ='Att B'!X105 -> 0 | F17: ='Att B'!AJ105 -> 0 | G17: ='Att B'!AU105 -> 0 | H17: ='Att B'!BE105 -> 00:00:00 | I17: ='Att B'!BM105 -> 0 | J17: ='Att B'!BY105 -> 0 | K17: ='Att B'!CJ105 -> 0 | L17: ='Att B'!CW105 -> 0 | M17: ='Att B'!DF105 -> 0 | N17: ='Att B'!DO105 -> 0 | O17: ='Att B'!DU105 -> 0 | P17: ='Att B'!EF105 -> 0 | Q17: ='Att B'!EV105 -> 0 | R17: ='Att B'!FP105 -> 0 | S17: ='Att B'!GA105 -> 0 | T17: ='Att B'!GG105 -> 0
A18: ='Att B'!AF19 -> Select Option | B18: ='Att B'!$AS$24 ->  | C18: ='Att B'!B106 -> 0 | D18: ='Att B'!N106 -> 0 | E18: ='Att B'!X106 -> 0 | F18: ='Att B'!AJ106 -> 0 | G18: ='Att B'!AU106 -> 0 | H18: ='Att B'!BE106 -> 00:00:00 | I18: ='Att B'!BM106 -> 0 | J18: ='Att B'!BY106 -> 0 | K18: ='Att B'!CJ106 -> 0 | L18: ='Att B'!CW106 -> 0 | M18: ='Att B'!DF106 -> 0 | N18: ='Att B'!DO106 -> 0 | O18: ='Att B'!DU106 -> 0 | P18: ='Att B'!EF106 -> 0 | Q18: ='Att B'!EV106 -> 0 | R18: ='Att B'!FP106 -> 0 | S18: ='Att B'!GA106 -> 0 | T18: ='Att B'!GG106 -> 0
A19: ='Att B'!AF19 -> Select Option | B19: ='Att B'!$AS$24 ->  | C19: ='Att B'!B107 -> 0 | D19: ='Att B'!N107 -> 0 | E19: ='Att B'!X107 -> 0 | F19: ='Att B'!AJ107 -> 0 | G19: ='Att B'!AU107 -> 0 | H19: ='Att B'!BE107 -> 00:00:00 | I19: ='Att B'!BM107 -> 0 | J19: ='Att B'!BY107 -> 0 | K19: ='Att B'!CJ107 -> 0 | L19: ='Att B'!CW107 -> 0 | M19: ='Att B'!DF107 -> 0 | N19: ='Att B'!DO107 -> 0 | O19: ='Att B'!DU107 -> 0 | P19: ='Att B'!EF107 -> 0 | Q19: ='Att B'!EV107 -> 0 | R19: ='Att B'!FP107 -> 0 | S19: ='Att B'!GA107 -> 0 | T19: ='Att B'!GG107 -> 0
A20: ='Att B'!AF19 -> Select Option | B20: ='Att B'!$AS$24 ->  | C20: ='Att B'!B108 -> 0 | D20: ='Att B'!N108 -> 0 | E20: ='Att B'!X108 -> 0 | F20: ='Att B'!AJ108 -> 0 | G20: ='Att B'!AU108 -> 0 | H20: ='Att B'!BE108 -> 00:00:00 | I20: ='Att B'!BM108 -> 0 | J20: ='Att B'!BY108 -> 0 | K20: ='Att B'!CJ108 -> 0 | L20: ='Att B'!CW108 -> 0 | M20: ='Att B'!DF108 -> 0 | N20: ='Att B'!DO108 -> 0 | O20: ='Att B'!DU108 -> 0 | P20: ='Att B'!EF108 -> 0 | Q20: ='Att B'!EV108 -> 0 | R20: ='Att B'!FP108 -> 0 | S20: ='Att B'!GA108 -> 0 | T20: ='Att B'!GG108 -> 0
A21: ='Att B'!AF19 -> Select Option | B21: ='Att B'!$AS$24 ->  | C21: ='Att B'!B109 -> 0 | D21: ='Att B'!N109 -> 0 | E21: ='Att B'!X109 -> 0 | F21: ='Att B'!AJ109 -> 0 | G21: ='Att B'!AU109 -> 0 | H21: ='Att B'!BE109 -> 00:00:00 | I21: ='Att B'!BM109 -> 0 | J21: ='Att B'!BY109 -> 0 | K21: ='Att B'!CJ109 -> 0 | L21: ='Att B'!CW109 -> 0 | M21: ='Att B'!DF109 -> 0 | N21: ='Att B'!DO109 -> 0 | O21: ='Att B'!DU109 -> 0 | P21: ='Att B'!EF109 -> 0 | Q21: ='Att B'!EV109 -> 0 | R21: ='Att B'!FP109 -> 0 | S21: ='Att B'!GA109 -> 0 | T21: ='Att B'!GG109 -> 0
A22: ='Att B'!AF19 -> Select Option | B22: ='Att B'!$AS$24 ->  | C22: ='Att B'!B110 -> 0 | D22: ='Att B'!N110 -> 0 | E22: ='Att B'!X110 -> 0 | F22: ='Att B'!AJ110 -> 0 | G22: ='Att B'!AU110 -> 0 | H22: ='Att B'!BE110 -> 00:00:00 | I22: ='Att B'!BM110 -> 0 | J22: ='Att B'!BY110 -> 0 | K22: ='Att B'!CJ110 -> 0 | L22: ='Att B'!CW110 -> 0 | M22: ='Att B'!DF110 -> 0 | N22: ='Att B'!DO110 -> 0 | O22: ='Att B'!DU110 -> 0 | P22: ='Att B'!EF110 -> 0 | Q22: ='Att B'!EV110 -> 0 | R22: ='Att B'!FP110 -> 0 | S22: ='Att B'!GA110 -> 0 | T22: ='Att B'!GG110 -> 0
A23: ='Att B'!AF19 -> Select Option | B23: ='Att B'!$AS$24 ->  | C23: ='Att B'!B111 -> 0 | D23: ='Att B'!N111 -> 0 | E23: ='Att B'!X111 -> 0 | F23: ='Att B'!AJ111 -> 0 | G23: ='Att B'!AU111 -> 0 | H23: ='Att B'!BE111 -> 00:00:00 | I23: ='Att B'!BM111 -> 0 | J23: ='Att B'!BY111 -> 0 | K23: ='Att B'!CJ111 -> 0 | L23: ='Att B'!CW111 -> 0 | M23: ='Att B'!DF111 -> 0 | N23: ='Att B'!DO111 -> 0 | O23: ='Att B'!DU111 -> 0 | P23: ='Att B'!EF111 -> 0 | Q23: ='Att B'!EV111 -> 0 | R23: ='Att B'!FP111 -> 0 | S23: ='Att B'!GA111 -> 0 | T23: ='Att B'!GG111 -> 0
A24: ='Att B'!AF19 -> Select Option | B24: ='Att B'!$AS$24 ->  | C24: ='Att B'!B112 -> 0 | D24: ='Att B'!N112 -> 0 | E24: ='Att B'!X112 -> 0 | F24: ='Att B'!AJ112 -> 0 | G24: ='Att B'!AU112 -> 0 | H24: ='Att B'!BE112 -> 00:00:00 | I24: ='Att B'!BM112 -> 0 | J24: ='Att B'!BY112 -> 0 | K24: ='Att B'!CJ112 -> 0 | L24: ='Att B'!CW112 -> 0 | M24: ='Att B'!DF112 -> 0 | N24: ='Att B'!DO112 -> 0 | O24: ='Att B'!DU112 -> 0 | P24: ='Att B'!EF112 -> 0 | Q24: ='Att B'!EV112 -> 0 | R24: ='Att B'!FP112 -> 0 | S24: ='Att B'!GA112 -> 0 | T24: ='Att B'!GG112 -> 0
A25: ='Att B'!AF19 -> Select Option | B25: ='Att B'!$AS$24 ->  | C25: ='Att B'!B113 -> 0 | D25: ='Att B'!N113 -> 0 | E25: ='Att B'!X113 -> 0 | F25: ='Att B'!AJ113 -> 0 | G25: ='Att B'!AU113 -> 0 | H25: ='Att B'!BE113 -> 00:00:00 | I25: ='Att B'!BM113 -> 0 | J25: ='Att B'!BY113 -> 0 | K25: ='Att B'!CJ113 -> 0 | L25: ='Att B'!CW113 -> 0 | M25: ='Att B'!DF113 -> 0 | N25: ='Att B'!DO113 -> 0 | O25: ='Att B'!DU113 -> 0 | P25: ='Att B'!EF113 -> 0 | Q25: ='Att B'!EV113 -> 0 | R25: ='Att B'!FP113 -> 0 | S25: ='Att B'!GA113 -> 0 | T25: ='Att B'!GG113 -> 0
A26: ='Att B'!AF19 -> Select Option | B26: ='Att B'!$AS$24 ->  | C26: ='Att B'!B114 -> 0 | D26: ='Att B'!N114 -> 0 | E26: ='Att B'!X114 -> 0 | F26: ='Att B'!AJ114 -> 0 | G26: ='Att B'!AU114 -> 0 | H26: ='Att B'!BE114 -> 00:00:00 | I26: ='Att B'!BM114 -> 0 | J26: ='Att B'!BY114 -> 0 | K26: ='Att B'!CJ114 -> 0 | L26: ='Att B'!CW114 -> 0 | M26: ='Att B'!DF114 -> 0 | N26: ='Att B'!DO114 -> 0 | O26: ='Att B'!DU114 -> 0 | P26: ='Att B'!EF114 -> 0 | Q26: ='Att B'!EV114 -> 0 | R26: ='Att B'!FP114 -> 0 | S26: ='Att B'!GA114 -> 0 | T26: ='Att B'!GG114 -> 0
A27: ='Att B'!AF19 -> Select Option | B27: ='Att B'!$AS$24 ->  | C27: ='Att B'!B115 -> 0 | D27: ='Att B'!N115 -> 0 | E27: ='Att B'!X115 -> 0 | F27: ='Att B'!AJ115 -> 0 | G27: ='Att B'!AU115 -> 0 | H27: ='Att B'!BE115 -> 00:00:00 | I27: ='Att B'!BM115 -> 0 | J27: ='Att B'!BY115 -> 0 | K27: ='Att B'!CJ115 -> 0 | L27: ='Att B'!CW115 -> 0 | M27: ='Att B'!DF115 -> 0 | N27: ='Att B'!DO115 -> 0 | O27: ='Att B'!DU115 -> 0 | P27: ='Att B'!EF115 -> 0 | Q27: ='Att B'!EV115 -> 0 | R27: ='Att B'!FP115 -> 0 | S27: ='Att B'!GA115 -> 0 | T27: ='Att B'!GG115 -> 0
A28: ='Att B'!AF19 -> Select Option | B28: ='Att B'!$AS$24 ->  | C28: ='Att B'!B116 -> 0 | D28: ='Att B'!N116 -> 0 | E28: ='Att B'!X116 -> 0 | F28: ='Att B'!AJ116 -> 0 | G28: ='Att B'!AU116 -> 0 | H28: ='Att B'!BE116 -> 00:00:00 | I28: ='Att B'!BM116 -> 0 | J28: ='Att B'!BY116 -> 0 | K28: ='Att B'!CJ116 -> 0 | L28: ='Att B'!CW116 -> 0 | M28: ='Att B'!DF116 -> 0 | N28: ='Att B'!DO116 -> 0 | O28: ='Att B'!DU116 -> 0 | P28: ='Att B'!EF116 -> 0 | Q28: ='Att B'!EV116 -> 0 | R28: ='Att B'!FP116 -> 0 | S28: ='Att B'!GA116 -> 0 | T28: ='Att B'!GG116 -> 0
A29: ='Att B'!AF19 -> Select Option | B29: ='Att B'!$AS$24 ->  | C29: ='Att B'!B117 -> 0 | D29: ='Att B'!N117 -> 0 | E29: ='Att B'!X117 -> 0 | F29: ='Att B'!AJ117 -> 0 | G29: ='Att B'!AU117 -> 0 | H29: ='Att B'!BE117 -> 00:00:00 | I29: ='Att B'!BM117 -> 0 | J29: ='Att B'!BY117 -> 0 | K29: ='Att B'!CJ117 -> 0 | L29: ='Att B'!CW117 -> 0 | M29: ='Att B'!DF117 -> 0 | N29: ='Att B'!DO117 -> 0 | O29: ='Att B'!DU117 -> 0 | P29: ='Att B'!EF117 -> 0 | Q29: ='Att B'!EV117 -> 0 | R29: ='Att B'!FP117 -> 0 | S29: ='Att B'!GA117 -> 0 | T29: ='Att B'!GG117 -> 0
A30: ='Att B'!AF19 -> Select Option | B30: ='Att B'!$AS$24 ->  | C30: ='Att B'!B118 -> 0 | D30: ='Att B'!N118 -> 0 | E30: ='Att B'!X118 -> 0 | F30: ='Att B'!AJ118 -> 0 | G30: ='Att B'!AU118 -> 0 | H30: ='Att B'!BE118 -> 00:00:00 | I30: ='Att B'!BM118 -> 0 | J30: ='Att B'!BY118 -> 0 | K30: ='Att B'!CJ118 -> 0 | L30: ='Att B'!CW118 -> 0 | M30: ='Att B'!DF118 -> 0 | N30: ='Att B'!DO118 -> 0 | O30: ='Att B'!DU118 -> 0 | P30: ='Att B'!EF118 -> 0 | Q30: ='Att B'!EV118 -> 0 | R30: ='Att B'!FP118 -> 0 | S30: ='Att B'!GA118 -> 0 | T30: ='Att B'!GG118 -> 0
A31: ='Att B'!AF19 -> Select Option | B31: ='Att B'!$AS$24 ->  | C31: ='Att B'!B147 -> 0 | D31: ='Att B'!N147 -> 0 | E31: ='Att B'!X147 -> 0 | F31: ='Att B'!AJ147 -> 0 | G31: ='Att B'!AU147 -> 0 | H31: ='Att B'!BE147 -> 00:00:00 | I31: ='Att B'!BM147 -> 0 | J31: ='Att B'!BY147 -> 0 | K31: ='Att B'!CJ147 -> 0 | L31: ='Att B'!CW147 -> 0 | M31: ='Att B'!DF147 -> 0 | N31: ='Att B'!DO147 -> 0 | O31: ='Att B'!DU147 -> 0 | P31: ='Att B'!EF147 -> 0 | Q31: ='Att B'!EV147 -> 0 | R31: ='Att B'!FP147 -> 0 | S31: ='Att B'!GA147 -> 0 | T31: ='Att B'!GG147 -> 0
A32: ='Att B'!AF19 -> Select Option | B32: ='Att B'!$AS$24 ->  | C32: ='Att B'!B148 -> 0 | D32: ='Att B'!N148 -> 0 | E32: ='Att B'!X148 -> 0 | F32: ='Att B'!AJ148 -> 0 | G32: ='Att B'!AU148 -> 0 | H32: ='Att B'!BE148 -> 00:00:00 | I32: ='Att B'!BM148 -> 0 | J32: ='Att B'!BY148 -> 0 | K32: ='Att B'!CJ148 -> 0 | L32: ='Att B'!CW148 -> 0 | M32: ='Att B'!DF148 -> 0 | N32: ='Att B'!DO148 -> 0 | O32: ='Att B'!DU148 -> 0 | P32: ='Att B'!EF148 -> 0 | Q32: ='Att B'!EV148 -> 0 | R32: ='Att B'!FP148 -> 0 | S32: ='Att B'!GA148 -> 0 | T32: ='Att B'!GG148 -> 0
A33: ='Att B'!AF19 -> Select Option | B33: ='Att B'!$AS$24 ->  | C33: ='Att B'!B149 -> 0 | D33: ='Att B'!N149 -> 0 | E33: ='Att B'!X149 -> 0 | F33: ='Att B'!AJ149 -> 0 | G33: ='Att B'!AU149 -> 0 | H33: ='Att B'!BE149 -> 00:00:00 | I33: ='Att B'!BM149 -> 0 | J33: ='Att B'!BY149 -> 0 | K33: ='Att B'!CJ149 -> 0 | L33: ='Att B'!CW149 -> 0 | M33: ='Att B'!DF149 -> 0 | N33: ='Att B'!DO149 -> 0 | O33: ='Att B'!DU149 -> 0 | P33: ='Att B'!EF149 -> 0 | Q33: ='Att B'!EV149 -> 0 | R33: ='Att B'!FP149 -> 0 | S33: ='Att B'!GA149 -> 0 | T33: ='Att B'!GG149 -> 0
A34: ='Att B'!AF19 -> Select Option | B34: ='Att B'!$AS$24 ->  | C34: ='Att B'!B150 -> 0 | D34: ='Att B'!N150 -> 0 | E34: ='Att B'!X150 -> 0 | F34: ='Att B'!AJ150 -> 0 | G34: ='Att B'!AU150 -> 0 | H34: ='Att B'!BE150 -> 00:00:00 | I34: ='Att B'!BM150 -> 0 | J34: ='Att B'!BY150 -> 0 | K34: ='Att B'!CJ150 -> 0 | L34: ='Att B'!CW150 -> 0 | M34: ='Att B'!DF150 -> 0 | N34: ='Att B'!DO150 -> 0 | O34: ='Att B'!DU150 -> 0 | P34: ='Att B'!EF150 -> 0 | Q34: ='Att B'!EV150 -> 0 | R34: ='Att B'!FP150 -> 0 | S34: ='Att B'!GA150 -> 0 | T34: ='Att B'!GG150 -> 0
A35: ='Att B'!AF19 -> Select Option | B35: ='Att B'!$AS$24 ->  | C35: ='Att B'!B151 -> 0 | D35: ='Att B'!N151 -> 0 | E35: ='Att B'!X151 -> 0 | F35: ='Att B'!AJ151 -> 0 | G35: ='Att B'!AU151 -> 0 | H35: ='Att B'!BE151 -> 00:00:00 | I35: ='Att B'!BM151 -> 0 | J35: ='Att B'!BY151 -> 0 | K35: ='Att B'!CJ151 -> 0 | L35: ='Att B'!CW151 -> 0 | M35: ='Att B'!DF151 -> 0 | N35: ='Att B'!DO151 -> 0 | O35: ='Att B'!DU151 -> 0 | P35: ='Att B'!EF151 -> 0 | Q35: ='Att B'!EV151 -> 0 | R35: ='Att B'!FP151 -> 0 | S35: ='Att B'!GA151 -> 0 | T35: ='Att B'!GG151 -> 0
A36: ='Att B'!AF19 -> Select Option | B36: ='Att B'!$AS$24 ->  | C36: ='Att B'!B152 -> 0 | D36: ='Att B'!N152 -> 0 | E36: ='Att B'!X152 -> 0 | F36: ='Att B'!AJ152 -> 0 | G36: ='Att B'!AU152 -> 0 | H36: ='Att B'!BE152 -> 00:00:00 | I36: ='Att B'!BM152 -> 0 | J36: ='Att B'!BY152 -> 0 | K36: ='Att B'!CJ152 -> 0 | L36: ='Att B'!CW152 -> 0 | M36: ='Att B'!DF152 -> 0 | N36: ='Att B'!DO152 -> 0 | O36: ='Att B'!DU152 -> 0 | P36: ='Att B'!EF152 -> 0 | Q36: ='Att B'!EV152 -> 0 | R36: ='Att B'!FP152 -> 0 | S36: ='Att B'!GA152 -> 0 | T36: ='Att B'!GG152 -> 0
A37: ='Att B'!AF19 -> Select Option | B37: ='Att B'!$AS$24 ->  | C37: ='Att B'!B153 -> 0 | D37: ='Att B'!N153 -> 0 | E37: ='Att B'!X153 -> 0 | F37: ='Att B'!AJ153 -> 0 | G37: ='Att B'!AU153 -> 0 | H37: ='Att B'!BE153 -> 00:00:00 | I37: ='Att B'!BM153 -> 0 | J37: ='Att B'!BY153 -> 0 | K37: ='Att B'!CJ153 -> 0 | L37: ='Att B'!CW153 -> 0 | M37: ='Att B'!DF153 -> 0 | N37: ='Att B'!DO153 -> 0 | O37: ='Att B'!DU153 -> 0 | P37: ='Att B'!EF153 -> 0 | Q37: ='Att B'!EV153 -> 0 | R37: ='Att B'!FP153 -> 0 | S37: ='Att B'!GA153 -> 0 | T37: ='Att B'!GG153 -> 0
A38: ='Att B'!AF19 -> Select Option | B38: ='Att B'!$AS$24 ->  | C38: ='Att B'!B154 -> 0 | D38: ='Att B'!N154 -> 0 | E38: ='Att B'!X154 -> 0 | F38: ='Att B'!AJ154 -> 0 | G38: ='Att B'!AU154 -> 0 | H38: ='Att B'!BE154 -> 00:00:00 | I38: ='Att B'!BM154 -> 0 | J38: ='Att B'!BY154 -> 0 | K38: ='Att B'!CJ154 -> 0 | L38: ='Att B'!CW154 -> 0 | M38: ='Att B'!DF154 -> 0 | N38: ='Att B'!DO154 -> 0 | O38: ='Att B'!DU154 -> 0 | P38: ='Att B'!EF154 -> 0 | Q38: ='Att B'!EV154 -> 0 | R38: ='Att B'!FP154 -> 0 | S38: ='Att B'!GA154 -> 0 | T38: ='Att B'!GG154 -> 0
A39: ='Att B'!AF19 -> Select Option | B39: ='Att B'!$AS$24 ->  | C39: ='Att B'!B155 -> 0 | D39: ='Att B'!N155 -> 0 | E39: ='Att B'!X155 -> 0 | F39: ='Att B'!AJ155 -> 0 | G39: ='Att B'!AU155 -> 0 | H39: ='Att B'!BE155 -> 00:00:00 | I39: ='Att B'!BM155 -> 0 | J39: ='Att B'!BY155 -> 0 | K39: ='Att B'!CJ155 -> 0 | L39: ='Att B'!CW155 -> 0 | M39: ='Att B'!DF155 -> 0 | N39: ='Att B'!DO155 -> 0 | O39: ='Att B'!DU155 -> 0 | P39: ='Att B'!EF155 -> 0 | Q39: ='Att B'!EV155 -> 0 | R39: ='Att B'!FP155 -> 0 | S39: ='Att B'!GA155 -> 0 | T39: ='Att B'!GG155 -> 0
A40: ='Att B'!AF19 -> Select Option | B40: ='Att B'!$AS$24 ->  | C40: ='Att B'!B156 -> 0 | D40: ='Att B'!N156 -> 0 | E40: ='Att B'!X156 -> 0 | F40: ='Att B'!AJ156 -> 0 | G40: ='Att B'!AU156 -> 0 | H40: ='Att B'!BE156 -> 00:00:00 | I40: ='Att B'!BM156 -> 0 | J40: ='Att B'!BY156 -> 0 | K40: ='Att B'!CJ156 -> 0 | L40: ='Att B'!CW156 -> 0 | M40: ='Att B'!DF156 -> 0 | N40: ='Att B'!DO156 -> 0 | O40: ='Att B'!DU156 -> 0 | P40: ='Att B'!EF156 -> 0 | Q40: ='Att B'!EV156 -> 0 | R40: ='Att B'!FP156 -> 0 | S40: ='Att B'!GA156 -> 0 | T40: ='Att B'!GG156 -> 0
A41: ='Att B'!AF19 -> Select Option | B41: ='Att B'!$AS$24 ->  | C41: ='Att B'!B157 -> 0 | D41: ='Att B'!N157 -> 0 | E41: ='Att B'!X157 -> 0 | F41: ='Att B'!AJ157 -> 0 | G41: ='Att B'!AU157 -> 0 | H41: ='Att B'!BE157 -> 00:00:00 | I41: ='Att B'!BM157 -> 0 | J41: ='Att B'!BY157 -> 0 | K41: ='Att B'!CJ157 -> 0 | L41: ='Att B'!CW157 -> 0 | M41: ='Att B'!DF157 -> 0 | N41: ='Att B'!DO157 -> 0 | O41: ='Att B'!DU157 -> 0 | P41: ='Att B'!EF157 -> 0 | Q41: ='Att B'!EV157 -> 0 | R41: ='Att B'!FP157 -> 0 | S41: ='Att B'!GA157 -> 0 | T41: ='Att B'!GG157 -> 0
A42: ='Att B'!AF19 -> Select Option | B42: ='Att B'!$AS$24 ->  | C42: ='Att B'!B158 -> 0 | D42: ='Att B'!N158 -> 0 | E42: ='Att B'!X158 -> 0 | F42: ='Att B'!AJ158 -> 0 | G42: ='Att B'!AU158 -> 0 | H42: ='Att B'!BE158 -> 00:00:00 | I42: ='Att B'!BM158 -> 0 | J42: ='Att B'!BY158 -> 0 | K42: ='Att B'!CJ158 -> 0 | L42: ='Att B'!CW158 -> 0 | M42: ='Att B'!DF158 -> 0 | N42: ='Att B'!DO158 -> 0 | O42: ='Att B'!DU158 -> 0 | P42: ='Att B'!EF158 -> 0 | Q42: ='Att B'!EV158 -> 0 | R42: ='Att B'!FP158 -> 0 | S42: ='Att B'!GA158 -> 0 | T42: ='Att B'!GG158 -> 0
A43: ='Att B'!AF19 -> Select Option | B43: ='Att B'!$AS$24 ->  | C43: ='Att B'!B159 -> 0 | D43: ='Att B'!N159 -> 0 | E43: ='Att B'!X159 -> 0 | F43: ='Att B'!AJ159 -> 0 | G43: ='Att B'!AU159 -> 0 | H43: ='Att B'!BE159 -> 00:00:00 | I43: ='Att B'!BM159 -> 0 | J43: ='Att B'!BY159 -> 0 | K43: ='Att B'!CJ159 -> 0 | L43: ='Att B'!CW159 -> 0 | M43: ='Att B'!DF159 -> 0 | N43: ='Att B'!DO159 -> 0 | O43: ='Att B'!DU159 -> 0 | P43: ='Att B'!EF159 -> 0 | Q43: ='Att B'!EV159 -> 0 | R43: ='Att B'!FP159 -> 0 | S43: ='Att B'!GA159 -> 0 | T43: ='Att B'!GG159 -> 0
A44: ='Att B'!AF19 -> Select Option | B44: ='Att B'!$AS$24 ->  | C44: ='Att B'!B160 -> 0 | D44: ='Att B'!N160 -> 0 | E44: ='Att B'!X160 -> 0 | F44: ='Att B'!AJ160 -> 0 | G44: ='Att B'!AU160 -> 0 | H44: ='Att B'!BE160 -> 00:00:00 | I44: ='Att B'!BM160 -> 0 | J44: ='Att B'!BY160 -> 0 | K44: ='Att B'!CJ160 -> 0 | L44: ='Att B'!CW160 -> 0 | M44: ='Att B'!DF160 -> 0 | N44: ='Att B'!DO160 -> 0 | O44: ='Att B'!DU160 -> 0 | P44: ='Att B'!EF160 -> 0 | Q44: ='Att B'!EV160 -> 0 | R44: ='Att B'!FP160 -> 0 | S44: ='Att B'!GA160 -> 0 | T44: ='Att B'!GG160 -> 0
A45: ='Att B'!AF19 -> Select Option | B45: ='Att B'!$AS$24 ->  | C45: ='Att B'!B161 -> 0 | D45: ='Att B'!N161 -> 0 | E45: ='Att B'!X161 -> 0 | F45: ='Att B'!AJ161 -> 0 | G45: ='Att B'!AU161 -> 0 | H45: ='Att B'!BE161 -> 00:00:00 | I45: ='Att B'!BM161 -> 0 | J45: ='Att B'!BY161 -> 0 | K45: ='Att B'!CJ161 -> 0 | L45: ='Att B'!CW161 -> 0 | M45: ='Att B'!DF161 -> 0 | N45: ='Att B'!DO161 -> 0 | O45: ='Att B'!DU161 -> 0 | P45: ='Att B'!EF161 -> 0 | Q45: ='Att B'!EV161 -> 0 | R45: ='Att B'!FP161 -> 0 | S45: ='Att B'!GA161 -> 0 | T45: ='Att B'!GG161 -> 0
A46: ='Att B'!AF19 -> Select Option | B46: ='Att B'!$AS$24 ->  | C46: ='Att B'!B162 -> 0 | D46: ='Att B'!N162 -> 0 | E46: ='Att B'!X162 -> 0 | F46: ='Att B'!AJ162 -> 0 | G46: ='Att B'!AU162 -> 0 | H46: ='Att B'!BE162 -> 00:00:00 | I46: ='Att B'!BM162 -> 0 | J46: ='Att B'!BY162 -> 0 | K46: ='Att B'!CJ162 -> 0 | L46: ='Att B'!CW162 -> 0 | M46: ='Att B'!DF162 -> 0 | N46: ='Att B'!DO162 -> 0 | O46: ='Att B'!DU162 -> 0 | P46: ='Att B'!EF162 -> 0 | Q46: ='Att B'!EV162 -> 0 | R46: ='Att B'!FP162 -> 0 | S46: ='Att B'!GA162 -> 0 | T46: ='Att B'!GG162 -> 0
A47: ='Att B'!AF19 -> Select Option | B47: ='Att B'!$AS$24 ->  | C47: ='Att B'!B163 -> 0 | D47: ='Att B'!N163 -> 0 | E47: ='Att B'!X163 -> 0 | F47: ='Att B'!AJ163 -> 0 | G47: ='Att B'!AU163 -> 0 | H47: ='Att B'!BE163 -> 00:00:00 | I47: ='Att B'!BM163 -> 0 | J47: ='Att B'!BY163 -> 0 | K47: ='Att B'!CJ163 -> 0 | L47: ='Att B'!CW163 -> 0 | M47: ='Att B'!DF163 -> 0 | N47: ='Att B'!DO163 -> 0 | O47: ='Att B'!DU163 -> 0 | P47: ='Att B'!EF163 -> 0 | Q47: ='Att B'!EV163 -> 0 | R47: ='Att B'!FP163 -> 0 | S47: ='Att B'!GA163 -> 0 | T47: ='Att B'!GG163 -> 0
A48: ='Att B'!AF19 -> Select Option | B48: ='Att B'!$AS$24 ->  | C48: ='Att B'!B164 -> 0 | D48: ='Att B'!N164 -> 0 | E48: ='Att B'!X164 -> 0 | F48: ='Att B'!AJ164 -> 0 | G48: ='Att B'!AU164 -> 0 | H48: ='Att B'!BE164 -> 00:00:00 | I48: ='Att B'!BM164 -> 0 | J48: ='Att B'!BY164 -> 0 | K48: ='Att B'!CJ164 -> 0 | L48: ='Att B'!CW164 -> 0 | M48: ='Att B'!DF164 -> 0 | N48: ='Att B'!DO164 -> 0 | O48: ='Att B'!DU164 -> 0 | P48: ='Att B'!EF164 -> 0 | Q48: ='Att B'!EV164 -> 0 | R48: ='Att B'!FP164 -> 0 | S48: ='Att B'!GA164 -> 0 | T48: ='Att B'!GG164 -> 0

Sheet Link Data D (hidden)
J1: Hispanic | T1: Non-Hispanic
J2: Alaskan Native or American Indian | L2: Asian | N2: Black or African American | P2: White | R2: Other | T2: Alaskan Native or American Indian | V2: Asian | X2: Black or African American | Z2: White | AB2: Other
A3: Contractor | B3: Property Acquired | C3: Cost | D3: Business Displaced | E3: Cost | F3: Nonprofit Organization Displaced Permanently | G3: Cost | H3: Household Temporary Relocated | I3: Cost | J3: # HH Displaced | K3: Relocation Cost | L3: # HH Displaced | M3: Relocation Cost | N3: # HH Displaced | O3: Relocation Cost | P3: # HH Displaced | Q3: Relocation Cost | R3: # HH Displaced | S3: Relocation Cost | T3: # HH Displaced | U3: Relocation Cost | V3: # HH Displaced | W3: Relocation Cost | X3: # HH Displaced | Y3: Relocation Cost | Z3: # HH Displaced | AA3: Relocation Cost | AB3: # HH Displaced | AC3: Relocation Cost
A4: ='Att D'!AC26 -> Select Option | B4: ='Att D'!BU62 -> 0 | C4: ='Att D'!CI62 -> 0 | D4: ='Att D'!BU66 -> 0 | E4: ='Att D'!CI66 -> 0 | F4: ='Att D'!BU70 -> 0 | G4: ='Att D'!CI70 -> 0 | H4: ='Att D'!BU74 -> 0 | I4: ='Att D'!CI74 -> 0 | J4: ='Att D'!AS98 -> 0 | K4: ='Att D'!BN98 -> 0 | L4: ='Att D'!AS102 -> 0 | M4: ='Att D'!BN102 -> 0 | N4: ='Att D'!AS106 -> 0 | O4: ='Att D'!BN106 -> 0 | P4: ='Att D'!AS110 -> 0 | Q4: ='Att D'!BN110 -> 0 | R4: ='Att D'!AS114 -> 0 | S4: ='Att D'!BN114 -> 0 | T4: ='Att D'!CH98 -> 0 | U4: ='Att D'!DA98 -> 0 | V4: ='Att D'!CH102 -> 0 | W4: ='Att D'!DA102 -> 0 | X4: ='Att D'!CH106 -> 0 | Y4: ='Att D'!DA106 -> 0 | Z4: ='Att D'!CH110 -> 0 | AA4: ='Att D'!DA110 -> 0 | AB4: ='Att D'!CH114 -> 0 | AC4: ='Att D'!DA114 -> 0

Sheet Att D
C1: Attachment D - Relocation and Real Property Acquisition
C4: HOME Annual Performance Report
C7: Reporting Period July 1, 2023 through June 30, 2024
DV9: PAGE 1
D26: HOME Recipient Name | AC26: =IF(Matrix!E25=0,"",Matrix!E25) -> Select Option
D31: =IF(Matrix!GY43=2,Matrix!CT25,"") ->  | BJ31: =IF(Matrix!GY43=2,Matrix!ET25,"") -> 
D34: Preparer's Name | BJ34: Organization
D37: =IF(Matrix!GY43=2,Matrix!CT35,"") ->  | AH37: =IF(Matrix!GY43=2,Matrix!ET35,"") -> 
E40: Phone | AI40: Email | CO40: Date
D43: Complete this form if assisting an activity which entails acquisition of real property and/or displacement of any person, business or nonprofit organization during the reporting period.
D53: Table I - Please provide the following information for all real property (land and/or buildings) either acquired or assisted by HOME funds.
BU59: Number | CI59: Cost
D62: Properties Acquired (number and purchase price)
D66: Businesses Displaced Permanently
D70: Nonprofit Organizations Displaced Permanently
D74: Households Temporarily Relocated (less than 12 months)
D79: Table II - Permanent Displacements Only - Provide information on any households permanently displaced as a result of real property (land and /or buildings) either acquired or assisted by HOME Funds.
D87: Households Displaced Permanently Race/Ethnicity Group | AS87: Hispanic Ethnicity | CH87: Non-Hispanic Ethnicity
D92: Race | AS92: Number of Households Displaced | BN92: Relocation Cost | CH92: Number of Households Displaced | DA92: Relocation Cost
D98: Alaskan Native or American Indian
D102: Asian or Pacific Islander
D106: Black or African American
D110: White
D114: Other

Sheet Att E Activity 1
T2: Attachment E - HOME Fair Housing Demographic Analysis*
FO5: PAGE 1
R6: ='Att E Activity 1'!CV49 -> 0 | S6: ='Att E Activity 1'!CF52 -> 0 | T6: HOME Annual Performance Report | EH6: ='Att E Activity 1'!DW87 -> 0 | EI6: ='Att E Activity 1'!DG90 -> 0 | EJ6: ='Att E Activity 1'!DO90 ->  | EK6: ='Att E Activity 1'!DW90 -> 0 | EL6: ='Att E Activity 1'!EH87 -> 0 | EM6: ='Att E Activity 1'!EP87 ->  | EN6: ='Att E Activity 1'!EX87 -> 0 | EO6: ='Att E Activity 1'!EH90 -> 0 | EP6: ='Att E Activity 1'!EP90 ->  | EQ6: ='Att E Activity 1'!EX90 -> 0
P10: Reporting Period July 1, 2023 through June 30, 2024
GA13: FALSE | HF13: =IF(GA13=TRUE,1,0) -> 0
B18: Jurisdiction Name
GA19: FALSE | GP19: FALSE | HF19: =IF(GA19=TRUE,1,0) -> 0 | HL19: =IF(GP19=TRUE,1,0) -> 0
BV23: =IF(HF27>1,"Please use another form (Att E) to complete additional HOME activity","") ->  | GA23: FALSE | GP23: FALSE | HF23: =IF(GA23=TRUE,1,0) -> 0 | HL23: =IF(GP23=TRUE,1,0) -> 0
C24: Funding Source(s) | V24: (Check all that apply) | AL24: HOME Program Activities | BG24: (1 form per activity) | DN24: Contract #
E27: HOME Std. Agreement | AB27: HOME PI | AP27: First-Time Homebuyer (Acquisition Only or Acquisition with Rehab) | HF27: =HF13+HF19+HF23+HL19+HL23 -> 0
E30: CDBG Std. Agreement | AB30: CDBG PI | AP30: First-Time Homebuyer Infill Construction | CH30: Tenant-Based Rental Assistance | DN30: Activity Name
CH32: Program
E33: Other (Specify) | AP33: Owner-Occupied Rehab Program
B38: Geographic Area | R38: ='E Data'!D4 -> Select a Jurisdiction | BC38: Census Data Geographic Area | CG38: =IF('E Data'!D3=0,"",'E Data'!D3) ->  | CO38: Total Population | DG38: =IF('E Data'!B18=0,"",'E Data'!B18) -> 
GT40: 0.1
GT41: -0.1
B43: Ethnic Categories | AM43: Census | BE43: Applicants | CF43: Beneficiaries | DG43: Rejected Applicants | EH43: Waiting List
AM46: # | AU46: % | BE46: # | BM46: % | BU46: Difference | CF46: # | CN46: % | CV46: Difference | DG46: # | DO46: % | DW46: Difference | EH46: # | EP46: % | EX46: Difference
B49: Hispanic or Latino | AM49: =IF('E Data'!D3=0,"",'E Data'!B2) ->  | AU49: =IF(AM49="","",AM49/DG38) ->  | BM49: =IF(BE49="","",IF(BE49+BE52<1,0,BE49/(BE52+BE49))) ->  | BU49: =IF(OR(SUM(BE49:BL54)="",SUM(BE49:BL54)=0),0,BM49-AU49) -> 0 | CN49: =IF(CF49="","",IF(CF49+CF52<1,0,CF49/(CF49+CF52))) ->  | CV49: =IF(OR(SUM(CF49:CM54)="",SUM(CF49:CM54)=0),0,CN49-AU49) -> 0 | DO49: =IF(DG49="","",IF(DG49+DG52<1,0,DG49/(DG52+DG49))) ->  | DW49: =IF(OR(SUM(DG49:DN54)="",SUM(DG49:DN54)=0),0,DO49-AU49) -> 0 | EP49: =IF(EH49="","",IF(EH49+EH52<1,0,EH49/(EH52+EH49))) ->  | EX49: =IF(OR(SUM(EH49:EO54)="",SUM(EH49:EO54)=0),0,EP49-AU49) -> 0
B52: Not Hispanic or Latino | AM52: =IF('E Data'!D3=0,"",'E Data'!B3) ->  | AU52: =IF(AM52="","",AM52/DG38) ->  | BM52: =IF(BE52="","",IF(BE49+BE52<1,0,BE52/(BE52+BE49))) ->  | BU52: =IF(OR(SUM(BE49:BL54)="",SUM(BE49:BL54)=0),0,BM52-AU52) -> 0 | CN52: =IF(CF52="","",IF(CF49+CF52<1,0,CF52/(CF49+CF52))) ->  | CV52: =IF(OR(SUM(CF49:CM54)="",SUM(CF49:CM54)=0),0,CN52-AU52) -> 0 | DO52: =IF(DG52="","",IF(DG49+DG52<1,0,DG52/(DG52+DG49))) ->  | DW52: =IF(OR(SUM(DG49:DN54)="",SUM(DG49:DN54)=0),0,DO52-AU52) -> 0 | EP52: =IF(EH52="","",IF(EH49+EH52<1,0,EH52/(EH52+EH49))) ->  | EX52: =IF(OR(SUM(EH49:EO54)="",SUM(EH49:EO54)=0),0,EP52-AU52) -> 0
AM55: AM | AU55: AU | BE55: BE | BM55: BM | BU55: BU | CB55: -0.1 | CC55: 0.1 | CF55: CF | CN55: CN | CV55: CV | DG55: DG | DO55: DO | DW55: DW | EH55: EH | EP55: EP | EX55: EX
B56: Racial Categories | AM56: Census | BE56: Applicants | CF56: Beneficiaries | DG56: Rejected Applicants | EH56: Waiting List
AM59: # | AU59: % | BE59: # | BM59: % | BU59: Difference | CF59: # | CN59: % | CV59: Difference | DG59: # | DO59: % | DW59: Difference | EH59: # | EP59: % | EX59: Difference
B62: American Indian or Alaskan Native | AM62: =IF('E Data'!D3=0,"",'E Data'!B4) ->  | AU62: =IF(AM62="","",AM62/DG38) ->  | BM62: =IF(BE62="","",IF(BE62+BE65+BE68+BE71+BE74+BE77<1,0,BE62/(BE65+BE62+BE68+BE71+BE74+BE77))) ->  | BU62: =IF(OR(SUM(BE62:BL79)="",SUM(BE62:BL79)=0),0,BM62-AU62) -> 0 | CN62: =IF(CF62="","",IF(CF62+CF65+CF68+CF71+CF74+CF77<1,0,CF62/(CF65+CF62+CF68+CF71+CF74+CF77))) ->  | CV62: =IF(OR(SUM(CF62:CM79)="",SUM(CF62:CM79)=0),0,CN62-AU62) -> 0 | DO62: =IF(DG62="","",IF(DG62+DG65+DG68+DG71+DG74+DG77<1,0,DG62/(DG65+DG62+DG68+DG71+DG74+DG77))) ->  | DW62: =IF(OR(SUM(DG62:DN79)="",SUM(DG62:DN79)=0),0,DO62-AU62) -> 0 | EP62: =IF(EH62="","",IF(EH62+EH65+EH68+EH71+EH74+EH77<1,0,EH62/(EH65+EH62+EH68+EH71+EH74+EH77))) ->  | EX62: =IF(OR(SUM(EH62:EO79)="",SUM(EH62:EO79)=0),0,EP62-AU62) -> 0
B65: Asian | AM65: =IF('E Data'!D3=0,"",'E Data'!B19) ->  | AU65: =IF(AM65="","",AM65/DG38) ->  | BM65: =IF(BE65="","",IF(BE62+BE65+BE68+BE71+BE74+BE77<1,0,BE65/(BE68+BE65+BE62+BE71+BE74+BE77))) ->  | BU65: =IF(OR(SUM(BE62:BL79)="",SUM(BE62:BL79)=0),0,BM65-$AU$65) -> 0 | CN65: =IF(CF65="","",IF(CF62+CF65+CF68+CF71+CF74+CF77<1,0,CF65/(CF68+CF65+CF62+CF71+CF74+CF77))) ->  | CV65: =IF(OR(SUM(CF62:CM79)="",SUM(CF62:CM79)=0),0,CN65-AU65) -> 0 | DO65: =IF(DG65="","",IF(DG62+DG65+DG68+DG71+DG74+DG77<1,0,DG65/(DG68+DG65+DG62+DG71+DG74+DG77))) ->  | DW65: =IF(OR(SUM(DG62:DN79)="",SUM(DG62:DN79)=0),0,DO65-AU65) -> 0 | EP65: =IF(EH65="","",IF(EH62+EH65+EH68+EH71+EH74+EH77<1,0,EH65/(EH68+EH65+EH62+EH71+EH74+EH77))) ->  | EX65: =IF(OR(SUM(EH62:EO79)="",SUM(EH62:EO79)=0),0,EP65-AU65) -> 0
B68: Black or African American | AM68: =IF('E Data'!D3=0,"",'E Data'!B5) ->  | AU68: =IF(AM68="","",AM68/DG38) ->  | BM68: =IF(BE68="","",IF(BE62+BE65+BE68+BE71+BE74+BE77<1,0,BE68/(BE71+BE68+BE62+BE65+BE74+BE77))) ->  | BU68: =IF(OR(SUM(BE62:BL79)="",SUM(BE62:BL79)=0),0,BM68-AU68) -> 0 | CN68: =IF(CF68="","",IF(CF62+CF65+CF68+CF71+CF74<1,0,CF68/(CF71+CF68+CF62+CF65+CF74+CF77))) ->  | CV68: =IF(OR(SUM(CF62:CM79)="",SUM(CF62:CM79)=0),0,CN68-AU68) -> 0 | DO68: =IF(DG68="","",IF(DG62+DG65+DG68+DG71+DG74+DG77<1,0,DG68/(DG71+DG68+DG62+DG65+DG74+DG77))) ->  | DW68: =IF(OR(SUM(DG62:DN79)="",SUM(DG62:DN79)=0),0,DO68-AU68) -> 0 | EP68: =IF(EH68="","",IF(EH62+EH65+EH68+EH71+EH74+EH77<1,0,EH68/(EH71+EH68+EH62+EH65+EH74+EH77))) ->  | EX68: =IF(OR(SUM(EH62:EO79)="",SUM(EH62:EO79)=0),0,EP68-AU68) -> 0
B71: Native Hawaiian or Other Pacific Islander | AM71: =IF('E Data'!D3=0,"",'E Data'!B6) ->  | AU71: =IF(AM71="","",AM71/DG38) ->  | BM71: =IF(BE71="","",IF(BE62+BE65+BE68+BE71+BE74+BE77<1,0,BE71/(BE74+BE71+BE68+BE65+BE62+BE77))) ->  | BU71: =IF(OR(SUM(BE62:BL79)="",SUM(BE62:BL79)=0),0,BM71-AU71) -> 0 | CN71: =IF(CF71="","",IF(CF62+CF65+CF68+CF71+CF74+CF77<1,0,CF71/(CF74+CF71+CF68+CF65+CF62+CF77))) ->  | CV71: =IF(OR(SUM(CF62:CM79)="",SUM(CF62:CM79)=0),0,CN71-AU71) -> 0 | DO71: =IF(DG71="","",IF(DG62+DG65+DG68+DG71+DG74+DG77<1,0,DG71/(DG74+DG71+DG68+DG65+DG62+DG77))) ->  | DW71: =IF(OR(SUM(DG62:DN79)="",SUM(DG62:DN79)=0),0,DO71-AU71) -> 0 | EP71: =IF(EH71="","",IF(EH62+EH65+EH68+EH71+EH74+EH77<1,0,EH71/(EH74+EH71+EH68+EH65+EH62+EH77))) ->  | EX71: =IF(OR(SUM(EH62:EO79)="",SUM(EH62:EO79)=0),0,EP71-AU71) -> 0
B74: White Alone | AM74: =IF('E Data'!D3=0,"",'E Data'!B7) ->  | AU74: =IF(AM74="","",AM74/DG38) ->  | BM74: =IF(BE74="","",IF(BE62+BE65+BE68+BE71+BE74+BE77<1,0,BE74/(BE77+BE74+BE62+BE65+BE68+BE71))) ->  | BU74: =IF(OR(SUM(BE62:BL79)="",SUM(BE62:BL79)=0),0,BM74-AU74) -> 0 | CN74: =IF(CF74="","",IF(CF62+CF65+CF68+CF71+CF74+CF77<1,0,CF74/(CF77+CF74+CF62+CF65+CF68+CF71))) ->  | CV74: =IF(OR(SUM(CF62:CM79)="",SUM(CF62:CM79)=0),0,CN74-AU74) -> 0 | DO74: =IF(DG74="","",IF(DG62+DG65+DG68+DG71+DG74+DG77<1,0,DG74/(DG77+DG74+DG62+DG65+DG68+DG71))) ->  | DW74: =IF(OR(SUM(DG62:DN79)="",SUM(DG62:DN79)=0),0,DO74-$AU$74) -> 0 | EP74: =IF(EH74="","",IF(EH62+EH65+EH68+EH71+EH74+EH77<1,0,EH74/(EH77+EH74+EH62+EH65+EH68+EH71))) ->  | EX74: =IF(OR(SUM(EH62:EO79)="",SUM(EH62:EO79)=0),0,EP74-AU74) -> 0
B77: Other | AM77: =IF('E Data'!D3=0,"",'E Data'!B8) ->  | AU77: =IF(AM77="","",AM77/DG38) ->  | BM77: =IF(BE77="","",IF(BE62+BE65+BE68+BE71+BE74+BE77<1,0,BE77/(BE77+BE74+BE71+BE68+BE65+BE62))) ->  | BU77: =IF(OR(SUM(BE62:BL79)="",SUM(BE62:BL79)=0),0,BM77-AU77) -> 0 | CN77: =IF(CF77="","",IF(CF62+CF65+CF68+CF71+CF74+CF77<1,0,CF77/(CF77+CF74+CF71+CF68+CF65+CF62))) ->  | CV77: =IF(OR(SUM(CF62:CM79)="",SUM(CF62:CM79)=0),0,CN77-AU77) -> 0 | DO77: =IF(DG77="","",IF(DG62+DG65+DG68+DG71+DG74+DG77<1,0,DG77/(DG77+DG74+DG71+DG68+DG65+DG62))) ->  | DW77: =IF(OR(SUM(DG62:DN79)="",SUM(DG62:DN79)=0),0,DO77-AU77) -> 0 | EP77: =IF(EH77="","",IF(EH62+EH65+EH68+EH71+EH74+EH77<1,0,EH77/(EH77+EH74+EH71+EH68+EH65+EH62))) ->  | EX77: =IF(OR(SUM(EH62:EO79)="",SUM(EH62:EO79)=0),0,EP77-AU77) -> 0
B81: Gender | AM81: Census | BE81: Applicants | CF81: Beneficiaries | DG81: Rejected Applicants | EH81: Waiting List
AM84: # | AU84: % | BE84: # | BM84: % | BU84: Difference | CF84: # | CN84: % | CV84: Difference | DG84: # | DO84: % | DW84: Difference | EH84: # | EP84: % | EX84: Difference
B87: Female | AM87: =IF('E Data'!D3=0,"",'E Data'!B9) ->  | AU87: =IF(AM87="","",AM87/DG38) ->  | BM87: =IF(BE87="","",IF(BE87+BE90<1,0,BE87/(BE90+BE87))) ->  | BU87: =IF(OR(SUM(BE87:BL92)="",SUM(BE87:BL92)=0),0,BM87-AU87) -> 0 | CN87: =IF(CF87="","",IF(CF87+CF90<1,0,CF87/(CF87+CF90))) ->  | CV87: =IF(OR(SUM(CF87:CM92)="",SUM(CF87:CM92)=0),0,CN87-AU87) -> 0 | DO87: =IF(DG87="","",IF(DG87+DG90<1,0,DG87/(DG90+DG87))) ->  | DW87: =IF(OR(SUM(DG87:DN92)="",SUM(DG87:DN92)=0),0,DO87-AU87) -> 0 | EP87: =IF(EH87="","",IF(EH87+EH90<1,0,EH87/(EH90+EH87))) ->  | EX87: =IF(OR(SUM(EH87:EO92)="",SUM(EH87:EO92)=0),0,EP87-AU87) -> 0
B90: Male | AM90: =IF('E Data'!D3=0,"",'E Data'!B10) ->  | AU90: =IF(AM90="","",AM90/DG38) ->  | BM90: =IF(BE90="","",IF(BE87+BE90<1,0,BE90/(BE90+BE87))) ->  | BU90: =IF(OR(SUM(BE87:BL92)="",SUM(BE87:BL92)=0),0,BM90-AU90) -> 0 | CN90: =IF(CF90="","",IF(CF87+CF90<1,0,CF90/(CF87+CF90))) ->  | CV90: =IF(OR(SUM(CF87:CM92)="",SUM(CF87:CM92)=0),0,CN90-AU90) -> 0 | DO90: =IF(DG90="","",IF(DG87+DG90<1,0,DG90/(DG90+DG87))) ->  | DW90: =IF(OR(SUM(DG87:DN92)="",SUM(DG87:DN92)=0),0,DO90-AU90) -> 0 | EP90: =IF(EH90="","",IF(EH87+EH90<1,0,EH90/(EH90+EH87))) ->  | EX90: =IF(OR(SUM(EH87:EO92)="",SUM(EH87:EO92)=0),0,EP90-AU90) -> 0
B94: Age | AM94: Census | BE94: Applicants | CF94: Beneficiaries | DG94: Rejected Applicants | EH94: Waiting List
AM97: # | AU97: % | BE97: # | BM97: % | BU97: Difference | CF97: # | CN97: % | CV97: Difference | DG97: # | DO97: % | DW97: Difference | EH97: # | EP97: % | EX97: Difference
B100: 0 to 19 Years | AM100: =IF('E Data'!D3=0,"",'E Data'!B11) ->  | AU100: =IF(AM100="","",AM100/DG38) ->  | BM100: =IF(BE100="","",IF(BE100+BE103+BE106+BE109+BE112<1,0,BE100/(BE103+BE100+BE106+BE109+BE112))) ->  | BU100: =IF(OR(SUM(BE100:BL114)="",SUM(BE100:BL114)=0),0,BM100-AU100) -> 0 | CN100: =IF(CF100="","",IF(CF100+CF103+CF106+CF109+CF112<1,0,CF100/(CF100+CF103+CF106+CF109+CF112))) ->  | CV100: =IF(OR(SUM(CF100:CM114)="",SUM(CF100:CM114)=0),0,CN100-AU100) -> 0 | DO100: =IF(DG100="","",IF(DG100+DG103+DG106+DG109+DG112<1,0,DG100/(DG103+DG100+DG106+DG109+DG112))) ->  | DW100: =IF(OR(SUM(DG100:DN114)="",SUM(DG100:DN114)=0),0,DO100-AU100) -> 0 | EP100: =IF(EH100="","",IF(EH100+EH103+EH106+EH109+EH112<1,0,EH100/(EH103+EH100+EH106+EH109+EH112))) ->  | EX100: =IF(OR(SUM(EH100:EO114)="",SUM(EH100:EO114)=0),0,EP100-AU100) -> 0
B103: 20 to 24 Years | AM103: =IF('E Data'!D3=0,"",'E Data'!B12) ->  | AU103: =IF(AM103="","",AM103/DG38) ->  | BM103: =IF(BE103="","",IF(BE100+BE103+BE106+BE109+BE112<1,0,BE103/(BE103+BE100+BE106+BE109+BE112))) ->  | BU103: =IF(OR(SUM(BE100:BL114)="",SUM(BE100:BL114)=0),0,BM103-AU103) -> 0 | CN103: =IF(CF103="","",IF(CF100+CF103+CF106+CF109+CF112<1,0,CF103/(CF103+CF106+CF100+CF109+CF112))) ->  | CV103: =IF(OR(SUM(CF100:CM114)="",SUM(CF100:CM114)=0),0,CN103-AU103) -> 0 | DO103: =IF(DG103="","",IF(DG100+DG103+DG106+DG109+DG112<1,0,DG103/(DG106+DG103+DG100+DG109+DG112))) ->  | DW103: =IF(OR(SUM(DG100:DN114)="",SUM(DG100:DN114)=0),0,DO103-AU103) -> 0 | EP103: =IF(EH103="","",IF(EH100+EH103+EH106+EH109+EH112<1,0,EH103/(EH106+EH103+EH100+EH109+EH112))) ->  | EX103: =IF(OR(SUM(EH100:EO114)="",SUM(EH100:EO114)=0),0,EP103-AU103) -> 0
B106: 25 to 44 Years | AM106: =IF('E Data'!D3=0,"",'E Data'!B13) ->  | AU106: =IF(AM106="","",AM106/DG38) ->  | BM106: =IF(BE106="","",IF(BE100+BE103+BE106+BE109+BE112<1,0,BE106/(BE109+BE106+BE100+BE103+BE112))) ->  | BU106: =IF(OR(SUM(BE100:BL114)="",SUM(BE100:BL114)=0),0,BM106-AU106) -> 0 | CN106: =IF(CF106="","",IF(CF100+CF103+CF106+CF109+CF112<1,0,CF106/(CF106+CF109+CF100+CF103+CF112))) ->  | CV106: =IF(OR(SUM(CF100:CM114)="",SUM(CF100:CM114)=0),0,CN106-AU106) -> 0 | DO106: =IF(DG106="","",IF(DG100+DG103+DG106+DG109+DG112<1,0,DG106/(DG109+DG106+DG100+DG103+DG112))) ->  | DW106: =IF(OR(SUM(DG100:DN114)="",SUM(DG100:DN114)=0),0,DO106-AU106) -> 0 | EP106: =IF(EH106="","",IF(EH100+EH103+EH106+EH109+EH112<1,0,EH106/(EH109+EH106+EH100+EH103+EH112))) ->  | EX106: =IF(OR(SUM(EH100:EO114)="",SUM(EH100:EO114)=0),0,EP106-AU106) -> 0
B109: 45 to 64 Years | AM109: =IF('E Data'!D3=0,"",'E Data'!B14) ->  | AU109: =IF(AM109="","",AM109/DG38) ->  | BM109: =IF(BE109="","",IF(BE100+BE103+BE106+BE109+BE112<1,0,BE109/(BE109+BE106+BE100+BE103+BE112))) ->  | BU109: =IF(OR(SUM(BE100:BL114)="",SUM(BE100:BL114)=0),0,BM109-$AU$109) -> 0 | CN109: =IF(CF109="","",IF(CF100+CF103+CF106+CF109+CF112<1,0,CF109/(CF109+CF106+CF100+CF103+CF112))) ->  | CV109: =IF(OR(SUM(CF100:CM114)="",SUM(CF100:CM114)=0),0,CN109-AU109) -> 0 | DO109: =IF(DG109="","",IF(DG100+DG103+DG106+DG109+DG112<1,0,DG109/(DG109+DG106+DG100+DG103+DG112))) ->  | DW109: =IF(OR(SUM(DG100:DN114)="",SUM(DG100:DN114)=0),0,DO109-AU109) -> 0 | EP109: =IF(EH109="","",IF(EH100+EH103+EH106+EH109+EH112<1,0,EH109/(EH109+EH106+EH100+EH103+EH112))) ->  | EX109: =IF(OR(SUM(EH100:EO114)="",SUM(EH100:EO114)=0),0,EP109-AU109) -> 0
B112: 65 Years and Over | AM112: =IF('E Data'!D3=0,"",'E Data'!B15) ->  | AU112: =IF(AM112="","",AM112/DG38) ->  | BM112: =IF(BE112="","",IF(BE100+BE103+BE106+BE109+BE112<1,0,BE112/(BE112+BE109+BE100+BE103+BE106))) ->  | BU112: =IF(OR(SUM(BE100:BL114)="",SUM(BE100:BL114)=0),0,BM112-AU112) -> 0 | CN112: =IF(CF112="","",IF(CF100+CF103+CF106+CF109+CF112<1,0,CF112/(CF112+CF109+CF100+CF103+CF106))) ->  | CV112: =IF(OR(SUM(CF100:CM114)="",SUM(CF100:CM114)=0),0,CN112-AU112) -> 0 | DO112: =IF(DG112="","",IF(DG100+DG103+DG106+DG109+DG112<1,0,DG112/(DG112+DG109+DG100+DG103+DG106))) ->  | DW112: =IF(OR(SUM(DG100:DN114)="",SUM(DG100:DN114)=0),0,DO112-AU112) -> 0 | EP112: =IF(EH112="","",IF(EH100+EH103+EH106+EH109+EH112<1,0,EH112/(EH112+EH109+EH100+EH103+EH106))) ->  | EX112: =IF(OR(SUM(EH100:EO114)="",SUM(EH100:EO114)=0),0,EP112-AU112) -> 0
B115: =IF(#REF!=0,"",#REF!) -> 
B116: Disability | AM116: Census | BE116: Applicants | CF116: Beneficiaries | DG116: Rejected Applicants | EH116: Waiting List
AM119: # | AU119: % | BE119: # | BM119: % | BU119: Difference | CF119: # | CN119: % | CV119: Difference | DG119: # | DO119: % | DW119: Difference | EH119: # | EP119: % | EX119: Difference
B122: Disabled | AM122: =IF('E Data'!D3=0,"",'E Data'!B16) ->  | AU122: =AM122/(AM122+AM125) ->  | BM122: =IF(BE122="","",IF(BE122<1,0,BE122/(BE125+BE122))) ->  | BU122: =IF(OR(SUM(BE122:BL127)="",SUM(BE122:BL127)=0),0,BM122-AU122) -> 0 | CN122: =IF(CF122="","",IF(CF122<1,0,CF122/(CF122+CF125))) ->  | CV122: =IF(OR(SUM(CF122:CM127)="",SUM(CF122:CM127)=0),0,CN122-AU122) -> 0 | DO122: =IF(DG122="","",IF(DG122<1,0,DG122/(DG122+DG125))) ->  | DW122: =IF(OR(SUM(DG122:DN127)="",SUM(DG122:DN127)=0),0,DO122-AU122) -> 0 | EP122: =IF(EH122="","",IF(EH122<1,0,EH122/(EH122+EH125))) ->  | EX122: =IF(OR(SUM(EH122:EO127)="",SUM(EH122:EO127)=0),0,EP122-AU122) -> 0
B125: Not Disabled | AM125: =IF('E Data'!D3=0,"",'E Data'!B17) ->  | AU125: =1-AU122 ->  | BM125: =IF(BE125="","",IF(BE125<1,0,BE125/(BE125+BE122))) ->  | BU125: =IF(OR(SUM(BE122:BL127)="",SUM(BE122:BL127)=0),0,BM125-AU125) -> 0 | CN125: =IF(CF125="","",IF(CF125<1,0,CF125/(CF122+CF125))) ->  | CV125: =IF(OR(SUM(CF122:CM127)="",SUM(CF122:CM127)=0),0,CN125-AU125) -> 0 | DO125: =IF(DG125="","",IF(DG125<1,0,DG125/(DG122+DG125))) ->  | DW125: =IF(OR(SUM(DG122:DN127)="",SUM(DG122:DN127)=0),0,DO125-AU125) -> 0 | EP125: =IF(EH125="","",IF(EH125<1,0,EH125/(EH125+EH122))) ->  | EX125: =IF(OR(SUM(EH122:EO127)="",SUM(EH122:EO127)=0),0,EP125-$AU$125) -> 0
BC128: =IF(AND(SUM(BE49+BE52)=SUM(BE62:BL79),SUM(BE49+BE52)=SUM(BE87:BL92), SUM(BE49+BE52)=SUM(BE100:BL114), SUM(BE49+BE52)=SUM(BE122:BL127)),"","COLUMN SECTION TOTALS MUST MATCH!") ->  | CD128: =IF(AND(SUM(CF49+CF52)=SUM(CF62:CF79),SUM(CF49+CF52)=SUM(CF87:CF92), SUM(CF49+CF52)=SUM(CF100:CF114), SUM(CF49+CF52)=SUM(CF122:CF127)),"","COLUMN SECTION TOTALS MUST MATCH!") ->  | DE128: =IF(AND(SUM(DG49+DG52)=SUM(DG62:DG79),SUM(DG49+DG52)=SUM(DG87:DG92), SUM(DG49+DG52)=SUM(DG100:DG114), SUM(DG49+DG52)=SUM(DG122:DG127)),"","COLUMN SECTION TOTALS MUST MATCH!") ->  | EF128: =IF(AND(SUM(EH49+EH52)=SUM(EH62:EH79),SUM(EH49+EH52)=SUM(EH87:EH92), SUM(EH49+EH52)=SUM(EH100:EH114), SUM(EH49+EH52)=SUM(EH122:EH127)),"","COLUMN SECTION TOTALS MUST MATCH!") -> 
B136: Prepared By: Name | AM136: Title | BZ136: Telephone Number | CV136: e-mail Address | EL136: Date
FO141: PAGE 2
B142: Questionnaire
B148: HUD has defined "impediments to fair housing choice" to include specific actions as well as the lack of actions as follows:
C152: l | E152: Any actions, omissions or decisions taken because of race, color, religion, sex, disability, familial status, or national origin which restrict housing choices; and
C156: l | E156: Any actions, omissions, or decisions which have the effect of restricting housing choices or the availability of housing choices on the basis of race, color, religion, sex, disability, familial status, or national origin.
B162: In its simplest form, a study of Fair Housing barriers addresses the question: Do all residents and potential residents of this Jurisdiction have equal access to housing regardless of their race, color, religion (creed), sex, disability, familial status, age, or national origin? If not, why?
B169: If "Difference" field is greater than 10%, field will turn red; please respond to questions below, in reference to these numbers.
B173: 1. | D173: Does any of the demographic data show low representation of any protected groups in either your applicants, beneficiaries, rejected applicants or waiting list?
B191: 2. | E191: What reasons have you identified for these low numbers?
B209: 3. | E209: What actions have you taken to date to correct the reasons for low numbers?
B227: 4. | E227: What actions do you plan to take in the future to correct these low numbers?
B245: 5. | D245: Has your organization set up and maintained records reflecting the study and actions taken? If not, why?
FO259: PAGE 3
B392: END OF DOCUMENT

Sheet E Data (hidden)
H1: Hispanic or Latino 1 | I1: Not Hispanic or Latino 2 | J1: American Indian or Alaskan Native 3 | K1: Black or African American 4 | L1: Native Hawaiian or other Pacific Islander 5 | M1: White Alone 6 | N1: Other 7 | O1: Female 8 | P1: Male 9 | Q1: 0-19 10 | R1: 20-24 11 | S1: 25-44 12 | T1: 45-64 13 | U1: 65+ 14 | V1: No Disability 15 | W1: Disability 16 | X1: Total Population 17 | Y1: Asian 18 | Z1: Disability % | AA1: Disability Estimate
A2: 1 | B2: =VLOOKUP(D3,F2:H540,3,FALSE) -> 0 | D2: 539 | E2: 1 | F2: 001 | G2: Alameda County (Unincorporated) | H2: 48200 | I2: 99716 | J2: 346 | K2: 12263 | L2: 1316 | M2: 39096 | N2: 7448 | O2: 60373 | P2: 57962 | Q2: 28783 | R2: 6944 | S2: 33446 | T2: 31347 | U2: 17815 | V2: =X2-W2 -> 102988 | W2: 15347 | X2: 118335 | Y2: 38358 | Z2: 9.1 | AA2: =X2*0.09 -> 10650.15
A3: 2 | B3: =VLOOKUP(D3,F2:I540,4,FALSE) -> 0 | D3: =VLOOKUP(D2,E2:F540,2,FALSE) -> 0 | E3: 2 | F3: 003 | G3: Alpine County (Unincorporated) | H3: 60 | I3: 890 | J3: 30 | K3: 9 | L3: 0 | M3: 779 | N3: 53 | O3: 428 | P3: 522 | Q3: 136 | R3: 37 | S3: 203 | T3: 316 | U3: 258 | V3: 859 | W3: 91 | X3: 950 | Y3: 12 | Z3: 17.9 | AA3: =X3*0.09 -> 85.5
A4: 3 | B4: =VLOOKUP(D3,F2:J540,5,FALSE) -> 0 | D4: =VLOOKUP(D2,E2:G540,3,FALSE) -> Select a Jurisdiction | E4: 3 | F4: 005 | G4: Amador County (Unincorporated) | H4: 1496 | I4: 34460 | J4: 169 | K4: 96 | L4: 41 | M4: 10923 | N4: 2067 | O4: 6738 | P4: 7048 | Q4: 2506 | R4: 493 | S4: 2495 | T4: 4078 | U4: 4214 | V4: 10809 | W4: 2977 | X4: 13786 | Y4: 15 | Z4: 17.6 | AA4: 1240.74
A5: 4 | B5: =VLOOKUP(D3,F2:K540,6,FALSE) -> 0 | E5: 4 | F5: 007 | G5: Butte County (Unincorporated) | H5: 6673 | I5: 42968 | J5: 1166 | K5: 451 | L5: 80 | M5: 34957 | N5: 2243 | O5: 24408 | P5: 25233 | Q5: 11126 | R5: 2287 | S5: 10920 | T5: 13547 | U5: 11761 | V5: 40108 | W5: 9533 | X5: 49641 | Y5: 2823 | Z5: 17.4 | AA5: 4467.69
A6: 5 | B6: =VLOOKUP(D3,F2:L540,7,FALSE) -> 0 | E6: 5 | F6: 009 | G6: Calaveras County (Unincorporated) | H6: 3546 | I6: 23720 | J6: 284 | K6: 168 | L6: 35 | M6: 20899 | N6: 1165 | O6: 13161 | P6: 13155 | Q6: 5264 | R6: ='Att E Activity 1'!CV49 -> 0 | S6: ='Att E Activity 1'!CF52 -> 0 | T6: ='Att E Activity 1'!CN52 ->  | U6: ='Att E Activity 1'!CV52 -> 0 | V6: ='Att E Activity 1'!DG49 -> 0 | W6: ='Att E Activity 1'!DO49 ->  | X6: ='Att E Activity 1'!DW49 -> 0 | Y6: ='Att E Activity 1'!DG52 -> 0 | Z6: ='Att E Activity 1'!DO52 ->  | AA6: ='Att E Activity 1'!DW52 -> 0 | AB6: ='Att E Activity 1'!EH49 -> 0 | AC6: ='Att E Activity 1'!EP49 ->  | AD6: ='Att E Activity 1'!EX49 -> 0 | AE6: ='Att E Activity 1'!EH52 -> 0 | AF6: ='Att E Activity 1'!EP52 ->  | AG6: ='Att E Activity 1'!EX52 -> 0 | AI6: ='Att E Activity 1'!AM62 ->  | AJ6: ='Att E Activity 1'!AU62 ->  | AK6: ='Att E Activity 1'!AM65 ->  | AL6: ='Att E Activity 1'!AU62 ->  | AM6: ='Att E Activity 1'!AM68 ->  | AN6: ='Att E Activity 1'!AU68 ->  | AO6: ='Att E Activity 1'!AM71 ->  | AP6: ='Att E Activity 1'!AU71 ->  | AQ6: ='Att E Activity 1'!AM74 ->  | AR6: ='Att E Activity 1'!AU74 ->  | AS6: ='Att E Activity 1'!AM77 ->  | AT6: ='Att E Activity 1'!AU77 ->  | AU6: ='Att E Activity 1'!BE62 -> 0 | AV6: ='Att E Activity 1'!BM62 ->  | AW6: ='Att E Activity 1'!BU62 -> 0 | AX6: ='Att E Activity 1'!BE65 -> 0 | AY6: ='Att E Activity 1'!BM65 ->  | AZ6: ='Att E Activity 1'!BU65 -> 0 | BA6: ='Att E Activity 1'!BE68 -> 0 | BB6: ='Att E Activity 1'!BM68 ->  | BC6: ='Att E Activity 1'!BU68 -> 0 | BD6: ='Att E Activity 1'!BE71 -> 0 | BE6: ='Att E Activity 1'!BM71 ->  | BF6: ='Att E Activity 1'!BU71 -> 0 | BG6: ='Att E Activity 1'!BE74 -> 0 | BH6: ='Att E Activity 1'!BM74 ->  | BI6: ='Att E Activity 1'!BU74 -> 0 | BJ6: ='Att E Activity 1'!BE77 -> 0 | BK6: ='Att E Activity 1'!BM77 ->  | BL6: ='Att E Activity 1'!BU77 -> 0 | BM6: ='Att E Activity 1'!CF62 -> 0 | BN6: ='Att E Activity 1'!CN62 ->  | BO6: ='Att E Activity 1'!CV62 -> 0 | BP6: ='Att E Activity 1'!CF65 -> 0 | BQ6: ='Att E Activity 1'!CN65 ->  | BR6: ='Att E Activity 1'!CV65 -> 0 | BS6: ='Att E Activity 1'!CF68 -> 0 | BT6: ='Att E Activity 1'!CN68 ->  | BU6: ='Att E Activity 1'!CV68 -> 0 | BV6: ='Att E Activity 1'!CF71 -> 0 | BW6: ='Att E Activity 1'!CN71 ->  | BX6: ='Att E Activity 1'!CV71 -> 0 | BY6: ='Att E Activity 1'!CF74 -> 0 | BZ6: ='Att E Activity 1'!CN74 ->  | CA6: ='Att E Activity 1'!CV74 -> 0 | CB6: ='Att E Activity 1'!CF77 -> 0 | CC6: ='Att E Activity 1'!CN77 ->  | CD6: ='Att E Activity 1'!CV77 -> 0 | CE6: ='Att E Activity 1'!DG62 -> 0 | CF6: ='Att E Activity 1'!DO62 ->  | CG6: ='Att E Activity 1'!DW62 -> 0 | CH6: ='Att E Activity 1'!DG65 -> 0 | CI6: ='Att E Activity 1'!DO65 ->  | CJ6: ='Att E Activity 1'!DW65 -> 0 | CK6: ='Att E Activity 1'!DG68 -> 0 | CL6: ='Att E Activity 1'!DO68 ->  | CM6: ='Att E Activity 1'!DW68 -> 0 | CN6: ='Att E Activity 1'!DG71 -> 0 | CO6: ='Att E Activity 1'!DO71 ->  | CP6: ='Att E Activity 1'!DW71 -> 0 | CQ6: ='Att E Activity 1'!DG74 -> 0 | CR6: ='Att E Activity 1'!DO74 ->  | CS6: ='Att E Activity 1'!DW74 -> 0 | CT6: ='Att E Activity 1'!DG77 -> 0 | CU6: ='Att E Activity 1'!DO77 ->  | CV6: ='Att E Activity 1'!DW77 -> 0 | CW6: ='Att E Activity 1'!EH62 -> 0 | CX6: ='Att E Activity 1'!EP62 ->  | CY6: ='Att E Activity 1'!EX62 -> 0 | CZ6: ='Att E Activity 1'!EH65 -> 0 | DA6: ='Att E Activity 1'!EP65 ->  | DB6: ='Att E Activity 1'!EX65 -> 0 | DC6: ='Att E Activity 1'!EH68 -> 0 | DD6: ='Att E Activity 1'!EP68 ->  | DE6: ='Att E Activity 1'!EX68 -> 0 | DF6: ='Att E Activity 1'!EH71 -> 0 | DG6: ='Att E Activity 1'!EP71 ->  | DH6: ='Att E Activity 1'!EX71 -> 0 | DI6: ='Att E Activity 1'!EH74 -> 0 | DJ6: ='Att E Activity 1'!EP74 ->  | DK6: ='Att E Activity 1'!EX74 -> 0 | DL6: ='Att E Activity 1'!EH77 -> 0 | DM6: ='Att E Activity 1'!EP77 ->  | DN6: ='Att E Activity 1'!EX77 -> 0 | DP6: ='Att E Activity 1'!AM87 ->  | DQ6: ='Att E Activity 1'!AU87 ->  | DR6: ='Att E Activity 1'!AM90 ->  | DS6: ='Att E Activity 1'!AU90 ->  | DT6: ='Att E Activity 1'!BE87 -> 0 | DU6: ='Att E Activity 1'!BM87 ->  | DV6: ='Att E Activity 1'!BU87 -> 0 | DW6: ='Att E Activity 1'!BE90 -> 0 | DX6: ='Att E Activity 1'!BM90 ->  | DY6: ='Att E Activity 1'!BU90 -> 0 | DZ6: ='Att E Activity 1'!CF87 -> 0 | EA6: ='Att E Activity 1'!CN87 ->  | EB6: ='Att E Activity 1'!CV87 -> 0 | EC6: ='Att E Activity 1'!CF90 -> 0 | ED6: ='Att E Activity 1'!CN90 ->  | EE6: ='Att E Activity 1'!CV90 -> 0 | EF6: ='Att E Activity 1'!DG87 -> 0 | EG6: ='Att E Activity 1'!DO87 ->  | EH6: ='Att E Activity 1'!DW87 -> 0 | EI6: ='Att E Activity 1'!DG90 -> 0 | EJ6: ='Att E Activity 1'!DO90 ->  | EK6: ='Att E Activity 1'!DW90 -> 0 | EL6: ='Att E Activity 1'!EH87 -> 0 | EM6: ='Att E Activity 1'!EP87 ->  | EN6: ='Att E Activity 1'!EX87 -> 0 | EO6: ='Att E Activity 1'!EH90 -> 0 | EP6: ='Att E Activity 1'!EP90 ->  | EQ6: ='Att E Activity 1'!EX90 -> 0
A7: 6 | B7: =VLOOKUP(D3,F2:M540,8,FALSE) -> 0 | D7: 59 | E7: 6 | F7: 011 | G7: Colusa County (Unincorporated) | H7: 3746 | I7: 2019 | J7: 33 | K7: 56 | L7: 11 | M7: 1730 | N7: 124 | O7: 2824 | P7: 2941 | Q7: 1800 | R7: 347 | S7: 1495 | T7: 1336 | U7: 787 | V7: 5131 | W7: 634 | X7: 5765 | Y7: 39 | Z7: 12.5 | AA7: 518.85
A8: 7 | B8: =VLOOKUP(D3,F2:N540,9,FALSE) -> 0 | D8: =VLOOKUP(D7,E2:F59,2,FALSE) ->  | E8: 7 | F8: 013 | G8: Contra Costa County (Unincorporated) | H8: 45688 | I8: 118857 | J8: 390 | K8: 9441 | L8: 622 | M8: 72856 | N8: 1874 | O8: 85229 | P8: 82776 | Q8: 40909 | R8: 9154 | S8: 41388 | T8: 47498 | U8: 29056 | V8: 149595 | W8: 18410 | X8: 168005 | Y8: 25383 | Z8: 10.2 | AA8: 15120.45
A9: 8 | B9: =VLOOKUP(D3,F2:O540,10,FALSE) -> 0 | D9: =VLOOKUP(D7,E2:G545,3,FALSE) -> Adelanto city | E9: 8 | F9: 015 | G9: Del Norte County (Unincorporated) | H9: 900 | I9: 5497 | J9: 2136 | K9: 25 | L9: 7 | M9: 3874 | N9: 504 | O9: 3276 | P9: 3121 | Q9: 1546 | R9: 276 | S9: 1426 | T9: 1744 | U9: 1405 | V9: 4892 | W9: 1505 | X9: 6397 | Y9: 70 | Z9: 21.5 | AA9: 575.73
A10: 9 | B10: =VLOOKUP(D3,F2:P540,11,FALSE) -> 0 | E10: 9 | F10: 017 | G10: El Dorado County (Unincorporated) | H10: 12913 | I10: 92513 | J10: 561 | K10: 1010 | L10: 156 | M10: 76631 | N10: 5126 | O10: 53878 | P10: 51548 | Q10: 25911 | R10: 4729 | S10: 20662 | T10: 31212 | U10: 22912 | V10: 93343 | W10: 12083 | X10: 105426 | Y10: 6861 | Z10: 11.5 | AA10: 9488.34
A11: 10 | B11: =VLOOKUP(D3,F2:Q540,12,FALSE) -> 0 | E11: 10 | F11: 019 | G11: Fresno County (Unincorporated) | H11: 299670 | I11: 290533 | J11: 4010 | K11: 38326 | L11: 794 | M11: 146321 | N11: 18082 | O11: 23882 | P11: 24214 | Q11: 13842 | R11: 2916 | S11: 11829 | T11: 11409 | U11: 8100 | V11: 42175 | W11: 5921 | X11: 48096 | Y11: 79892 | Z11: 11.6 | AA11: 4328.64
A12: 11 | B12: =VLOOKUP(D3,F2:R540,13,FALSE) -> 0 | E12: 11 | F12: 021 | G12: Glenn County (Unincorporated) | H12: 2096 | I12: 600 | J12: 17 | K12: 17 | L12: 2 | M12: 477 | N12: 39 | O12: 1292 | P12: 1404 | Q12: 832 | R12: 164 | S12: 632 | T12: 660 | U12: 408 | V12: 2273 | W12: 423 | X12: 2696 | Y12: 44 | Z12: 15.8 | AA12: 242.64
A13: 12 | B13: =VLOOKUP(D3,F2:S540,14,FALSE) -> 0 | E13: 12 | F13: 023 | G13: Humboldt County (Unincorporated) | H13: 5587 | I13: 45094 | J13: 4551 | K13: 485 | L13: 117 | M13: 34390 | N13: 4048 | O13: 25725 | P13: 24956 | Q13: 11922 | R13: 2609 | S13: 13913 | T13: 12302 | U13: 9935 | V13: 41654 | W13: 9027 | X13: 50681 | Y13: 1139 | Z13: 15.7 | AA13: 4561.29
A14: 13 | B14: =VLOOKUP(D3,F2:T540,15,FALSE) -> 0 | E14: 13 | F14: 025 | G14: Imperial County (Unincorporated) | H14: 14813 | I14: 2627 | J14: 95 | K14: 223 | L14: 9 | M14: 1937 | N14: 233 | O14: 8751 | P14: 8689 | Q14: 5611 | R14: 1230 | S14: 4298 | T14: 3954 | U14: 2347 | V14: 15268 | W14: 2172 | X14: 17440 | Y14: 95 | Z14: 13.1 | AA14: 1569.6
A15: 14 | B15: =VLOOKUP(D3,F2:U540,16,FALSE) -> 0 | E15: 14 | F15: 027 | G15: Inyo County (Unincorporated) | H15: 2663 | I15: 9335 | J15: 876 | K15: 62 | L15: 4 | M15: 7578 | N15: 613 | O15: 5972 | P15: 6026 | Q15: 2530 | R15: 429 | S15: 2601 | T15: 3174 | U15: 3264 | V15: 10437 | W15: 1561 | X15: 11998 | Y15: 155 | Z15: 12.5 | AA15: 1079.82
A16: 15 | B16: =VLOOKUP(D3,F2:W541,18,FALSE) -> 0 | E16: 15 | F16: 029 | G16: Kern County (Unincorporated) | H16: 138079 | I16: 126362 | J16: 2012 | K16: 8980 | L16: 246 | M16: 100923 | N16: 9596 | O16: 132514 | P16: 131927 | Q16: 83214 | R16: 17051 | S16: 68955 | T16: 60931 | U16: 34290 | V16: 229050 | W16: 35391 | X16: 264441 | Y16: 3401 | Z16: 11.8 | AA16: 23799.69
A17: 16 | B17: =VLOOKUP(D3,F2:V541,17,FALSE) -> 0 | E17: 16 | F17: 031 | G17: Kings County (Unincorporated) | H17: 8400 | I17: 7117 | J17: 69 | K17: 1162 | L17: 84 | M17: 4449 | N17: 720 | O17: 7509 | P17: 8008 | Q17: 5576 | R17: 1894 | S17: 4909 | T17: 2143 | U17: 995 | V17: 14401 | W17: 1116 | X17: 15517 | Y17: 552 | Z17: 10.4 | AA17: 1396.53
A18: 17 | B18: =VLOOKUP(D3,F2:X540,19,FALSE) -> 0 | E18: 17 | F18: 033 | G18: Lake County (Unincorporated) | H18: 7058 | I18: 25169 | J18: 588 | K18: 423 | L18: 50 | M18: 21300 | N18: 2138 | O18: 16008 | P18: 16219 | Q18: 7168 | R18: 1430 | S18: 7327 | T18: 8932 | U18: 7370 | V18: 26783 | W18: 5444 | X18: 32227 | Y18: 480 | Z18: 20.9 | AA18: 2900.43
A19: 18 | B19: =VLOOKUP(D3,F2:Y540,20,FALSE) -> 0 | E19: 18 | F19: 035 | G19: Lassen County (Unincorporated) | H19: 776 | I19: 6768 | J19: 153 | K19: 74 | L19: 9 | M19: 5931 | N19: 503 | O19: 3571 | P19: 3973 | Q19: 1632 | R19: 340 | S19: 1662 | T19: 2221 | U19: 1689 | V19: 6152 | W19: 1392 | X19: 7544 | Y19: 58 | Z19: 17.3 | AA19: 678.96
E20: 19 | F20: 037 | G20: Los Angeles County (Unincorporated) | H20: 535420 | I20: 361481 | J20: 1724 | K20: 68320 | L20: 1426 | M20: 140148 | N20: 19676 | O20: 464662 | P20: 445556 | Q20: 229894 | R20: 65218 | S20: 246308 | T20: 236982 | U20: 131816 | V20: 817443 | W20: 92775 | X20: 910218 | Y20: 125819 | Z20: 9.5 | AA20: 81919.62
E21: 20 | F21: 039 | G21: Madera County (Unincorporated) | H21: 19319 | I21: 28835 | J21: 907 | K21: 536 | L21: 34 | M21: 24280 | N21: 336 | O21: 24272 | P21: 23882 | Q21: 12590 | R21: 2597 | S21: 10588 | T21: 11850 | U21: 10529 | V21: 40893 | W21: 7261 | X21: 48154 | Y21: 751 | Z21: 12.1 | AA21: 4333.86
B22: Enter a F/Y | E22: 21 | F22: 041 | G22: Marin County (Unincorporated) | H22: 5049 | I22: 45763 | J22: 80 | K22: 1173 | L22: 81 | M22: 37693 | N22: 3122 | O22: 26432 | P22: 24380 | Q22: 11527 | R22: 1813 | S22: 9443 | T22: 15517 | U22: 12512 | V22: 46131 | W22: 4681 | X22: 50812 | Y22: 3260 | Z22: 8.9 | AA22: 4573.08
B23: 2010-2011 | E23: 22 | F23: 043 | G23: Mariposa County (Unincorporated) | H23: 1100 | I23: 6416 | J23: 157 | K23: 38 | L23: 6 | M23: 5467 | N23: 564 | O23: 3720 | P23: 3796 | Q23: 1392 | R23: 315 | S23: 1642 | T23: 2185 | U23: 1982 | V23: 5900 | W23: 1616 | X23: 7516 | Y23: 129 | Z23: 18.5 | AA23: 676.44
B24: 2011-2012 | E24: 23 | F24: 045 | G24: Mendocino County (Unincorporated) | H24: 3969 | I24: 11677 | J24: 774 | K24: 69 | L24: 13 | M24: 9539 | N24: 878 | O24: 7695 | P24: 7951 | Q24: 3597 | R24: 699 | S24: 4015 | T24: 3926 | U24: 3409 | V24: 13389 | W24: 2257 | X24: 15646 | Y24: 315 | Z24: 16.1 | AA24: 1408.14
B25: 2012-2013 | E25: 24 | F25: 047 | G25: Merced County (Unincorporated) | H25: 34299 | I25: 16951 | J25: 177 | K25: 628 | L25: 57 | M25: 12128 | N25: 1232 | O25: 25471 | P25: 25779 | Q25: 16937 | R25: 3671 | S25: 13368 | T25: 11610 | U25: 5664 | V25: 44048 | W25: 7202 | X25: 51250 | Y25: 2572 | Z25: 15.5 | AA25: 4612.5
B26: 2013-2014 | E26: 25 | F26: 049 | G26: Modoc County (Unincorporated) | H26: 398 | I26: 1839 | J26: 131 | K26: 13 | L26: 5 | M26: 1550 | N26: 121 | O26: 1117 | P26: 1120 | Q26: 478 | R26: 75 | S26: 414 | T26: 634 | U26: 636 | V26: 1828 | W26: 409 | X26: 2237 | Y26: 5 | Z26: 21.1 | AA26: 201.33
B27: 2014-2015 | E27: 26 | F27: 051 | G27: Mono County (Unincorporated) | H27: 1004 | I27: 4451 | J27: 163 | K27: 22 | L27: 12 | M27: 3956 | N27: 213 | O27: 2619 | P27: 2836 | Q27: 1119 | R27: 204 | S27: 1281 | T27: 1596 | U27: 1255 | V27: 4909 | W27: 546 | X27: 5455 | Y27: 50 | Z27: 7.8 | AA27: 490.95
B28: 2015-2016 | E28: 27 | F28: 053 | G28: Monterey County (Unincorporated) | H28: 29814 | I28: 22686 | J28: 158 | K28: 288 | L28: 113 | M28: 18488 | N28: 1708 | O28: 26084 | P28: 26416 | Q28: 14239 | R28: 3225 | S28: 12539 | T28: 12998 | U28: 9499 | V28: 47153 | W28: 5347 | X28: 52500 | Y28: 1594 | Z28: 8.4 | AA28: 4725
B29: 2016-2017 | E29: 28 | F29: 055 | G29: Napa County (Unincorporated) | H29: 1220 | I29: 4056 | J29: 10 | K29: 115 | L29: 15 | M29: 3131 | N29: 257 | O29: 2789 | P29: 2487 | Q29: 1019 | R29: 575 | S29: 1051 | T29: 1299 | U29: 1332 | V29: 4723 | W29: 553 | X29: 5276 | Y29: 268 | Z29: 10.8 | AA29: 474.84
B30: 2017-2018 | E30: 29 | F30: 057 | G30: Nevada County (Unincorporated) | H30: 1686 | I30: 18124 | J30: 136 | K30: 79 | L30: 32 | M30: 16371 | N30: 1151 | O30: 10232 | P30: 9578 | Q30: 3683 | R30: 670 | S30: 3607 | T30: 5306 | U30: 6544 | V30: 16647 | W30: 3163 | X30: 19810 | Y30: 269 | Z30: 13.4 | AA30: 1782.9
B31: 2018-2019 | E31: 30 | F31: 059 | G31: Orange County (Unincorporated) | H31: 17033 | I31: 88065 | J31: 148 | K31: 951 | L31: 135 | M31: 64361 | N31: 5996 | O31: 53707 | P31: 51391 | Q31: 29788 | R31: 5678 | S31: 22659 | T31: 30726 | U31: 16247 | V31: 97020 | W31: 8078 | X31: 105098 | Y31: 16039 | Z31: 7.8 | AA31: 9458.82
B32: 2019-2020 | E32: 31 | F32: 061 | G32: Placer County (Unincorporated) | H32: 7928 | I32: 46628 | J32: 316 | K32: 351 | L32: 75 | M32: 40207 | N32: 1346 | O32: 27541 | P32: 27015 | Q32: 12325 | R32: 2441 | S32: 11522 | T32: 15893 | U32: 12375 | V32: 48766 | W32: 5790 | X32: 54556 | Y32: 2412 | Z32: 10.7 | AA32: 4910.04
B33: 2020-2021 | E33: 32 | F33: 063 | G33: Plumas County (Unincorporated) | H33: 1277 | I33: 13515 | J33: 276 | K33: 86 | L33: 20 | M33: 12149 | N33: 777 | O33: 7348 | P33: 7444 | Q33: 2710 | R33: 518 | S33: 2888 | T33: 4152 | U33: 4524 | V33: 12371 | W33: 2421 | X33: 14792 | Y33: 118 | Z33: 19.4 | AA33: 1331.28
B34: 2021-2022 | E34: 33 | F34: 065 | G34: Riverside County (Unincorporated) | H34: 160159 | I34: 153373 | J34: 1519 | K34: 12535 | L34: 590 | M34: 109935 | N34: 10892 | O34: 157221 | P34: 156311 | Q34: 88095 | R34: 19690 | S34: 77017 | T34: 77409 | U34: 51321 | V34: 274332 | W34: 39200 | X34: 313532 | Y34: 16442 | Z34: 10.7 | AA34: 28217.88
B35: 2022-2023 | E35: 34 | F35: 067 | G35: Sacramento County (Unincorporated) | H35: 129341 | I35: 467104 | J35: 3032 | K35: 47830 | L35: 5700 | M35: 284041 | N35: 40002 | O35: 306040 | P35: 290405 | Q35: 155685 | R35: 37142 | S35: 160814 | T35: 145971 | U35: 96833 | V35: 524161 | W35: 72284 | X35: 596445 | Y35: 82803 | Z35: 12.7 | AA35: 53680.05
B36: 2023-2024 | E36: 35 | F36: 069 | G36: San Benito County (Unincorporated) | H36: 2256 | I36: 4107 | J36: 13 | K36: 42 | L36: 8 | M36: 3536 | N36: 237 | O36: 3213 | P36: 3150 | Q36: 1298 | R36: 300 | S36: 1422 | T36: 1809 | U36: 1534 | V36: 5681 | W36: 682 | X36: 6363 | Y36: 206 | Z36: 8.7 | AA36: 572.67
B37: 2024-2025 | E37: 36 | F37: 071 | G37: San Bernardino County (Unincorporated) | H37: 73447 | I37: 106204 | J37: 1029 | K37: 5334 | L37: 484 | M37: 86104 | N37: 7150 | O37: 88526 | P37: 91125 | Q37: 46087 | R37: 11517 | S37: 44641 | T37: 47237 | U37: 30169 | V37: 155161 | W37: 24490 | X37: 179651 | Y37: 5049 | Z37: 10.9 | AA37: 16168.59
B38: 2025-2026 | E38: 37 | F38: 073 | G38: San Diego County (Unincorporated) | H38: 112233 | I38: 240992 | J38: 2569 | K38: 15097 | L38: 1304 | M38: 187229 | N38: 17755 | O38: 176252 | P38: 176973 | Q38: 88264 | R38: 28685 | S38: 86390 | T38: 87702 | U38: 62184 | V38: 314117 | W38: 39108 | X38: 353225 | Y38: 15109 | Z38: 9.4 | AA38: 31790.25
B39: 2026-2027 | E39: 38 | F39: 075 | G39: San Francisco County (Unincorporated) | H39: 0 | I39: 0 | J39: 0 | K39: 0 | L39: 0 | M39: 0 | N39: 0 | O39: 0 | P39: 0 | Q39: 0 | R39: 0 | S39: 0 | T39: 0 | U39: 0 | V39: 0 | W39: 0 | Z39: 10.6 | AA39: 0
E40: 39 | F40: 077 | G40: San Joaquin County (Unincorporated) | H40: 37701 | I40: 50428 | J40: 384 | K40: 3698 | L40: 343 | M40: 25620 | N40: 3612 | O40: 44217 | P40: 45548 | Q40: 27781 | R40: 5232 | S40: 25045 | T40: 20609 | U40: 11098 | V40: 79091 | W40: 9038 | X40: 88129 | Y40: 16337 | Z40: 11.7 | AA40: 7931.61
E41: 40 | F41: 079 | G41: San Luis Obispo County (Unincorporated) | H41: 23293 | I41: 60033 | J41: 312 | K41: 627 | L41: 80 | M41: 51892 | N41: 3546 | O41: 42471 | P41: 40855 | Q41: 18588 | R41: 8985 | S41: 17266 | T41: 19806 | U41: 18681 | V41: 73280 | W41: 10046 | X41: 83326 | Y41: 3075 | Z41: 10.8 | AA41: 7499.34
E42: 41 | F42: 081 | G42: San Mateo County (Unincorporated) | H42: 14538 | I42: 31081 | J42: 59 | K42: 403 | L42: 225 | M42: 21665 | N42: 2314 | O42: 22850 | P42: 22769 | Q42: 10787 | R42: 2375 | S42: 11295 | T42: 13280 | U42: 7882 | V42: 42123 | W42: 3496 | X42: 45619 | Y42: 6169 | Z42: 7.8 | AA42: 4105.71
E43: 42 | F43: 083 | G43: Santa Barbara County (Unincorporated) | H43: 32064 | I43: 91812 | J43: 460 | K43: 1758 | L43: 245 | M43: 71548 | N43: 6288 | O43: 63850 | P43: 60026 | Q43: 30897 | R43: 18517 | S43: 24591 | T43: 26267 | U43: 23604 | V43: 111419 | W43: 12457 | X43: 123876 | Y43: 10808 | Z43: 10 | AA43: 11148.84
E44: 43 | F44: 085 | G44: Santa Clara County (Unincorporated) | H44: 19613 | I44: 43021 | J44: 115 | K44: 1606 | L44: 331 | M44: 24913 | N44: 3174 | O44: 30599 | P44: 32035 | Q44: 11448 | R44: 9665 | S44: 21012 | T44: 13184 | U44: 7325 | V44: 58360 | W44: 4274 | X44: 62634 | Y44: 12404 | Z44: 7.7 | AA44: 5637.06
E45: 44 | F45: 087 | G45: Santa Cruz County (Unincorporated) | H45: 28008 | I45: 81974 | J45: 366 | K45: 745 | L45: 126 | M45: 70865 | N45: 5821 | O45: 55746 | P45: 54236 | Q45: 22382 | R45: 5770 | S45: 26629 | T45: 31470 | U45: 23731 | V45: 96820 | W45: 13162 | X45: 109982 | Y45: 3336 | Z45: 8.8 | AA45: 9898.38
E46: 45 | F46: 089 | G46: Shasta County (Unincorporated) | H46: 3120 | I46: 30458 | J46: 918 | K46: 107 | L46: 46 | M46: 26436 | N46: 2188 | O46: 16682 | P46: 16896 | Q46: 7652 | R46: 1300 | S46: 6682 | T46: 9618 | U46: 8326 | V46: 28243 | W46: 5335 | X46: 33578 | Y46: 598 | Z46: 17.9 | AA46: 3022.02
E47: 46 | F47: 091 | G47: Sierra County (Unincorporated) | H47: 203 | I47: 1732 | J47: 8 | K47: 3 | L47: 0 | M47: 1577 | N47: 123 | O47: 927 | P47: 1008 | Q47: 342 | R47: 41 | S47: 386 | T47: 573 | U47: 593 | V47: 1622 | W47: 313 | X47: 1935 | Y47: 7 | Z47: 20.3 | AA47: 174.15
E48: 47 | F48: 093 | G48: Siskiyou County (Unincorporated) | H48: 638 | I48: 4963 | J48: 339 | K48: 61 | L48: 5 | M48: 4021 | N48: 385 | O48: 2823 | P48: 2778 | Q48: 1103 | R48: 211 | S48: 1041 | T48: 1577 | U48: 1669 | V48: 4445 | W48: 1156 | X48: 5601 | Y48: 88 | Z48: 19.1 | AA48: 504.09
E49: 48 | F49: 095 | G49: Solano County (Unincorporated) | H49: 1093 | I49: 4835 | J49: 24 | K49: 145 | L49: 16 | M49: 4030 | N49: 357 | O49: 3020 | P49: 2908 | Q49: 1084 | R49: 253 | S49: 1154 | T49: 1893 | U49: 1544 | V49: 5008 | W49: 920 | X49: 5928 | Y49: 229 | Z49: 10.9 | AA49: 533.52 | BE49: 1 | CF49: 3 | DG49: 5 | EH49: 7
E50: 49 | F50: 097 | G50: Sonoma County (Unincorporated) | H50: 13718 | I50: 36257 | J50: 289 | K50: 461 | L50: 129 | M50: 30176 | N50: 2390 | O50: 25566 | P50: 24409 | Q50: 10257 | R50: 2566 | S50: 12061 | T50: 13353 | U50: 11738 | V50: 43459 | W50: 6516 | X50: 49975 | Y50: 2450 | Z50: 10.7 | AA50: 4497.75
E51: 50 | F51: 099 | G51: Stanislaus County (Unincorporated) | H51: 35755 | I51: 24478 | J51: 274 | K51: 872 | L51: 220 | M51: 18652 | N51: 2015 | O51: 29624 | P51: 30609 | Q51: 18391 | R51: 4004 | S51: 15648 | T51: 14751 | U51: 7439 | V51: 52945 | W51: 7288 | X51: 60233 | Y51: 2216 | Z51: 13.1 | AA51: 5420.97
E52: 51 | F52: 101 | G52: Sutter County (Unincorporated) | H52: 960 | I52: 3688 | J52: 58 | K52: 18 | L52: 2 | M52: 3208 | N52: 3993 | O52: 2297 | P52: 2351 | Q52: 1204 | R52: 241 | S52: 1149 | T52: 1300 | U52: 754 | V52: 3935 | W52: 713 | X52: 4648 | Y52: 53 | Z52: 13.6 | AA52: 418.32 | BE52: 2 | CF52: 4 | DG52: 6 | EH52: 8
E53: 52 | F53: 103 | G53: Tehama County (Unincorporated) | H53: 2436 | I53: 7947 | J53: 193 | K53: 60 | L53: 15 | M53: 6818 | N53: 655 | O53: 5099 | P53: 5284 | Q53: 2658 | R53: 467 | S53: 2335 | T53: 2706 | U53: 2217 | V53: 8776 | W53: 1607 | X53: 10383 | Y53: 166 | Z53: 18.2 | AA53: 934.47
E54: 53 | F54: 105 | G54: Trinity County (Unincorporated) | H54: 814 | I54: 13080 | J54: 369 | K54: 40 | L54: 21 | M54: 9646 | N54: 854 | O54: 6099 | P54: 7795 | Q54: 2622 | R54: 603 | S54: 3467 | T54: 3910 | U54: 3292 | V54: 11964 | W54: 1930 | X54: 13894 | Y54: 387 | Z54: 22.7 | AA54: 1250.46
E55: 54 | F55: 107 | G55: Tulare County (Unincorporated) | H55: 61456 | I55: 12514 | J55: 249 | K55: 277 | L55: 111 | M55: 8402 | N55: 822 | O55: 36763 | P55: 37207 | Q55: 26650 | R55: 5432 | S55: 18613 | T55: 15429 | U55: 7846 | V55: 64994 | W55: 8976 | X55: 73970 | Y55: 2426 | Z55: 10.7 | AA55: 6657.3
E56: 55 | F56: 109 | G56: Tuolumne County (Unincorporated) | H56: 3186 | I56: 26074 | J56: 363 | K56: 108 | L56: 53 | M56: 23228 | N56: 1819 | O56: 14879 | P56: 14381 | Q56: 5623 | R56: 1170 | S56: 5735 | T56: 7617 | U56: 9115 | V56: 23679 | W56: 5581 | X56: 29260 | Y56: 324 | Z56: 18.4 | AA56: 2633.4
E57: 56 | F57: 111 | G57: Ventura County (Unincorporated) | H57: 17813 | I57: 39329 | J57: 155 | K57: 419 | L57: 51 | M57: 31959 | N57: 2453 | O57: 28914 | P57: 28228 | Q57: 13771 | R57: 3021 | S57: 12830 | T57: 16615 | U57: 10905 | V57: 50953 | W57: 6189 | X57: 57142 | Y57: 3985 | Z57: 9.9 | AA57: 5142.78
E58: 57 | F58: 113 | G58: Yolo County (Unincorporated) | H58: 6621 | I58: 12615 | J58: 164 | K58: 543 | L58: 168 | M58: 8462 | N58: 730 | O58: 10224 | P58: 9012 | Q58: 7642 | R58: 3171 | S58: 3394 | T58: 2913 | U58: 2116 | V58: 17283 | W58: 1953 | X58: 19236 | Y58: 2485 | Z58: 10.3 | AA58: 1731.24
E59: 58 | F59: 115 | G59: Yuba County (Unincorporated) | H59: 17004 | I59: 35138 | J59: 619 | K59: 1981 | L59: 269 | M59: 23541 | N59: 3888 | O59: 26019 | P59: 26123 | Q59: 16919 | R59: 3188 | S59: 15071 | T59: 11162 | U59: 5802 | V59: 45048 | W59: 7094 | X59: 52142 | Y59: 4541 | Z59: 16.5 | AA59: 4692.78
E60: 59 | F60: 00296 | G60: Adelanto city | H60: 24158 | I60: 13888 | J60: 854 | K60: 7396 | L60: 284 | M60: 8455 | N60: 5323 | O60: 18155 | P60: 19891 | Q60: 13478 | R60: 2987 | S60: 11369 | T60: 7507 | U60: 2705 | V60: 33733 | W60: 4313 | X60: 38046 | Y60: 1049 | Z60: Adelanto city | AA60: 3424.14
E61: 60 | F61: 00394 | G61: Agoura Hills city | H61: 2319 | I61: 17980 | J61: 66 | K61: 262 | L61: 17 | M61: 15279 | N61: 2167 | O61: 10462 | P61: 9837 | Q61: 4897 | R61: 1102 | S61: 4067 | T61: 6208 | U61: 4025 | V61: 18327 | W61: 1972 | X61: 20299 | Y61: 1776 | Z61: Agoura Hills city | AA61: 1826.91
E62: 61 | F62: 00562 | G62: Alameda city | H62: 9435 | I62: 68845 | J62: 441 | K62: 4608 | L62: 399 | M62: 34102 | N62: 10074 | O62: 40952 | P62: 37328 | Q62: 17107 | R62: 3773 | S62: 22215 | T62: 21474 | U62: 13711 | V62: 70906 | W62: 7374 | X62: 78280 | Y62: 25412 | Z62: Alameda city | AA62: 7045.2 | BE62: 9 | CF62: 15 | DG62: 21 | EH62: 27
E63: 62 | F63: 00674 | G63: Albany city | H63: 2665 | I63: 17606 | J63: 90 | K63: 716 | L63: 17 | M63: 9446 | N63: 2687 | O63: 10614 | P63: 9657 | Q63: 5580 | R63: 1181 | S63: 5805 | T63: 4669 | U63: 3036 | V63: 19164 | W63: 1107 | X63: 20271 | Y63: 6184 | Z63: Albany city | AA63: 1824.39
E64: 63 | F64: 00884 | G64: Alhambra city | H64: 29910 | I64: 52958 | J64: 1061 | K64: 1537 | L64: 91 | M64: 11898 | N64: 10749 | O64: 43741 | P64: 39127 | Q64: 15323 | R64: 4997 | S64: 25231 | T64: 22016 | U64: 15301 | V64: 74181 | W64: 8687 | X64: 82868 | Y64: 42977 | Z64: Alhambra city | AA64: 7458.12
E65: 64 | F65: 00947 | G65: Aliso Viejo city | H65: 9836 | I65: 42340 | J65: 232 | K65: 1009 | L65: 182 | M65: 31290 | N65: 7365 | O65: 27324 | P65: 24852 | Q65: 13026 | R65: 3324 | S65: 14679 | T65: 15660 | U65: 5487 | V65: 48978 | W65: 3198 | X65: 52176 | Y65: 8642 | Z65: Aliso Viejo city | AA65: 4695.84 | BE65: 10 | CF65: 16 | DG65: 22 | EH65: 28
E66: 65 | F66: 01444 | G66: Alturas city | H66: 415 | I66: 2300 | J66: 110 | K66: 31 | L66: 7 | M66: 2117 | N66: 252 | O66: 1425 | P66: 1290 | Q66: 717 | R66: 129 | S66: 665 | T66: 667 | U66: 537 | V66: =X66-W66 -> 2241 | W66: 474 | X66: 2715 | Y66: 36 | Z66: Alturas city | AA66: 244.35
E67: 66 | F67: 01514 | G67: Amador city | H67: 21 | I67: 179 | J67: 4 | K67: 1 | L67: 0 | M67: 162 | N67: 26 | O67: 104 | P67: 96 | Q67: 33 | R67: 10 | S67: 56 | T67: 43 | U67: 58 | V67: 188 | W67: 12 | X67: 200 | Y67: 1 | Z67: Amador City city | AA67: =X67*0.09 -> 18
E68: 67 | F68: 01640 | G68: American Canyon city | H68: 6705 | I68: 15132 | J68: 227 | K68: 1480 | L68: 157 | M68: 5313 | N68: 3152 | O68: 11196 | P68: 10641 | Q68: 5986 | R68: 1542 | S68: 5361 | T68: 6033 | U68: 2915 | V68: 19572 | W68: 2265 | X68: 21837 | Y68: 7774 | Z68: American Canyon city | AA68: 1965.33 | BE68: 11 | CF68: 17 | DG68: 23 | EH68: 29
E69: 68 | F69: 02000 | G69: Anaheim city | H69: 186651 | I69: 160173 | J69: 6207 | K69: 9253 | L69: 1533 | M69: 107740 | N69: 58787 | O69: 175747 | P69: 171077 | Q69: 88131 | R69: 26685 | S69: 102097 | T69: 85889 | U69: 44022 | V69: 315310 | W69: 31514 | X69: 346824 | Y69: 61539 | Z69: Anaheim city | AA69: 31214.16
E70: 69 | F70: 02042 | G70: Anderson city | H70: 1587 | I70: 9736 | J70: 430 | K70: 119 | L70: 30 | M70: 8588 | N70: 1292 | O70: 5969 | P70: 5354 | Q70: 3155 | R70: 585 | S70: 2974 | T70: 2565 | U70: 2044 | V70: 8837 | W70: 2486 | X70: 11323 | Y70: 339 | Z70: Anderson city | AA70: 1019.07
E71: 70 | F71: 02112 | G71: Angels city | H71: 459 | I71: 3208 | J71: 77 | K71: 27 | L71: 7 | M71: 2975 | N71: 395 | O71: 1935 | P71: 1732 | Q71: 739 | R71: 130 | S71: 720 | T71: 956 | U71: 1122 | V71: 2835 | W71: 832 | X71: 3667 | Y71: 46 | Z71: Angels city | AA71: 330.03 | BE71: 12 | CF71: 18 | DG71: 24 | EH71: 30
E72: 71 | F72: 02252 | G72: Antioch city | H72: 41965 | I72: 73326 | J72: 1696 | K72: 24057 | L72: 1543 | M72: 32703 | N72: 16249 | O72: 59181 | P72: 56110 | Q72: 31398 | R72: 8139 | S72: 30797 | T72: 29959 | U72: 14998 | V72: 98590 | W72: 16701 | X72: 115291 | Y72: 15015 | Z72: Antioch city | AA72: 10376.19
E73: 72 | F73: 02364 | G73: Apple Valley town | H73: 28989 | I73: 46802 | J73: 1333 | K73: 6311 | L73: 275 | M73: 41481 | N73: 11369 | O73: 39035 | P73: 36756 | Q73: 21143 | R73: 4439 | S73: 18044 | T73: 17898 | U73: 14267 | V73: 63476 | W73: 12315 | X73: 75791 | Y73: 2609 | Z73: Apple Valley town | AA73: 6821.19
E74: 73 | F74: 02462 | G74: Arcadia city | H74: 7401 | I74: 49280 | J74: 233 | K74: 959 | L74: 46 | M74: 11378 | N74: 4135 | O74: 29607 | P74: 27074 | Q74: 12703 | R74: 3263 | S74: 13005 | T74: 16532 | U74: 11178 | V74: 51419 | W74: 5262 | X74: 56681 | Y74: 36772 | Z74: Arcadia city | AA74: 5101.29 | BE74: 13 | CF74: 19 | DG74: 25 | EH74: 31
E75: 74 | F75: 02476 | G75: Arcata city | H75: 3739 | I75: 15118 | J75: 558 | K75: 523 | L75: 46 | M75: 13226 | N75: 2366 | O75: 9626 | P75: 9231 | Q75: 3857 | R75: 3850 | S75: 5847 | T75: 3092 | U75: 2211 | V75: 17067 | W75: 1790 | X75: 18857 | Y75: 501 | Z75: Arcata city | AA75: 1697.13
E76: 75 | F76: 02868 | G76: Arroyo Grande city | H76: 3646 | I76: 14795 | J76: 160 | K76: 181 | L76: 15 | M76: 13595 | N76: 2567 | O76: 9696 | P76: 8745 | Q76: 3985 | R76: 876 | S76: 4107 | T76: 4795 | U76: 4678 | V76: 15767 | W76: 2674 | X76: 18441 | Y76: 708 | Z76: Arroyo Grande city | AA76: 1659.69
E77: 76 | F77: 02896 | G77: Artesia city | H77: 5825 | I77: 10570 | J77: 161 | K77: 652 | L77: 67 | M77: 3509 | N77: 1838 | O77: 8236 | P77: 8159 | Q77: 3504 | R77: 1098 | S77: 4440 | T77: 4392 | U77: 2961 | V77: 14595 | W77: 1800 | X77: 16395 | Y77: 6921 | Z77: Artesia city | AA77: 1475.55 | BE77: 14 | CF77: 20 | DG77: 26 | EH77: 32
E78: 77 | F78: 02924 | G78: Arvin city | H78: 18317 | I78: 1178 | J78: 397 | K78: 178 | L78: 6 | M78: 5069 | N78: 3569 | O78: 9800 | P78: 9695 | Q78: 7750 | R78: 1580 | S78: 5214 | T78: 3579 | U78: 1372 | V78: 18428 | W78: 1067 | X78: 19495 | Y78: 123 | Z78: Arvin city | AA78: 1754.55
E79: 78 | F79: 03064 | G79: Atascadero city | H79: 5850 | I79: 23923 | J79: 361 | K79: 462 | L79: 38 | M79: 21947 | N79: 4161 | O79: 15212 | P79: 14561 | Q79: 6814 | R79: 1386 | S79: 7949 | T79: 7556 | U79: 6068 | V79: 26458 | W79: 3315 | X79: 29773 | Y79: 910 | Z79: Atascadero city | AA79: 2679.57
E80: 79 | F80: 03092 | G80: Atherton town | H80: 484 | I80: 6704 | J80: 14 | K80: 100 | L80: 45 | M80: 4844 | N80: 624 | O80: 3690 | P80: 3498 | Q80: 1801 | R80: 620 | S80: 919 | T80: 2001 | U80: 1847 | V80: 6623 | W80: 565 | X80: 7188 | Y80: 1411 | Z80: Atherton town | AA80: 646.92
E81: 80 | F81: 03162 | G81: Atwater city | H81: 19042 | I81: 12928 | J81: 972 | K81: 1094 | L81: 81 | M81: 12984 | N81: 6132 | O81: 16323 | P81: 15647 | Q81: 10356 | R81: 2068 | S81: 8547 | T81: 6902 | U81: 4097 | V81: 27854 | W81: 4116 | X81: 31970 | Y81: 1779 | Z81: Atwater city | AA81: 2877.3
E82: 81 | F82: 03204 | G82: Auburn city | H82: 1693 | I82: 12083 | J82: 154 | K82: 123 | L82: 17 | M82: 11065 | N82: 1501 | O82: 7293 | P82: 6483 | Q82: 2657 | R82: 676 | S82: 2982 | T82: 3803 | U82: 3658 | V82: 12144 | W82: 1632 | X82: 13776 | Y82: 317 | Z82: Auburn city | AA82: 1239.84
E83: 82 | F83: 03274 | G83: Avalon city | H83: 1903 | I83: 1557 | J83: 46 | K83: 30 | L83: 11 | M83: 1699 | N83: 508 | O83: 1797 | P83: 1663 | Q83: 834 | R83: 200 | S83: 859 | T83: 984 | U83: 583 | V83: 3365 | W83: 95 | X83: 3460 | Y83: 33 | Z83: Avalon city | AA83: 311.4
E84: 83 | F84: 03302 | G84: Avenal city | H84: 11545 | I84: 2151 | J84: 254 | K84: 125 | L84: 15 | M84: 3216 | N84: 1678 | O84: 4565 | P84: 9131 | Q84: 3578 | R84: 879 | S84: 4937 | T84: 3589 | U84: 713 | V84: 12824 | W84: 872 | X84: 13696 | Y84: 92 | Z84: Avenal city | AA84: 1232.64
E85: 84 | F85: 03386 | G85: Azusa city | H85: 32020 | I85: 17980 | J85: 1314 | K85: 1752 | L85: 74 | M85: 13800 | N85: 10053 | O85: 25742 | P85: 24258 | Q85: 12795 | R85: 5216 | S85: 14172 | T85: 12030 | U85: 5787 | V85: 45578 | W85: 4422 | X85: 50000 | Y85: 7384 | Z85: Azusa city | AA85: 4500
E86: 85 | F86: 03526 | G86: Bakersfield city | H86: 212822 | I86: 190633 | J86: 2153 | K86: 26402 | L86: 505 | M86: 178069 | N86: 66956 | O86: 206326 | P86: 197129 | Q86: 128211 | R86: 28309 | S86: 113784 | T86: 86939 | U86: 46212 | V86: 363431 | W86: 40024 | X86: 403455 | Z86: Bakersfield city | AA86: 36310.95
E87: 86 | F87: 03666 | G87: Baldwin Park city | H87: 53683 | I87: 18493 | J87: 92 | K87: 609 | L87: 44 | M87: 17992 | N87: 13524 | O87: 36616 | P87: 35560 | Q87: 18522 | R87: 5630 | S87: 19952 | T87: 18429 | U87: 9643 | V87: 64913 | W87: 7263 | X87: 72176 | Z87: Baldwin Park city | AA87: 6495.84 | BE87: 33 | CF87: 35 | DG87: 37 | EH87: 39
E88: 87 | F88: 03820 | G88: Banning city | H88: 13427 | I88: 16078 | J88: 316 | K88: 2112 | L88: 26 | M88: 15232 | N88: 4017 | O88: 15528 | P88: 13977 | Q88: 6824 | R88: 1482 | S88: 6444 | T88: 6477 | U88: 8278 | V88: 23067 | W88: 6438 | X88: 29505 | Z88: Banning city | AA88: 2655.45
E89: 88 | F89: 04030 | G89: Barstow city | H89: 11295 | I89: 14120 | J89: 305 | K89: 4684 | L89: 312 | M89: 12786 | N89: 4247 | O89: 13080 | P89: 12335 | Q89: 8605 | R89: 1763 | S89: 6693 | T89: 5303 | U89: 3051 | V89: 21442 | W89: 3973 | X89: 25415 | Z89: Barstow city | AA89: 2287.35
E90: 89 | F90: 04758 | G90: Beaumont city | H90: 22546 | I90: 30490 | J90: 309 | K90: 4167 | L90: 95 | M90: 28387 | N90: 8586 | O90: 27286 | P90: 25750 | Q90: 15802 | R90: 3001 | S90: 14260 | T90: 11709 | U90: 8264 | V90: 47947 | W90: 5089 | X90: 53036 | Z90: Beaumont city | AA90: 4773.24 | BE90: 34 | CF90: 36 | DG90: 38 | EH90: 40
E91: 90 | F91: 04870 | G91: Bell city | H91: 31392 | I91: 2167 | J91: 35 | K91: 124 | L91: 15 | M91: 1996 | N91: 7515 | O91: 16978 | P91: 16581 | Q91: 9994 | R91: 2696 | S91: 9649 | T91: 7844 | U91: 3376 | V91: 30539 | W91: 3020 | X91: 33559 | Z91: Bell city | AA91: 3020.31
E92: 91 | F92: 04996 | G92: Bell Gardens city | H92: 37994 | I92: 1507 | J92: 98 | K92: 220 | L92: 19 | M92: 1383 | N92: 7682 | O92: 19851 | P92: 38419 | Q92: 11961 | R92: 3355 | S92: 11443 | T92: 9078 | U92: 3664 | V92: 32218 | W92: 7283 | X92: 39501 | Z92: Bell Gardens city | AA92: 3555.09
E93: 92 | F93: 04982 | G93: Bellflower city | H93: 45250 | I93: 33940 | J93: 183 | K93: 10131 | L93: 531 | M93: 31891 | N93: 13184 | O93: 40771 | P93: 19650 | Q93: 20832 | R93: 5850 | S93: 23147 | T93: 19829 | U93: 9532 | V93: 76554 | W93: 2636 | X93: 79190 | Z93: Bellflower city | AA93: 7127.1
E94: 93 | F94: 05108 | G94: Belmont city | H94: 3523 | I94: 24812 | J94: 22 | K94: 348 | L94: 132 | M94: 22704 | N94: 3542 | O94: 14427 | P94: 13908 | Q94: 6753 | R94: 1307 | S94: 8214 | T94: 7490 | U94: 4571 | V94: 26170 | W94: 2165 | X94: 28335 | Z94: Belmont city | AA94: 2550.15
E95: 94 | F95: 05164 | G95: Belvedere city | H95: 109 | I95: 2017 | J95: 5 | K95: 17 | L95: 0 | M95: 1943 | N95: 148 | O95: 1147 | P95: 979 | Q95: 499 | R95: 62 | S95: 238 | T95: 613 | U95: 714 | V95: 2013 | W95: 113 | X95: 2126 | Z95: Belvedere city | AA95: 191.34
E96: 95 | F96: 05290 | G96: Benicia city | H96: 4008 | I96: 23123 | J96: 62 | K96: 1327 | L96: 101 | M96: 20896 | N96: 4042 | O96: 14250 | P96: 12881 | Q96: 5988 | R96: 1289 | S96: 6021 | T96: 7961 | U96: 5872 | V96: 24171 | W96: 2960 | X96: 27131 | Z96: Benicia city | AA96: 2441.79
E97: 96 | F97: 06000 | G97: Berkeley city | H97: 17018 | I97: 107303 | J97: 226 | K97: 9495 | L97: 253 | M97: 98234 | N97: 14580 | O97: 63408 | P97: 60913 | Q97: 25452 | R97: 21960 | S97: 34722 | T97: 23261 | U97: 18926 | V97: 112672 | W97: 11649 | X97: 124321 | Z97: Berkeley city | AA97: 11188.89
E98: 97 | F98: 06308 | G98: Beverly Hills city | H98: 2218 | I98: 30483 | J98: 13 | K98: 662 | L98: 11 | M98: 28706 | N98: 2857 | O98: 17674 | P98: 15027 | Q98: 6262 | R98: 1870 | S98: 8016 | T98: 8867 | U98: 7686 | V98: 29500 | W98: 3201 | X98: 32701 | Z98: Beverly Hills city | AA98: 2943.09
E99: 98 | F99: 06434 | G99: Big Bear Lake city | H99: 1205 | I99: 3841 | J99: 21 | K99: 46 | L99: 6 | M99: 3617 | N99: 616 | O99: 2451 | P99: 2595 | Q99: 913 | R99: 183 | S99: 1065 | T99: 1525 | U99: 1360 | V99: 4497 | W99: 549 | X99: 5046 | Z99: Big Bear Lake city | AA99: 454.14
E100: 99 | F100: 06560 | G100: Biggs city | H100: 778 | I100: 1186 | J100: 31 | K100: 19 | L100: 0 | M100: 1114 | N100: 201 | O100: 998 | P100: 966 | Q100: 601 | R100: 119 | S100: 464 | T100: 509 | U100: 271 | V100: 1513 | W100: 451 | X100: 1964 | Z100: Biggs city | AA100: 176.76 | BE100: 41 | CF100: 43 | DG100: 51 | EH100: 56
E101: 100 | F101: 06798 | G101: Bishop city | H101: 1146 | I101: 2673 | J101: 83 | K101: 8 | L101: 0 | M101: 2483 | N101: 521 | O101: 1932 | P101: 1887 | Q101: 832 | R101: 176 | S101: 1057 | T101: 1009 | U101: 745 | V101: 2976 | W101: 843 | X101: 3819 | Z101: Bishop city | AA101: 343.71
E102: 101 | F102: 07162 | G102: Blue Lake city | H102: 96 | I102: 1112 | J102: 53 | K102: 5 | L102: 2 | M102: 1023 | N102: 122 | O102: 649 | P102: 559 | Q102: 241 | R102: 50 | S102: 333 | T102: 338 | U102: 246 | V102: 1026 | W102: 182 | X102: 1208 | Z102: Blue Lake city | AA102: 108.72
E103: 102 | F103: 07218 | G103: Blythe city | H103: 10873 | I103: 7444 | J103: 158 | K103: 2007 | L103: 21 | M103: 6932 | N103: 2017 | O103: 6134 | P103: 12183 | Q103: 3765 | R103: 1345 | S103: 6648 | T103: 4870 | U103: 1689 | V103: 16233 | W103: 2084 | X103: 18317 | Z103: Blythe city | AA103: 1648.53 | BE103: 42 | CF103: 47 | DG103: 52 | EH103: 57
E104: 103 | F104: 07946 | G104: Bradbury city | H104: 184 | I104: 737 | J104: 1 | K104: 17 | L104: 0 | M104: 707 | N104: 109 | O104: 465 | P104: 456 | Q104: 168 | R104: 55 | S104: 184 | T104: 306 | U104: 208 | V104: 853 | W104: 68 | X104: 921 | Z104: Bradbury city | AA104: 82.89
E105: 104 | F105: 08058 | G105: Brawley city | H105: 22750 | I105: 3666 | J105: 28 | K105: 303 | L105: 11 | M105: 3426 | N105: 7050 | O105: 13686 | P105: 12730 | Q105: 8646 | R105: 1656 | S105: 6861 | T105: 5794 | U105: 3459 | V105: 22440 | W105: 3976 | X105: 26416 | Z105: Brawley city | AA105: 2377.44
E106: 105 | F106: 08100 | G106: Brea city | H106: 12972 | I106: 34353 | J106: 101 | K106: 784 | L106: 54 | M106: 32507 | N106: 6609 | O106: 24482 | P106: 22843 | Q106: 11084 | R106: 2828 | S106: 13007 | T106: 12582 | U106: 7824 | V106: 43682 | W106: 3643 | X106: 47325 | Z106: Brea city | AA106: 4259.25 | BE106: 43 | CF106: 48 | DG106: 53 | EH106: 58
E107: 106 | F107: 08142 | G107: Brentwood city | H107: 17121 | I107: 47171 | J107: 161 | K107: 4230 | L107: 289 | M107: 42957 | N107: 10229 | O107: 33228 | P107: 31064 | Q107: 18723 | R107: 3685 | S107: 14860 | T107: 16598 | U107: 10426 | V107: 56443 | W107: 7849 | X107: 64292 | Z107: Brentwood city | AA107: 5786.28
E108: 107 | F108: 08310 | G108: Brisbane city | H108: 868 | I108: 3983 | J108: 10 | K108: 88 | L108: 24 | M108: 3653 | N108: 690 | O108: 2435 | P108: 2416 | Q108: 979 | R108: 194 | S108: 1422 | T108: 1465 | U108: 791 | V108: 4438 | W108: 413 | X108: 4851 | Z108: Brisbane city | AA108: 436.59
E109: 108 | F109: 08758 | G109: Buellton city | H109: 1676 | I109: 3485 | J109: 28 | K109: 30 | L109: 5 | M109: 3252 | N109: 893 | O109: 2608 | P109: 2553 | Q109: 1340 | R109: 206 | S109: 1261 | T109: 1442 | U109: 912 | V109: 4604 | W109: 557 | X109: 5161 | Z109: Buellton city | AA109: 464.49 | BE109: 44 | CF109: 49 | DG109: 54 | EH109: 59
E110: 109 | F110: 08786 | G110: Buena Park city | H110: 34330 | I110: 49704 | J110: 174 | K110: 2504 | L110: 373 | M110: 47226 | N110: 11340 | O110: 42889 | P110: 41145 | Q110: 20315 | R110: 5938 | S110: 23695 | T110: 22256 | U110: 11830 | V110: 75585 | W110: 8449 | X110: 84034 | Z110: Buena Park city | AA110: 7563.06
E111: 110 | F111: 08954 | G111: Burbank city | H111: 25961 | I111: 81376 | J111: 222 | K111: 2891 | L111: 98 | M111: 76461 | N111: 14624 | O111: 55671 | P111: 51666 | Q111: 21024 | R111: 6126 | S111: 33839 | T111: 28823 | U111: 17525 | V111: 95812 | W111: 11525 | X111: 107337 | Z111: Burbank city | AA111: 9660.33
E112: 111 | F112: 09066 | G112: Burlingame city | H112: 4263 | I112: 27123 | J112: 20 | K112: 284 | L112: 105 | M112: 25147 | N112: 3658 | O112: 16239 | P112: 15147 | Q112: 7641 | R112: 1135 | S112: 9219 | T112: 8312 | U112: 5079 | V112: 29383 | W112: 2003 | X112: 31386 | Z112: Burlingame city | AA112: 2824.74 | BE112: 45 | CF112: 50 | DG112: 55 | EH112: 60
E113: 112 | F113: 09598 | G113: Calabasas city | H113: 1954 | I113: 21287 | J113: 31 | K113: 515 | L113: 12 | M113: 20087 | N113: 1200 | O113: 12020 | P113: 11221 | Q113: 5541 | R113: 1561 | S113: 4551 | T113: 7077 | U113: 4511 | V113: 21425 | W113: 1816 | X113: 23241 | Z113: Calabasas city | AA113: 2091.69
E114: 113 | F114: 09710 | G114: Calexico city | H114: 37548 | I114: 1085 | J114: 6 | K114: 43 | L114: 4 | M114: 1002 | N114: 83 | O114: 20599 | P114: 18034 | Q114: 11203 | R114: 2738 | S114: 9014 | T114: 9526 | U114: 6152 | V114: 33217 | W114: 5416 | X114: 38633 | Z114: Calexico city | AA114: 3476.97
E115: 114 | F115: 09780 | G115: California city | H115: 5494 | I115: 9479 | J115: 85 | K115: 3385 | L115: 46 | M115: 8590 | N115: 889 | O115: 6466 | P115: 8507 | Q115: 3959 | R115: 1090 | S115: 4655 | T115: 3463 | U115: 1806 | V115: 12672 | W115: 2301 | X115: 14973 | Z115: California city | AA115: 1347.57
E116: 115 | F116: 09864 | G116: Calimesa city | H116: 2894 | I116: 7132 | J116: 52 | K116: 167 | L116: 12 | M116: 6701 | N116: 431 | O116: 5139 | P116: 4887 | Q116: 2189 | R116: 432 | S116: 2263 | T116: 2641 | U116: 2501 | V116: 8648 | W116: 1378 | X116: 10026 | Z116: Calimesa city | AA116: 902.34
E117: 116 | F117: 09878 | G117: Calipatria city | H117: 4960 | I117: 1555 | J117: 36 | K117: 969 | L117: 13 | M117: 1492 | N117: 63 | O117: 1861 | P117: 4654 | Q117: 1340 | R117: 544 | S117: 3052 | T117: 1172 | U117: 407 | V117: 6193 | W117: 322 | X117: 6515 | Z117: Calipatria city | AA117: 586.35
E118: 117 | F118: 09892 | G118: Calistoga city | H118: 2698 | I118: 2530 | J118: 9 | K118: 23 | L118: 3 | M118: 2415 | N118: 115 | O118: 2727 | P118: 2501 | Q118: 1186 | R118: 268 | S118: 1175 | T118: 1344 | U118: 1255 | V118: 4403 | W118: 825 | X118: 5228 | Z118: Calistoga city | AA118: 470.52
E119: 118 | F119: 10046 | G119: Camarillo city | H119: 19356 | I119: 51385 | J119: 131 | K119: 1524 | L119: 160 | M119: 47607 | N119: 3778 | O119: 36755 | P119: 33986 | Q119: 16053 | R119: 4065 | S119: 17016 | T119: 18307 | U119: 15300 | V119: 63143 | W119: 7598 | X119: 70741 | Z119: Camarillo city | AA119: 6366.69
E120: 119 | F120: 10345 | G120: Campbell city | H120: 8424 | I120: 35535 | J120: 90 | K120: 1022 | L120: 132 | M120: 32856 | N120: 2679 | O120: 22398 | P120: 21561 | Q120: 9531 | R120: 2099 | S120: 14082 | T120: 11840 | U120: 6407 | V120: 40188 | W120: 3771 | X120: 43959 | Z120: Campbell city | AA120: 3956.31
E121: 120 | F121: 10928 | G121: Canyon Lake city | H121: 1668 | I121: 9414 | J121: 45 | K121: 199 | L121: 15 | M121: 8852 | N121: 562 | O121: 5626 | P121: 5456 | Q121: 2506 | R121: 529 | S121: 2462 | T121: 3274 | U121: 2311 | V121: 9893 | W121: 1189 | X121: 11082 | Z121: Canyon Lake city | AA121: 997.38
E122: 121 | F122: 11040 | G122: Capitola city | H122: 2227 | I122: 7711 | J122: 31 | K122: 103 | L122: 5 | M122: 7138 | N122: 573 | O122: 5306 | P122: 4632 | Q122: 1644 | R122: 491 | S122: 2641 | T122: 2786 | U122: 2376 | V122: 8516 | W122: 1422 | X122: 9938 | Z122: Capitola city | AA122: 894.42
E123: 122 | F123: 11194 | G123: Carlsbad city | H123: 17302 | I123: 97444 | J123: 259 | K123: 1231 | L123: 196 | M123: 90515 | N123: 6929 | O123: 59009 | P123: 55737 | Q123: 27633 | R123: 5689 | S123: 26379 | T123: 33305 | U123: 21740 | V123: 104909 | W123: 9837 | X123: 114746 | Z123: Carlsbad city | AA123: 10327.14
E124: 123 | F124: 11250 | G124: Carmel-by-the-Sea city | H124: 192 | I124: 3028 | J124: 11 | K124: 13 | L124: 2 | M124: 2939 | N124: 89 | O124: 1776 | P124: 1444 | Q124: 370 | R124: 77 | S124: 374 | T124: 911 | U124: 1488 | V124: 2633 | W124: 587 | X124: 3220 | Z124: Carmel-by-the-Sea city | AA124: 289.8
E125: 124 | F125: 11446 | G125: Carpinteria city | H125: 6473 | I125: 6791 | J125: 36 | K125: 73 | L125: 8 | M125: 6359 | N125: 432 | O125: 6886 | P125: 6378 | Q125: 2979 | R125: 704 | S125: 3202 | T125: 3548 | U125: 2831 | V125: 12016 | W125: 1248 | X125: 13264 | Z125: Carpinteria city | AA125: 1193.76
E126: 125 | F126: 11530 | G126: Carson city | H126: 37643 | I126: 57915 | J126: 185 | K126: 21264 | L126: 1585 | M126: 55098 | N126: 2817 | O126: 50038 | P126: 45520 | Q126: 20577 | R126: 6644 | S126: 23775 | T126: 26424 | U126: 18138 | V126: 84341 | W126: 11217 | X126: 95558 | Z126: Carson city | AA126: 8600.22
E127: 126 | F127: 12048 | G127: Cathedral city | H127: 30893 | I127: 20600 | J127: 268 | K127: 1108 | L127: 53 | M127: 19386 | N127: 1214 | O127: 24615 | P127: 26878 | Q127: 12475 | R127: 3265 | S127: 11989 | T127: 13986 | U127: 9778 | V127: 44773 | W127: 6720 | X127: 51493 | Z127: Cathedral city | AA127: 4634.37
E128: 127 | F128: 12524 | G128: Ceres city | H128: 31624 | I128: 17678 | J128: 204 | K128: 897 | L128: 334 | M128: 16291 | N128: 1387 | O128: 24634 | P128: 24668 | Q128: 15896 | R128: 3597 | S128: 13691 | T128: 10879 | U128: 5239 | V128: 43383 | W128: 5919 | X128: 49302 | Z128: Ceres city | AA128: 4437.18
E129: 128 | F129: 12552 | G129: Cerritos city | H129: 7092 | I129: 42486 | J129: 61 | K129: 3155 | L129: 191 | M129: 40797 | N129: 1689 | O129: 25830 | P129: 23748 | Q129: 9973 | R129: 2854 | S129: 10923 | T129: 13543 | U129: 12285 | V129: 45231 | W129: 4347 | X129: 49578 | Z129: Cerritos city | AA129: 4462.02
E130: 129 | F130: 13014 | G130: Chico city | H130: 20638 | I130: 80837 | J130: 938 | K130: 1822 | L130: 320 | M130: 74414 | N130: 6423 | O130: 52293 | P130: 49182 | Q130: 24369 | R130: 13433 | S130: 27588 | T130: 20086 | U130: 15999 | V130: =X130-W130 -> 88603 | W130: 12872 | X130: 101475 | Z130: Chico city | AA130: 9132.75
E131: 130 | F131: 13210 | G131: Chino city | H131: 46841 | I131: 44562 | J131: 256 | K131: 5212 | L131: 102 | M131: 42124 | N131: 2438 | O131: 45731 | P131: 45672 | Q131: 22757 | R131: 6073 | S131: 27176 | T131: 23687 | U131: 11710 | V131: 85358 | W131: 6045 | X131: 91403 | Z131: Chino city | AA131: =X131*0.09 -> 8226.27
E132: 131 | F132: 13214 | G132: Chino Hills city | H132: 22084 | I132: 56327 | J132: 126 | K132: 3116 | L132: 125 | M132: 53626 | N132: 2701 | O132: 39936 | P132: 38475 | Q132: 19166 | R132: 5496 | S132: 20150 | T132: 23503 | U132: 10096 | V132: 72238 | W132: 6173 | X132: 78411 | Z132: Chino Hills city | AA132: 7056.99
E133: 132 | F133: 13294 | G133: Chowchilla city | H133: 9054 | I133: 9985 | J133: 182 | K133: 1817 | L133: 33 | M133: 9383 | N133: 602 | O133: 9507 | P133: 9532 | Q133: 4437 | R133: 1352 | S133: 6210 | T133: 5065 | U133: 1975 | V133: 17988 | W133: 1051 | X133: 19039 | Z133: Chowchilla city | AA133: 1713.51
E134: 133 | F134: 13392 | G134: Chula Vista city | H134: 164698 | I134: 110789 | J134: 488 | K134: 12703 | L134: 1140 | M134: 100067 | N134: 10722 | O134: 141917 | P134: 133570 | Q134: 75527 | R134: 19306 | S134: 75712 | T134: 69131 | U134: 35811 | V134: 249872 | W134: 25615 | X134: 275487 | Z134: Chula Vista city | AA134: 24793.83
E135: 134 | F135: 13588 | G135: Citrus Heights city | H135: 17176 | I135: 70407 | J135: 516 | K135: 3191 | L135: 403 | M135: 64601 | N135: 5806 | O135: 45237 | P135: 42346 | Q135: 19867 | R135: 5563 | S135: 25201 | T135: 21129 | U135: 15823 | V135: 73627 | W135: 13956 | X135: 87583 | Z135: Citrus Heights city | AA135: 7882.47
E136: 135 | F136: 13756 | G136: Claremont city | H136: 9416 | I136: 27850 | J136: 90 | K136: 1783 | L136: 49 | M136: 25631 | N136: 2219 | O136: 20023 | P136: 17243 | Q136: 9095 | R136: 5040 | S136: 7123 | T136: 8676 | U136: 7332 | V136: 33204 | W136: 4062 | X136: 37266 | Z136: Claremont city | AA136: 3353.94
E137: 136 | F137: 13882 | G137: Clayton city | H137: 1242 | I137: 9828 | J137: 17 | K137: 172 | L137: 14 | M137: 9044 | N137: 784 | O137: 5786 | P137: 5284 | Q137: 2566 | R137: 547 | S137: 1928 | T137: 3573 | U137: 2456 | V137: 10164 | W137: 906 | X137: 11070 | Z137: Clayton city | AA137: 996.3
E138: 137 | F138: 13945 | G138: Clearlake city | H138: 5406 | I138: 11279 | J138: 292 | K138: 551 | L138: 23 | M138: 10257 | N138: 1022 | O138: 8220 | P138: 8465 | Q138: 4587 | R138: 903 | S138: 4200 | T138: 4139 | U138: 2856 | V138: 12990 | W138: 3695 | X138: 16685 | Z138: Clearlake city | AA138: 1501.65
E139: 138 | F139: 14190 | G139: Cloverdale city | H139: 3470 | I139: 5526 | J139: 86 | K139: 58 | L139: 16 | M139: 5136 | N139: 390 | O139: 4545 | P139: 4451 | Q139: 2103 | R139: 489 | S139: 2290 | T139: 2233 | U139: 1881 | V139: 7745 | W139: 1251 | X139: 8996 | Z139: Cloverdale city | AA139: 809.64
E140: 139 | F140: 14218 | G140: Clovis city | H140: 36594 | I140: 83530 | J140: 738 | K140: 2993 | L140: 270 | M140: 77730 | N140: 5800 | O140: 62239 | P140: 57885 | Q140: 34742 | R140: 7568 | S140: 32423 | T140: 27677 | U140: 17714 | V140: 107441 | W140: 12683 | X140: 120124 | Z140: Clovis city | AA140: 10811.16
E141: 140 | F141: 14260 | G141: Coachella city | H141: 40421 | I141: 1520 | J141: 83 | K141: 136 | L141: 10 | M141: 1371 | N141: 149 | O141: 21095 | P141: 20846 | Q141: 15154 | R141: 3457 | S141: 12046 | T141: 8206 | U141: 3078 | V141: 38095 | W141: 3846 | X141: 41941 | Z141: Coachella city | AA141: 3774.69
E142: 141 | F142: 14274 | G142: Coalinga city | H142: 11243 | I142: 6347 | J142: 112 | K142: 665 | L142: 26 | M142: 5996 | N142: 351 | O142: 6608 | P142: 10982 | Q142: 4352 | R142: 1320 | S142: 6246 | T142: 4132 | U142: 1540 | V142: 15521 | W142: 2069 | X142: 17590 | Z142: Coalinga city | AA142: 1583.1
E143: 142 | F143: 14498 | G143: Colfax city | H143: 210 | I143: 1785 | J143: 33 | K143: 10 | L143: 5 | M143: 1637 | N143: 148 | O143: 1014 | P143: 981 | Q143: 468 | R143: 130 | S143: 539 | T143: 500 | U143: 358 | V143: 1669 | W143: 326 | X143: 1995 | Z143: Colfax city | AA143: 179.55
E144: 143 | F144: 14736 | G144: Colma town | H144: 621 | I144: 886 | J144: 4 | K144: 50 | L144: 3 | M144: 819 | N144: 67 | O144: 740 | P144: 767 | Q144: 328 | R144: 90 | S144: 378 | T144: 430 | U144: 281 | V144: 1374 | W144: 133 | X144: 1507 | Z144: Colma town | AA144: 135.63
E145: 144 | F145: 14890 | G145: Colton city | H145: 39779 | I145: 14130 | J145: 163 | K145: 4439 | L145: 116 | M145: 13095 | N145: 1035 | O145: 27437 | P145: 26472 | Q145: 15939 | R145: 4257 | S145: 15980 | T145: 12180 | U145: 5553 | V145: 46858 | W145: 7051 | X145: 53909 | Z145: Colton city | AA145: 4851.81
E146: 145 | F146: 14946 | G146: Colusa city | H146: 3757 | I146: 2654 | J146: 65 | K146: 58 | L146: 34 | M146: 2441 | N146: 213 | O146: 3222 | P146: 3189 | Q146: 1947 | R146: 341 | S146: 1638 | T146: 1493 | U146: 992 | V146: 5528 | W146: 883 | X146: 6411 | Z146: Colusa city | AA146: 576.99
E147: 146 | F147: 14974 | G147: Commerce city | H147: 11690 | I147: 688 | J147: 38 | K147: 88 | L147: 3 | M147: 629 | N147: 59 | O147: 6317 | P147: 6061 | Q147: 3216 | R147: 946 | S147: 3454 | T147: 2968 | U147: 1794 | V147: 10677 | W147: 1701 | X147: 12378 | Z147: Commerce city | AA147: 1114.02
E148: 147 | F148: 15044 | G148: Compton city | H148: 67791 | I148: 27949 | J148: 132 | K148: 24342 | L148: 544 | M148: 26679 | N148: 1270 | O148: 49213 | P148: 46527 | Q148: 29570 | R148: 7688 | S148: 27101 | T148: 21903 | U148: 9478 | V148: 86117 | W148: 9623 | X148: 95740 | Z148: Compton city | AA148: 8616.6
E149: 148 | F149: 16000 | G149: Concord city | H149: 38953 | I149: 86457 | J149: 295 | K149: 4532 | L149: 644 | M149: 78894 | N149: 7563 | O149: 63465 | P149: 61945 | Q149: 28656 | R149: 6911 | S149: 36705 | T149: 32736 | U149: 20402 | V149: 109586 | W149: 15824 | X149: 125410 | Z149: Concord city | AA149: 11286.9
E150: 149 | F150: 16224 | G150: Corcoran city | H150: 15538 | I150: 6801 | J150: 194 | K150: 2853 | L150: 32 | M150: 6514 | N150: 287 | O150: 6890 | P150: 15449 | Q150: 4853 | R150: 1464 | S150: 8686 | T150: 5599 | U150: 1737 | V150: 20568 | W150: 1771 | X150: 22339 | Z150: Corcoran city | AA150: 2010.51
E151: 150 | F151: 16322 | G151: Corning city | H151: 4487 | I151: 3757 | J151: 105 | K151: 18 | L151: 11 | M151: 3479 | N151: 278 | O151: 4222 | P151: 4022 | Q151: 2740 | R151: 526 | S151: 2206 | T151: 1748 | U151: 1024 | V151: 7331 | W151: 913 | X151: 8244 | Z151: Corning city | AA151: 741.96
E152: 151 | F152: 16350 | G152: Corona city | H152: 73102 | I152: 84034 | J152: 461 | K152: 8136 | L152: 509 | M152: 78270 | N152: 5764 | O152: 79625 | P152: 77511 | Q152: 42832 | R152: 11480 | S152: 42539 | T152: 42243 | U152: 18042 | V152: 144122 | W152: 13014 | X152: 157136 | Z152: Corona city | AA152: 14142.24
E153: 152 | F153: 16378 | G153: Coronado city | H153: 3406 | I153: 16786 | J153: 53 | K153: 607 | L153: 41 | M153: 15702 | N153: 1084 | O153: 9696 | P153: 10496 | Q153: 4726 | R153: 2457 | S153: 4177 | T153: 4586 | U153: 4246 | V153: 18293 | W153: 1899 | X153: 20192 | Z153: Coronado city | AA153: 1817.28
E154: 153 | F154: 16462 | G154: Corte Madera town | H154: 1092 | I154: 9130 | J154: 8 | K154: 72 | L154: 14 | M154: 8426 | N154: 704 | O154: 5336 | P154: 4886 | Q154: 2829 | R154: 360 | S154: 2027 | T154: 3148 | U154: 1858 | V154: 9442 | W154: 780 | X154: 10222 | Z154: Corte Madera town | AA154: 919.98
E155: 154 | F155: 16532 | G155: Costa Mesa city | H155: 40795 | I155: 71123 | J155: 232 | K155: 1306 | L155: 412 | M155: 66192 | N155: 4931 | O155: 55633 | P155: 56285 | Q155: 23948 | R155: 7841 | S155: 39164 | T155: 26910 | U155: 14055 | V155: 102506 | W155: 9412 | X155: 111918 | Z155: Costa Mesa city | AA155: 10072.62
E156: 155 | F156: 16560 | G156: Cotati city | H156: 1720 | I156: 5864 | J156: 43 | K156: 103 | L156: 20 | M156: 5384 | N156: 480 | O156: 3973 | P156: 3611 | Q156: 1655 | R156: 502 | S156: 2190 | T156: 2037 | U156: 1200 | V156: 6717 | W156: 867 | X156: 7584 | Z156: Cotati city | AA156: 682.56
E157: 156 | F157: 16742 | G157: Covina city | H157: 30108 | I157: 21160 | J157: 156 | K157: 1748 | L157: 87 | M157: 19881 | N157: 1279 | O157: 26648 | P157: 24620 | Q157: 12168 | R157: 3574 | S157: 14235 | T157: 13893 | U157: 7398 | V157: 45667 | W157: 5601 | X157: 51268 | Z157: Covina city | AA157: 4614.12
E158: 157 | F158: 17022 | G158: Crescent city | H158: 2181 | I158: 4492 | J158: 298 | K158: 723 | L158: 4 | M158: 4162 | N158: 330 | O158: 2059 | P158: 4614 | Q158: 1065 | R158: 482 | S158: 2992 | T158: 1462 | U158: 672 | V158: 5828 | W158: 845 | X158: 6673 | Z158: Crescent city | AA158: 600.57
E159: 158 | F159: 17498 | G159: Cudahy city | H159: 21872 | I159: 939 | J159: 37 | K159: 167 | L159: 26 | M159: 852 | N159: 87 | O159: 11582 | P159: 11229 | Q159: 7263 | R159: 1991 | S159: 6650 | T159: 5112 | U159: 1795 | V159: 20966 | W159: 1845 | X159: 22811 | Z159: Cudahy city | AA159: 2052.99
E160: 159 | F160: 17568 | G160: Culver city | H160: 8732 | I160: 32047 | J160: 47 | K160: 3143 | L160: 92 | M160: 29037 | N160: 3010 | O160: 21458 | P160: 19321 | Q160: 8242 | R160: 1830 | S160: 12885 | T160: 10459 | U160: 7363 | V160: 37355 | W160: 3424 | X160: 40779 | Z160: Culver city | AA160: 3670.11
E161: 160 | F161: 17610 | G161: Cupertino city | H161: 2330 | I161: 58051 | J161: 53 | K161: 360 | L161: 21 | M161: 56098 | N161: 1953 | O161: 30333 | P161: 30048 | Q161: 16032 | R161: 3065 | S161: 14728 | T161: 17342 | U161: 9214 | V161: 57036 | W161: 3345 | X161: 60381 | Z161: Cupertino city | AA161: 5434.29
E162: 161 | F162: 17750 | G162: Cypress city | H162: 10689 | I162: 39462 | J162: 85 | K162: 1522 | L162: 251 | M162: 37160 | N162: 2302 | O162: 26113 | P162: 24038 | Q162: 12083 | R162: 3183 | S162: 12285 | T162: 14203 | U162: 8397 | V162: 45390 | W162: 4761 | X162: 50151 | Z162: Cypress city | AA162: 4513.59
E163: 162 | F163: 17918 | G163: Daly city | H163: 25237 | I163: 79664 | J163: 980 | K163: 2531 | L163: 764 | M163: 15009 | N163: 9411 | O163: 53024 | P163: 51877 | Q163: 20260 | R163: 7261 | S163: 32096 | T163: 27188 | U163: 18096 | V163: 95187 | W163: 9714 | X163: 104901 | Y163: 60281 | Z163: Daly city | AA163: 9441.09
E164: 163 | F164: 17946 | G164: Dana Point city | H164: 6294 | I164: 26813 | J164: 196 | K164: 284 | L164: 35 | M164: 24719 | N164: 4428 | O164: 17057 | P164: 16050 | Q164: 5756 | R164: 1712 | S164: 7134 | T164: 10390 | U164: 8115 | V164: 29997 | W164: 3110 | X164: 33107 | Y164: 1341 | Z164: Dana Point city | AA164: 2979.63
E165: 164 | F165: 17988 | G165: Danville town | H165: 3952 | I165: 39630 | J165: 104 | K165: 401 | L165: 49 | M165: 30864 | N165: 4788 | O165: 22522 | P165: 21060 | Q165: 11755 | R165: 1988 | S165: 7405 | T165: 13870 | U165: 8564 | V165: 40277 | W165: 3305 | X165: 43582 | Y165: 6615 | Z165: Danville town | AA165: 3922.38
E166: 165 | F166: 18100 | G166: Davis city | H166: 11343 | I166: 55507 | J166: 473 | K166: 1651 | L166: 111 | M166: 36581 | N166: 8401 | O166: 35370 | P166: 31480 | Q166: 13926 | R166: 15399 | S166: 16067 | T166: 12186 | U166: 9272 | V166: 61454 | W166: 5396 | X166: 66850 | Y166: 14770 | Z166: Davis city | AA166: 6016.5
E167: 166 | F167: 18506 | G167: Del Mar city | H167: 274 | I167: 3680 | J167: 9 | K167: 22 | L167: 4 | M167: 3352 | N167: 356 | O167: 2000 | P167: 1954 | Q167: 569 | R167: 156 | S167: 794 | T167: 1236 | U167: 1199 | V167: 3612 | W167: 342 | X167: 3954 | Y167: 152 | Z167: Del Mar city | AA167: 355.86
E168: 167 | F168: 18688 | G168: Del Rey Oaks city | H168: 244 | I168: 1348 | J168: 14 | K168: 29 | L168: 6 | M168: 1141 | N168: 212 | O168: 824 | P168: 768 | Q168: 244 | R168: 62 | S168: 390 | T168: 479 | U168: 417 | V168: 1390 | W168: 202 | X168: 1592 | Y168: 128 | Z168: Del Rey Oaks city | AA168: 143.28
E169: 168 | F169: 18394 | G169: Delano city | H169: 38453 | I169: 12975 | J169: 1040 | K169: 2774 | L169: 54 | M169: 7184 | N169: 7206 | O169: 21813 | P169: 29615 | Q169: 14979 | R169: 4201 | S169: 16797 | T169: 10860 | U169: 4591 | V169: 48749 | W169: 2679 | X169: 51428 | Y169: 7476 | Z169: Delano city | AA169: 4628.52
E170: 169 | F170: 18996 | G170: Desert Hot Springs city | H170: 19887 | I170: 12625 | J170: 783 | K170: 2636 | L170: 59 | M170: 11115 | N170: 5520 | O170: 16281 | P170: 16231 | Q170: 10132 | R170: 2207 | S170: 8910 | T170: 7363 | U170: 3900 | V170: 28707 | W170: 3805 | X170: 32512 | Y170: 785 | Z170: Desert Hot Springs city | AA170: 2926.08
E171: 170 | F171: 19192 | G171: Diamond Bar city | H171: 10803 | I171: 44269 | J171: 314 | K171: 1799 | L171: 89 | M171: 10161 | N171: 5641 | O171: 28319 | P171: 26753 | Q171: 11512 | R171: 3567 | S171: 13278 | T171: 16309 | U171: 10406 | V171: 50337 | W171: 4735 | X171: 55072 | Y171: 32855 | Z171: Diamond Bar city | AA171: 4956.48
E172: 171 | F172: 19318 | G172: Dinuba city | H172: 21599 | I172: 2964 | J172: 446 | K172: 131 | L172: 32 | M172: 5868 | N172: 6799 | O172: 12389 | P172: 12174 | Q172: 8854 | R172: 1757 | S172: 6733 | T172: 4783 | U172: 2436 | V172: 22577 | W172: 1986 | X172: 24563 | Y172: 537 | Z172: Dinuba city | AA172: 2210.67
E173: 172 | F173: 19402 | G173: Dixon city | H173: 8302 | I173: 10686 | J173: 307 | K173: 590 | L173: 94 | M173: 9776 | N173: 3152 | O173: 9635 | P173: 9353 | Q173: 5176 | R173: 1191 | S173: 5138 | T173: 4829 | U173: 2654 | V173: 16804 | W173: 2184 | X173: 18988 | Y173: 685 | Z173: Dixon city | AA173: 1708.92
E174: 173 | F174: 19584 | G174: Dorris city | H174: 339 | I174: 521 | J174: 15 | K174: 3 | L174: 0 | M174: 495 | N174: 147 | O174: 428 | P174: 432 | Q174: 249 | R174: 44 | S174: 208 | T174: 206 | U174: 153 | V174: 755 | W174: 105 | X174: 860 | Y174: 18 | Z174: Dorris city | AA174: 77.4
E175: 174 | F175: 19612 | G175: Dos Palos city | H175: 4184 | I175: 1614 | J175: 2 | K175: 0 | L175: 1 | M175: 104 | N175: 35 | O175: 2950 | P175: 2848 | Q175: 1904 | R175: 404 | S175: 1526 | T175: 1266 | U175: 698 | V175: 5238 | W175: 560 | X175: 5798 | Y175: 4 | Z175: Dos Palos city | AA175: 521.82
E176: 175 | F176: 19766 | G176: Downey city | H176: 85866 | I176: 28489 | J176: 2357 | K176: 4265 | L176: 310 | M176: 26731 | N176: 27282 | O176: 58677 | P176: 55678 | Q176: 28653 | R176: 8422 | S176: 33086 | T176: 29015 | U176: 15179 | V176: 104743 | W176: 9612 | X176: 114355 | Y176: 7652 | Z176: Downey city | AA176: 10291.95
E177: 176 | F177: 19990 | G177: Duarte city | H177: 10436 | I177: 11291 | J177: 382 | K177: 1202 | L177: 33 | M177: 6689 | N177: 3632 | O177: 11554 | P177: 10173 | Q177: 4342 | R177: 1280 | S177: 5459 | T177: 5894 | U177: 4752 | V177: 18991 | W177: 2736 | X177: 21727 | Y177: 4591 | Z177: Duarte city | AA177: 1955.43
E178: 177 | F178: 20018 | G178: Dublin city | H178: 8351 | I178: 64238 | J178: 517 | K178: 2876 | L178: 221 | M178: 21105 | N178: 6151 | O178: 37852 | P178: 34737 | Q178: 20464 | R178: 3143 | S178: 25870 | T178: 17140 | U178: 5972 | V178: 69060 | W178: 3529 | X178: 72589 | Y178: 39077 | Z178: Dublin city | AA178: 6533.01
E179: 178 | F179: 20242 | G179: Dunsmuir city | H179: 202 | I179: 1505 | J179: 30 | K179: 18 | L179: 1 | M179: 1404 | N179: 178 | O179: 845 | P179: 862 | Q179: 323 | R179: 92 | S179: 380 | T179: 471 | U179: 441 | V179: 1445 | W179: 262 | X179: 1707 | Y179: 23 | Z179: Dunsmuir city | AA179: 153.63
E180: 179 | F180: 20956 | G180: East Palo Alto city | H180: 19964 | I180: 10070 | J180: 682 | K180: 3287 | L180: 2084 | M180: 3574 | N180: 4396 | O180: 14852 | P180: 15182 | Q180: 8588 | R180: 2522 | S180: 9913 | T180: 6472 | U180: 2539 | V180: 27587 | W180: 2447 | X180: 30034 | Y180: 1596 | Z180: East Palo Alto city | AA180: 2703.06
E181: 180 | F181: 21712 | G181: El Cajon city | H181: 31271 | I181: 74944 | J181: 1156 | K181: 7164 | L181: 506 | M181: 61728 | N181: 14992 | O181: 53912 | P181: 52303 | Q181: 28683 | R181: 7069 | S181: 29907 | T181: 25562 | U181: 14994 | V181: 92861 | W181: 13354 | X181: 106215 | Y181: 5254 | Z181: El Cajon city | AA181: 9559.35
E182: 181 | F182: 21782 | G182: El Centro city | H182: 38566 | I182: 5756 | J182: 854 | K182: 890 | L182: 36 | M182: 11677 | N182: 13076 | O182: 23239 | P182: 21083 | Q182: 13130 | R182: 3036 | S182: 11224 | T182: 10413 | U182: 6519 | V182: 37295 | W182: 7027 | X182: 44322 | Y182: 802 | Z182: El Centro city | AA182: 3988.98
E183: 182 | F183: 21796 | G183: El Cerrito city | H183: 3075 | I183: 22887 | J183: 118 | K183: 1426 | L183: 56 | M183: 11982 | N183: 3226 | O183: 13350 | P183: 12612 | Q183: 5028 | R183: 1117 | S183: 7698 | T183: 6826 | U183: 5293 | V183: 23498 | W183: 2464 | X183: 25962 | Y183: 7738 | Z183: El Cerrito city | AA183: 2336.58
E184: 183 | F184: 22230 | G184: El Monte city | H184: 70819 | I184: 38631 | J184: 2398 | K184: 903 | L184: 63 | M184: 13958 | N184: 16762 | O184: 55113 | P184: 54337 | Q184: 28281 | R184: 8245 | S184: 30084 | T184: 27574 | U184: 15266 | V184: 97573 | W184: 11877 | X184: 109450 | Y184: 33198 | Z184: El Monte city | AA184: 9850.5
E185: 184 | F185: 22300 | G185: El Paso de Robles (Paso Robles) city | H185: 11958 | I185: 19532 | J185: 507 | K185: 538 | L185: 82 | M185: 19204 | N185: 4975 | O185: 16231 | P185: 15259 | Q185: 8395 | R185: 1643 | S185: 8031 | T185: 7680 | U185: 5741 | V185: 27633 | W185: 3857 | X185: 31490 | Y185: 745 | Z185: El Paso de Robles (Paso Robles) city | AA185: 2834.1
E186: 185 | F186: 22412 | G186: El Segundo city | H186: 2976 | I186: 14296 | J186: 111 | K186: 415 | L186: 62 | M186: 11377 | N186: 2615 | O186: 8655 | P186: 8617 | Q186: 3910 | R186: 955 | S186: 5300 | T186: 4874 | U186: 2233 | V186: 15703 | W186: 1569 | X186: 17272 | Y186: 1839 | Z186: El Segundo city | AA186: 1554.48
E187: 186 | F187: 22020 | G187: Elk Grove city | H187: 33392 | I187: 142732 | J187: 1404 | K187: 17854 | L187: 2560 | M187: 57371 | N187: 24374 | O187: 90913 | P187: 85211 | Q187: 49978 | R187: 10863 | S187: 43727 | T187: 47171 | U187: 24385 | V187: 159433 | W187: 16691 | X187: 176124 | Y187: 58982 | Z187: Elk Grove city | AA187: 15851.16
E188: 187 | F188: 22594 | G188: Emeryville city | H188: 1435 | I188: 11470 | J188: 76 | K188: 2015 | L188: 54 | M188: 4796 | N188: 1382 | O188: 6627 | P188: 6278 | Q188: 1508 | R188: 924 | S188: 6441 | T188: 2524 | U188: 1508 | V188: 11927 | W188: 978 | X188: 12905 | Y188: 3965 | Z188: Emeryville city | AA188: 1161.45
E189: 188 | F189: 22678 | G189: Encinitas city | H189: 9357 | I189: 52650 | J189: 384 | K189: 328 | L189: 88 | M189: 47906 | N189: 7229 | O189: 31629 | P189: 30378 | Q189: 13569 | R189: 2725 | S189: 15760 | T189: 17414 | U189: 12539 | V189: 56842 | W189: 5165 | X189: 62007 | Y189: 2708 | Z189: Encinitas city | AA189: 5580.63
E190: 189 | F190: 22790 | G190: Escalon city | H190: 2330 | I190: 5142 | J190: 76 | K190: 37 | L190: 6 | M190: 4960 | N190: 1090 | O190: 3827 | P190: 3645 | Q190: 2014 | R190: 425 | S190: 1914 | T190: 1859 | U190: 1260 | V190: 6814 | W190: 658 | X190: 7472 | Y190: 133 | Z190: Escalon city | AA190: 672.48
E191: 190 | F191: 22804 | G191: Escondido city | H191: 78226 | I191: 72812 | J191: 2708 | K191: 3602 | L191: 394 | M191: 63249 | N191: 25294 | O191: 76672 | P191: 74366 | Q191: 40626 | R191: 10890 | S191: 42238 | T191: 36361 | U191: 20923 | V191: 134850 | W191: 16188 | X191: 151038 | Y191: 11974 | Z191: Escondido city | AA191: 13593.42
E192: 191 | F192: 22972 | G192: Etna city | H192: 39 | I192: 639 | J192: 24 | K192: 3 | L192: 3 | M192: 560 | N192: 77 | O192: 352 | P192: 326 | Q192: 156 | R192: 28 | S192: 150 | T192: 166 | U192: 178 | V192: 524 | W192: 154 | X192: 678 | Y192: 8 | Z192: Etna city | AA192: 61.02
E193: 192 | F193: 23042 | G193: Eureka city | H193: 4014 | I193: 22498 | J193: 1136 | K193: 542 | L193: 235 | M193: 18056 | N193: 3279 | O193: 13275 | P193: 13237 | Q193: 5699 | R193: 1644 | S193: 8302 | T193: 6147 | U193: 4720 | V193: 21398 | W193: 5114 | X193: 26512 | Y193: 1489 | Z193: Eureka city | AA193: 2386.08
E194: 193 | F194: 23126 | G194: Exeter city | H194: 5287 | I194: 5034 | J194: 295 | K194: 65 | L194: 17 | M194: 5604 | N194: 1486 | O194: 5322 | P194: 4999 | Q194: 3104 | R194: 688 | S194: 2695 | T194: 2279 | U194: 1555 | V194: =X194-W194 -> 8859 | W194: 1462 | X194: 10321 | Y194: 148 | Z194: Exeter city | AA194: 928.89
E195: 194 | F195: 23168 | G195: Fairfax town | H195: 878 | I195: 6727 | J195: 56 | K195: 94 | L195: 20 | M195: 5998 | N195: 855 | O195: 3931 | P195: 3674 | Q195: 1558 | R195: 255 | S195: 1493 | T195: 2539 | U195: 1760 | V195: 6871 | W195: 734 | X195: 7605 | Y195: 233 | Z195: Fairfax town | AA195: =X195*0.09 -> 684.45
E196: 195 | F196: 23182 | G196: Fairfield city | H196: 36723 | I196: 83158 | J196: 1568 | K196: 17866 | L196: 1301 | M196: 38910 | N196: 18240 | O196: 60872 | P196: 59009 | Q196: 32330 | R196: 8260 | S196: 33367 | T196: 29480 | U196: 16444 | V196: 106199 | W196: 13682 | X196: 119881 | Y196: 22447 | Z196: Fairfield city | AA196: 10789.29
E197: 196 | F197: 23616 | G197: Farmersville city | H197: 9142 | I197: 1255 | J197: 419 | K197: 44 | L197: 0 | M197: 2659 | N197: 1772 | O197: 5249 | P197: 5148 | Q197: 3773 | R197: 767 | S197: 2761 | T197: 2130 | U197: 966 | V197: 8992 | W197: 1405 | X197: 10397 | Y197: 58 | Z197: Farmersville city | AA197: 935.73
E198: 197 | F198: 23910 | G198: Ferndale city | H198: 115 | I198: 1283 | J198: 19 | K198: 5 | L198: 0 | M198: 1195 | N198: 130 | O198: 735 | P198: 663 | Q198: 288 | R198: 79 | S198: 281 | T198: 344 | U198: 406 | V198: 1112 | W198: 286 | X198: 1398 | Y198: 17 | Z198: Ferndale city | AA198: 125.82
E199: 198 | F199: 24092 | G199: Fillmore city | H199: 12593 | I199: 3826 | J199: 392 | K199: 117 | L199: 14 | M199: 5537 | N199: 3639 | O199: 8321 | P199: 8098 | Q199: 4946 | R199: 1109 | S199: 4520 | T199: 3818 | U199: 2026 | V199: 13882 | W199: 2537 | X199: 16419 | Y199: 258 | Z199: Fillmore city | AA199: 1477.71
E200: 199 | F200: 24134 | G200: Firebaugh city | H200: 7486 | I200: 610 | J200: 98 | K200: 45 | L200: 7 | M200: 2115 | N200: 2577 | O200: 4003 | P200: 4093 | Q200: 2829 | R200: 635 | S200: 2091 | T200: 1779 | U200: 762 | V200: 7564 | W200: 532 | X200: 8096 | Y200: 32 | Z200: Firebaugh city | AA200: 728.64
... 400 more rows

Sheet Link E1 (hidden)
D1: ETHNICITY | E1: ETHNICITY | AG1: RACE | AH1: RACE | DN1: GENDER | DO1: GENDER | EQ1: AGE | ER1: AGE | HJ1: DISABILITY | HK1: DISABILITY
E2: Census | I2: Applicants | O2: Beneficiaries | U2: Rejected Applicants | AA2: Waiting List | AH2: Census | AT2: Applicants | BL2: Benificiaries | CD2: Rejected Applicants | CV2: Waiting List | DO2: Census | DS2: Applicants | DY2: Beneficiaries | EE2: Rejected Applicants | EK2: Waiting List | ER2: Census | FB2: Applicants | FQ2: Benificiaries | GF2: Rejected Applicants | GU2: Waiting List | HK2: Census | HO2: Applicants | HU2: Beneficiaries | IA2: Rejected Applicants | IG2: Waiting List
A3: Jurisdiction | B3: Contract # | C3: Activity Name | E3: Hispanic | G3: Not Hispanic | I3: Hispanic | L3: Not Hispanic | O3: Hispanic | R3: Not Hispanic | U3: Hispanic | X3: Not Hispanic | AA3: Hispanic | AD3: Not Hispanic | AH3: American Indian or Alaskan Native | AJ3: Asian | AL3: Black or African American | AN3: Native Hawaiian or Other Pacific Islander | AP3: White Alone | AR3: Other | AT3: American Indian or Alaskan Native | AW3: Asian | AZ3: Black or African American | BC3: Native Hawaiian or Other Pacific Islander | BF3: White Alone | BI3: Other | BL3: American Indian or Alaskan Native | BO3: Asian | BR3: Black or African American | BU3: Native Hawaiian or Other Pacific Islander | BX3: White Alone | CA3: Other | CD3: American Indian or Alaskan Native | CG3: Asian | CJ3: Black or African American | CM3: Native Hawaiian or Other Pacific Islander | CP3: White Alone | CS3: Other | CV3: American Indian or Alaskan Native | CY3: Asian | DB3: Black or African American | DE3: Native Hawaiian or Other Pacific Islander | DH3: White Alone | DK3: Other | DO3: Female | DQ3: Male | DS3: Female | DV3: Male | DY3: Female | EB3: Male | EE3: Female | EH3: Male | EK3: Female | EN3: Male | ER3: 0 to 19 Years | ET3: 20 to 24 Years | EV3: 25 to 44 Years | EX3: 45 to 64 Years | EZ3: 65 Years and Over | FB3: 0 to 19 Years | FE3: 20 to 24 Years | FH3: 25 to 44 Years | FK3: 45 to 64 Years | FN3: 65 Years and Over | FQ3: 0 to 19 Years | FT3: 20 to 24 Years | FW3: 25 to 44 Years | FZ3: 45 to 64 Years | GC3: 65 Years and Over | GF3: 0 to 19 Years | GI3: 20 to 24 Years | GL3: 25 to 44 Years | GO3: 45 to 64 Years | GR3: 65 Years and Over | GU3: 0 to 19 Years | GX3: 20 to 24 Years | HA3: 25 to 44 Years | HD3: 45 to 64 Years | HG3: 65 Years and Over | HK3: Disabled | HM3: Not Disabled | HO3: Disabled | HR3: Not Disabled | HU3: Disabled | HX3: Not Disabled | IA3: Disabled | ID3: Not Disabled | IG3: Disabled | IJ3: Not Disabled | IM3: Response 1 | IN3: Response 2 | IO3: Response 3 | IP3: Response 4 | IQ3: Response 5
E4: # | F4: % | G4: # | H4: % | I4: # | J4: % | K4: Diff | L4: # | M4: % | N4: Diff | O4: # | P4: % | Q4: Diff | R4: # | S4: % | T4: Diff | U4: # | V4: % | W4: Diff | X4: # | Y4: % | Z4: Diff | AA4: # | AB4: % | AC4: Diff | AD4: # | AE4: % | AF4: Diff | AH4: # | AI4: % | AJ4: # | AK4: % | AL4: # | AM4: % | AN4: # | AO4: % | AP4: # | AQ4: % | AR4: # | AS4: % | AT4: # | AU4: % | AV4: Diff | AW4: # | AX4: % | AY4: Diff | AZ4: # | BA4: % | BB4: Diff | BC4: # | BD4: % | BE4: Diff | BF4: # | BG4: % | BH4: Diff | BI4: # | BJ4: % | BK4: Diff | BL4: # | BM4: % | BN4: Diff | BO4: # | BP4: % | BQ4: Diff | BR4: # | BS4: % | BT4: Diff | BU4: # | BV4: % | BW4: Diff | BX4: # | BY4: % | BZ4: Diff | CA4: # | CB4: % | CC4: Diff | CD4: # | CE4: % | CF4: Diff | CG4: # | CH4: % | CI4: Diff | CJ4: # | CK4: % | CL4: Diff | CM4: # | CN4: % | CO4: Diff | CP4: # | CQ4: % | CR4: Diff | CS4: # | CT4: % | CU4: Diff | CV4: # | CW4: % | CX4: Diff | CY4: # | CZ4: % | DA4: Diff | DB4: # | DC4: % | DD4: Diff | DE4: # | DF4: % | DG4: Diff | DH4: # | DI4: % | DJ4: Diff | DK4: # | DL4: % | DM4: Diff | DO4: # | DP4: % | DQ4: # | DR4: % | DS4: # | DT4: % | DU4: Diff | DV4: # | DW4: % | DX4: Diff | DY4: # | DZ4: % | EA4: Diff | EB4: # | EC4: % | ED4: Diff | EE4: # | EF4: % | EG4: Diff | EH4: # | EI4: % | EJ4: Diff | EK4: # | EL4: % | EM4: Diff | EN4: # | EO4: % | EP4: Diff | ER4: # | ES4: % | ET4: # | EU4: % | EV4: # | EW4: % | EX4: # | EY4: % | EZ4: # | FA4: % | FB4: # | FC4: % | FD4: Diff | FE4: # | FF4: % | FG4: Diff | FH4: # | FI4: % | FJ4: Diff | FK4: # | FL4: % | FM4: Diff | FN4: # | FO4: % | FP4: Diff | FQ4: # | FR4: % | FS4: Diff | FT4: # | FU4: % | FV4: Diff | FW4: # | FX4: % | FY4: Diff | FZ4: # | GA4: % | GB4: Diff | GC4: # | GD4: % | GE4: Diff | GF4: # | GG4: % | GH4: Diff | GI4: # | GJ4: % | GK4: Diff | GL4: # | GM4: % | GN4: Diff | GO4: # | GP4: % | GQ4: Diff | GR4: # | GS4: % | GT4: Diff | GU4: # | GV4: % | GW4: Diff | GX4: # | GY4: % | GZ4: Diff | HA4: # | HB4: % | HC4: Diff | HD4: # | HE4: % | HF4: Diff | HG4: # | HH4: % | HI4: Diff | HK4: # | HL4: % | HM4: # | HN4: % | HO4: # | HP4: % | HQ4: Diff | HR4: # | HS4: % | HT4: Diff | HU4: # | HV4: % | HW4: Diff | HX4: # | HY4: % | HZ4: Diff | IA4: # | IB4: % | IC4: Diff | ID4: # | IE4: % | IF4: Diff | IG4: # | IH4: % | II4: Diff | IJ4: # | IK4: % | IL4: Diff
A5: ='E Data'!D4 -> Select a Jurisdiction | B5: ='Att E Activity 1'!EC24 -> 0 | C5: ='Att E Activity 1'!EC30 -> 0 | E5: ='Att E Activity 1'!AM49 ->  | F5: ='Att E Activity 1'!AU49 ->  | G5: ='Att E Activity 1'!AM52 ->  | H5: ='Att E Activity 1'!AU52 ->  | I5: ='Att E Activity 1'!BE49 -> 0 | J5: ='Att E Activity 1'!BM49 ->  | K5: ='Att E Activity 1'!BU49 -> 0 | L5: ='Att E Activity 1'!BE52 -> 0 | M5: ='Att E Activity 1'!BM52 ->  | N5: ='Att E Activity 1'!BU52 -> 0 | O5: ='Att E Activity 1'!CF49 -> 0 | P5: ='Att E Activity 1'!CN49 ->  | Q5: ='Att E Activity 1'!CV49 -> 0 | R5: ='Att E Activity 1'!CF52 -> 0 | S5: ='Att E Activity 1'!CN52 ->  | T5: ='Att E Activity 1'!CV52 -> 0 | U5: ='Att E Activity 1'!DG49 -> 0 | V5: ='Att E Activity 1'!DO49 ->  | W5: ='Att E Activity 1'!DW49 -> 0 | X5: ='Att E Activity 1'!DG52 -> 0 | Y5: ='Att E Activity 1'!DO52 ->  | Z5: ='Att E Activity 1'!DW52 -> 0 | AA5: ='Att E Activity 1'!EH49 -> 0 | AB5: ='Att E Activity 1'!EP49 ->  | AC5: ='Att E Activity 1'!EX49 -> 0 | AD5: ='Att E Activity 1'!EH52 -> 0 | AE5: ='Att E Activity 1'!EP52 ->  | AF5: ='Att E Activity 1'!EX52 -> 0 | AH5: ='Att E Activity 1'!AM62 ->  | AI5: ='Att E Activity 1'!AU62 ->  | AJ5: ='Att E Activity 1'!AM65 ->  | AK5: ='Att E Activity 1'!AU62 ->  | AL5: ='Att E Activity 1'!AM68 ->  | AM5: ='Att E Activity 1'!AU68 ->  | AN5: ='Att E Activity 1'!AM71 ->  | AO5: ='Att E Activity 1'!AU71 ->  | AP5: ='Att E Activity 1'!AM74 ->  | AQ5: ='Att E Activity 1'!AU74 ->  | AR5: ='Att E Activity 1'!AM77 ->  | AS5: ='Att E Activity 1'!AU77 ->  | AT5: ='Att E Activity 1'!BE62 -> 0 | AU5: ='Att E Activity 1'!BM62 ->  | AV5: ='Att E Activity 1'!BU62 -> 0 | AW5: ='Att E Activity 1'!BE65 -> 0 | AX5: ='Att E Activity 1'!BM65 ->  | AY5: ='Att E Activity 1'!BU65 -> 0 | AZ5: ='Att E Activity 1'!BE68 -> 0 | BA5: ='Att E Activity 1'!BM68 ->  | BB5: ='Att E Activity 1'!BU68 -> 0 | BC5: ='Att E Activity 1'!BE71 -> 0 | BD5: ='Att E Activity 1'!BM71 ->  | BE5: ='Att E Activity 1'!BU71 -> 0 | BF5: ='Att E Activity 1'!BE74 -> 0 | BG5: ='Att E Activity 1'!BM74 ->  | BH5: ='Att E Activity 1'!BU74 -> 0 | BI5: ='Att E Activity 1'!BE77 -> 0 | BJ5: ='Att E Activity 1'!BM77 ->  | BK5: ='Att E Activity 1'!BU77 -> 0 | BL5: ='Att E Activity 1'!CF62 -> 0 | BM5: ='Att E Activity 1'!CN62 ->  | BN5: ='Att E Activity 1'!CV62 -> 0 | BO5: ='Att E Activity 1'!CF65 -> 0 | BP5: ='Att E Activity 1'!CN65 ->  | BQ5: ='Att E Activity 1'!CV65 -> 0 | BR5: ='Att E Activity 1'!CF68 -> 0 | BS5: ='Att E Activity 1'!CN68 ->  | BT5: ='Att E Activity 1'!CV68 -> 0 | BU5: ='Att E Activity 1'!CF71 -> 0 | BV5: ='Att E Activity 1'!CN71 ->  | BW5: ='Att E Activity 1'!CV71 -> 0 | BX5: ='Att E Activity 1'!CF74 -> 0 | BY5: ='Att E Activity 1'!CN74 ->  | BZ5: ='Att E Activity 1'!CV74 -> 0 | CA5: ='Att E Activity 1'!CF77 -> 0 | CB5: ='Att E Activity 1'!CN77 ->  | CC5: ='Att E Activity 1'!CV77 -> 0 | CD5: ='Att E Activity 1'!DG62 -> 0 | CE5: ='Att E Activity 1'!DO62 ->  | CF5: ='Att E Activity 1'!DW62 -> 0 | CG5: ='Att E Activity 1'!DG65 -> 0 | CH5: ='Att E Activity 1'!DO65 ->  | CI5: ='Att E Activity 1'!DW65 -> 0 | CJ5: ='Att E Activity 1'!DG68 -> 0 | CK5: ='Att E Activity 1'!DO68 ->  | CL5: ='Att E Activity 1'!DW68 -> 0 | CM5: ='Att E Activity 1'!DG71 -> 0 | CN5: ='Att E Activity 1'!DO71 ->  | CO5: ='Att E Activity 1'!DW71 -> 0 | CP5: ='Att E Activity 1'!DG74 -> 0 | CQ5: ='Att E Activity 1'!DO74 ->  | CR5: ='Att E Activity 1'!DW74 -> 0 | CS5: ='Att E Activity 1'!DG77 -> 0 | CT5: ='Att E Activity 1'!DO77 ->  | CU5: ='Att E Activity 1'!DW77 -> 0 | CV5: ='Att E Activity 1'!EH62 -> 0 | CW5: ='Att E Activity 1'!EP62 ->  | CX5: ='Att E Activity 1'!EX62 -> 0 | CY5: ='Att E Activity 1'!EH65 -> 0 | CZ5: ='Att E Activity 1'!EP65 ->  | DA5: ='Att E Activity 1'!EX65 -> 0 | DB5: ='Att E Activity 1'!EH68 -> 0 | DC5: ='Att E Activity 1'!EP68 ->  | DD5: ='Att E Activity 1'!EX68 -> 0 | DE5: ='Att E Activity 1'!EH71 -> 0 | DF5: ='Att E Activity 1'!EP71 ->  | DG5: ='Att E Activity 1'!EX71 -> 0 | DH5: ='Att E Activity 1'!EH74 -> 0 | DI5: ='Att E Activity 1'!EP74 ->  | DJ5: ='Att E Activity 1'!EX74 -> 0 | DK5: ='Att E Activity 1'!EH77 -> 0 | DL5: ='Att E Activity 1'!EP77 ->  | DM5: ='Att E Activity 1'!EX77 -> 0 | DO5: ='Att E Activity 1'!AM87 ->  | DP5: ='Att E Activity 1'!AU87 ->  | DQ5: ='Att E Activity 1'!AM90 ->  | DR5: ='Att E Activity 1'!AU90 ->  | DS5: ='Att E Activity 1'!BE87 -> 0 | DT5: ='Att E Activity 1'!BM87 ->  | DU5: ='Att E Activity 1'!BU87 -> 0 | DV5: ='Att E Activity 1'!BE90 -> 0 | DW5: ='Att E Activity 1'!BM90 ->  | DX5: ='Att E Activity 1'!BU90 -> 0 | DY5: ='Att E Activity 1'!CF87 -> 0 | DZ5: ='Att E Activity 1'!CN87 ->  | EA5: ='Att E Activity 1'!CV87 -> 0 | EB5: ='Att E Activity 1'!CF90 -> 0 | EC5: ='Att E Activity 1'!CN90 ->  | ED5: ='Att E Activity 1'!CV90 -> 0 | EE5: ='Att E Activity 1'!DG87 -> 0 | EF5: ='Att E Activity 1'!DO87 ->  | EG5: ='Att E Activity 1'!DW87 -> 0 | EH5: ='Att E Activity 1'!DG90 -> 0 | EI5: ='Att E Activity 1'!DO90 ->  | EJ5: ='Att E Activity 1'!DW90 -> 0 | EK5: ='Att E Activity 1'!EH87 -> 0 | EL5: ='Att E Activity 1'!EP87 ->  | EM5: ='Att E Activity 1'!EX87 -> 0 | EN5: ='Att E Activity 1'!EH90 -> 0 | EO5: ='Att E Activity 1'!EP90 ->  | EP5: ='Att E Activity 1'!EX90 -> 0 | ER5: ='Att E Activity 1'!AM100 ->  | ES5: ='Att E Activity 1'!AU100 ->  | ET5: ='Att E Activity 1'!AM103 ->  | EU5: ='Att E Activity 1'!AU103 ->  | EV5: ='Att E Activity 1'!AM106 ->  | EW5: ='Att E Activity 1'!AU106 ->  | EX5: ='Att E Activity 1'!AM109 ->  | EY5: ='Att E Activity 1'!AU109 ->  | EZ5: ='Att E Activity 1'!AM112 ->  | FA5: ='Att E Activity 1'!AU112 ->  | FB5: ='Att E Activity 1'!BE100 -> 0 | FC5: ='Att E Activity 1'!BM100 ->  | FD5: ='Att E Activity 1'!BU100 -> 0 | FE5: ='Att E Activity 1'!BE103 -> 0 | FF5: ='Att E Activity 1'!BM103 ->  | FG5: ='Att E Activity 1'!BU103 -> 0 | FH5: ='Att E Activity 1'!BE106 -> 0 | FI5: ='Att E Activity 1'!BM106 ->  | FJ5: ='Att E Activity 1'!BU106 -> 0 | FK5: ='Att E Activity 1'!BE109 -> 0 | FL5: ='Att E Activity 1'!BM109 ->  | FM5: ='Att E Activity 1'!BU109 -> 0 | FN5: ='Att E Activity 1'!BE112 -> 0 | FO5: ='Att E Activity 1'!BM112 ->  | FP5: ='Att E Activity 1'!BU112 -> 0 | FQ5: ='Att E Activity 1'!CF100 -> 0 | FR5: ='Att E Activity 1'!CN100 ->  | FS5: ='Att E Activity 1'!CV100 -> 0 | FT5: ='Att E Activity 1'!CF103 -> 0 | FU5: ='Att E Activity 1'!CN103 ->  | FV5: ='Att E Activity 1'!CV103 -> 0 | FW5: ='Att E Activity 1'!CF106 -> 0 | FX5: ='Att E Activity 1'!CN106 ->  | FY5: ='Att E Activity 1'!CV106 -> 0 | FZ5: ='Att E Activity 1'!CF109 -> 0 | GA5: ='Att E Activity 1'!CN109 ->  | GB5: ='Att E Activity 1'!CV109 -> 0 | GC5: ='Att E Activity 1'!CF112 -> 0 | GD5: ='Att E Activity 1'!CN112 ->  | GE5: ='Att E Activity 1'!CV112 -> 0 | GF5: ='Att E Activity 1'!DG100 -> 0 | GG5: ='Att E Activity 1'!DO100 ->  | GH5: ='Att E Activity 1'!DW100 -> 0 | GI5: ='Att E Activity 1'!DG103 -> 0 | GJ5: ='Att E Activity 1'!DO103 ->  | GK5: ='Att E Activity 1'!DW103 -> 0 | GL5: ='Att E Activity 1'!DG106 -> 0 | GM5: ='Att E Activity 1'!DO106 ->  | GN5: ='Att E Activity 1'!DW106 -> 0 | GO5: ='Att E Activity 1'!DG109 -> 0 | GP5: ='Att E Activity 1'!DO109 ->  | GQ5: ='Att E Activity 1'!DW109 -> 0 | GR5: ='Att E Activity 1'!DG112 -> 0 | GS5: ='Att E Activity 1'!DO112 ->  | GT5: ='Att E Activity 1'!DW112 -> 0 | GU5: ='Att E Activity 1'!EH100 -> 0 | GV5: ='Att E Activity 1'!EP100 ->  | GW5: ='Att E Activity 1'!EX100 -> 0 | GX5: ='Att E Activity 1'!EH103 -> 0 | GY5: ='Att E Activity 1'!EP103 ->  | GZ5: ='Att E Activity 1'!EX103 -> 0 | HA5: ='Att E Activity 1'!EH106 -> 0 | HB5: ='Att E Activity 1'!EP106 ->  | HC5: ='Att E Activity 1'!EX106 -> 0 | HD5: ='Att E Activity 1'!EH109 -> 0 | HE5: ='Att E Activity 1'!EP109 ->  | HF5: ='Att E Activity 1'!EX109 -> 0 | HG5: ='Att E Activity 1'!EH112 -> 0 | HH5: ='Att E Activity 1'!EP112 ->  | HI5: ='Att E Activity 1'!EX112 -> 0 | HK5: ='Att E Activity 1'!AM122 ->  | HL5: ='Att E Activity 1'!AU122 ->  | HM5: ='Att E Activity 1'!AM125 ->  | HN5: ='Att E Activity 1'!AU125 ->  | HO5: ='Att E Activity 1'!BE122 -> 0 | HP5: ='Att E Activity 1'!BM122 ->  | HQ5: ='Att E Activity 1'!BU122 -> 0 | HR5: ='Att E Activity 1'!BE125 -> 0 | HS5: ='Att E Activity 1'!BM125 ->  | HT5: ='Att E Activity 1'!BU125 -> 0 | HU5: ='Att E Activity 1'!CF122 -> 0 | HV5: ='Att E Activity 1'!CN122 ->  | HW5: ='Att E Activity 1'!CV122 -> 0 | HX5: ='Att E Activity 1'!CF125 -> 0 | HY5: ='Att E Activity 1'!CN125 ->  | HZ5: ='Att E Activity 1'!CV125 -> 0 | IA5: ='Att E Activity 1'!DG122 -> 0 | IB5: ='Att E Activity 1'!DO122 ->  | IC5: ='Att E Activity 1'!DW122 -> 0 | ID5: ='Att E Activity 1'!DG125 -> 0 | IE5: ='Att E Activity 1'!DO125 ->  | IF5: ='Att E Activity 1'!DW125 -> 0 | IG5: ='Att E Activity 1'!EH122 -> 0 | IH5: ='Att E Activity 1'!EP122 ->  | II5: ='Att E Activity 1'!EX122 -> 0 | IJ5: ='Att E Activity 1'!EH125 -> 0 | IK5: ='Att E Activity 1'!EP125 ->  | IL5: ='Att E Activity 1'!EX125 -> 0 | IM5: ='Att E Activity 1'!B176 -> 0 | IN5: ='Att E Activity 1'!B194 -> 0 | IO5: ='Att E Activity 1'!B212 -> 0 | IP5: ='Att E Activity 1'!B230 -> 0 | IQ5: ='Att E Activity 1'!B248 -> 0
BD48: 1 | CE48: 3 | DF48: 5 | EG48: 7
BD51: 2 | CE51: 4 | DF51: 6 | EG51: 8
BD61: 9 | CE61: 15 | DF61: 21 | EG61: 27
BD64: 10 | CE64: 16 | DF64: 22 | EG64: 28
BD67: 11 | CE67: 17 | DF67: 23 | EG67: 29
BD70: 12 | CE70: 18 | DF70: 24 | EG70: 30
BD73: 13 | CE73: 19 | DF73: 25 | EG73: 31
BD76: 14 | CE76: 20 | DF76: 26 | EG76: 32
BD86: 33 | CE86: 35 | DF86: 37 | EG86: 39
BD89: 34 | CE89: 36 | DF89: 38 | EG89: 40
BD99: 41 | CE99: 43 | DF99: 51 | EG99: 56
BD102: 42 | CE102: 47 | DF102: 52 | EG102: 57
BD105: 43 | CE105: 48 | DF105: 53 | EG105: 58
BD108: 44 | CE108: 49 | DF108: 54 | EG108: 59
BD111: 45 | CE111: 50 | DF111: 55 | EG111: 60

Sheet Att E Activity 2
T2: Attachment E - HOME Fair Housing Demographic Analysis*
FO5: PAGE 1
T6: HOME Annual Performance Report
P10: Reporting Period July 1, 2023 through June 30, 2024
GA13: FALSE | HF13: =IF(GA13=TRUE,1,0) -> 0
B18: Jurisdiction Name
GA19: FALSE | GP19: FALSE | HF19: =IF(GA19=TRUE,1,0) -> 0 | HL19: =IF(GP19=TRUE,1,0) -> 0
BV23: =IF(HF27>1,"Please use another form (Att E) to complete additional HOME activity","") ->  | GA23: FALSE | GP23: FALSE | HF23: =IF(GA23=TRUE,1,0) -> 0 | HL23: =IF(GP23=TRUE,1,0) -> 0
C24: Funding Source(s) | V24: (Check all that apply) | AL24: HOME Program Activities | BG24: (1 form per activity) | DN24: Contract #
E27: HOME Std. Agreement | AB27: HOME PI | AP27: First-Time Homebuyer (Acquisition Only or Acquisition with Rehab) | HF27: =HF13+HF19+HF23+HL19+HL23 -> 0
E30: CDBG Std. Agreement | AB30: CDBG PI | AP30: First-Time Homebuyer Infill Construction | CH30: Tenant-Based Rental Assistance | DN30: Activity Name
CH32: Program
E33: Other (Specify) | AP33: Owner-Occupied Rehab Program
B38: Geographic Area | R38: ='E Data 2'!D4 -> Select a Jurisdiction | BC38: Census Data Geographic Area | CG38: =IF('E Data 2'!D3=0,"",'E Data 2'!D3) ->  | CO38: Total Population | DG38: =IF('E Data 2'!B18=0,"",'E Data 2'!B18) -> 
GT40: 0.1
GT41: -0.1
B43: Ethnic Categories | AM43: Census | BE43: Applicants | CF43: Beneficiaries | DG43: Rejected Applicants | EH43: Waiting List
AM46: # | AU46: % | BE46: # | BM46: % | BU46: Difference | CF46: # | CN46: % | CV46: Difference | DG46: # | DO46: % | DW46: Difference | EH46: # | EP46: % | EX46: Difference
B49: Hispanic or Latino | AM49: =IF('E Data 2'!D3=0,"",'E Data 2'!B2) ->  | AU49: =IF(AM49="","",AM49/DG38) ->  | BM49: =IF(BE49="","",IF(BE49+BE52<1,0,BE49/(BE52+BE49))) ->  | BU49: =IF(OR(SUM(BE49:BL54)="",SUM(BE49:BL54)=0),0,BM49-AU49) -> 0 | CN49: =IF(CF49="","",IF(CF49+CF52<1,0,CF49/(CF49+CF52))) ->  | CV49: =IF(OR(SUM(CF49:CM54)="",SUM(CF49:CM54)=0),0,CN49-AU49) -> 0 | DO49: =IF(DG49="","",IF(DG49+DG52<1,0,DG49/(DG52+DG49))) ->  | DW49: =IF(OR(SUM(DG49:DN54)="",SUM(DG49:DN54)=0),0,DO49-AU49) -> 0 | EP49: =IF(EH49="","",IF(EH49+EH52<1,0,EH49/(EH52+EH49))) ->  | EX49: =IF(OR(SUM(EH49:EO54)="",SUM(EH49:EO54)=0),0,EP49-AU49) -> 0
B52: Not Hispanic or Latino | AM52: =IF('E Data 2'!D3=0,"",'E Data 2'!B3) ->  | AU52: =IF(AM52="","",AM52/DG38) ->  | BM52: =IF(BE52="","",IF(BE49+BE52<1,0,BE52/(BE52+BE49))) ->  | BU52: =IF(OR(SUM(BE49:BL54)="",SUM(BE49:BL54)=0),0,BM52-AU52) -> 0 | CN52: =IF(CF52="","",IF(CF49+CF52<1,0,CF52/(CF49+CF52))) ->  | CV52: =IF(OR(SUM(CF49:CM54)="",SUM(CF49:CM54)=0),0,CN52-AU52) -> 0 | DO52: =IF(DG52="","",IF(DG49+DG52<1,0,DG52/(DG52+DG49))) ->  | DW52: =IF(OR(SUM(DG49:DN54)="",SUM(DG49:DN54)=0),0,DO52-AU52) -> 0 | EP52: =IF(EH52="","",IF(EH49+EH52<1,0,EH52/(EH52+EH49))) ->  | EX52: =IF(OR(SUM(EH49:EO54)="",SUM(EH49:EO54)=0),0,EP52-AU52) -> 0
AM55: AM | AU55: AU | BE55: BE | BM55: BM | BU55: BU | CB55: -0.1 | CC55: 0.1 | CF55: CF | CN55: CN | CV55: CV | DG55: DG | DO55: DO | DW55: DW | EH55: EH | EP55: EP | EX55: EX
B56: Racial Categories | AM56: Census | BE56: Applicants | CF56: Beneficiaries | DG56: Rejected Applicants | EH56: Waiting List
AM59: # | AU59: % | BE59: # | BM59: % | BU59: Difference | CF59: # | CN59: % | CV59: Difference | DG59: # | DO59: % | DW59: Difference | EH59: # | EP59: % | EX59: Difference
B62: American Indian or Alaskan Native | AM62: =IF('E Data 2'!D3=0,"",'E Data 2'!B4) ->  | AU62: =IF(AM62="","",AM62/DG38) ->  | BM62: =IF(BE62="","",IF(BE62+BE65+BE68+BE71+BE74+BE77<1,0,BE62/(BE65+BE62+BE68+BE71+BE74+BE77))) ->  | BU62: =IF(OR(SUM(BE62:BL79)="",SUM(BE62:BL79)=0),0,BM62-AU62) -> 0 | CN62: =IF(CF62="","",IF(CF62+CF65+CF68+CF71+CF74+CF77<1,0,CF62/(CF65+CF62+CF68+CF71+CF74+CF77))) ->  | CV62: =IF(OR(SUM(CF62:CM79)="",SUM(CF62:CM79)=0),0,CN62-AU62) -> 0 | DO62: =IF(DG62="","",IF(DG62+DG65+DG68+DG71+DG74+DG77<1,0,DG62/(DG65+DG62+DG68+DG71+DG74+DG77))) ->  | DW62: =IF(OR(SUM(DG62:DN79)="",SUM(DG62:DN79)=0),0,DO62-AU62) -> 0 | EP62: =IF(EH62="","",IF(EH62+EH65+EH68+EH71+EH74+EH77<1,0,EH62/(EH65+EH62+EH68+EH71+EH74+EH77))) ->  | EX62: =IF(OR(SUM(EH62:EO79)="",SUM(EH62:EO79)=0),0,EP62-AU62) -> 0
B65: Asian | AM65: =IF('E Data 2'!D3=0,"",'E Data 2'!B19) ->  | AU65: =IF(AM65="","",AM65/DG38) ->  | BM65: =IF(BE65="","",IF(BE62+BE65+BE68+BE71+BE74+BE77<1,0,BE65/(BE68+BE65+BE62+BE71+BE74+BE77))) ->  | BU65: =IF(OR(SUM(BE62:BL79)="",SUM(BE62:BL79)=0),0,BM65-$AU$65) -> 0 | CN65: =IF(CF65="","",IF(CF62+CF65+CF68+CF71+CF74+CF77<1,0,CF65/(CF68+CF65+CF62+CF71+CF74+CF77))) ->  | CV65: =IF(OR(SUM(CF62:CM79)="",SUM(CF62:CM79)=0),0,CN65-AU65) -> 0 | DO65: =IF(DG65="","",IF(DG62+DG65+DG68+DG71+DG74+DG77<1,0,DG65/(DG68+DG65+DG62+DG71+DG74+DG77))) ->  | DW65: =IF(OR(SUM(DG62:DN79)="",SUM(DG62:DN79)=0),0,DO65-AU65) -> 0 | EP65: =IF(EH65="","",IF(EH62+EH65+EH68+EH71+EH74+EH77<1,0,EH65/(EH68+EH65+EH62+EH71+EH74+EH77))) ->  | EX65: =IF(OR(SUM(EH62:EO79)="",SUM(EH62:EO79)=0),0,EP65-AU65) -> 0
B68: Black or African American | AM68: =IF('E Data 2'!D3=0,"",'E Data 2'!B5) ->  | AU68: =IF(AM68="","",AM68/DG38) ->  | BM68: =IF(BE68="","",IF(BE62+BE65+BE68+BE71+BE74+BE77<1,0,BE68/(BE71+BE68+BE62+BE65+BE74+BE77))) ->  | BU68: =IF(OR(SUM(BE62:BL79)="",SUM(BE62:BL79)=0),0,BM68-AU68) -> 0 | CN68: =IF(CF68="","",IF(CF62+CF65+CF68+CF71+CF74<1,0,CF68/(CF71+CF68+CF62+CF65+CF74+CF77))) ->  | CV68: =IF(OR(SUM(CF62:CM79)="",SUM(CF62:CM79)=0),0,CN68-AU68) -> 0 | DO68: =IF(DG68="","",IF(DG62+DG65+DG68+DG71+DG74+DG77<1,0,DG68/(DG71+DG68+DG62+DG65+DG74+DG77))) ->  | DW68: =IF(OR(SUM(DG62:DN79)="",SUM(DG62:DN79)=0),0,DO68-AU68) -> 0 | EP68: =IF(EH68="","",IF(EH62+EH65+EH68+EH71+EH74+EH77<1,0,EH68/(EH71+EH68+EH62+EH65+EH74+EH77))) ->  | EX68: =IF(OR(SUM(EH62:EO79)="",SUM(EH62:EO79)=0),0,EP68-AU68) -> 0
B71: Native Hawaiian or Other Pacific Islander | AM71: =IF('E Data 2'!D3=0,"",'E Data 2'!B6) ->  | AU71: =IF(AM71="","",AM71/DG38) ->  | BM71: =IF(BE71="","",IF(BE62+BE65+BE68+BE71+BE74+BE77<1,0,BE71/(BE74+BE71+BE68+BE65+BE62+BE77))) ->  | BU71: =IF(OR(SUM(BE62:BL79)="",SUM(BE62:BL79)=0),0,BM71-AU71) -> 0 | CN71: =IF(CF71="","",IF(CF62+CF65+CF68+CF71+CF74+CF77<1,0,CF71/(CF74+CF71+CF68+CF65+CF62+CF77))) ->  | CV71: =IF(OR(SUM(CF62:CM79)="",SUM(CF62:CM79)=0),0,CN71-AU71) -> 0 | DO71: =IF(DG71="","",IF(DG62+DG65+DG68+DG71+DG74+DG77<1,0,DG71/(DG74+DG71+DG68+DG65+DG62+DG77))) ->  | DW71: =IF(OR(SUM(DG62:DN79)="",SUM(DG62:DN79)=0),0,DO71-AU71) -> 0 | EP71: =IF(EH71="","",IF(EH62+EH65+EH68+EH71+EH74+EH77<1,0,EH71/(EH74+EH71+EH68+EH65+EH62+EH77))) ->  | EX71: =IF(OR(SUM(EH62:EO79)="",SUM(EH62:EO79)=0),0,EP71-AU71) -> 0
B74: White Alone | AM74: =IF('E Data 2'!D3=0,"",'E Data 2'!B7) ->  | AU74: =IF(AM74="","",AM74/DG38) ->  | BM74: =IF(BE74="","",IF(BE62+BE65+BE68+BE71+BE74+BE77<1,0,BE74/(BE77+BE74+BE62+BE65+BE68+BE71))) ->  | BU74: =IF(OR(SUM(BE62:BL79)="",SUM(BE62:BL79)=0),0,BM74-AU74) -> 0 | CN74: =IF(CF74="","",IF(CF62+CF65+CF68+CF71+CF74+CF77<1,0,CF74/(CF77+CF74+CF62+CF65+CF68+CF71))) ->  | CV74: =IF(OR(SUM(CF62:CM79)="",SUM(CF62:CM79)=0),0,CN74-AU74) -> 0 | DO74: =IF(DG74="","",IF(DG62+DG65+DG68+DG71+DG74+DG77<1,0,DG74/(DG77+DG74+DG62+DG65+DG68+DG71))) ->  | DW74: =IF(OR(SUM(DG62:DN79)="",SUM(DG62:DN79)=0),0,DO74-$AU$74) -> 0 | EP74: =IF(EH74="","",IF(EH62+EH65+EH68+EH71+EH74+EH77<1,0,EH74/(EH77+EH74+EH62+EH65+EH68+EH71))) ->  | EX74: =IF(OR(SUM(EH62:EO79)="",SUM(EH62:EO79)=0),0,EP74-AU74) -> 0
B77: Other | AM77: =IF('E Data 2'!D3=0,"",'E Data 2'!B8) ->  | AU77: =IF(AM77="","",AM77/DG38) ->  | BM77: =IF(BE77="","",IF(BE62+BE65+BE68+BE71+BE74+BE77<1,0,BE77/(BE77+BE74+BE71+BE68+BE65+BE62))) ->  | BU77: =IF(OR(SUM(BE62:BL79)="",SUM(BE62:BL79)=0),0,BM77-AU77) -> 0 | CN77: =IF(CF77="","",IF(CF62+CF65+CF68+CF71+CF74+CF77<1,0,CF77/(CF77+CF74+CF71+CF68+CF65+CF62))) ->  | CV77: =IF(OR(SUM(CF62:CM79)="",SUM(CF62:CM79)=0),0,CN77-AU77) -> 0 | DO77: =IF(DG77="","",IF(DG62+DG65+DG68+DG71+DG74+DG77<1,0,DG77/(DG77+DG74+DG71+DG68+DG65+DG62))) ->  | DW77: =IF(OR(SUM(DG62:DN79)="",SUM(DG62:DN79)=0),0,DO77-AU77) -> 0 | EP77: =IF(EH77="","",IF(EH62+EH65+EH68+EH71+EH74+EH77<1,0,EH77/(EH77+EH74+EH71+EH68+EH65+EH62))) ->  | EX77: =IF(OR(SUM(EH62:EO79)="",SUM(EH62:EO79)=0),0,EP77-AU77) -> 0
B81: Gender | AM81: Census | BE81: Applicants | CF81: Beneficiaries | DG81: Rejected Applicants | EH81: Waiting List
AM84: # | AU84: % | BE84: # | BM84: % | BU84: Difference | CF84: # | CN84: % | CV84: Difference | DG84: # | DO84: % | DW84: Difference | EH84: # | EP84: % | EX84: Difference
B87: Female | AM87: =IF('E Data 2'!D3=0,"",'E Data 2'!B9) ->  | AU87: =IF(AM87="","",AM87/DG38) ->  | BM87: =IF(BE87="","",IF(BE87+BE90<1,0,BE87/(BE90+BE87))) ->  | BU87: =IF(OR(SUM(BE87:BL92)="",SUM(BE87:BL92)=0),0,BM87-AU87) -> 0 | CN87: =IF(CF87="","",IF(CF87+CF90<1,0,CF87/(CF87+CF90))) ->  | CV87: =IF(OR(SUM(CF87:CM92)="",SUM(CF87:CM92)=0),0,CN87-AU87) -> 0 | DO87: =IF(DG87="","",IF(DG87+DG90<1,0,DG87/(DG90+DG87))) ->  | DW87: =IF(OR(SUM(DG87:DN92)="",SUM(DG87:DN92)=0),0,DO87-AU87) -> 0 | EP87: =IF(EH87="","",IF(EH87+EH90<1,0,EH87/(EH90+EH87))) ->  | EX87: =IF(OR(SUM(EH87:EO92)="",SUM(EH87:EO92)=0),0,EP87-AU87) -> 0
B90: Male | AM90: =IF('E Data 2'!D3=0,"",'E Data 2'!B10) ->  | AU90: =IF(AM90="","",AM90/DG38) ->  | BM90: =IF(BE90="","",IF(BE87+BE90<1,0,BE90/(BE90+BE87))) ->  | BU90: =IF(OR(SUM(BE87:BL92)="",SUM(BE87:BL92)=0),0,BM90-AU90) -> 0 | CN90: =IF(CF90="","",IF(CF87+CF90<1,0,CF90/(CF87+CF90))) ->  | CV90: =IF(OR(SUM(CF87:CM92)="",SUM(CF87:CM92)=0),0,CN90-AU90) -> 0 | DO90: =IF(DG90="","",IF(DG87+DG90<1,0,DG90/(DG90+DG87))) ->  | DW90: =IF(OR(SUM(DG87:DN92)="",SUM(DG87:DN92)=0),0,DO90-AU90) -> 0 | EP90: =IF(EH90="","",IF(EH87+EH90<1,0,EH90/(EH90+EH87))) ->  | EX90: =IF(OR(SUM(EH87:EO92)="",SUM(EH87:EO92)=0),0,EP90-AU90) -> 0
B94: Age | AM94: Census | BE94: Applicants | CF94: Beneficiaries | DG94: Rejected Applicants | EH94: Waiting List
AM97: # | AU97: % | BE97: # | BM97: % | BU97: Difference | CF97: # | CN97: % | CV97: Difference | DG97: # | DO97: % | DW97: Difference | EH97: # | EP97: % | EX97: Difference
B100: 0 to 19 Years | AM100: =IF('E Data 2'!D3=0,"",'E Data 2'!B11) ->  | AU100: =IF(AM100="","",AM100/DG38) ->  | BM100: =IF(BE100="","",IF(BE100+BE103+BE106+BE109+BE112<1,0,BE100/(BE103+BE100+BE106+BE109+BE112))) ->  | BU100: =IF(OR(SUM(BE100:BL114)="",SUM(BE100:BL114)=0),0,BM100-AU100) -> 0 | CN100: =IF(CF100="","",IF(CF100+CF103+CF106+CF109+CF112<1,0,CF100/(CF100+CF103+CF106+CF109+CF112))) ->  | CV100: =IF(OR(SUM(CF100:CM114)="",SUM(CF100:CM114)=0),0,CN100-AU100) -> 0 | DO100: =IF(DG100="","",IF(DG100+DG103+DG106+DG109+DG112<1,0,DG100/(DG103+DG100+DG106+DG109+DG112))) ->  | DW100: =IF(OR(SUM(DG100:DN114)="",SUM(DG100:DN114)=0),0,DO100-AU100) -> 0 | EP100: =IF(EH100="","",IF(EH100+EH103+EH106+EH109+EH112<1,0,EH100/(EH103+EH100+EH106+EH109+EH112))) ->  | EX100: =IF(OR(SUM(EH100:EO114)="",SUM(EH100:EO114)=0),0,EP100-AU100) -> 0
B103: 20 to 24 Years | AM103: =IF('E Data 2'!D3=0,"",'E Data 2'!B12) ->  | AU103: =IF(AM103="","",AM103/DG38) ->  | BM103: =IF(BE103="","",IF(BE100+BE103+BE106+BE109+BE112<1,0,BE103/(BE103+BE100+BE106+BE109+BE112))) ->  | BU103: =IF(OR(SUM(BE100:BL114)="",SUM(BE100:BL114)=0),0,BM103-AU103) -> 0 | CN103: =IF(CF103="","",IF(CF100+CF103+CF106+CF109+CF112<1,0,CF103/(CF103+CF106+CF100+CF109+CF112))) ->  | CV103: =IF(OR(SUM(CF100:CM114)="",SUM(CF100:CM114)=0),0,CN103-AU103) -> 0 | DO103: =IF(DG103="","",IF(DG100+DG103+DG106+DG109+DG112<1,0,DG103/(DG106+DG103+DG100+DG109+DG112))) ->  | DW103: =IF(OR(SUM(DG100:DN114)="",SUM(DG100:DN114)=0),0,DO103-AU103) -> 0 | EP103: =IF(EH103="","",IF(EH100+EH103+EH106+EH109+EH112<1,0,EH103/(EH106+EH103+EH100+EH109+EH112))) ->  | EX103: =IF(OR(SUM(EH100:EO114)="",SUM(EH100:EO114)=0),0,EP103-AU103) -> 0
B106: 25 to 44 Years | AM106: =IF('E Data 2'!D3=0,"",'E Data 2'!B13) ->  | AU106: =IF(AM106="","",AM106/DG38) ->  | BM106: =IF(BE106="","",IF(BE100+BE103+BE106+BE109+BE112<1,0,BE106/(BE109+BE106+BE100+BE103+BE112))) ->  | BU106: =IF(OR(SUM(BE100:BL114)="",SUM(BE100:BL114)=0),0,BM106-AU106) -> 0 | CN106: =IF(CF106="","",IF(CF100+CF103+CF106+CF109+CF112<1,0,CF106/(CF106+CF109+CF100+CF103+CF112))) ->  | CV106: =IF(OR(SUM(CF100:CM114)="",SUM(CF100:CM114)=0),0,CN106-AU106) -> 0 | DO106: =IF(DG106="","",IF(DG100+DG103+DG106+DG109+DG112<1,0,DG106/(DG109+DG106+DG100+DG103+DG112))) ->  | DW106: =IF(OR(SUM(DG100:DN114)="",SUM(DG100:DN114)=0),0,DO106-AU106) -> 0 | EP106: =IF(EH106="","",IF(EH100+EH103+EH106+EH109+EH112<1,0,EH106/(EH109+EH106+EH100+EH103+EH112))) ->  | EX106: =IF(OR(SUM(EH100:EO114)="",SUM(EH100:EO114)=0),0,EP106-AU106) -> 0
B109: 45 to 64 Years | AM109: =IF('E Data 2'!D3=0,"",'E Data 2'!B14) ->  | AU109: =IF(AM109="","",AM109/DG38) ->  | BM109: =IF(BE109="","",IF(BE100+BE103+BE106+BE109+BE112<1,0,BE109/(BE109+BE106+BE100+BE103+BE112))) ->  | BU109: =IF(OR(SUM(BE100:BL114)="",SUM(BE100:BL114)=0),0,BM109-$AU$109) -> 0 | CN109: =IF(CF109="","",IF(CF100+CF103+CF106+CF109+CF112<1,0,CF109/(CF109+CF106+CF100+CF103+CF112))) ->  | CV109: =IF(OR(SUM(CF100:CM114)="",SUM(CF100:CM114)=0),0,CN109-AU109) -> 0 | DO109: =IF(DG109="","",IF(DG100+DG103+DG106+DG109+DG112<1,0,DG109/(DG109+DG106+DG100+DG103+DG112))) ->  | DW109: =IF(OR(SUM(DG100:DN114)="",SUM(DG100:DN114)=0),0,DO109-AU109) -> 0 | EP109: =IF(EH109="","",IF(EH100+EH103+EH106+EH109+EH112<1,0,EH109/(EH109+EH106+EH100+EH103+EH112))) ->  | EX109: =IF(OR(SUM(EH100:EO114)="",SUM(EH100:EO114)=0),0,EP109-AU109) -> 0
B112: 65 Years and Over | AM112: =IF('E Data 2'!D3=0,"",'E Data 2'!B15) ->  | AU112: =IF(AM112="","",AM112/DG38) ->  | BM112: =IF(BE112="","",IF(BE100+BE103+BE106+BE109+BE112<1,0,BE112/(BE112+BE109+BE100+BE103+BE106))) ->  | BU112: =IF(OR(SUM(BE100:BL114)="",SUM(BE100:BL114)=0),0,BM112-AU112) -> 0 | CN112: =IF(CF112="","",IF(CF100+CF103+CF106+CF109+CF112<1,0,CF112/(CF112+CF109+CF100+CF103+CF106))) ->  | CV112: =IF(OR(SUM(CF100:CM114)="",SUM(CF100:CM114)=0),0,CN112-AU112) -> 0 | DO112: =IF(DG112="","",IF(DG100+DG103+DG106+DG109+DG112<1,0,DG112/(DG112+DG109+DG100+DG103+DG106))) ->  | DW112: =IF(OR(SUM(DG100:DN114)="",SUM(DG100:DN114)=0),0,DO112-AU112) -> 0 | EP112: =IF(EH112="","",IF(EH100+EH103+EH106+EH109+EH112<1,0,EH112/(EH112+EH109+EH100+EH103+EH106))) ->  | EX112: =IF(OR(SUM(EH100:EO114)="",SUM(EH100:EO114)=0),0,EP112-AU112) -> 0
B115: =IF(#REF!=0,"",#REF!) -> 
B116: Disability | AM116: Census | BE116: Applicants | CF116: Beneficiaries | DG116: Rejected Applicants | EH116: Waiting List
AM119: # | AU119: % | BE119: # | BM119: % | BU119: Difference | CF119: # | CN119: % | CV119: Difference | DG119: # | DO119: % | DW119: Difference | EH119: # | EP119: % | EX119: Difference
B122: Disabled | AM122: =IF('E Data 2'!D3=0,"",'E Data 2'!B16) ->  | AU122: =AM122/(AM122+AM125) ->  | BM122: =IF(BE122="","",IF(BE122<1,0,BE122/(BE125+BE122))) ->  | BU122: =IF(OR(SUM(BE122:BL127)="",SUM(BE122:BL127)=0),0,BM122-AU122) -> 0 | CN122: =IF(CF122="","",IF(CF122<1,0,CF122/(CF122+CF125))) ->  | CV122: =IF(OR(SUM(CF122:CM127)="",SUM(CF122:CM127)=0),0,CN122-AU122) -> 0 | DO122: =IF(DG122="","",IF(DG122<1,0,DG122/(DG122+DG125))) ->  | DW122: =IF(OR(SUM(DG122:DN127)="",SUM(DG122:DN127)=0),0,DO122-AU122) -> 0 | EP122: =IF(EH122="","",IF(EH122<1,0,EH122/(EH122+EH125))) ->  | EX122: =IF(OR(SUM(EH122:EO127)="",SUM(EH122:EO127)=0),0,EP122-AU122) -> 0
B125: Not Disabled | AM125: =IF('E Data 2'!D3=0,"",'E Data 2'!B17) ->  | AU125: =1-AU122 ->  | BM125: =IF(BE125="","",IF(BE125<1,0,BE125/(BE125+BE122))) ->  | BU125: =IF(OR(SUM(BE122:BL127)="",SUM(BE122:BL127)=0),0,BM125-AU125) -> 0 | CN125: =IF(CF125="","",IF(CF125<1,0,CF125/(CF122+CF125))) ->  | CV125: =IF(OR(SUM(CF122:CM127)="",SUM(CF122:CM127)=0),0,CN125-AU125) -> 0 | DO125: =IF(DG125="","",IF(DG125<1,0,DG125/(DG122+DG125))) ->  | DW125: =IF(OR(SUM(DG122:DN127)="",SUM(DG122:DN127)=0),0,DO125-AU125) -> 0 | EP125: =IF(EH125="","",IF(EH125<1,0,EH125/(EH125+EH122))) ->  | EX125: =IF(OR(SUM(EH122:EO127)="",SUM(EH122:EO127)=0),0,EP125-$AU$125) -> 0
BC128: =IF(AND(SUM(BE49+BE52)=SUM(BE62:BL79),SUM(BE49+BE52)=SUM(BE87:BL92), SUM(BE49+BE52)=SUM(BE100:BL114), SUM(BE49+BE52)=SUM(BE122:BL127)),"","COLUMN SECTION TOTALS MUST MATCH!") ->  | CD128: =IF(AND(SUM(CF49+CF52)=SUM(CF62:CF79),SUM(CF49+CF52)=SUM(CF87:CF92), SUM(CF49+CF52)=SUM(CF100:CF114), SUM(CF49+CF52)=SUM(CF122:CF127)),"","COLUMN SECTION TOTALS MUST MATCH!") ->  | DE128: =IF(AND(SUM(DG49+DG52)=SUM(DG62:DG79),SUM(DG49+DG52)=SUM(DG87:DG92), SUM(DG49+DG52)=SUM(DG100:DG114), SUM(DG49+DG52)=SUM(DG122:DG127)),"","COLUMN SECTION TOTALS MUST MATCH!") ->  | EF128: =IF(AND(SUM(EH49+EH52)=SUM(EH62:EH79),SUM(EH49+EH52)=SUM(EH87:EH92), SUM(EH49+EH52)=SUM(EH100:EH114), SUM(EH49+EH52)=SUM(EH122:EH127)),"","COLUMN SECTION TOTALS MUST MATCH!") -> 
B136: Prepared By: Name | AM136: Title | BZ136: Telephone Number | CV136: e-mail Address | EL136: Date
FO141: PAGE 2
B142: Questionnaire
B148: HUD has defined "impediments to fair housing choice" to include specific actions as well as the lack of actions as follows:
C152: l | E152: Any actions, omissions or decisions taken because of race, color, religion, sex, disability, familial status, or national origin which restrict housing choices; and
C156: l | E156: Any actions, omissions, or decisions which have the effect of restricting housing choices or the availability of housing choices on the basis of race, color, religion, sex, disability, familial status, or national origin.
B162: In its simplest form, a study of Fair Housing barriers addresses the question: Do all residents and potential residents of this Jurisdiction have equal access to housing regardless of their race, color, religion (creed), sex, disability, familial status, age, or national origin? If not, why?
B169: If "Difference" field is greater than 10%, field will turn red; please respond to questions below, in reference to these numbers.
B173: 1. | D173: Does any of the demographic data show low representation of any protected groups in either your applicants, beneficiaries, rejected applicants or waiting list?
B191: 2. | E191: What reasons have you identified for these low numbers?
B209: 3. | E209: What actions have you taken to date to correct the reasons for low numbers?
B227: 4. | E227: What actions do you plan to take in the future to correct these low numbers?
B245: 5. | D245: Has your organization set up and maintained records reflecting the study and actions taken? If not, why?
FO259: PAGE 3
B392: END OF DOCUMENT

Sheet E Data 2 (hidden)
H1: Hispanic or Latino 1 | I1: Not Hispanic or Latino 2 | J1: American Indian or Alaskan Native 3 | K1: Black or African American 4 | L1: Native Hawaiian or other Pacific Islander 5 | M1: White Alone 6 | N1: Other 7 | O1: Female 8 | P1: Male 9 | Q1: 0-19 10 | R1: 20-24 11 | S1: 25-44 12 | T1: 45-64 13 | U1: 65+ 14 | V1: No Disability 15 | W1: Disability 16 | X1: Total Population 17 | Y1: Asian 18 | Z1: Disability % | AA1: Disability Estimate
A2: 1 | B2: =VLOOKUP(D3,F2:H540,3,FALSE) -> 0 | D2: 539 | E2: 1 | F2: 001 | G2: Alameda County (Unincorporated) | H2: 48200 | I2: 99716 | J2: 346 | K2: 12263 | L2: 1316 | M2: 39096 | N2: 7448 | O2: 60373 | P2: 57962 | Q2: 28783 | R2: 6944 | S2: 33446 | T2: 31347 | U2: 17815 | V2: =X2-W2 -> 102988 | W2: 15347 | X2: 118335 | Y2: 38358 | Z2: 9.1 | AA2: =X2*0.09 -> 10650.15
A3: 2 | B3: =VLOOKUP(D3,F2:I540,4,FALSE) -> 0 | D3: =VLOOKUP(D2,E2:F540,2,FALSE) -> 0 | E3: 2 | F3: 003 | G3: Alpine County (Unincorporated) | H3: 60 | I3: 890 | J3: 30 | K3: 9 | L3: 0 | M3: 779 | N3: 53 | O3: 428 | P3: 522 | Q3: 136 | R3: 37 | S3: 203 | T3: 316 | U3: 258 | V3: 859 | W3: 91 | X3: 950 | Y3: 12 | Z3: 17.9 | AA3: =X3*0.09 -> 85.5
A4: 3 | B4: =VLOOKUP(D3,F2:J540,5,FALSE) -> 0 | D4: =VLOOKUP(D2,E2:G540,3,FALSE) -> Select a Jurisdiction | E4: 3 | F4: 005 | G4: Amador County (Unincorporated) | H4: 1496 | I4: 34460 | J4: 169 | K4: 96 | L4: 41 | M4: 10923 | N4: 2067 | O4: 6738 | P4: 7048 | Q4: 2506 | R4: 493 | S4: 2495 | T4: 4078 | U4: 4214 | V4: 10809 | W4: 2977 | X4: 13786 | Y4: 15 | Z4: 17.6 | AA4: 1240.74
A5: 4 | B5: =VLOOKUP(D3,F2:K540,6,FALSE) -> 0 | E5: 4 | F5: 007 | G5: Butte County (Unincorporated) | H5: 6673 | I5: 42968 | J5: 1166 | K5: 451 | L5: 80 | M5: 34957 | N5: 2243 | O5: 24408 | P5: 25233 | Q5: 11126 | R5: 2287 | S5: 10920 | T5: 13547 | U5: 11761 | V5: 40108 | W5: 9533 | X5: 49641 | Y5: 2823 | Z5: 17.4 | AA5: 4467.69
A6: 5 | B6: =VLOOKUP(D3,F2:L540,7,FALSE) -> 0 | E6: 5 | F6: 009 | G6: Calaveras County (Unincorporated) | H6: 3546 | I6: 23720 | J6: 284 | K6: 168 | L6: 35 | M6: 20899 | N6: 1165 | O6: 13161 | P6: 13155 | Q6: 5264 | R6: 1012 | S6: 5298 | T6: 7366 | U6: 7376 | V6: 21999 | W6: 4317 | X6: 26316 | Y6: 447 | Z6: 17.6 | AA6: 2368.44
A7: 6 | B7: =VLOOKUP(D3,F2:M540,8,FALSE) -> 0 | D7: 59 | E7: 6 | F7: 011 | G7: Colusa County (Unincorporated) | H7: 3746 | I7: 2019 | J7: 33 | K7: 56 | L7: 11 | M7: 1730 | N7: 124 | O7: 2824 | P7: 2941 | Q7: 1800 | R7: 347 | S7: 1495 | T7: 1336 | U7: 787 | V7: 5131 | W7: 634 | X7: 5765 | Y7: 39 | Z7: 12.5 | AA7: 518.85
A8: 7 | B8: =VLOOKUP(D3,F2:N540,9,FALSE) -> 0 | D8: =VLOOKUP(D7,E2:F59,2,FALSE) ->  | E8: 7 | F8: 013 | G8: Contra Costa County (Unincorporated) | H8: 45688 | I8: 118857 | J8: 390 | K8: 9441 | L8: 622 | M8: 72856 | N8: 1874 | O8: 85229 | P8: 82776 | Q8: 40909 | R8: 9154 | S8: 41388 | T8: 47498 | U8: 29056 | V8: 149595 | W8: 18410 | X8: 168005 | Y8: 25383 | Z8: 10.2 | AA8: 15120.45
A9: 8 | B9: =VLOOKUP(D3,F2:O540,10,FALSE) -> 0 | D9: =VLOOKUP(D7,E2:G545,3,FALSE) -> Adelanto city | E9: 8 | F9: 015 | G9: Del Norte County (Unincorporated) | H9: 900 | I9: 5497 | J9: 2136 | K9: 25 | L9: 7 | M9: 3874 | N9: 504 | O9: 3276 | P9: 3121 | Q9: 1546 | R9: 276 | S9: 1426 | T9: 1744 | U9: 1405 | V9: 4892 | W9: 1505 | X9: 6397 | Y9: 70 | Z9: 21.5 | AA9: 575.73
A10: 9 | B10: =VLOOKUP(D3,F2:P540,11,FALSE) -> 0 | E10: 9 | F10: 017 | G10: El Dorado County (Unincorporated) | H10: 12913 | I10: 92513 | J10: 561 | K10: 1010 | L10: 156 | M10: 76631 | N10: 5126 | O10: 53878 | P10: 51548 | Q10: 25911 | R10: 4729 | S10: 20662 | T10: 31212 | U10: 22912 | V10: 93343 | W10: 12083 | X10: 105426 | Y10: 6861 | Z10: 11.5 | AA10: 9488.34
A11: 10 | B11: =VLOOKUP(D3,F2:Q540,12,FALSE) -> 0 | E11: 10 | F11: 019 | G11: Fresno County (Unincorporated) | H11: 299670 | I11: 290533 | J11: 4010 | K11: 38326 | L11: 794 | M11: 146321 | N11: 18082 | O11: 23882 | P11: 24214 | Q11: 13842 | R11: 2916 | S11: 11829 | T11: 11409 | U11: 8100 | V11: 42175 | W11: 5921 | X11: 48096 | Y11: 79892 | Z11: 11.6 | AA11: 4328.64
A12: 11 | B12: =VLOOKUP(D3,F2:R540,13,FALSE) -> 0 | E12: 11 | F12: 021 | G12: Glenn County (Unincorporated) | H12: 2096 | I12: 600 | J12: 17 | K12: 17 | L12: 2 | M12: 477 | N12: 39 | O12: 1292 | P12: 1404 | Q12: 832 | R12: 164 | S12: 632 | T12: 660 | U12: 408 | V12: 2273 | W12: 423 | X12: 2696 | Y12: 44 | Z12: 15.8 | AA12: 242.64
A13: 12 | B13: =VLOOKUP(D3,F2:S540,14,FALSE) -> 0 | E13: 12 | F13: 023 | G13: Humboldt County (Unincorporated) | H13: 5587 | I13: 45094 | J13: 4551 | K13: 485 | L13: 117 | M13: 34390 | N13: 4048 | O13: 25725 | P13: 24956 | Q13: 11922 | R13: 2609 | S13: 13913 | T13: 12302 | U13: 9935 | V13: 41654 | W13: 9027 | X13: 50681 | Y13: 1139 | Z13: 15.7 | AA13: 4561.29
A14: 13 | B14: =VLOOKUP(D3,F2:T540,15,FALSE) -> 0 | E14: 13 | F14: 025 | G14: Imperial County (Unincorporated) | H14: 14813 | I14: 2627 | J14: 95 | K14: 223 | L14: 9 | M14: 1937 | N14: 233 | O14: 8751 | P14: 8689 | Q14: 5611 | R14: 1230 | S14: 4298 | T14: 3954 | U14: 2347 | V14: 15268 | W14: 2172 | X14: 17440 | Y14: 95 | Z14: 13.1 | AA14: 1569.6
A15: 14 | B15: =VLOOKUP(D3,F2:U540,16,FALSE) -> 0 | E15: 14 | F15: 027 | G15: Inyo County (Unincorporated) | H15: 2663 | I15: 9335 | J15: 876 | K15: 62 | L15: 4 | M15: 7578 | N15: 613 | O15: 5972 | P15: 6026 | Q15: 2530 | R15: 429 | S15: 2601 | T15: 3174 | U15: 3264 | V15: 10437 | W15: 1561 | X15: 11998 | Y15: 155 | Z15: 12.5 | AA15: 1079.82
A16: 15 | B16: =VLOOKUP(D3,F2:W541,18,FALSE) -> 0 | E16: 15 | F16: 029 | G16: Kern County (Unincorporated) | H16: 138079 | I16: 126362 | J16: 2012 | K16: 8980 | L16: 246 | M16: 100923 | N16: 9596 | O16: 132514 | P16: 131927 | Q16: 83214 | R16: 17051 | S16: 68955 | T16: 60931 | U16: 34290 | V16: 229050 | W16: 35391 | X16: 264441 | Y16: 3401 | Z16: 11.8 | AA16: 23799.69
A17: 16 | B17: =VLOOKUP(D3,F2:V541,17,FALSE) -> 0 | E17: 16 | F17: 031 | G17: Kings County (Unincorporated) | H17: 8400 | I17: 7117 | J17: 69 | K17: 1162 | L17: 84 | M17: 4449 | N17: 720 | O17: 7509 | P17: 8008 | Q17: 5576 | R17: 1894 | S17: 4909 | T17: 2143 | U17: 995 | V17: 14401 | W17: 1116 | X17: 15517 | Y17: 552 | Z17: 10.4 | AA17: 1396.53
A18: 17 | B18: =VLOOKUP(D3,F2:X540,19,FALSE) -> 0 | E18: 17 | F18: 033 | G18: Lake County (Unincorporated) | H18: 7058 | I18: 25169 | J18: 588 | K18: 423 | L18: 50 | M18: 21300 | N18: 2138 | O18: 16008 | P18: 16219 | Q18: 7168 | R18: 1430 | S18: 7327 | T18: 8932 | U18: 7370 | V18: 26783 | W18: 5444 | X18: 32227 | Y18: 480 | Z18: 20.9 | AA18: 2900.43
A19: 18 | B19: =VLOOKUP(D3,F2:Y540,20,FALSE) -> 0 | E19: 18 | F19: 035 | G19: Lassen County (Unincorporated) | H19: 776 | I19: 6768 | J19: 153 | K19: 74 | L19: 9 | M19: 5931 | N19: 503 | O19: 3571 | P19: 3973 | Q19: 1632 | R19: 340 | S19: 1662 | T19: 2221 | U19: 1689 | V19: 6152 | W19: 1392 | X19: 7544 | Y19: 58 | Z19: 17.3 | AA19: 678.96
E20: 19 | F20: 037 | G20: Los Angeles County (Unincorporated) | H20: 535420 | I20: 361481 | J20: 1724 | K20: 68320 | L20: 1426 | M20: 140148 | N20: 19676 | O20: 464662 | P20: 445556 | Q20: 229894 | R20: 65218 | S20: 246308 | T20: 236982 | U20: 131816 | V20: 817443 | W20: 92775 | X20: 910218 | Y20: 125819 | Z20: 9.5 | AA20: 81919.62
E21: 20 | F21: 039 | G21: Madera County (Unincorporated) | H21: 19319 | I21: 28835 | J21: 907 | K21: 536 | L21: 34 | M21: 24280 | N21: 336 | O21: 24272 | P21: 23882 | Q21: 12590 | R21: 2597 | S21: 10588 | T21: 11850 | U21: 10529 | V21: 40893 | W21: 7261 | X21: 48154 | Y21: 751 | Z21: 12.1 | AA21: 4333.86
B22: Enter a F/Y | E22: 21 | F22: 041 | G22: Marin County (Unincorporated) | H22: 5049 | I22: 45763 | J22: 80 | K22: 1173 | L22: 81 | M22: 37693 | N22: 3122 | O22: 26432 | P22: 24380 | Q22: 11527 | R22: 1813 | S22: 9443 | T22: 15517 | U22: 12512 | V22: 46131 | W22: 4681 | X22: 50812 | Y22: 3260 | Z22: 8.9 | AA22: 4573.08
B23: 2010-2011 | E23: 22 | F23: 043 | G23: Mariposa County (Unincorporated) | H23: 1100 | I23: 6416 | J23: 157 | K23: 38 | L23: 6 | M23: 5467 | N23: 564 | O23: 3720 | P23: 3796 | Q23: 1392 | R23: 315 | S23: 1642 | T23: 2185 | U23: 1982 | V23: 5900 | W23: 1616 | X23: 7516 | Y23: 129 | Z23: 18.5 | AA23: 676.44
B24: 2011-2012 | E24: 23 | F24: 045 | G24: Mendocino County (Unincorporated) | H24: 3969 | I24: 11677 | J24: 774 | K24: 69 | L24: 13 | M24: 9539 | N24: 878 | O24: 7695 | P24: 7951 | Q24: 3597 | R24: 699 | S24: 4015 | T24: 3926 | U24: 3409 | V24: 13389 | W24: 2257 | X24: 15646 | Y24: 315 | Z24: 16.1 | AA24: 1408.14
B25: 2012-2013 | E25: 24 | F25: 047 | G25: Merced County (Unincorporated) | H25: 34299 | I25: 16951 | J25: 177 | K25: 628 | L25: 57 | M25: 12128 | N25: 1232 | O25: 25471 | P25: 25779 | Q25: 16937 | R25: 3671 | S25: 13368 | T25: 11610 | U25: 5664 | V25: 44048 | W25: 7202 | X25: 51250 | Y25: 2572 | Z25: 15.5 | AA25: 4612.5
B26: 2013-2014 | E26: 25 | F26: 049 | G26: Modoc County (Unincorporated) | H26: 398 | I26: 1839 | J26: 131 | K26: 13 | L26: 5 | M26: 1550 | N26: 121 | O26: 1117 | P26: 1120 | Q26: 478 | R26: 75 | S26: 414 | T26: 634 | U26: 636 | V26: 1828 | W26: 409 | X26: 2237 | Y26: 5 | Z26: 21.1 | AA26: 201.33
B27: 2014-2015 | E27: 26 | F27: 051 | G27: Mono County (Unincorporated) | H27: 1004 | I27: 4451 | J27: 163 | K27: 22 | L27: 12 | M27: 3956 | N27: 213 | O27: 2619 | P27: 2836 | Q27: 1119 | R27: 204 | S27: 1281 | T27: 1596 | U27: 1255 | V27: 4909 | W27: 546 | X27: 5455 | Y27: 50 | Z27: 7.8 | AA27: 490.95
B28: 2015-2016 | E28: 27 | F28: 053 | G28: Monterey County (Unincorporated) | H28: 29814 | I28: 22686 | J28: 158 | K28: 288 | L28: 113 | M28: 18488 | N28: 1708 | O28: 26084 | P28: 26416 | Q28: 14239 | R28: 3225 | S28: 12539 | T28: 12998 | U28: 9499 | V28: 47153 | W28: 5347 | X28: 52500 | Y28: 1594 | Z28: 8.4 | AA28: 4725
B29: 2016-2017 | E29: 28 | F29: 055 | G29: Napa County (Unincorporated) | H29: 1220 | I29: 4056 | J29: 10 | K29: 115 | L29: 15 | M29: 3131 | N29: 257 | O29: 2789 | P29: 2487 | Q29: 1019 | R29: 575 | S29: 1051 | T29: 1299 | U29: 1332 | V29: 4723 | W29: 553 | X29: 5276 | Y29: 268 | Z29: 10.8 | AA29: 474.84
B30: 2017-2018 | E30: 29 | F30: 057 | G30: Nevada County (Unincorporated) | H30: 1686 | I30: 18124 | J30: 136 | K30: 79 | L30: 32 | M30: 16371 | N30: 1151 | O30: 10232 | P30: 9578 | Q30: 3683 | R30: 670 | S30: 3607 | T30: 5306 | U30: 6544 | V30: 16647 | W30: 3163 | X30: 19810 | Y30: 269 | Z30: 13.4 | AA30: 1782.9
B31: 2018-2019 | E31: 30 | F31: 059 | G31: Orange County (Unincorporated) | H31: 17033 | I31: 88065 | J31: 148 | K31: 951 | L31: 135 | M31: 64361 | N31: 5996 | O31: 53707 | P31: 51391 | Q31: 29788 | R31: 5678 | S31: 22659 | T31: 30726 | U31: 16247 | V31: 97020 | W31: 8078 | X31: 105098 | Y31: 16039 | Z31: 7.8 | AA31: 9458.82
B32: 2019-2020 | E32: 31 | F32: 061 | G32: Placer County (Unincorporated) | H32: 7928 | I32: 46628 | J32: 316 | K32: 351 | L32: 75 | M32: 40207 | N32: 1346 | O32: 27541 | P32: 27015 | Q32: 12325 | R32: 2441 | S32: 11522 | T32: 15893 | U32: 12375 | V32: 48766 | W32: 5790 | X32: 54556 | Y32: 2412 | Z32: 10.7 | AA32: 4910.04
B33: 2020-2021 | E33: 32 | F33: 063 | G33: Plumas County (Unincorporated) | H33: 1277 | I33: 13515 | J33: 276 | K33: 86 | L33: 20 | M33: 12149 | N33: 777 | O33: 7348 | P33: 7444 | Q33: 2710 | R33: 518 | S33: 2888 | T33: 4152 | U33: 4524 | V33: 12371 | W33: 2421 | X33: 14792 | Y33: 118 | Z33: 19.4 | AA33: 1331.28
B34: 2021-2022 | E34: 33 | F34: 065 | G34: Riverside County (Unincorporated) | H34: 160159 | I34: 153373 | J34: 1519 | K34: 12535 | L34: 590 | M34: 109935 | N34: 10892 | O34: 157221 | P34: 156311 | Q34: 88095 | R34: 19690 | S34: 77017 | T34: 77409 | U34: 51321 | V34: 274332 | W34: 39200 | X34: 313532 | Y34: 16442 | Z34: 10.7 | AA34: 28217.88
B35: 2022-2023 | E35: 34 | F35: 067 | G35: Sacramento County (Unincorporated) | H35: 129341 | I35: 467104 | J35: 3032 | K35: 47830 | L35: 5700 | M35: 284041 | N35: 40002 | O35: 306040 | P35: 290405 | Q35: 155685 | R35: 37142 | S35: 160814 | T35: 145971 | U35: 96833 | V35: 524161 | W35: 72284 | X35: 596445 | Y35: 82803 | Z35: 12.7 | AA35: 53680.05
B36: 2023-2024 | E36: 35 | F36: 069 | G36: San Benito County (Unincorporated) | H36: 2256 | I36: 4107 | J36: 13 | K36: 42 | L36: 8 | M36: 3536 | N36: 237 | O36: 3213 | P36: 3150 | Q36: 1298 | R36: 300 | S36: 1422 | T36: 1809 | U36: 1534 | V36: 5681 | W36: 682 | X36: 6363 | Y36: 206 | Z36: 8.7 | AA36: 572.67
B37: 2024-2025 | E37: 36 | F37: 071 | G37: San Bernardino County (Unincorporated) | H37: 73447 | I37: 106204 | J37: 1029 | K37: 5334 | L37: 484 | M37: 86104 | N37: 7150 | O37: 88526 | P37: 91125 | Q37: 46087 | R37: 11517 | S37: 44641 | T37: 47237 | U37: 30169 | V37: 155161 | W37: 24490 | X37: 179651 | Y37: 5049 | Z37: 10.9 | AA37: 16168.59
B38: 2025-2026 | E38: 37 | F38: 073 | G38: San Diego County (Unincorporated) | H38: 112233 | I38: 240992 | J38: 2569 | K38: 15097 | L38: 1304 | M38: 187229 | N38: 17755 | O38: 176252 | P38: 176973 | Q38: 88264 | R38: 28685 | S38: 86390 | T38: 87702 | U38: 62184 | V38: 314117 | W38: 39108 | X38: 353225 | Y38: 15109 | Z38: 9.4 | AA38: 31790.25
B39: 2026-2027 | E39: 38 | F39: 075 | G39: San Francisco County (Unincorporated) | H39: 0 | I39: 0 | J39: 0 | K39: 0 | L39: 0 | M39: 0 | N39: 0 | O39: 0 | P39: 0 | Q39: 0 | R39: 0 | S39: 0 | T39: 0 | U39: 0 | V39: 0 | W39: 0 | Z39: 10.6 | AA39: 0
E40: 39 | F40: 077 | G40: San Joaquin County (Unincorporated) | H40: 37701 | I40: 50428 | J40: 384 | K40: 3698 | L40: 343 | M40: 25620 | N40: 3612 | O40: 44217 | P40: 45548 | Q40: 27781 | R40: 5232 | S40: 25045 | T40: 20609 | U40: 11098 | V40: 79091 | W40: 9038 | X40: 88129 | Y40: 16337 | Z40: 11.7 | AA40: 7931.61
E41: 40 | F41: 079 | G41: San Luis Obispo County (Unincorporated) | H41: 23293 | I41: 60033 | J41: 312 | K41: 627 | L41: 80 | M41: 51892 | N41: 3546 | O41: 42471 | P41: 40855 | Q41: 18588 | R41: 8985 | S41: 17266 | T41: 19806 | U41: 18681 | V41: 73280 | W41: 10046 | X41: 83326 | Y41: 3075 | Z41: 10.8 | AA41: 7499.34
E42: 41 | F42: 081 | G42: San Mateo County (Unincorporated) | H42: 14538 | I42: 31081 | J42: 59 | K42: 403 | L42: 225 | M42: 21665 | N42: 2314 | O42: 22850 | P42: 22769 | Q42: 10787 | R42: 2375 | S42: 11295 | T42: 13280 | U42: 7882 | V42: 42123 | W42: 3496 | X42: 45619 | Y42: 6169 | Z42: 7.8 | AA42: 4105.71
E43: 42 | F43: 083 | G43: Santa Barbara County (Unincorporated) | H43: 32064 | I43: 91812 | J43: 460 | K43: 1758 | L43: 245 | M43: 71548 | N43: 6288 | O43: 63850 | P43: 60026 | Q43: 30897 | R43: 18517 | S43: 24591 | T43: 26267 | U43: 23604 | V43: 111419 | W43: 12457 | X43: 123876 | Y43: 10808 | Z43: 10 | AA43: 11148.84
E44: 43 | F44: 085 | G44: Santa Clara County (Unincorporated) | H44: 19613 | I44: 43021 | J44: 115 | K44: 1606 | L44: 331 | M44: 24913 | N44: 3174 | O44: 30599 | P44: 32035 | Q44: 11448 | R44: 9665 | S44: 21012 | T44: 13184 | U44: 7325 | V44: 58360 | W44: 4274 | X44: 62634 | Y44: 12404 | Z44: 7.7 | AA44: 5637.06
E45: 44 | F45: 087 | G45: Santa Cruz County (Unincorporated) | H45: 28008 | I45: 81974 | J45: 366 | K45: 745 | L45: 126 | M45: 70865 | N45: 5821 | O45: 55746 | P45: 54236 | Q45: 22382 | R45: 5770 | S45: 26629 | T45: 31470 | U45: 23731 | V45: 96820 | W45: 13162 | X45: 109982 | Y45: 3336 | Z45: 8.8 | AA45: 9898.38
E46: 45 | F46: 089 | G46: Shasta County (Unincorporated) | H46: 3120 | I46: 30458 | J46: 918 | K46: 107 | L46: 46 | M46: 26436 | N46: 2188 | O46: 16682 | P46: 16896 | Q46: 7652 | R46: 1300 | S46: 6682 | T46: 9618 | U46: 8326 | V46: 28243 | W46: 5335 | X46: 33578 | Y46: 598 | Z46: 17.9 | AA46: 3022.02
E47: 46 | F47: 091 | G47: Sierra County (Unincorporated) | H47: 203 | I47: 1732 | J47: 8 | K47: 3 | L47: 0 | M47: 1577 | N47: 123 | O47: 927 | P47: 1008 | Q47: 342 | R47: 41 | S47: 386 | T47: 573 | U47: 593 | V47: 1622 | W47: 313 | X47: 1935 | Y47: 7 | Z47: 20.3 | AA47: 174.15
E48: 47 | F48: 093 | G48: Siskiyou County (Unincorporated) | H48: 638 | I48: 4963 | J48: 339 | K48: 61 | L48: 5 | M48: 4021 | N48: 385 | O48: 2823 | P48: 2778 | Q48: 1103 | R48: 211 | S48: 1041 | T48: 1577 | U48: 1669 | V48: 4445 | W48: 1156 | X48: 5601 | Y48: 88 | Z48: 19.1 | AA48: 504.09
E49: 48 | F49: 095 | G49: Solano County (Unincorporated) | H49: 1093 | I49: 4835 | J49: 24 | K49: 145 | L49: 16 | M49: 4030 | N49: 357 | O49: 3020 | P49: 2908 | Q49: 1084 | R49: 253 | S49: 1154 | T49: 1893 | U49: 1544 | V49: 5008 | W49: 920 | X49: 5928 | Y49: 229 | Z49: 10.9 | AA49: 533.52
E50: 49 | F50: 097 | G50: Sonoma County (Unincorporated) | H50: 13718 | I50: 36257 | J50: 289 | K50: 461 | L50: 129 | M50: 30176 | N50: 2390 | O50: 25566 | P50: 24409 | Q50: 10257 | R50: 2566 | S50: 12061 | T50: 13353 | U50: 11738 | V50: 43459 | W50: 6516 | X50: 49975 | Y50: 2450 | Z50: 10.7 | AA50: 4497.75
E51: 50 | F51: 099 | G51: Stanislaus County (Unincorporated) | H51: 35755 | I51: 24478 | J51: 274 | K51: 872 | L51: 220 | M51: 18652 | N51: 2015 | O51: 29624 | P51: 30609 | Q51: 18391 | R51: 4004 | S51: 15648 | T51: 14751 | U51: 7439 | V51: 52945 | W51: 7288 | X51: 60233 | Y51: 2216 | Z51: 13.1 | AA51: 5420.97
E52: 51 | F52: 101 | G52: Sutter County (Unincorporated) | H52: 960 | I52: 3688 | J52: 58 | K52: 18 | L52: 2 | M52: 3208 | N52: 3993 | O52: 2297 | P52: 2351 | Q52: 1204 | R52: 241 | S52: 1149 | T52: 1300 | U52: 754 | V52: 3935 | W52: 713 | X52: 4648 | Y52: 53 | Z52: 13.6 | AA52: 418.32
E53: 52 | F53: 103 | G53: Tehama County (Unincorporated) | H53: 2436 | I53: 7947 | J53: 193 | K53: 60 | L53: 15 | M53: 6818 | N53: 655 | O53: 5099 | P53: 5284 | Q53: 2658 | R53: 467 | S53: 2335 | T53: 2706 | U53: 2217 | V53: 8776 | W53: 1607 | X53: 10383 | Y53: 166 | Z53: 18.2 | AA53: 934.47
E54: 53 | F54: 105 | G54: Trinity County (Unincorporated) | H54: 814 | I54: 13080 | J54: 369 | K54: 40 | L54: 21 | M54: 9646 | N54: 854 | O54: 6099 | P54: 7795 | Q54: 2622 | R54: 603 | S54: 3467 | T54: 3910 | U54: 3292 | V54: 11964 | W54: 1930 | X54: 13894 | Y54: 387 | Z54: 22.7 | AA54: 1250.46
E55: 54 | F55: 107 | G55: Tulare County (Unincorporated) | H55: 61456 | I55: 12514 | J55: 249 | K55: 277 | L55: 111 | M55: 8402 | N55: 822 | O55: 36763 | P55: 37207 | Q55: 26650 | R55: 5432 | S55: 18613 | T55: 15429 | U55: 7846 | V55: 64994 | W55: 8976 | X55: 73970 | Y55: 2426 | Z55: 10.7 | AA55: 6657.3
E56: 55 | F56: 109 | G56: Tuolumne County (Unincorporated) | H56: 3186 | I56: 26074 | J56: 363 | K56: 108 | L56: 53 | M56: 23228 | N56: 1819 | O56: 14879 | P56: 14381 | Q56: 5623 | R56: 1170 | S56: 5735 | T56: 7617 | U56: 9115 | V56: 23679 | W56: 5581 | X56: 29260 | Y56: 324 | Z56: 18.4 | AA56: 2633.4
E57: 56 | F57: 111 | G57: Ventura County (Unincorporated) | H57: 17813 | I57: 39329 | J57: 155 | K57: 419 | L57: 51 | M57: 31959 | N57: 2453 | O57: 28914 | P57: 28228 | Q57: 13771 | R57: 3021 | S57: 12830 | T57: 16615 | U57: 10905 | V57: 50953 | W57: 6189 | X57: 57142 | Y57: 3985 | Z57: 9.9 | AA57: 5142.78
E58: 57 | F58: 113 | G58: Yolo County (Unincorporated) | H58: 6621 | I58: 12615 | J58: 164 | K58: 543 | L58: 168 | M58: 8462 | N58: 730 | O58: 10224 | P58: 9012 | Q58: 7642 | R58: 3171 | S58: 3394 | T58: 2913 | U58: 2116 | V58: 17283 | W58: 1953 | X58: 19236 | Y58: 2485 | Z58: 10.3 | AA58: 1731.24
E59: 58 | F59: 115 | G59: Yuba County (Unincorporated) | H59: 17004 | I59: 35138 | J59: 619 | K59: 1981 | L59: 269 | M59: 23541 | N59: 3888 | O59: 26019 | P59: 26123 | Q59: 16919 | R59: 3188 | S59: 15071 | T59: 11162 | U59: 5802 | V59: 45048 | W59: 7094 | X59: 52142 | Y59: 4541 | Z59: 16.5 | AA59: 4692.78
E60: 59 | F60: 00296 | G60: Adelanto city | H60: 24158 | I60: 13888 | J60: 854 | K60: 7396 | L60: 284 | M60: 8455 | N60: 5323 | O60: 18155 | P60: 19891 | Q60: 13478 | R60: 2987 | S60: 11369 | T60: 7507 | U60: 2705 | V60: 33733 | W60: 4313 | X60: 38046 | Y60: 1049 | Z60: Adelanto city | AA60: 3424.14
E61: 60 | F61: 00394 | G61: Agoura Hills city | H61: 2319 | I61: 17980 | J61: 66 | K61: 262 | L61: 17 | M61: 15279 | N61: 2167 | O61: 10462 | P61: 9837 | Q61: 4897 | R61: 1102 | S61: 4067 | T61: 6208 | U61: 4025 | V61: 18327 | W61: 1972 | X61: 20299 | Y61: 1776 | Z61: Agoura Hills city | AA61: 1826.91
E62: 61 | F62: 00562 | G62: Alameda city | H62: 9435 | I62: 68845 | J62: 441 | K62: 4608 | L62: 399 | M62: 34102 | N62: 10074 | O62: 40952 | P62: 37328 | Q62: 17107 | R62: 3773 | S62: 22215 | T62: 21474 | U62: 13711 | V62: 70906 | W62: 7374 | X62: 78280 | Y62: 25412 | Z62: Alameda city | AA62: 7045.2
E63: 62 | F63: 00674 | G63: Albany city | H63: 2665 | I63: 17606 | J63: 90 | K63: 716 | L63: 17 | M63: 9446 | N63: 2687 | O63: 10614 | P63: 9657 | Q63: 5580 | R63: 1181 | S63: 5805 | T63: 4669 | U63: 3036 | V63: 19164 | W63: 1107 | X63: 20271 | Y63: 6184 | Z63: Albany city | AA63: 1824.39
E64: 63 | F64: 00884 | G64: Alhambra city | H64: 29910 | I64: 52958 | J64: 1061 | K64: 1537 | L64: 91 | M64: 11898 | N64: 10749 | O64: 43741 | P64: 39127 | Q64: 15323 | R64: 4997 | S64: 25231 | T64: 22016 | U64: 15301 | V64: 74181 | W64: 8687 | X64: 82868 | Y64: 42977 | Z64: Alhambra city | AA64: 7458.12
E65: 64 | F65: 00947 | G65: Aliso Viejo city | H65: 9836 | I65: 42340 | J65: 232 | K65: 1009 | L65: 182 | M65: 31290 | N65: 7365 | O65: 27324 | P65: 24852 | Q65: 13026 | R65: 3324 | S65: 14679 | T65: 15660 | U65: 5487 | V65: 48978 | W65: 3198 | X65: 52176 | Y65: 8642 | Z65: Aliso Viejo city | AA65: 4695.84
E66: 65 | F66: 01444 | G66: Alturas city | H66: 415 | I66: 2300 | J66: 110 | K66: 31 | L66: 7 | M66: 2117 | N66: 252 | O66: 1425 | P66: 1290 | Q66: 717 | R66: 129 | S66: 665 | T66: 667 | U66: 537 | V66: =X66-W66 -> 2241 | W66: 474 | X66: 2715 | Y66: 36 | Z66: Alturas city | AA66: 244.35
E67: 66 | F67: 01514 | G67: Amador city | H67: 21 | I67: 179 | J67: 4 | K67: 1 | L67: 0 | M67: 162 | N67: 26 | O67: 104 | P67: 96 | Q67: 33 | R67: 10 | S67: 56 | T67: 43 | U67: 58 | V67: 188 | W67: 12 | X67: 200 | Y67: 1 | Z67: Amador City city | AA67: =X67*0.09 -> 18
E68: 67 | F68: 01640 | G68: American Canyon city | H68: 6705 | I68: 15132 | J68: 227 | K68: 1480 | L68: 157 | M68: 5313 | N68: 3152 | O68: 11196 | P68: 10641 | Q68: 5986 | R68: 1542 | S68: 5361 | T68: 6033 | U68: 2915 | V68: 19572 | W68: 2265 | X68: 21837 | Y68: 7774 | Z68: American Canyon city | AA68: 1965.33
E69: 68 | F69: 02000 | G69: Anaheim city | H69: 186651 | I69: 160173 | J69: 6207 | K69: 9253 | L69: 1533 | M69: 107740 | N69: 58787 | O69: 175747 | P69: 171077 | Q69: 88131 | R69: 26685 | S69: 102097 | T69: 85889 | U69: 44022 | V69: 315310 | W69: 31514 | X69: 346824 | Y69: 61539 | Z69: Anaheim city | AA69: 31214.16
E70: 69 | F70: 02042 | G70: Anderson city | H70: 1587 | I70: 9736 | J70: 430 | K70: 119 | L70: 30 | M70: 8588 | N70: 1292 | O70: 5969 | P70: 5354 | Q70: 3155 | R70: 585 | S70: 2974 | T70: 2565 | U70: 2044 | V70: 8837 | W70: 2486 | X70: 11323 | Y70: 339 | Z70: Anderson city | AA70: 1019.07
E71: 70 | F71: 02112 | G71: Angels city | H71: 459 | I71: 3208 | J71: 77 | K71: 27 | L71: 7 | M71: 2975 | N71: 395 | O71: 1935 | P71: 1732 | Q71: 739 | R71: 130 | S71: 720 | T71: 956 | U71: 1122 | V71: 2835 | W71: 832 | X71: 3667 | Y71: 46 | Z71: Angels city | AA71: 330.03
E72: 71 | F72: 02252 | G72: Antioch city | H72: 41965 | I72: 73326 | J72: 1696 | K72: 24057 | L72: 1543 | M72: 32703 | N72: 16249 | O72: 59181 | P72: 56110 | Q72: 31398 | R72: 8139 | S72: 30797 | T72: 29959 | U72: 14998 | V72: 98590 | W72: 16701 | X72: 115291 | Y72: 15015 | Z72: Antioch city | AA72: 10376.19
E73: 72 | F73: 02364 | G73: Apple Valley town | H73: 28989 | I73: 46802 | J73: 1333 | K73: 6311 | L73: 275 | M73: 41481 | N73: 11369 | O73: 39035 | P73: 36756 | Q73: 21143 | R73: 4439 | S73: 18044 | T73: 17898 | U73: 14267 | V73: 63476 | W73: 12315 | X73: 75791 | Y73: 2609 | Z73: Apple Valley town | AA73: 6821.19
E74: 73 | F74: 02462 | G74: Arcadia city | H74: 7401 | I74: 49280 | J74: 233 | K74: 959 | L74: 46 | M74: 11378 | N74: 4135 | O74: 29607 | P74: 27074 | Q74: 12703 | R74: 3263 | S74: 13005 | T74: 16532 | U74: 11178 | V74: 51419 | W74: 5262 | X74: 56681 | Y74: 36772 | Z74: Arcadia city | AA74: 5101.29
E75: 74 | F75: 02476 | G75: Arcata city | H75: 3739 | I75: 15118 | J75: 558 | K75: 523 | L75: 46 | M75: 13226 | N75: 2366 | O75: 9626 | P75: 9231 | Q75: 3857 | R75: 3850 | S75: 5847 | T75: 3092 | U75: 2211 | V75: 17067 | W75: 1790 | X75: 18857 | Y75: 501 | Z75: Arcata city | AA75: 1697.13
E76: 75 | F76: 02868 | G76: Arroyo Grande city | H76: 3646 | I76: 14795 | J76: 160 | K76: 181 | L76: 15 | M76: 13595 | N76: 2567 | O76: 9696 | P76: 8745 | Q76: 3985 | R76: 876 | S76: 4107 | T76: 4795 | U76: 4678 | V76: 15767 | W76: 2674 | X76: 18441 | Y76: 708 | Z76: Arroyo Grande city | AA76: 1659.69
E77: 76 | F77: 02896 | G77: Artesia city | H77: 5825 | I77: 10570 | J77: 161 | K77: 652 | L77: 67 | M77: 3509 | N77: 1838 | O77: 8236 | P77: 8159 | Q77: 3504 | R77: 1098 | S77: 4440 | T77: 4392 | U77: 2961 | V77: 14595 | W77: 1800 | X77: 16395 | Y77: 6921 | Z77: Artesia city | AA77: 1475.55
E78: 77 | F78: 02924 | G78: Arvin city | H78: 18317 | I78: 1178 | J78: 397 | K78: 178 | L78: 6 | M78: 5069 | N78: 3569 | O78: 9800 | P78: 9695 | Q78: 7750 | R78: 1580 | S78: 5214 | T78: 3579 | U78: 1372 | V78: 18428 | W78: 1067 | X78: 19495 | Y78: 123 | Z78: Arvin city | AA78: 1754.55
E79: 78 | F79: 03064 | G79: Atascadero city | H79: 5850 | I79: 23923 | J79: 361 | K79: 462 | L79: 38 | M79: 21947 | N79: 4161 | O79: 15212 | P79: 14561 | Q79: 6814 | R79: 1386 | S79: 7949 | T79: 7556 | U79: 6068 | V79: 26458 | W79: 3315 | X79: 29773 | Y79: 910 | Z79: Atascadero city | AA79: 2679.57
E80: 79 | F80: 03092 | G80: Atherton town | H80: 484 | I80: 6704 | J80: 14 | K80: 100 | L80: 45 | M80: 4844 | N80: 624 | O80: 3690 | P80: 3498 | Q80: 1801 | R80: 620 | S80: 919 | T80: 2001 | U80: 1847 | V80: 6623 | W80: 565 | X80: 7188 | Y80: 1411 | Z80: Atherton town | AA80: 646.92
E81: 80 | F81: 03162 | G81: Atwater city | H81: 19042 | I81: 12928 | J81: 972 | K81: 1094 | L81: 81 | M81: 12984 | N81: 6132 | O81: 16323 | P81: 15647 | Q81: 10356 | R81: 2068 | S81: 8547 | T81: 6902 | U81: 4097 | V81: 27854 | W81: 4116 | X81: 31970 | Y81: 1779 | Z81: Atwater city | AA81: 2877.3
E82: 81 | F82: 03204 | G82: Auburn city | H82: 1693 | I82: 12083 | J82: 154 | K82: 123 | L82: 17 | M82: 11065 | N82: 1501 | O82: 7293 | P82: 6483 | Q82: 2657 | R82: 676 | S82: 2982 | T82: 3803 | U82: 3658 | V82: 12144 | W82: 1632 | X82: 13776 | Y82: 317 | Z82: Auburn city | AA82: 1239.84
E83: 82 | F83: 03274 | G83: Avalon city | H83: 1903 | I83: 1557 | J83: 46 | K83: 30 | L83: 11 | M83: 1699 | N83: 508 | O83: 1797 | P83: 1663 | Q83: 834 | R83: 200 | S83: 859 | T83: 984 | U83: 583 | V83: 3365 | W83: 95 | X83: 3460 | Y83: 33 | Z83: Avalon city | AA83: 311.4
E84: 83 | F84: 03302 | G84: Avenal city | H84: 11545 | I84: 2151 | J84: 254 | K84: 125 | L84: 15 | M84: 3216 | N84: 1678 | O84: 4565 | P84: 9131 | Q84: 3578 | R84: 879 | S84: 4937 | T84: 3589 | U84: 713 | V84: 12824 | W84: 872 | X84: 13696 | Y84: 92 | Z84: Avenal city | AA84: 1232.64
E85: 84 | F85: 03386 | G85: Azusa city | H85: 32020 | I85: 17980 | J85: 1314 | K85: 1752 | L85: 74 | M85: 13800 | N85: 10053 | O85: 25742 | P85: 24258 | Q85: 12795 | R85: 5216 | S85: 14172 | T85: 12030 | U85: 5787 | V85: 45578 | W85: 4422 | X85: 50000 | Y85: 7384 | Z85: Azusa city | AA85: 4500
E86: 85 | F86: 03526 | G86: Bakersfield city | H86: 212822 | I86: 190633 | J86: 2153 | K86: 26402 | L86: 505 | M86: 178069 | N86: 66956 | O86: 206326 | P86: 197129 | Q86: 128211 | R86: 28309 | S86: 113784 | T86: 86939 | U86: 46212 | V86: 363431 | W86: 40024 | X86: 403455 | Z86: Bakersfield city | AA86: 36310.95
E87: 86 | F87: 03666 | G87: Baldwin Park city | H87: 53683 | I87: 18493 | J87: 92 | K87: 609 | L87: 44 | M87: 17992 | N87: 13524 | O87: 36616 | P87: 35560 | Q87: 18522 | R87: 5630 | S87: 19952 | T87: 18429 | U87: 9643 | V87: 64913 | W87: 7263 | X87: 72176 | Z87: Baldwin Park city | AA87: 6495.84
E88: 87 | F88: 03820 | G88: Banning city | H88: 13427 | I88: 16078 | J88: 316 | K88: 2112 | L88: 26 | M88: 15232 | N88: 4017 | O88: 15528 | P88: 13977 | Q88: 6824 | R88: 1482 | S88: 6444 | T88: 6477 | U88: 8278 | V88: 23067 | W88: 6438 | X88: 29505 | Z88: Banning city | AA88: 2655.45
E89: 88 | F89: 04030 | G89: Barstow city | H89: 11295 | I89: 14120 | J89: 305 | K89: 4684 | L89: 312 | M89: 12786 | N89: 4247 | O89: 13080 | P89: 12335 | Q89: 8605 | R89: 1763 | S89: 6693 | T89: 5303 | U89: 3051 | V89: 21442 | W89: 3973 | X89: 25415 | Z89: Barstow city | AA89: 2287.35
E90: 89 | F90: 04758 | G90: Beaumont city | H90: 22546 | I90: 30490 | J90: 309 | K90: 4167 | L90: 95 | M90: 28387 | N90: 8586 | O90: 27286 | P90: 25750 | Q90: 15802 | R90: 3001 | S90: 14260 | T90: 11709 | U90: 8264 | V90: 47947 | W90: 5089 | X90: 53036 | Z90: Beaumont city | AA90: 4773.24
E91: 90 | F91: 04870 | G91: Bell city | H91: 31392 | I91: 2167 | J91: 35 | K91: 124 | L91: 15 | M91: 1996 | N91: 7515 | O91: 16978 | P91: 16581 | Q91: 9994 | R91: 2696 | S91: 9649 | T91: 7844 | U91: 3376 | V91: 30539 | W91: 3020 | X91: 33559 | Z91: Bell city | AA91: 3020.31
E92: 91 | F92: 04996 | G92: Bell Gardens city | H92: 37994 | I92: 1507 | J92: 98 | K92: 220 | L92: 19 | M92: 1383 | N92: 7682 | O92: 19851 | P92: 38419 | Q92: 11961 | R92: 3355 | S92: 11443 | T92: 9078 | U92: 3664 | V92: 32218 | W92: 7283 | X92: 39501 | Z92: Bell Gardens city | AA92: 3555.09
E93: 92 | F93: 04982 | G93: Bellflower city | H93: 45250 | I93: 33940 | J93: 183 | K93: 10131 | L93: 531 | M93: 31891 | N93: 13184 | O93: 40771 | P93: 19650 | Q93: 20832 | R93: 5850 | S93: 23147 | T93: 19829 | U93: 9532 | V93: 76554 | W93: 2636 | X93: 79190 | Z93: Bellflower city | AA93: 7127.1
E94: 93 | F94: 05108 | G94: Belmont city | H94: 3523 | I94: 24812 | J94: 22 | K94: 348 | L94: 132 | M94: 22704 | N94: 3542 | O94: 14427 | P94: 13908 | Q94: 6753 | R94: 1307 | S94: 8214 | T94: 7490 | U94: 4571 | V94: 26170 | W94: 2165 | X94: 28335 | Z94: Belmont city | AA94: 2550.15
E95: 94 | F95: 05164 | G95: Belvedere city | H95: 109 | I95: 2017 | J95: 5 | K95: 17 | L95: 0 | M95: 1943 | N95: 148 | O95: 1147 | P95: 979 | Q95: 499 | R95: 62 | S95: 238 | T95: 613 | U95: 714 | V95: 2013 | W95: 113 | X95: 2126 | Z95: Belvedere city | AA95: 191.34
E96: 95 | F96: 05290 | G96: Benicia city | H96: 4008 | I96: 23123 | J96: 62 | K96: 1327 | L96: 101 | M96: 20896 | N96: 4042 | O96: 14250 | P96: 12881 | Q96: 5988 | R96: 1289 | S96: 6021 | T96: 7961 | U96: 5872 | V96: 24171 | W96: 2960 | X96: 27131 | Z96: Benicia city | AA96: 2441.79
E97: 96 | F97: 06000 | G97: Berkeley city | H97: 17018 | I97: 107303 | J97: 226 | K97: 9495 | L97: 253 | M97: 98234 | N97: 14580 | O97: 63408 | P97: 60913 | Q97: 25452 | R97: 21960 | S97: 34722 | T97: 23261 | U97: 18926 | V97: 112672 | W97: 11649 | X97: 124321 | Z97: Berkeley city | AA97: 11188.89
E98: 97 | F98: 06308 | G98: Beverly Hills city | H98: 2218 | I98: 30483 | J98: 13 | K98: 662 | L98: 11 | M98: 28706 | N98: 2857 | O98: 17674 | P98: 15027 | Q98: 6262 | R98: 1870 | S98: 8016 | T98: 8867 | U98: 7686 | V98: 29500 | W98: 3201 | X98: 32701 | Z98: Beverly Hills city | AA98: 2943.09
E99: 98 | F99: 06434 | G99: Big Bear Lake city | H99: 1205 | I99: 3841 | J99: 21 | K99: 46 | L99: 6 | M99: 3617 | N99: 616 | O99: 2451 | P99: 2595 | Q99: 913 | R99: 183 | S99: 1065 | T99: 1525 | U99: 1360 | V99: 4497 | W99: 549 | X99: 5046 | Z99: Big Bear Lake city | AA99: 454.14
E100: 99 | F100: 06560 | G100: Biggs city | H100: 778 | I100: 1186 | J100: 31 | K100: 19 | L100: 0 | M100: 1114 | N100: 201 | O100: 998 | P100: 966 | Q100: 601 | R100: 119 | S100: 464 | T100: 509 | U100: 271 | V100: 1513 | W100: 451 | X100: 1964 | Z100: Biggs city | AA100: 176.76
E101: 100 | F101: 06798 | G101: Bishop city | H101: 1146 | I101: 2673 | J101: 83 | K101: 8 | L101: 0 | M101: 2483 | N101: 521 | O101: 1932 | P101: 1887 | Q101: 832 | R101: 176 | S101: 1057 | T101: 1009 | U101: 745 | V101: 2976 | W101: 843 | X101: 3819 | Z101: Bishop city | AA101: 343.71
E102: 101 | F102: 07162 | G102: Blue Lake city | H102: 96 | I102: 1112 | J102: 53 | K102: 5 | L102: 2 | M102: 1023 | N102: 122 | O102: 649 | P102: 559 | Q102: 241 | R102: 50 | S102: 333 | T102: 338 | U102: 246 | V102: 1026 | W102: 182 | X102: 1208 | Z102: Blue Lake city | AA102: 108.72
E103: 102 | F103: 07218 | G103: Blythe city | H103: 10873 | I103: 7444 | J103: 158 | K103: 2007 | L103: 21 | M103: 6932 | N103: 2017 | O103: 6134 | P103: 12183 | Q103: 3765 | R103: 1345 | S103: 6648 | T103: 4870 | U103: 1689 | V103: 16233 | W103: 2084 | X103: 18317 | Z103: Blythe city | AA103: 1648.53
E104: 103 | F104: 07946 | G104: Bradbury city | H104: 184 | I104: 737 | J104: 1 | K104: 17 | L104: 0 | M104: 707 | N104: 109 | O104: 465 | P104: 456 | Q104: 168 | R104: 55 | S104: 184 | T104: 306 | U104: 208 | V104: 853 | W104: 68 | X104: 921 | Z104: Bradbury city | AA104: 82.89
E105: 104 | F105: 08058 | G105: Brawley city | H105: 22750 | I105: 3666 | J105: 28 | K105: 303 | L105: 11 | M105: 3426 | N105: 7050 | O105: 13686 | P105: 12730 | Q105: 8646 | R105: 1656 | S105: 6861 | T105: 5794 | U105: 3459 | V105: 22440 | W105: 3976 | X105: 26416 | Z105: Brawley city | AA105: 2377.44
E106: 105 | F106: 08100 | G106: Brea city | H106: 12972 | I106: 34353 | J106: 101 | K106: 784 | L106: 54 | M106: 32507 | N106: 6609 | O106: 24482 | P106: 22843 | Q106: 11084 | R106: 2828 | S106: 13007 | T106: 12582 | U106: 7824 | V106: 43682 | W106: 3643 | X106: 47325 | Z106: Brea city | AA106: 4259.25
E107: 106 | F107: 08142 | G107: Brentwood city | H107: 17121 | I107: 47171 | J107: 161 | K107: 4230 | L107: 289 | M107: 42957 | N107: 10229 | O107: 33228 | P107: 31064 | Q107: 18723 | R107: 3685 | S107: 14860 | T107: 16598 | U107: 10426 | V107: 56443 | W107: 7849 | X107: 64292 | Z107: Brentwood city | AA107: 5786.28
E108: 107 | F108: 08310 | G108: Brisbane city | H108: 868 | I108: 3983 | J108: 10 | K108: 88 | L108: 24 | M108: 3653 | N108: 690 | O108: 2435 | P108: 2416 | Q108: 979 | R108: 194 | S108: 1422 | T108: 1465 | U108: 791 | V108: 4438 | W108: 413 | X108: 4851 | Z108: Brisbane city | AA108: 436.59
E109: 108 | F109: 08758 | G109: Buellton city | H109: 1676 | I109: 3485 | J109: 28 | K109: 30 | L109: 5 | M109: 3252 | N109: 893 | O109: 2608 | P109: 2553 | Q109: 1340 | R109: 206 | S109: 1261 | T109: 1442 | U109: 912 | V109: 4604 | W109: 557 | X109: 5161 | Z109: Buellton city | AA109: 464.49
E110: 109 | F110: 08786 | G110: Buena Park city | H110: 34330 | I110: 49704 | J110: 174 | K110: 2504 | L110: 373 | M110: 47226 | N110: 11340 | O110: 42889 | P110: 41145 | Q110: 20315 | R110: 5938 | S110: 23695 | T110: 22256 | U110: 11830 | V110: 75585 | W110: 8449 | X110: 84034 | Z110: Buena Park city | AA110: 7563.06
E111: 110 | F111: 08954 | G111: Burbank city | H111: 25961 | I111: 81376 | J111: 222 | K111: 2891 | L111: 98 | M111: 76461 | N111: 14624 | O111: 55671 | P111: 51666 | Q111: 21024 | R111: 6126 | S111: 33839 | T111: 28823 | U111: 17525 | V111: 95812 | W111: 11525 | X111: 107337 | Z111: Burbank city | AA111: 9660.33
E112: 111 | F112: 09066 | G112: Burlingame city | H112: 4263 | I112: 27123 | J112: 20 | K112: 284 | L112: 105 | M112: 25147 | N112: 3658 | O112: 16239 | P112: 15147 | Q112: 7641 | R112: 1135 | S112: 9219 | T112: 8312 | U112: 5079 | V112: 29383 | W112: 2003 | X112: 31386 | Z112: Burlingame city | AA112: 2824.74
E113: 112 | F113: 09598 | G113: Calabasas city | H113: 1954 | I113: 21287 | J113: 31 | K113: 515 | L113: 12 | M113: 20087 | N113: 1200 | O113: 12020 | P113: 11221 | Q113: 5541 | R113: 1561 | S113: 4551 | T113: 7077 | U113: 4511 | V113: 21425 | W113: 1816 | X113: 23241 | Z113: Calabasas city | AA113: 2091.69
E114: 113 | F114: 09710 | G114: Calexico city | H114: 37548 | I114: 1085 | J114: 6 | K114: 43 | L114: 4 | M114: 1002 | N114: 83 | O114: 20599 | P114: 18034 | Q114: 11203 | R114: 2738 | S114: 9014 | T114: 9526 | U114: 6152 | V114: 33217 | W114: 5416 | X114: 38633 | Z114: Calexico city | AA114: 3476.97
E115: 114 | F115: 09780 | G115: California city | H115: 5494 | I115: 9479 | J115: 85 | K115: 3385 | L115: 46 | M115: 8590 | N115: 889 | O115: 6466 | P115: 8507 | Q115: 3959 | R115: 1090 | S115: 4655 | T115: 3463 | U115: 1806 | V115: 12672 | W115: 2301 | X115: 14973 | Z115: California city | AA115: 1347.57
E116: 115 | F116: 09864 | G116: Calimesa city | H116: 2894 | I116: 7132 | J116: 52 | K116: 167 | L116: 12 | M116: 6701 | N116: 431 | O116: 5139 | P116: 4887 | Q116: 2189 | R116: 432 | S116: 2263 | T116: 2641 | U116: 2501 | V116: 8648 | W116: 1378 | X116: 10026 | Z116: Calimesa city | AA116: 902.34
E117: 116 | F117: 09878 | G117: Calipatria city | H117: 4960 | I117: 1555 | J117: 36 | K117: 969 | L117: 13 | M117: 1492 | N117: 63 | O117: 1861 | P117: 4654 | Q117: 1340 | R117: 544 | S117: 3052 | T117: 1172 | U117: 407 | V117: 6193 | W117: 322 | X117: 6515 | Z117: Calipatria city | AA117: 586.35
E118: 117 | F118: 09892 | G118: Calistoga city | H118: 2698 | I118: 2530 | J118: 9 | K118: 23 | L118: 3 | M118: 2415 | N118: 115 | O118: 2727 | P118: 2501 | Q118: 1186 | R118: 268 | S118: 1175 | T118: 1344 | U118: 1255 | V118: 4403 | W118: 825 | X118: 5228 | Z118: Calistoga city | AA118: 470.52
E119: 118 | F119: 10046 | G119: Camarillo city | H119: 19356 | I119: 51385 | J119: 131 | K119: 1524 | L119: 160 | M119: 47607 | N119: 3778 | O119: 36755 | P119: 33986 | Q119: 16053 | R119: 4065 | S119: 17016 | T119: 18307 | U119: 15300 | V119: 63143 | W119: 7598 | X119: 70741 | Z119: Camarillo city | AA119: 6366.69
E120: 119 | F120: 10345 | G120: Campbell city | H120: 8424 | I120: 35535 | J120: 90 | K120: 1022 | L120: 132 | M120: 32856 | N120: 2679 | O120: 22398 | P120: 21561 | Q120: 9531 | R120: 2099 | S120: 14082 | T120: 11840 | U120: 6407 | V120: 40188 | W120: 3771 | X120: 43959 | Z120: Campbell city | AA120: 3956.31
E121: 120 | F121: 10928 | G121: Canyon Lake city | H121: 1668 | I121: 9414 | J121: 45 | K121: 199 | L121: 15 | M121: 8852 | N121: 562 | O121: 5626 | P121: 5456 | Q121: 2506 | R121: 529 | S121: 2462 | T121: 3274 | U121: 2311 | V121: 9893 | W121: 1189 | X121: 11082 | Z121: Canyon Lake city | AA121: 997.38
E122: 121 | F122: 11040 | G122: Capitola city | H122: 2227 | I122: 7711 | J122: 31 | K122: 103 | L122: 5 | M122: 7138 | N122: 573 | O122: 5306 | P122: 4632 | Q122: 1644 | R122: 491 | S122: 2641 | T122: 2786 | U122: 2376 | V122: 8516 | W122: 1422 | X122: 9938 | Z122: Capitola city | AA122: 894.42
E123: 122 | F123: 11194 | G123: Carlsbad city | H123: 17302 | I123: 97444 | J123: 259 | K123: 1231 | L123: 196 | M123: 90515 | N123: 6929 | O123: 59009 | P123: 55737 | Q123: 27633 | R123: 5689 | S123: 26379 | T123: 33305 | U123: 21740 | V123: 104909 | W123: 9837 | X123: 114746 | Z123: Carlsbad city | AA123: 10327.14
E124: 123 | F124: 11250 | G124: Carmel-by-the-Sea city | H124: 192 | I124: 3028 | J124: 11 | K124: 13 | L124: 2 | M124: 2939 | N124: 89 | O124: 1776 | P124: 1444 | Q124: 370 | R124: 77 | S124: 374 | T124: 911 | U124: 1488 | V124: 2633 | W124: 587 | X124: 3220 | Z124: Carmel-by-the-Sea city | AA124: 289.8
E125: 124 | F125: 11446 | G125: Carpinteria city | H125: 6473 | I125: 6791 | J125: 36 | K125: 73 | L125: 8 | M125: 6359 | N125: 432 | O125: 6886 | P125: 6378 | Q125: 2979 | R125: 704 | S125: 3202 | T125: 3548 | U125: 2831 | V125: 12016 | W125: 1248 | X125: 13264 | Z125: Carpinteria city | AA125: 1193.76
E126: 125 | F126: 11530 | G126: Carson city | H126: 37643 | I126: 57915 | J126: 185 | K126: 21264 | L126: 1585 | M126: 55098 | N126: 2817 | O126: 50038 | P126: 45520 | Q126: 20577 | R126: 6644 | S126: 23775 | T126: 26424 | U126: 18138 | V126: 84341 | W126: 11217 | X126: 95558 | Z126: Carson city | AA126: 8600.22
E127: 126 | F127: 12048 | G127: Cathedral city | H127: 30893 | I127: 20600 | J127: 268 | K127: 1108 | L127: 53 | M127: 19386 | N127: 1214 | O127: 24615 | P127: 26878 | Q127: 12475 | R127: 3265 | S127: 11989 | T127: 13986 | U127: 9778 | V127: 44773 | W127: 6720 | X127: 51493 | Z127: Cathedral city | AA127: 4634.37
E128: 127 | F128: 12524 | G128: Ceres city | H128: 31624 | I128: 17678 | J128: 204 | K128: 897 | L128: 334 | M128: 16291 | N128: 1387 | O128: 24634 | P128: 24668 | Q128: 15896 | R128: 3597 | S128: 13691 | T128: 10879 | U128: 5239 | V128: 43383 | W128: 5919 | X128: 49302 | Z128: Ceres city | AA128: 4437.18
E129: 128 | F129: 12552 | G129: Cerritos city | H129: 7092 | I129: 42486 | J129: 61 | K129: 3155 | L129: 191 | M129: 40797 | N129: 1689 | O129: 25830 | P129: 23748 | Q129: 9973 | R129: 2854 | S129: 10923 | T129: 13543 | U129: 12285 | V129: 45231 | W129: 4347 | X129: 49578 | Z129: Cerritos city | AA129: 4462.02
E130: 129 | F130: 13014 | G130: Chico city | H130: 20638 | I130: 80837 | J130: 938 | K130: 1822 | L130: 320 | M130: 74414 | N130: 6423 | O130: 52293 | P130: 49182 | Q130: 24369 | R130: 13433 | S130: 27588 | T130: 20086 | U130: 15999 | V130: =X130-W130 -> 88603 | W130: 12872 | X130: 101475 | Z130: Chico city | AA130: 9132.75
E131: 130 | F131: 13210 | G131: Chino city | H131: 46841 | I131: 44562 | J131: 256 | K131: 5212 | L131: 102 | M131: 42124 | N131: 2438 | O131: 45731 | P131: 45672 | Q131: 22757 | R131: 6073 | S131: 27176 | T131: 23687 | U131: 11710 | V131: 85358 | W131: 6045 | X131: 91403 | Z131: Chino city | AA131: =X131*0.09 -> 8226.27
E132: 131 | F132: 13214 | G132: Chino Hills city | H132: 22084 | I132: 56327 | J132: 126 | K132: 3116 | L132: 125 | M132: 53626 | N132: 2701 | O132: 39936 | P132: 38475 | Q132: 19166 | R132: 5496 | S132: 20150 | T132: 23503 | U132: 10096 | V132: 72238 | W132: 6173 | X132: 78411 | Z132: Chino Hills city | AA132: 7056.99
E133: 132 | F133: 13294 | G133: Chowchilla city | H133: 9054 | I133: 9985 | J133: 182 | K133: 1817 | L133: 33 | M133: 9383 | N133: 602 | O133: 9507 | P133: 9532 | Q133: 4437 | R133: 1352 | S133: 6210 | T133: 5065 | U133: 1975 | V133: 17988 | W133: 1051 | X133: 19039 | Z133: Chowchilla city | AA133: 1713.51
E134: 133 | F134: 13392 | G134: Chula Vista city | H134: 164698 | I134: 110789 | J134: 488 | K134: 12703 | L134: 1140 | M134: 100067 | N134: 10722 | O134: 141917 | P134: 133570 | Q134: 75527 | R134: 19306 | S134: 75712 | T134: 69131 | U134: 35811 | V134: 249872 | W134: 25615 | X134: 275487 | Z134: Chula Vista city | AA134: 24793.83
E135: 134 | F135: 13588 | G135: Citrus Heights city | H135: 17176 | I135: 70407 | J135: 516 | K135: 3191 | L135: 403 | M135: 64601 | N135: 5806 | O135: 45237 | P135: 42346 | Q135: 19867 | R135: 5563 | S135: 25201 | T135: 21129 | U135: 15823 | V135: 73627 | W135: 13956 | X135: 87583 | Z135: Citrus Heights city | AA135: 7882.47
E136: 135 | F136: 13756 | G136: Claremont city | H136: 9416 | I136: 27850 | J136: 90 | K136: 1783 | L136: 49 | M136: 25631 | N136: 2219 | O136: 20023 | P136: 17243 | Q136: 9095 | R136: 5040 | S136: 7123 | T136: 8676 | U136: 7332 | V136: 33204 | W136: 4062 | X136: 37266 | Z136: Claremont city | AA136: 3353.94
E137: 136 | F137: 13882 | G137: Clayton city | H137: 1242 | I137: 9828 | J137: 17 | K137: 172 | L137: 14 | M137: 9044 | N137: 784 | O137: 5786 | P137: 5284 | Q137: 2566 | R137: 547 | S137: 1928 | T137: 3573 | U137: 2456 | V137: 10164 | W137: 906 | X137: 11070 | Z137: Clayton city | AA137: 996.3
E138: 137 | F138: 13945 | G138: Clearlake city | H138: 5406 | I138: 11279 | J138: 292 | K138: 551 | L138: 23 | M138: 10257 | N138: 1022 | O138: 8220 | P138: 8465 | Q138: 4587 | R138: 903 | S138: 4200 | T138: 4139 | U138: 2856 | V138: 12990 | W138: 3695 | X138: 16685 | Z138: Clearlake city | AA138: 1501.65
E139: 138 | F139: 14190 | G139: Cloverdale city | H139: 3470 | I139: 5526 | J139: 86 | K139: 58 | L139: 16 | M139: 5136 | N139: 390 | O139: 4545 | P139: 4451 | Q139: 2103 | R139: 489 | S139: 2290 | T139: 2233 | U139: 1881 | V139: 7745 | W139: 1251 | X139: 8996 | Z139: Cloverdale city | AA139: 809.64
E140: 139 | F140: 14218 | G140: Clovis city | H140: 36594 | I140: 83530 | J140: 738 | K140: 2993 | L140: 270 | M140: 77730 | N140: 5800 | O140: 62239 | P140: 57885 | Q140: 34742 | R140: 7568 | S140: 32423 | T140: 27677 | U140: 17714 | V140: 107441 | W140: 12683 | X140: 120124 | Z140: Clovis city | AA140: 10811.16
E141: 140 | F141: 14260 | G141: Coachella city | H141: 40421 | I141: 1520 | J141: 83 | K141: 136 | L141: 10 | M141: 1371 | N141: 149 | O141: 21095 | P141: 20846 | Q141: 15154 | R141: 3457 | S141: 12046 | T141: 8206 | U141: 3078 | V141: 38095 | W141: 3846 | X141: 41941 | Z141: Coachella city | AA141: 3774.69
E142: 141 | F142: 14274 | G142: Coalinga city | H142: 11243 | I142: 6347 | J142: 112 | K142: 665 | L142: 26 | M142: 5996 | N142: 351 | O142: 6608 | P142: 10982 | Q142: 4352 | R142: 1320 | S142: 6246 | T142: 4132 | U142: 1540 | V142: 15521 | W142: 2069 | X142: 17590 | Z142: Coalinga city | AA142: 1583.1
E143: 142 | F143: 14498 | G143: Colfax city | H143: 210 | I143: 1785 | J143: 33 | K143: 10 | L143: 5 | M143: 1637 | N143: 148 | O143: 1014 | P143: 981 | Q143: 468 | R143: 130 | S143: 539 | T143: 500 | U143: 358 | V143: 1669 | W143: 326 | X143: 1995 | Z143: Colfax city | AA143: 179.55
E144: 143 | F144: 14736 | G144: Colma town | H144: 621 | I144: 886 | J144: 4 | K144: 50 | L144: 3 | M144: 819 | N144: 67 | O144: 740 | P144: 767 | Q144: 328 | R144: 90 | S144: 378 | T144: 430 | U144: 281 | V144: 1374 | W144: 133 | X144: 1507 | Z144: Colma town | AA144: 135.63
E145: 144 | F145: 14890 | G145: Colton city | H145: 39779 | I145: 14130 | J145: 163 | K145: 4439 | L145: 116 | M145: 13095 | N145: 1035 | O145: 27437 | P145: 26472 | Q145: 15939 | R145: 4257 | S145: 15980 | T145: 12180 | U145: 5553 | V145: 46858 | W145: 7051 | X145: 53909 | Z145: Colton city | AA145: 4851.81
E146: 145 | F146: 14946 | G146: Colusa city | H146: 3757 | I146: 2654 | J146: 65 | K146: 58 | L146: 34 | M146: 2441 | N146: 213 | O146: 3222 | P146: 3189 | Q146: 1947 | R146: 341 | S146: 1638 | T146: 1493 | U146: 992 | V146: 5528 | W146: 883 | X146: 6411 | Z146: Colusa city | AA146: 576.99
E147: 146 | F147: 14974 | G147: Commerce city | H147: 11690 | I147: 688 | J147: 38 | K147: 88 | L147: 3 | M147: 629 | N147: 59 | O147: 6317 | P147: 6061 | Q147: 3216 | R147: 946 | S147: 3454 | T147: 2968 | U147: 1794 | V147: 10677 | W147: 1701 | X147: 12378 | Z147: Commerce city | AA147: 1114.02
E148: 147 | F148: 15044 | G148: Compton city | H148: 67791 | I148: 27949 | J148: 132 | K148: 24342 | L148: 544 | M148: 26679 | N148: 1270 | O148: 49213 | P148: 46527 | Q148: 29570 | R148: 7688 | S148: 27101 | T148: 21903 | U148: 9478 | V148: 86117 | W148: 9623 | X148: 95740 | Z148: Compton city | AA148: 8616.6
E149: 148 | F149: 16000 | G149: Concord city | H149: 38953 | I149: 86457 | J149: 295 | K149: 4532 | L149: 644 | M149: 78894 | N149: 7563 | O149: 63465 | P149: 61945 | Q149: 28656 | R149: 6911 | S149: 36705 | T149: 32736 | U149: 20402 | V149: 109586 | W149: 15824 | X149: 125410 | Z149: Concord city | AA149: 11286.9
E150: 149 | F150: 16224 | G150: Corcoran city | H150: 15538 | I150: 6801 | J150: 194 | K150: 2853 | L150: 32 | M150: 6514 | N150: 287 | O150: 6890 | P150: 15449 | Q150: 4853 | R150: 1464 | S150: 8686 | T150: 5599 | U150: 1737 | V150: 20568 | W150: 1771 | X150: 22339 | Z150: Corcoran city | AA150: 2010.51
E151: 150 | F151: 16322 | G151: Corning city | H151: 4487 | I151: 3757 | J151: 105 | K151: 18 | L151: 11 | M151: 3479 | N151: 278 | O151: 4222 | P151: 4022 | Q151: 2740 | R151: 526 | S151: 2206 | T151: 1748 | U151: 1024 | V151: 7331 | W151: 913 | X151: 8244 | Z151: Corning city | AA151: 741.96
E152: 151 | F152: 16350 | G152: Corona city | H152: 73102 | I152: 84034 | J152: 461 | K152: 8136 | L152: 509 | M152: 78270 | N152: 5764 | O152: 79625 | P152: 77511 | Q152: 42832 | R152: 11480 | S152: 42539 | T152: 42243 | U152: 18042 | V152: 144122 | W152: 13014 | X152: 157136 | Z152: Corona city | AA152: 14142.24
E153: 152 | F153: 16378 | G153: Coronado city | H153: 3406 | I153: 16786 | J153: 53 | K153: 607 | L153: 41 | M153: 15702 | N153: 1084 | O153: 9696 | P153: 10496 | Q153: 4726 | R153: 2457 | S153: 4177 | T153: 4586 | U153: 4246 | V153: 18293 | W153: 1899 | X153: 20192 | Z153: Coronado city | AA153: 1817.28
E154: 153 | F154: 16462 | G154: Corte Madera town | H154: 1092 | I154: 9130 | J154: 8 | K154: 72 | L154: 14 | M154: 8426 | N154: 704 | O154: 5336 | P154: 4886 | Q154: 2829 | R154: 360 | S154: 2027 | T154: 3148 | U154: 1858 | V154: 9442 | W154: 780 | X154: 10222 | Z154: Corte Madera town | AA154: 919.98
E155: 154 | F155: 16532 | G155: Costa Mesa city | H155: 40795 | I155: 71123 | J155: 232 | K155: 1306 | L155: 412 | M155: 66192 | N155: 4931 | O155: 55633 | P155: 56285 | Q155: 23948 | R155: 7841 | S155: 39164 | T155: 26910 | U155: 14055 | V155: 102506 | W155: 9412 | X155: 111918 | Z155: Costa Mesa city | AA155: 10072.62
E156: 155 | F156: 16560 | G156: Cotati city | H156: 1720 | I156: 5864 | J156: 43 | K156: 103 | L156: 20 | M156: 5384 | N156: 480 | O156: 3973 | P156: 3611 | Q156: 1655 | R156: 502 | S156: 2190 | T156: 2037 | U156: 1200 | V156: 6717 | W156: 867 | X156: 7584 | Z156: Cotati city | AA156: 682.56
E157: 156 | F157: 16742 | G157: Covina city | H157: 30108 | I157: 21160 | J157: 156 | K157: 1748 | L157: 87 | M157: 19881 | N157: 1279 | O157: 26648 | P157: 24620 | Q157: 12168 | R157: 3574 | S157: 14235 | T157: 13893 | U157: 7398 | V157: 45667 | W157: 5601 | X157: 51268 | Z157: Covina city | AA157: 4614.12
E158: 157 | F158: 17022 | G158: Crescent city | H158: 2181 | I158: 4492 | J158: 298 | K158: 723 | L158: 4 | M158: 4162 | N158: 330 | O158: 2059 | P158: 4614 | Q158: 1065 | R158: 482 | S158: 2992 | T158: 1462 | U158: 672 | V158: 5828 | W158: 845 | X158: 6673 | Z158: Crescent city | AA158: 600.57
E159: 158 | F159: 17498 | G159: Cudahy city | H159: 21872 | I159: 939 | J159: 37 | K159: 167 | L159: 26 | M159: 852 | N159: 87 | O159: 11582 | P159: 11229 | Q159: 7263 | R159: 1991 | S159: 6650 | T159: 5112 | U159: 1795 | V159: 20966 | W159: 1845 | X159: 22811 | Z159: Cudahy city | AA159: 2052.99
E160: 159 | F160: 17568 | G160: Culver city | H160: 8732 | I160: 32047 | J160: 47 | K160: 3143 | L160: 92 | M160: 29037 | N160: 3010 | O160: 21458 | P160: 19321 | Q160: 8242 | R160: 1830 | S160: 12885 | T160: 10459 | U160: 7363 | V160: 37355 | W160: 3424 | X160: 40779 | Z160: Culver city | AA160: 3670.11
E161: 160 | F161: 17610 | G161: Cupertino city | H161: 2330 | I161: 58051 | J161: 53 | K161: 360 | L161: 21 | M161: 56098 | N161: 1953 | O161: 30333 | P161: 30048 | Q161: 16032 | R161: 3065 | S161: 14728 | T161: 17342 | U161: 9214 | V161: 57036 | W161: 3345 | X161: 60381 | Z161: Cupertino city | AA161: 5434.29
E162: 161 | F162: 17750 | G162: Cypress city | H162: 10689 | I162: 39462 | J162: 85 | K162: 1522 | L162: 251 | M162: 37160 | N162: 2302 | O162: 26113 | P162: 24038 | Q162: 12083 | R162: 3183 | S162: 12285 | T162: 14203 | U162: 8397 | V162: 45390 | W162: 4761 | X162: 50151 | Z162: Cypress city | AA162: 4513.59
E163: 162 | F163: 17918 | G163: Daly city | H163: 25237 | I163: 79664 | J163: 980 | K163: 2531 | L163: 764 | M163: 15009 | N163: 9411 | O163: 53024 | P163: 51877 | Q163: 20260 | R163: 7261 | S163: 32096 | T163: 27188 | U163: 18096 | V163: 95187 | W163: 9714 | X163: 104901 | Y163: 60281 | Z163: Daly city | AA163: 9441.09
E164: 163 | F164: 17946 | G164: Dana Point city | H164: 6294 | I164: 26813 | J164: 196 | K164: 284 | L164: 35 | M164: 24719 | N164: 4428 | O164: 17057 | P164: 16050 | Q164: 5756 | R164: 1712 | S164: 7134 | T164: 10390 | U164: 8115 | V164: 29997 | W164: 3110 | X164: 33107 | Y164: 1341 | Z164: Dana Point city | AA164: 2979.63
E165: 164 | F165: 17988 | G165: Danville town | H165: 3952 | I165: 39630 | J165: 104 | K165: 401 | L165: 49 | M165: 30864 | N165: 4788 | O165: 22522 | P165: 21060 | Q165: 11755 | R165: 1988 | S165: 7405 | T165: 13870 | U165: 8564 | V165: 40277 | W165: 3305 | X165: 43582 | Y165: 6615 | Z165: Danville town | AA165: 3922.38
E166: 165 | F166: 18100 | G166: Davis city | H166: 11343 | I166: 55507 | J166: 473 | K166: 1651 | L166: 111 | M166: 36581 | N166: 8401 | O166: 35370 | P166: 31480 | Q166: 13926 | R166: 15399 | S166: 16067 | T166: 12186 | U166: 9272 | V166: 61454 | W166: 5396 | X166: 66850 | Y166: 14770 | Z166: Davis city | AA166: 6016.5
E167: 166 | F167: 18506 | G167: Del Mar city | H167: 274 | I167: 3680 | J167: 9 | K167: 22 | L167: 4 | M167: 3352 | N167: 356 | O167: 2000 | P167: 1954 | Q167: 569 | R167: 156 | S167: 794 | T167: 1236 | U167: 1199 | V167: 3612 | W167: 342 | X167: 3954 | Y167: 152 | Z167: Del Mar city | AA167: 355.86
E168: 167 | F168: 18688 | G168: Del Rey Oaks city | H168: 244 | I168: 1348 | J168: 14 | K168: 29 | L168: 6 | M168: 1141 | N168: 212 | O168: 824 | P168: 768 | Q168: 244 | R168: 62 | S168: 390 | T168: 479 | U168: 417 | V168: 1390 | W168: 202 | X168: 1592 | Y168: 128 | Z168: Del Rey Oaks city | AA168: 143.28
E169: 168 | F169: 18394 | G169: Delano city | H169: 38453 | I169: 12975 | J169: 1040 | K169: 2774 | L169: 54 | M169: 7184 | N169: 7206 | O169: 21813 | P169: 29615 | Q169: 14979 | R169: 4201 | S169: 16797 | T169: 10860 | U169: 4591 | V169: 48749 | W169: 2679 | X169: 51428 | Y169: 7476 | Z169: Delano city | AA169: 4628.52
E170: 169 | F170: 18996 | G170: Desert Hot Springs city | H170: 19887 | I170: 12625 | J170: 783 | K170: 2636 | L170: 59 | M170: 11115 | N170: 5520 | O170: 16281 | P170: 16231 | Q170: 10132 | R170: 2207 | S170: 8910 | T170: 7363 | U170: 3900 | V170: 28707 | W170: 3805 | X170: 32512 | Y170: 785 | Z170: Desert Hot Springs city | AA170: 2926.08
E171: 170 | F171: 19192 | G171: Diamond Bar city | H171: 10803 | I171: 44269 | J171: 314 | K171: 1799 | L171: 89 | M171: 10161 | N171: 5641 | O171: 28319 | P171: 26753 | Q171: 11512 | R171: 3567 | S171: 13278 | T171: 16309 | U171: 10406 | V171: 50337 | W171: 4735 | X171: 55072 | Y171: 32855 | Z171: Diamond Bar city | AA171: 4956.48
E172: 171 | F172: 19318 | G172: Dinuba city | H172: 21599 | I172: 2964 | J172: 446 | K172: 131 | L172: 32 | M172: 5868 | N172: 6799 | O172: 12389 | P172: 12174 | Q172: 8854 | R172: 1757 | S172: 6733 | T172: 4783 | U172: 2436 | V172: 22577 | W172: 1986 | X172: 24563 | Y172: 537 | Z172: Dinuba city | AA172: 2210.67
E173: 172 | F173: 19402 | G173: Dixon city | H173: 8302 | I173: 10686 | J173: 307 | K173: 590 | L173: 94 | M173: 9776 | N173: 3152 | O173: 9635 | P173: 9353 | Q173: 5176 | R173: 1191 | S173: 5138 | T173: 4829 | U173: 2654 | V173: 16804 | W173: 2184 | X173: 18988 | Y173: 685 | Z173: Dixon city | AA173: 1708.92
E174: 173 | F174: 19584 | G174: Dorris city | H174: 339 | I174: 521 | J174: 15 | K174: 3 | L174: 0 | M174: 495 | N174: 147 | O174: 428 | P174: 432 | Q174: 249 | R174: 44 | S174: 208 | T174: 206 | U174: 153 | V174: 755 | W174: 105 | X174: 860 | Y174: 18 | Z174: Dorris city | AA174: 77.4
E175: 174 | F175: 19612 | G175: Dos Palos city | H175: 4184 | I175: 1614 | J175: 2 | K175: 0 | L175: 1 | M175: 104 | N175: 35 | O175: 2950 | P175: 2848 | Q175: 1904 | R175: 404 | S175: 1526 | T175: 1266 | U175: 698 | V175: 5238 | W175: 560 | X175: 5798 | Y175: 4 | Z175: Dos Palos city | AA175: 521.82
E176: 175 | F176: 19766 | G176: Downey city | H176: 85866 | I176: 28489 | J176: 2357 | K176: 4265 | L176: 310 | M176: 26731 | N176: 27282 | O176: 58677 | P176: 55678 | Q176: 28653 | R176: 8422 | S176: 33086 | T176: 29015 | U176: 15179 | V176: 104743 | W176: 9612 | X176: 114355 | Y176: 7652 | Z176: Downey city | AA176: 10291.95
E177: 176 | F177: 19990 | G177: Duarte city | H177: 10436 | I177: 11291 | J177: 382 | K177: 1202 | L177: 33 | M177: 6689 | N177: 3632 | O177: 11554 | P177: 10173 | Q177: 4342 | R177: 1280 | S177: 5459 | T177: 5894 | U177: 4752 | V177: 18991 | W177: 2736 | X177: 21727 | Y177: 4591 | Z177: Duarte city | AA177: 1955.43
E178: 177 | F178: 20018 | G178: Dublin city | H178: 8351 | I178: 64238 | J178: 517 | K178: 2876 | L178: 221 | M178: 21105 | N178: 6151 | O178: 37852 | P178: 34737 | Q178: 20464 | R178: 3143 | S178: 25870 | T178: 17140 | U178: 5972 | V178: 69060 | W178: 3529 | X178: 72589 | Y178: 39077 | Z178: Dublin city | AA178: 6533.01
E179: 178 | F179: 20242 | G179: Dunsmuir city | H179: 202 | I179: 1505 | J179: 30 | K179: 18 | L179: 1 | M179: 1404 | N179: 178 | O179: 845 | P179: 862 | Q179: 323 | R179: 92 | S179: 380 | T179: 471 | U179: 441 | V179: 1445 | W179: 262 | X179: 1707 | Y179: 23 | Z179: Dunsmuir city | AA179: 153.63
E180: 179 | F180: 20956 | G180: East Palo Alto city | H180: 19964 | I180: 10070 | J180: 682 | K180: 3287 | L180: 2084 | M180: 3574 | N180: 4396 | O180: 14852 | P180: 15182 | Q180: 8588 | R180: 2522 | S180: 9913 | T180: 6472 | U180: 2539 | V180: 27587 | W180: 2447 | X180: 30034 | Y180: 1596 | Z180: East Palo Alto city | AA180: 2703.06
E181: 180 | F181: 21712 | G181: El Cajon city | H181: 31271 | I181: 74944 | J181: 1156 | K181: 7164 | L181: 506 | M181: 61728 | N181: 14992 | O181: 53912 | P181: 52303 | Q181: 28683 | R181: 7069 | S181: 29907 | T181: 25562 | U181: 14994 | V181: 92861 | W181: 13354 | X181: 106215 | Y181: 5254 | Z181: El Cajon city | AA181: 9559.35
E182: 181 | F182: 21782 | G182: El Centro city | H182: 38566 | I182: 5756 | J182: 854 | K182: 890 | L182: 36 | M182: 11677 | N182: 13076 | O182: 23239 | P182: 21083 | Q182: 13130 | R182: 3036 | S182: 11224 | T182: 10413 | U182: 6519 | V182: 37295 | W182: 7027 | X182: 44322 | Y182: 802 | Z182: El Centro city | AA182: 3988.98
E183: 182 | F183: 21796 | G183: El Cerrito city | H183: 3075 | I183: 22887 | J183: 118 | K183: 1426 | L183: 56 | M183: 11982 | N183: 3226 | O183: 13350 | P183: 12612 | Q183: 5028 | R183: 1117 | S183: 7698 | T183: 6826 | U183: 5293 | V183: 23498 | W183: 2464 | X183: 25962 | Y183: 7738 | Z183: El Cerrito city | AA183: 2336.58
E184: 183 | F184: 22230 | G184: El Monte city | H184: 70819 | I184: 38631 | J184: 2398 | K184: 903 | L184: 63 | M184: 13958 | N184: 16762 | O184: 55113 | P184: 54337 | Q184: 28281 | R184: 8245 | S184: 30084 | T184: 27574 | U184: 15266 | V184: 97573 | W184: 11877 | X184: 109450 | Y184: 33198 | Z184: El Monte city | AA184: 9850.5
E185: 184 | F185: 22300 | G185: El Paso de Robles (Paso Robles) city | H185: 11958 | I185: 19532 | J185: 507 | K185: 538 | L185: 82 | M185: 19204 | N185: 4975 | O185: 16231 | P185: 15259 | Q185: 8395 | R185: 1643 | S185: 8031 | T185: 7680 | U185: 5741 | V185: 27633 | W185: 3857 | X185: 31490 | Y185: 745 | Z185: El Paso de Robles (Paso Robles) city | AA185: 2834.1
E186: 185 | F186: 22412 | G186: El Segundo city | H186: 2976 | I186: 14296 | J186: 111 | K186: 415 | L186: 62 | M186: 11377 | N186: 2615 | O186: 8655 | P186: 8617 | Q186: 3910 | R186: 955 | S186: 5300 | T186: 4874 | U186: 2233 | V186: 15703 | W186: 1569 | X186: 17272 | Y186: 1839 | Z186: El Segundo city | AA186: 1554.48
E187: 186 | F187: 22020 | G187: Elk Grove city | H187: 33392 | I187: 142732 | J187: 1404 | K187: 17854 | L187: 2560 | M187: 57371 | N187: 24374 | O187: 90913 | P187: 85211 | Q187: 49978 | R187: 10863 | S187: 43727 | T187: 47171 | U187: 24385 | V187: 159433 | W187: 16691 | X187: 176124 | Y187: 58982 | Z187: Elk Grove city | AA187: 15851.16
E188: 187 | F188: 22594 | G188: Emeryville city | H188: 1435 | I188: 11470 | J188: 76 | K188: 2015 | L188: 54 | M188: 4796 | N188: 1382 | O188: 6627 | P188: 6278 | Q188: 1508 | R188: 924 | S188: 6441 | T188: 2524 | U188: 1508 | V188: 11927 | W188: 978 | X188: 12905 | Y188: 3965 | Z188: Emeryville city | AA188: 1161.45
E189: 188 | F189: 22678 | G189: Encinitas city | H189: 9357 | I189: 52650 | J189: 384 | K189: 328 | L189: 88 | M189: 47906 | N189: 7229 | O189: 31629 | P189: 30378 | Q189: 13569 | R189: 2725 | S189: 15760 | T189: 17414 | U189: 12539 | V189: 56842 | W189: 5165 | X189: 62007 | Y189: 2708 | Z189: Encinitas city | AA189: 5580.63
E190: 189 | F190: 22790 | G190: Escalon city | H190: 2330 | I190: 5142 | J190: 76 | K190: 37 | L190: 6 | M190: 4960 | N190: 1090 | O190: 3827 | P190: 3645 | Q190: 2014 | R190: 425 | S190: 1914 | T190: 1859 | U190: 1260 | V190: 6814 | W190: 658 | X190: 7472 | Y190: 133 | Z190: Escalon city | AA190: 672.48
E191: 190 | F191: 22804 | G191: Escondido city | H191: 78226 | I191: 72812 | J191: 2708 | K191: 3602 | L191: 394 | M191: 63249 | N191: 25294 | O191: 76672 | P191: 74366 | Q191: 40626 | R191: 10890 | S191: 42238 | T191: 36361 | U191: 20923 | V191: 134850 | W191: 16188 | X191: 151038 | Y191: 11974 | Z191: Escondido city | AA191: 13593.42
E192: 191 | F192: 22972 | G192: Etna city | H192: 39 | I192: 639 | J192: 24 | K192: 3 | L192: 3 | M192: 560 | N192: 77 | O192: 352 | P192: 326 | Q192: 156 | R192: 28 | S192: 150 | T192: 166 | U192: 178 | V192: 524 | W192: 154 | X192: 678 | Y192: 8 | Z192: Etna city | AA192: 61.02
E193: 192 | F193: 23042 | G193: Eureka city | H193: 4014 | I193: 22498 | J193: 1136 | K193: 542 | L193: 235 | M193: 18056 | N193: 3279 | O193: 13275 | P193: 13237 | Q193: 5699 | R193: 1644 | S193: 8302 | T193: 6147 | U193: 4720 | V193: 21398 | W193: 5114 | X193: 26512 | Y193: 1489 | Z193: Eureka city | AA193: 2386.08
E194: 193 | F194: 23126 | G194: Exeter city | H194: 5287 | I194: 5034 | J194: 295 | K194: 65 | L194: 17 | M194: 5604 | N194: 1486 | O194: 5322 | P194: 4999 | Q194: 3104 | R194: 688 | S194: 2695 | T194: 2279 | U194: 1555 | V194: =X194-W194 -> 8859 | W194: 1462 | X194: 10321 | Y194: 148 | Z194: Exeter city | AA194: 928.89
E195: 194 | F195: 23168 | G195: Fairfax town | H195: 878 | I195: 6727 | J195: 56 | K195: 94 | L195: 20 | M195: 5998 | N195: 855 | O195: 3931 | P195: 3674 | Q195: 1558 | R195: 255 | S195: 1493 | T195: 2539 | U195: 1760 | V195: 6871 | W195: 734 | X195: 7605 | Y195: 233 | Z195: Fairfax town | AA195: =X195*0.09 -> 684.45
E196: 195 | F196: 23182 | G196: Fairfield city | H196: 36723 | I196: 83158 | J196: 1568 | K196: 17866 | L196: 1301 | M196: 38910 | N196: 18240 | O196: 60872 | P196: 59009 | Q196: 32330 | R196: 8260 | S196: 33367 | T196: 29480 | U196: 16444 | V196: 106199 | W196: 13682 | X196: 119881 | Y196: 22447 | Z196: Fairfield city | AA196: 10789.29
E197: 196 | F197: 23616 | G197: Farmersville city | H197: 9142 | I197: 1255 | J197: 419 | K197: 44 | L197: 0 | M197: 2659 | N197: 1772 | O197: 5249 | P197: 5148 | Q197: 3773 | R197: 767 | S197: 2761 | T197: 2130 | U197: 966 | V197: 8992 | W197: 1405 | X197: 10397 | Y197: 58 | Z197: Farmersville city | AA197: 935.73
E198: 197 | F198: 23910 | G198: Ferndale city | H198: 115 | I198: 1283 | J198: 19 | K198: 5 | L198: 0 | M198: 1195 | N198: 130 | O198: 735 | P198: 663 | Q198: 288 | R198: 79 | S198: 281 | T198: 344 | U198: 406 | V198: 1112 | W198: 286 | X198: 1398 | Y198: 17 | Z198: Ferndale city | AA198: 125.82
E199: 198 | F199: 24092 | G199: Fillmore city | H199: 12593 | I199: 3826 | J199: 392 | K199: 117 | L199: 14 | M199: 5537 | N199: 3639 | O199: 8321 | P199: 8098 | Q199: 4946 | R199: 1109 | S199: 4520 | T199: 3818 | U199: 2026 | V199: 13882 | W199: 2537 | X199: 16419 | Y199: 258 | Z199: Fillmore city | AA199: 1477.71
E200: 199 | F200: 24134 | G200: Firebaugh city | H200: 7486 | I200: 610 | J200: 98 | K200: 45 | L200: 7 | M200: 2115 | N200: 2577 | O200: 4003 | P200: 4093 | Q200: 2829 | R200: 635 | S200: 2091 | T200: 1779 | U200: 762 | V200: 7564 | W200: 532 | X200: 8096 | Y200: 32 | Z200: Firebaugh city | AA200: 728.64
... 400 more rows

Sheet Link E2 (hidden)
D1: ETHNICITY | E1: ETHNICITY | AG1: RACE | AH1: RACE | DN1: GENDER | DO1: GENDER | EQ1: AGE | ER1: AGE | HJ1: DISABILITY | HK1: DISABILITY
E2: Census | I2: Applicants | O2: Beneficiaries | U2: Rejected Applicants | AA2: Waiting List | AH2: Census | AT2: Applicants | BL2: Benificiaries | CD2: Rejected Applicants | CV2: Waiting List | DO2: Census | DS2: Applicants | DY2: Beneficiaries | EE2: Rejected Applicants | EK2: Waiting List | ER2: Census | FB2: Applicants | FQ2: Benificiaries | GF2: Rejected Applicants | GU2: Waiting List | HK2: Census | HO2: Applicants | HU2: Beneficiaries | IA2: Rejected Applicants | IG2: Waiting List
A3: Jurisdiction | B3: Contract # | C3: Activity Name | E3: Hispanic | G3: Not Hispanic | I3: Hispanic | L3: Not Hispanic | O3: Hispanic | R3: Not Hispanic | U3: Hispanic | X3: Not Hispanic | AA3: Hispanic | AD3: Not Hispanic | AH3: American Indian or Alaskan Native | AJ3: Asian | AL3: Black or African American | AN3: Native Hawaiian or Other Pacific Islander | AP3: White Alone | AR3: Other | AT3: American Indian or Alaskan Native | AW3: Asian | AZ3: Black or African American | BC3: Native Hawaiian or Other Pacific Islander | BF3: White Alone | BI3: Other | BL3: American Indian or Alaskan Native | BO3: Asian | BR3: Black or African American | BU3: Native Hawaiian or Other Pacific Islander | BX3: White Alone | CA3: Other | CD3: American Indian or Alaskan Native | CG3: Asian | CJ3: Black or African American | CM3: Native Hawaiian or Other Pacific Islander | CP3: White Alone | CS3: Other | CV3: American Indian or Alaskan Native | CY3: Asian | DB3: Black or African American | DE3: Native Hawaiian or Other Pacific Islander | DH3: White Alone | DK3: Other | DO3: Female | DQ3: Male | DS3: Female | DV3: Male | DY3: Female | EB3: Male | EE3: Female | EH3: Male | EK3: Female | EN3: Male | ER3: 0 to 19 Years | ET3: 20 to 24 Years | EV3: 25 to 44 Years | EX3: 45 to 64 Years | EZ3: 65 Years and Over | FB3: 0 to 19 Years | FE3: 20 to 24 Years | FH3: 25 to 44 Years | FK3: 45 to 64 Years | FN3: 65 Years and Over | FQ3: 0 to 19 Years | FT3: 20 to 24 Years | FW3: 25 to 44 Years | FZ3: 45 to 64 Years | GC3: 65 Years and Over | GF3: 0 to 19 Years | GI3: 20 to 24 Years | GL3: 25 to 44 Years | GO3: 45 to 64 Years | GR3: 65 Years and Over | GU3: 0 to 19 Years | GX3: 20 to 24 Years | HA3: 25 to 44 Years | HD3: 45 to 64 Years | HG3: 65 Years and Over | HK3: Disabled | HM3: Not Disabled | HO3: Disabled | HR3: Not Disabled | HU3: Disabled | HX3: Not Disabled | IA3: Disabled | ID3: Not Disabled | IG3: Disabled | IJ3: Not Disabled | IM3: Response 1 | IN3: Response 2 | IO3: Response 3 | IP3: Response 4 | IQ3: Response 5
E4: # | F4: % | G4: # | H4: % | I4: # | J4: % | K4: Diff | L4: # | M4: % | N4: Diff | O4: # | P4: % | Q4: Diff | R4: # | S4: % | T4: Diff | U4: # | V4: % | W4: Diff | X4: # | Y4: % | Z4: Diff | AA4: # | AB4: % | AC4: Diff | AD4: # | AE4: % | AF4: Diff | AH4: # | AI4: % | AJ4: # | AK4: % | AL4: # | AM4: % | AN4: # | AO4: % | AP4: # | AQ4: % | AR4: # | AS4: % | AT4: # | AU4: % | AV4: Diff | AW4: # | AX4: % | AY4: Diff | AZ4: # | BA4: % | BB4: Diff | BC4: # | BD4: % | BE4: Diff | BF4: # | BG4: % | BH4: Diff | BI4: # | BJ4: % | BK4: Diff | BL4: # | BM4: % | BN4: Diff | BO4: # | BP4: % | BQ4: Diff | BR4: # | BS4: % | BT4: Diff | BU4: # | BV4: % | BW4: Diff | BX4: # | BY4: % | BZ4: Diff | CA4: # | CB4: % | CC4: Diff | CD4: # | CE4: % | CF4: Diff | CG4: # | CH4: % | CI4: Diff | CJ4: # | CK4: % | CL4: Diff | CM4: # | CN4: % | CO4: Diff | CP4: # | CQ4: % | CR4: Diff | CS4: # | CT4: % | CU4: Diff | CV4: # | CW4: % | CX4: Diff | CY4: # | CZ4: % | DA4: Diff | DB4: # | DC4: % | DD4: Diff | DE4: # | DF4: % | DG4: Diff | DH4: # | DI4: % | DJ4: Diff | DK4: # | DL4: % | DM4: Diff | DO4: # | DP4: % | DQ4: # | DR4: % | DS4: # | DT4: % | DU4: Diff | DV4: # | DW4: % | DX4: Diff | DY4: # | DZ4: % | EA4: Diff | EB4: # | EC4: % | ED4: Diff | EE4: # | EF4: % | EG4: Diff | EH4: # | EI4: % | EJ4: Diff | EK4: # | EL4: % | EM4: Diff | EN4: # | EO4: % | EP4: Diff | ER4: # | ES4: % | ET4: # | EU4: % | EV4: # | EW4: % | EX4: # | EY4: % | EZ4: # | FA4: % | FB4: # | FC4: % | FD4: Diff | FE4: # | FF4: % | FG4: Diff | FH4: # | FI4: % | FJ4: Diff | FK4: # | FL4: % | FM4: Diff | FN4: # | FO4: % | FP4: Diff | FQ4: # | FR4: % | FS4: Diff | FT4: # | FU4: % | FV4: Diff | FW4: # | FX4: % | FY4: Diff | FZ4: # | GA4: % | GB4: Diff | GC4: # | GD4: % | GE4: Diff | GF4: # | GG4: % | GH4: Diff | GI4: # | GJ4: % | GK4: Diff | GL4: # | GM4: % | GN4: Diff | GO4: # | GP4: % | GQ4: Diff | GR4: # | GS4: % | GT4: Diff | GU4: # | GV4: % | GW4: Diff | GX4: # | GY4: % | GZ4: Diff | HA4: # | HB4: % | HC4: Diff | HD4: # | HE4: % | HF4: Diff | HG4: # | HH4: % | HI4: Diff | HK4: # | HL4: % | HM4: # | HN4: % | HO4: # | HP4: % | HQ4: Diff | HR4: # | HS4: % | HT4: Diff | HU4: # | HV4: % | HW4: Diff | HX4: # | HY4: % | HZ4: Diff | IA4: # | IB4: % | IC4: Diff | ID4: # | IE4: % | IF4: Diff | IG4: # | IH4: % | II4: Diff | IJ4: # | IK4: % | IL4: Diff
A5: ='E Data 2'!D4 -> Select a Jurisdiction | B5: ='Att E Activity 2'!EC24 -> 0 | C5: ='Att E Activity 2'!EC30 -> 0 | E5: ='Att E Activity 2'!AM49 ->  | F5: ='Att E Activity 2'!AU49 ->  | G5: ='Att E Activity 2'!AM52 ->  | H5: ='Att E Activity 2'!AU52 ->  | I5: ='Att E Activity 2'!BE49 -> 0 | J5: ='Att E Activity 2'!BM49 ->  | K5: ='Att E Activity 1'!BU49 -> 0 | L5: ='Att E Activity 2'!BE52 -> 0 | M5: ='Att E Activity 2'!BM52 ->  | N5: ='Att E Activity 2'!BU52 -> 0 | O5: ='Att E Activity 2'!CF49 -> 0 | P5: ='Att E Activity 2'!CN49 ->  | Q5: ='Att E Activity 2'!CV49 -> 0 | R5: ='Att E Activity 2'!CF52 -> 0 | S5: ='Att E Activity 2'!CN52 ->  | T5: ='Att E Activity 2'!CV52 -> 0 | U5: ='Att E Activity 2'!DG49 -> 0 | V5: ='Att E Activity 2'!DO49 ->  | W5: ='Att E Activity 2'!DW49 -> 0 | X5: ='Att E Activity 2'!DG52 -> 0 | Y5: ='Att E Activity 2'!DO52 ->  | Z5: ='Att E Activity 2'!DW52 -> 0 | AA5: ='Att E Activity 2'!EH49 -> 0 | AB5: ='Att E Activity 2'!EP49 ->  | AC5: ='Att E Activity 2'!EX49 -> 0 | AD5: ='Att E Activity 2'!EH52 -> 0 | AE5: ='Att E Activity 2'!EP52 ->  | AF5: ='Att E Activity 2'!EX52 -> 0 | AH5: ='Att E Activity 2'!AM62 ->  | AI5: ='Att E Activity 2'!AU62 ->  | AJ5: ='Att E Activity 2'!AM65 ->  | AK5: ='Att E Activity 2'!AU62 ->  | AL5: ='Att E Activity 2'!AM68 ->  | AM5: ='Att E Activity 2'!AU68 ->  | AN5: ='Att E Activity 2'!AM71 ->  | AO5: ='Att E Activity 2'!AU71 ->  | AP5: ='Att E Activity 2'!AM74 ->  | AQ5: ='Att E Activity 2'!AU74 ->  | AR5: ='Att E Activity 2'!AM77 ->  | AS5: ='Att E Activity 2'!AU77 ->  | AT5: ='Att E Activity 2'!BE62 -> 0 | AU5: ='Att E Activity 2'!BM62 ->  | AV5: ='Att E Activity 2'!BU62 -> 0 | AW5: ='Att E Activity 2'!BE65 -> 0 | AX5: ='Att E Activity 2'!BM65 ->  | AY5: ='Att E Activity 2'!BU65 -> 0 | AZ5: ='Att E Activity 2'!BE68 -> 0 | BA5: ='Att E Activity 2'!BM68 ->  | BB5: ='Att E Activity 2'!BU68 -> 0 | BC5: ='Att E Activity 2'!BE71 -> 0 | BD5: ='Att E Activity 2'!BM71 ->  | BE5: ='Att E Activity 2'!BU71 -> 0 | BF5: ='Att E Activity 2'!BE74 -> 0 | BG5: ='Att E Activity 2'!BM74 ->  | BH5: ='Att E Activity 2'!BU74 -> 0 | BI5: ='Att E Activity 2'!BE77 -> 0 | BJ5: ='Att E Activity 2'!BM77 ->  | BK5: ='Att E Activity 2'!BU77 -> 0 | BL5: ='Att E Activity 2'!CF62 -> 0 | BM5: ='Att E Activity 2'!CN62 ->  | BN5: ='Att E Activity 2'!CV62 -> 0 | BO5: ='Att E Activity 2'!CF65 -> 0 | BP5: ='Att E Activity 2'!CN65 ->  | BQ5: ='Att E Activity 2'!CV65 -> 0 | BR5: ='Att E Activity 2'!CF68 -> 0 | BS5: ='Att E Activity 2'!CN68 ->  | BT5: ='Att E Activity 2'!CV68 -> 0 | BU5: ='Att E Activity 2'!CF71 -> 0 | BV5: ='Att E Activity 2'!CN71 ->  | BW5: ='Att E Activity 2'!CV71 -> 0 | BX5: ='Att E Activity 2'!CF74 -> 0 | BY5: ='Att E Activity 2'!CN74 ->  | BZ5: ='Att E Activity 2'!CV74 -> 0 | CA5: ='Att E Activity 2'!CF77 -> 0 | CB5: ='Att E Activity 2'!CN77 ->  | CC5: ='Att E Activity 2'!CV77 -> 0 | CD5: ='Att E Activity 2'!DG62 -> 0 | CE5: ='Att E Activity 2'!DO62 ->  | CF5: ='Att E Activity 2'!DW62 -> 0 | CG5: ='Att E Activity 2'!DG65 -> 0 | CH5: ='Att E Activity 2'!DO65 ->  | CI5: ='Att E Activity 2'!DW65 -> 0 | CJ5: ='Att E Activity 2'!DG68 -> 0 | CK5: ='Att E Activity 2'!DO68 ->  | CL5: ='Att E Activity 2'!DW68 -> 0 | CM5: ='Att E Activity 2'!DG71 -> 0 | CN5: ='Att E Activity 2'!DO71 ->  | CO5: ='Att E Activity 2'!DW71 -> 0 | CP5: ='Att E Activity 2'!DG74 -> 0 | CQ5: ='Att E Activity 2'!DO74 ->  | CR5: ='Att E Activity 2'!DW74 -> 0 | CS5: ='Att E Activity 2'!DG77 -> 0 | CT5: ='Att E Activity 2'!DO77 ->  | CU5: ='Att E Activity 2'!DW77 -> 0 | CV5: ='Att E Activity 2'!EH62 -> 0 | CW5: ='Att E Activity 2'!EP62 ->  | CX5: ='Att E Activity 2'!EX62 -> 0 | CY5: ='Att E Activity 2'!EH65 -> 0 | CZ5: ='Att E Activity 2'!EP65 ->  | DA5: ='Att E Activity 2'!EX65 -> 0 | DB5: ='Att E Activity 2'!EH68 -> 0 | DC5: ='Att E Activity 2'!EP68 ->  | DD5: ='Att E Activity 2'!EX68 -> 0 | DE5: ='Att E Activity 2'!EH71 -> 0 | DF5: ='Att E Activity 2'!EP71 ->  | DG5: ='Att E Activity 2'!EX71 -> 0 | DH5: ='Att E Activity 2'!EH74 -> 0 | DI5: ='Att E Activity 2'!EP74 ->  | DJ5: ='Att E Activity 2'!EX74 -> 0 | DK5: ='Att E Activity 2'!EH77 -> 0 | DL5: ='Att E Activity 2'!EP77 ->  | DM5: ='Att E Activity 2'!EX77 -> 0 | DO5: ='Att E Activity 2'!AM87 ->  | DP5: ='Att E Activity 2'!AU87 ->  | DQ5: ='Att E Activity 2'!AM90 ->  | DR5: ='Att E Activity 2'!AU90 ->  | DS5: ='Att E Activity 2'!BE87 -> 0 | DT5: ='Att E Activity 2'!BM87 ->  | DU5: ='Att E Activity 2'!BU87 -> 0 | DV5: ='Att E Activity 2'!BE90 -> 0 | DW5: ='Att E Activity 2'!BM90 ->  | DX5: ='Att E Activity 2'!BU90 -> 0 | DY5: ='Att E Activity 2'!CF87 -> 0 | DZ5: ='Att E Activity 2'!CN87 ->  | EA5: ='Att E Activity 2'!CV87 -> 0 | EB5: ='Att E Activity 2'!CF90 -> 0 | EC5: ='Att E Activity 2'!CN90 ->  | ED5: ='Att E Activity 2'!CV90 -> 0 | EE5: ='Att E Activity 2'!DG87 -> 0 | EF5: ='Att E Activity 2'!DO87 ->  | EG5: ='Att E Activity 2'!DW87 -> 0 | EH5: ='Att E Activity 2'!DG90 -> 0 | EI5: ='Att E Activity 2'!DO90 ->  | EJ5: ='Att E Activity 2'!DW90 -> 0 | EK5: ='Att E Activity 2'!EH87 -> 0 | EL5: ='Att E Activity 2'!EP87 ->  | EM5: ='Att E Activity 2'!EX87 -> 0 | EN5: ='Att E Activity 2'!EH90 -> 0 | EO5: ='Att E Activity 2'!EP90 ->  | EP5: ='Att E Activity 2'!EX90 -> 0 | ER5: ='Att E Activity 2'!AM100 ->  | ES5: ='Att E Activity 2'!AU100 ->  | ET5: ='Att E Activity 2'!AM103 ->  | EU5: ='Att E Activity 2'!AU103 ->  | EV5: ='Att E Activity 2'!AM106 ->  | EW5: ='Att E Activity 2'!AU106 ->  | EX5: ='Att E Activity 2'!AM109 ->  | EY5: ='Att E Activity 2'!AU109 ->  | EZ5: ='Att E Activity 2'!AM112 ->  | FA5: ='Att E Activity 2'!AU112 ->  | FB5: ='Att E Activity 2'!BE100 -> 0 | FC5: ='Att E Activity 2'!BM100 ->  | FD5: ='Att E Activity 2'!BU100 -> 0 | FE5: ='Att E Activity 2'!BE103 -> 0 | FF5: ='Att E Activity 2'!BM103 ->  | FG5: ='Att E Activity 2'!BU103 -> 0 | FH5: ='Att E Activity 2'!BE106 -> 0 | FI5: ='Att E Activity 2'!BM106 ->  | FJ5: ='Att E Activity 2'!BU106 -> 0 | FK5: ='Att E Activity 2'!BE109 -> 0 | FL5: ='Att E Activity 2'!BM109 ->  | FM5: ='Att E Activity 2'!BU109 -> 0 | FN5: ='Att E Activity 2'!BE112 -> 0 | FO5: ='Att E Activity 2'!BM112 ->  | FP5: ='Att E Activity 2'!BU112 -> 0 | FQ5: ='Att E Activity 2'!CF100 -> 0 | FR5: ='Att E Activity 2'!CN100 ->  | FS5: ='Att E Activity 2'!CV100 -> 0 | FT5: ='Att E Activity 2'!CF103 -> 0 | FU5: ='Att E Activity 2'!CN103 ->  | FV5: ='Att E Activity 2'!CV103 -> 0 | FW5: ='Att E Activity 2'!CF106 -> 0 | FX5: ='Att E Activity 2'!CN106 ->  | FY5: ='Att E Activity 2'!CV106 -> 0 | FZ5: ='Att E Activity 2'!CF109 -> 0 | GA5: ='Att E Activity 2'!CN109 ->  | GB5: ='Att E Activity 2'!CV109 -> 0 | GC5: ='Att E Activity 2'!CF112 -> 0 | GD5: ='Att E Activity 2'!CN112 ->  | GE5: ='Att E Activity 2'!CV112 -> 0 | GF5: ='Att E Activity 2'!DG100 -> 0 | GG5: ='Att E Activity 2'!DO100 ->  | GH5: ='Att E Activity 2'!DW100 -> 0 | GI5: ='Att E Activity 2'!DG103 -> 0 | GJ5: ='Att E Activity 2'!DO103 ->  | GK5: ='Att E Activity 2'!DW103 -> 0 | GL5: ='Att E Activity 2'!DG106 -> 0 | GM5: ='Att E Activity 2'!DO106 ->  | GN5: ='Att E Activity 2'!DW106 -> 0 | GO5: ='Att E Activity 2'!DG109 -> 0 | GP5: ='Att E Activity 2'!DO109 ->  | GQ5: ='Att E Activity 2'!DW109 -> 0 | GR5: ='Att E Activity 2'!DG112 -> 0 | GS5: ='Att E Activity 2'!DO112 ->  | GT5: ='Att E Activity 2'!DW112 -> 0 | GU5: ='Att E Activity 2'!EH100 -> 0 | GV5: ='Att E Activity 2'!EP100 ->  | GW5: ='Att E Activity 2'!EX100 -> 0 | GX5: ='Att E Activity 2'!EH103 -> 0 | GY5: ='Att E Activity 2'!EP103 ->  | GZ5: ='Att E Activity 2'!EX103 -> 0 | HA5: ='Att E Activity 2'!EH106 -> 0 | HB5: ='Att E Activity 2'!EP106 ->  | HC5: ='Att E Activity 2'!EX106 -> 0 | HD5: ='Att E Activity 2'!EH109 -> 0 | HE5: ='Att E Activity 2'!EP109 ->  | HF5: ='Att E Activity 2'!EX109 -> 0 | HG5: ='Att E Activity 2'!EH112 -> 0 | HH5: ='Att E Activity 2'!EP112 ->  | HI5: ='Att E Activity 2'!EX112 -> 0 | HK5: ='Att E Activity 2'!AM122 ->  | HL5: ='Att E Activity 2'!AU122 ->  | HM5: ='Att E Activity 2'!AM125 ->  | HN5: ='Att E Activity 2'!AU125 ->  | HO5: ='Att E Activity 2'!BE122 -> 0 | HP5: ='Att E Activity 2'!BM122 ->  | HQ5: ='Att E Activity 2'!BU122 -> 0 | HR5: ='Att E Activity 2'!BE125 -> 0 | HS5: ='Att E Activity 2'!BM125 ->  | HT5: ='Att E Activity 2'!BU125 -> 0 | HU5: ='Att E Activity 2'!CF122 -> 0 | HV5: ='Att E Activity 2'!CN122 ->  | HW5: ='Att E Activity 2'!CV122 -> 0 | HX5: ='Att E Activity 2'!CF125 -> 0 | HY5: ='Att E Activity 2'!CN125 ->  | HZ5: ='Att E Activity 2'!CV125 -> 0 | IA5: ='Att E Activity 2'!DG122 -> 0 | IB5: ='Att E Activity 2'!DO122 ->  | IC5: ='Att E Activity 2'!DW122 -> 0 | ID5: ='Att E Activity 2'!DG125 -> 0 | IE5: ='Att E Activity 2'!DO125 ->  | IF5: ='Att E Activity 2'!DW125 -> 0 | IG5: ='Att E Activity 2'!EH122 -> 0 | IH5: ='Att E Activity 2'!EP122 ->  | II5: ='Att E Activity 2'!EX122 -> 0 | IJ5: ='Att E Activity 2'!EH125 -> 0 | IK5: ='Att E Activity 2'!EP125 ->  | IL5: ='Att E Activity 2'!EX125 -> 0 | IM5: ='Att E Activity 2'!B176 -> 0 | IN5: ='Att E Activity 2'!B194 -> 0 | IO5: ='Att E Activity 2'!B212 -> 0 | IP5: ='Att E Activity 2'!B230 -> 0 | IQ5: ='Att E Activity 2'!B248 -> 0
BD48: 1 | CE48: 3 | DF48: 5 | EG48: 7
BD51: 2 | CE51: 4 | DF51: 6 | EG51: 8
BD61: 9 | CE61: 15 | DF61: 21 | EG61: 27
BD64: 10 | CE64: 16 | DF64: 22 | EG64: 28
BD67: 11 | CE67: 17 | DF67: 23 | EG67: 29
BD70: 12 | CE70: 18 | DF70: 24 | EG70: 30
BD73: 13 | CE73: 19 | DF73: 25 | EG73: 31
BD76: 14 | CE76: 20 | DF76: 26 | EG76: 32
BD86: 33 | CE86: 35 | DF86: 37 | EG86: 39
BD89: 34 | CE89: 36 | DF89: 38 | EG89: 40
BD99: 41 | CE99: 43 | DF99: 51 | EG99: 56
BD102: 42 | CE102: 47 | DF102: 52 | EG102: 57
BD105: 43 | CE105: 48 | DF105: 53 | EG105: 58
BD108: 44 | CE108: 49 | DF108: 54 | EG108: 59
BD111: 45 | CE111: 50 | DF111: 55 | EG111: 60

Sheet Att E Activity 3
T2: Attachment E - HOME Fair Housing Demographic Analysis*
FO5: PAGE 1
T6: HOME Annual Performance Report
P10: Reporting Period July 1, 2023 through June 30, 2024
GA13: FALSE | HF13: =IF(GA13=TRUE,1,0) -> 0
B18: Jurisdiction Name
GA19: FALSE | GP19: FALSE | HF19: =IF(GA19=TRUE,1,0) -> 0 | HL19: =IF(GP19=TRUE,1,0) -> 0
BV23: =IF(HF27>1,"Please use another form (Att E) to complete additional HOME activity","") ->  | GA23: FALSE | GP23: FALSE | HF23: =IF(GA23=TRUE,1,0) -> 0 | HL23: =IF(GP23=TRUE,1,0) -> 0
C24: Funding Source(s) | V24: (Check all that apply) | AL24: HOME Program Activities | BG24: (1 form per activity) | DN24: Contract #
E27: HOME Std. Agreement | AB27: HOME PI | AP27: First-Time Homebuyer (Acquisition Only or Acquisition with Rehab) | HF27: =HF13+HF19+HF23+HL19+HL23 -> 0
E30: CDBG Std. Agreement | AB30: CDBG PI | AP30: First-Time Homebuyer Infill Construction | CH30: Tenant-Based Rental Assistance | DN30: Activity Name
CH32: Program
E33: Other (Specify) | AP33: Owner-Occupied Rehab Program
B38: Geographic Area | R38: ='E Data 3'!D4 -> Select a Jurisdiction | BC38: Census Data Geographic Area | CG38: =IF('E Data 3'!D3=0,"",'E Data 3'!D3) ->  | CO38: Total Population | DG38: =IF('E Data 3'!B18=0,"",'E Data 3'!B18) -> 
GT40: 0.1
GT41: -0.1
B43: Ethnic Categories | AM43: Census | BE43: Applicants | CF43: Beneficiaries | DG43: Rejected Applicants | EH43: Waiting List
AM46: # | AU46: % | BE46: # | BM46: % | BU46: Difference | CF46: # | CN46: % | CV46: Difference | DG46: # | DO46: % | DW46: Difference | EH46: # | EP46: % | EX46: Difference
B49: Hispanic or Latino | AM49: =IF('E Data 3'!D3=0,"",'E Data 3'!B2) ->  | AU49: =IF(AM49="","",AM49/DG38) ->  | BM49: =IF(BE49="","",IF(BE49+BE52<1,0,BE49/(BE52+BE49))) ->  | BU49: =IF(OR(SUM(BE49:BL54)="",SUM(BE49:BL54)=0),0,BM49-AU49) -> 0 | CN49: =IF(CF49="","",IF(CF49+CF52<1,0,CF49/(CF49+CF52))) ->  | CV49: =IF(OR(SUM(CF49:CM54)="",SUM(CF49:CM54)=0),0,CN49-AU49) -> 0 | DO49: =IF(DG49="","",IF(DG49+DG52<1,0,DG49/(DG52+DG49))) ->  | DW49: =IF(OR(SUM(DG49:DN54)="",SUM(DG49:DN54)=0),0,DO49-AU49) -> 0 | EP49: =IF(EH49="","",IF(EH49+EH52<1,0,EH49/(EH52+EH49))) ->  | EX49: =IF(OR(SUM(EH49:EO54)="",SUM(EH49:EO54)=0),0,EP49-AU49) -> 0
B52: Not Hispanic or Latino | AM52: =IF('E Data 3'!D3=0,"",'E Data 3'!B3) ->  | AU52: =IF(AM52="","",AM52/DG38) ->  | BM52: =IF(BE52="","",IF(BE49+BE52<1,0,BE52/(BE52+BE49))) ->  | BU52: =IF(OR(SUM(BE49:BL54)="",SUM(BE49:BL54)=0),0,BM52-AU52) -> 0 | CN52: =IF(CF52="","",IF(CF49+CF52<1,0,CF52/(CF49+CF52))) ->  | CV52: =IF(OR(SUM(CF49:CM54)="",SUM(CF49:CM54)=0),0,CN52-AU52) -> 0 | DO52: =IF(DG52="","",IF(DG49+DG52<1,0,DG52/(DG52+DG49))) ->  | DW52: =IF(OR(SUM(DG49:DN54)="",SUM(DG49:DN54)=0),0,DO52-AU52) -> 0 | EP52: =IF(EH52="","",IF(EH49+EH52<1,0,EH52/(EH52+EH49))) ->  | EX52: =IF(OR(SUM(EH49:EO54)="",SUM(EH49:EO54)=0),0,EP52-AU52) -> 0
AM55: AM | AU55: AU | BE55: BE | BM55: BM | BU55: BU | CB55: -0.1 | CC55: 0.1 | CF55: CF | CN55: CN | CV55: CV | DG55: DG | DO55: DO | DW55: DW | EH55: EH | EP55: EP | EX55: EX
B56: Racial Categories | AM56: Census | BE56: Applicants | CF56: Beneficiaries | DG56: Rejected Applicants | EH56: Waiting List
AM59: # | AU59: % | BE59: # | BM59: % | BU59: Difference | CF59: # | CN59: % | CV59: Difference | DG59: # | DO59: % | DW59: Difference | EH59: # | EP59: % | EX59: Difference
B62: American Indian or Alaskan Native | AM62: =IF('E Data 3'!D3=0,"",'E Data 3'!B4) ->  | AU62: =IF(AM62="","",AM62/DG38) ->  | BM62: =IF(BE62="","",IF(BE62+BE65+BE68+BE71+BE74+BE77<1,0,BE62/(BE65+BE62+BE68+BE71+BE74+BE77))) ->  | BU62: =IF(OR(SUM(BE62:BL79)="",SUM(BE62:BL79)=0),0,BM62-AU62) -> 0 | CN62: =IF(CF62="","",IF(CF62+CF65+CF68+CF71+CF74+CF77<1,0,CF62/(CF65+CF62+CF68+CF71+CF74+CF77))) ->  | CV62: =IF(OR(SUM(CF62:CM79)="",SUM(CF62:CM79)=0),0,CN62-AU62) -> 0 | DO62: =IF(DG62="","",IF(DG62+DG65+DG68+DG71+DG74+DG77<1,0,DG62/(DG65+DG62+DG68+DG71+DG74+DG77))) ->  | DW62: =IF(OR(SUM(DG62:DN79)="",SUM(DG62:DN79)=0),0,DO62-AU62) -> 0 | EP62: =IF(EH62="","",IF(EH62+EH65+EH68+EH71+EH74+EH77<1,0,EH62/(EH65+EH62+EH68+EH71+EH74+EH77))) ->  | EX62: =IF(OR(SUM(EH62:EO79)="",SUM(EH62:EO79)=0),0,EP62-AU62) -> 0
B65: Asian | AM65: =IF('E Data 3'!D3=0,"",'E Data 3'!B19) ->  | AU65: =IF(AM65="","",AM65/DG38) ->  | BM65: =IF(BE65="","",IF(BE62+BE65+BE68+BE71+BE74+BE77<1,0,BE65/(BE68+BE65+BE62+BE71+BE74+BE77))) ->  | BU65: =IF(OR(SUM(BE62:BL79)="",SUM(BE62:BL79)=0),0,BM65-$AU$65) -> 0 | CN65: =IF(CF65="","",IF(CF62+CF65+CF68+CF71+CF74+CF77<1,0,CF65/(CF68+CF65+CF62+CF71+CF74+CF77))) ->  | CV65: =IF(OR(SUM(CF62:CM79)="",SUM(CF62:CM79)=0),0,CN65-AU65) -> 0 | DO65: =IF(DG65="","",IF(DG62+DG65+DG68+DG71+DG74+DG77<1,0,DG65/(DG68+DG65+DG62+DG71+DG74+DG77))) ->  | DW65: =IF(OR(SUM(DG62:DN79)="",SUM(DG62:DN79)=0),0,DO65-AU65) -> 0 | EP65: =IF(EH65="","",IF(EH62+EH65+EH68+EH71+EH74+EH77<1,0,EH65/(EH68+EH65+EH62+EH71+EH74+EH77))) ->  | EX65: =IF(OR(SUM(EH62:EO79)="",SUM(EH62:EO79)=0),0,EP65-AU65) -> 0
B68: Black or African American | AM68: =IF('E Data 3'!D3=0,"",'E Data 3'!B5) ->  | AU68: =IF(AM68="","",AM68/DG38) ->  | BM68: =IF(BE68="","",IF(BE62+BE65+BE68+BE71+BE74+BE77<1,0,BE68/(BE71+BE68+BE62+BE65+BE74+BE77))) ->  | BU68: =IF(OR(SUM(BE62:BL79)="",SUM(BE62:BL79)=0),0,BM68-AU68) -> 0 | CN68: =IF(CF68="","",IF(CF62+CF65+CF68+CF71+CF74<1,0,CF68/(CF71+CF68+CF62+CF65+CF74+CF77))) ->  | CV68: =IF(OR(SUM(CF62:CM79)="",SUM(CF62:CM79)=0),0,CN68-AU68) -> 0 | DO68: =IF(DG68="","",IF(DG62+DG65+DG68+DG71+DG74+DG77<1,0,DG68/(DG71+DG68+DG62+DG65+DG74+DG77))) ->  | DW68: =IF(OR(SUM(DG62:DN79)="",SUM(DG62:DN79)=0),0,DO68-AU68) -> 0 | EP68: =IF(EH68="","",IF(EH62+EH65+EH68+EH71+EH74+EH77<1,0,EH68/(EH71+EH68+EH62+EH65+EH74+EH77))) ->  | EX68: =IF(OR(SUM(EH62:EO79)="",SUM(EH62:EO79)=0),0,EP68-AU68) -> 0
B71: Native Hawaiian or Other Pacific Islander | AM71: =IF('E Data 3'!D3=0,"",'E Data 3'!B6) ->  | AU71: =IF(AM71="","",AM71/DG38) ->  | BM71: =IF(BE71="","",IF(BE62+BE65+BE68+BE71+BE74+BE77<1,0,BE71/(BE74+BE71+BE68+BE65+BE62+BE77))) ->  | BU71: =IF(OR(SUM(BE62:BL79)="",SUM(BE62:BL79)=0),0,BM71-AU71) -> 0 | CN71: =IF(CF71="","",IF(CF62+CF65+CF68+CF71+CF74+CF77<1,0,CF71/(CF74+CF71+CF68+CF65+CF62+CF77))) ->  | CV71: =IF(OR(SUM(CF62:CM79)="",SUM(CF62:CM79)=0),0,CN71-AU71) -> 0 | DO71: =IF(DG71="","",IF(DG62+DG65+DG68+DG71+DG74+DG77<1,0,DG71/(DG74+DG71+DG68+DG65+DG62+DG77))) ->  | DW71: =IF(OR(SUM(DG62:DN79)="",SUM(DG62:DN79)=0),0,DO71-AU71) -> 0 | EP71: =IF(EH71="","",IF(EH62+EH65+EH68+EH71+EH74+EH77<1,0,EH71/(EH74+EH71+EH68+EH65+EH62+EH77))) ->  | EX71: =IF(OR(SUM(EH62:EO79)="",SUM(EH62:EO79)=0),0,EP71-AU71) -> 0
B74: White Alone | AM74: =IF('E Data 3'!D3=0,"",'E Data 3'!B7) ->  | AU74: =IF(AM74="","",AM74/DG38) ->  | BM74: =IF(BE74="","",IF(BE62+BE65+BE68+BE71+BE74+BE77<1,0,BE74/(BE77+BE74+BE62+BE65+BE68+BE71))) ->  | BU74: =IF(OR(SUM(BE62:BL79)="",SUM(BE62:BL79)=0),0,BM74-AU74) -> 0 | CN74: =IF(CF74="","",IF(CF62+CF65+CF68+CF71+CF74+CF77<1,0,CF74/(CF77+CF74+CF62+CF65+CF68+CF71))) ->  | CV74: =IF(OR(SUM(CF62:CM79)="",SUM(CF62:CM79)=0),0,CN74-AU74) -> 0 | DO74: =IF(DG74="","",IF(DG62+DG65+DG68+DG71+DG74+DG77<1,0,DG74/(DG77+DG74+DG62+DG65+DG68+DG71))) ->  | DW74: =IF(OR(SUM(DG62:DN79)="",SUM(DG62:DN79)=0),0,DO74-$AU$74) -> 0 | EP74: =IF(EH74="","",IF(EH62+EH65+EH68+EH71+EH74+EH77<1,0,EH74/(EH77+EH74+EH62+EH65+EH68+EH71))) ->  | EX74: =IF(OR(SUM(EH62:EO79)="",SUM(EH62:EO79)=0),0,EP74-AU74) -> 0
B77: Other | AM77: =IF('E Data 3'!D3=0,"",'E Data 3'!B8) ->  | AU77: =IF(AM77="","",AM77/DG38) ->  | BM77: =IF(BE77="","",IF(BE62+BE65+BE68+BE71+BE74+BE77<1,0,BE77/(BE77+BE74+BE71+BE68+BE65+BE62))) ->  | BU77: =IF(OR(SUM(BE62:BL79)="",SUM(BE62:BL79)=0),0,BM77-AU77) -> 0 | CN77: =IF(CF77="","",IF(CF62+CF65+CF68+CF71+CF74+CF77<1,0,CF77/(CF77+CF74+CF71+CF68+CF65+CF62))) ->  | CV77: =IF(OR(SUM(CF62:CM79)="",SUM(CF62:CM79)=0),0,CN77-AU77) -> 0 | DO77: =IF(DG77="","",IF(DG62+DG65+DG68+DG71+DG74+DG77<1,0,DG77/(DG77+DG74+DG71+DG68+DG65+DG62))) ->  | DW77: =IF(OR(SUM(DG62:DN79)="",SUM(DG62:DN79)=0),0,DO77-AU77) -> 0 | EP77: =IF(EH77="","",IF(EH62+EH65+EH68+EH71+EH74+EH77<1,0,EH77/(EH77+EH74+EH71+EH68+EH65+EH62))) ->  | EX77: =IF(OR(SUM(EH62:EO79)="",SUM(EH62:EO79)=0),0,EP77-AU77) -> 0
B81: Gender | AM81: Census | BE81: Applicants | CF81: Beneficiaries | DG81: Rejected Applicants | EH81: Waiting List
AM84: # | AU84: % | BE84: # | BM84: % | BU84: Difference | CF84: # | CN84: % | CV84: Difference | DG84: # | DO84: % | DW84: Difference | EH84: # | EP84: % | EX84: Difference
B87: Female | AM87: =IF('E Data 3'!D3=0,"",'E Data 3'!B9) ->  | AU87: =IF(AM87="","",AM87/DG38) ->  | BM87: =IF(BE87="","",IF(BE87+BE90<1,0,BE87/(BE90+BE87))) ->  | BU87: =IF(OR(SUM(BE87:BL92)="",SUM(BE87:BL92)=0),0,BM87-AU87) -> 0 | CN87: =IF(CF87="","",IF(CF87+CF90<1,0,CF87/(CF87+CF90))) ->  | CV87: =IF(OR(SUM(CF87:CM92)="",SUM(CF87:CM92)=0),0,CN87-AU87) -> 0 | DO87: =IF(DG87="","",IF(DG87+DG90<1,0,DG87/(DG90+DG87))) ->  | DW87: =IF(OR(SUM(DG87:DN92)="",SUM(DG87:DN92)=0),0,DO87-AU87) -> 0 | EP87: =IF(EH87="","",IF(EH87+EH90<1,0,EH87/(EH90+EH87))) ->  | EX87: =IF(OR(SUM(EH87:EO92)="",SUM(EH87:EO92)=0),0,EP87-AU87) -> 0
B90: Male | AM90: =IF('E Data 3'!D3=0,"",'E Data 3'!B10) ->  | AU90: =IF(AM90="","",AM90/DG38) ->  | BM90: =IF(BE90="","",IF(BE87+BE90<1,0,BE90/(BE90+BE87))) ->  | BU90: =IF(OR(SUM(BE87:BL92)="",SUM(BE87:BL92)=0),0,BM90-AU90) -> 0 | CN90: =IF(CF90="","",IF(CF87+CF90<1,0,CF90/(CF87+CF90))) ->  | CV90: =IF(OR(SUM(CF87:CM92)="",SUM(CF87:CM92)=0),0,CN90-AU90) -> 0 | DO90: =IF(DG90="","",IF(DG87+DG90<1,0,DG90/(DG90+DG87))) ->  | DW90: =IF(OR(SUM(DG87:DN92)="",SUM(DG87:DN92)=0),0,DO90-AU90) -> 0 | EP90: =IF(EH90="","",IF(EH87+EH90<1,0,EH90/(EH90+EH87))) ->  | EX90: =IF(OR(SUM(EH87:EO92)="",SUM(EH87:EO92)=0),0,EP90-AU90) -> 0
B94: Age | AM94: Census | BE94: Applicants | CF94: Beneficiaries | DG94: Rejected Applicants | EH94: Waiting List
AM97: # | AU97: % | BE97: # | BM97: % | BU97: Difference | CF97: # | CN97: % | CV97: Difference | DG97: # | DO97: % | DW97: Difference | EH97: # | EP97: % | EX97: Difference
B100: 0 to 19 Years | AM100: =IF('E Data 3'!D3=0,"",'E Data 3'!B11) ->  | AU100: =IF(AM100="","",AM100/DG38) ->  | BM100: =IF(BE100="","",IF(BE100+BE103+BE106+BE109+BE112<1,0,BE100/(BE103+BE100+BE106+BE109+BE112))) ->  | BU100: =IF(OR(SUM(BE100:BL114)="",SUM(BE100:BL114)=0),0,BM100-AU100) -> 0 | CN100: =IF(CF100="","",IF(CF100+CF103+CF106+CF109+CF112<1,0,CF100/(CF100+CF103+CF106+CF109+CF112))) ->  | CV100: =IF(OR(SUM(CF100:CM114)="",SUM(CF100:CM114)=0),0,CN100-AU100) -> 0 | DO100: =IF(DG100="","",IF(DG100+DG103+DG106+DG109+DG112<1,0,DG100/(DG103+DG100+DG106+DG109+DG112))) ->  | DW100: =IF(OR(SUM(DG100:DN114)="",SUM(DG100:DN114)=0),0,DO100-AU100) -> 0 | EP100: =IF(EH100="","",IF(EH100+EH103+EH106+EH109+EH112<1,0,EH100/(EH103+EH100+EH106+EH109+EH112))) ->  | EX100: =IF(OR(SUM(EH100:EO114)="",SUM(EH100:EO114)=0),0,EP100-AU100) -> 0
B103: 20 to 24 Years | AM103: =IF('E Data 3'!D3=0,"",'E Data 3'!B12) ->  | AU103: =IF(AM103="","",AM103/DG38) ->  | BM103: =IF(BE103="","",IF(BE100+BE103+BE106+BE109+BE112<1,0,BE103/(BE103+BE100+BE106+BE109+BE112))) ->  | BU103: =IF(OR(SUM(BE100:BL114)="",SUM(BE100:BL114)=0),0,BM103-AU103) -> 0 | CN103: =IF(CF103="","",IF(CF100+CF103+CF106+CF109+CF112<1,0,CF103/(CF103+CF106+CF100+CF109+CF112))) ->  | CV103: =IF(OR(SUM(CF100:CM114)="",SUM(CF100:CM114)=0),0,CN103-AU103) -> 0 | DO103: =IF(DG103="","",IF(DG100+DG103+DG106+DG109+DG112<1,0,DG103/(DG106+DG103+DG100+DG109+DG112))) ->  | DW103: =IF(OR(SUM(DG100:DN114)="",SUM(DG100:DN114)=0),0,DO103-AU103) -> 0 | EP103: =IF(EH103="","",IF(EH100+EH103+EH106+EH109+EH112<1,0,EH103/(EH106+EH103+EH100+EH109+EH112))) ->  | EX103: =IF(OR(SUM(EH100:EO114)="",SUM(EH100:EO114)=0),0,EP103-AU103) -> 0
B106: 25 to 44 Years | AM106: =IF('E Data 3'!D3=0,"",'E Data 3'!B13) ->  | AU106: =IF(AM106="","",AM106/DG38) ->  | BM106: =IF(BE106="","",IF(BE100+BE103+BE106+BE109+BE112<1,0,BE106/(BE109+BE106+BE100+BE103+BE112))) ->  | BU106: =IF(OR(SUM(BE100:BL114)="",SUM(BE100:BL114)=0),0,BM106-AU106) -> 0 | CN106: =IF(CF106="","",IF(CF100+CF103+CF106+CF109+CF112<1,0,CF106/(CF106+CF109+CF100+CF103+CF112))) ->  | CV106: =IF(OR(SUM(CF100:CM114)="",SUM(CF100:CM114)=0),0,CN106-AU106) -> 0 | DO106: =IF(DG106="","",IF(DG100+DG103+DG106+DG109+DG112<1,0,DG106/(DG109+DG106+DG100+DG103+DG112))) ->  | DW106: =IF(OR(SUM(DG100:DN114)="",SUM(DG100:DN114)=0),0,DO106-AU106) -> 0 | EP106: =IF(EH106="","",IF(EH100+EH103+EH106+EH109+EH112<1,0,EH106/(EH109+EH106+EH100+EH103+EH112))) ->  | EX106: =IF(OR(SUM(EH100:EO114)="",SUM(EH100:EO114)=0),0,EP106-AU106) -> 0
B109: 45 to 64 Years | AM109: =IF('E Data 3'!D3=0,"",'E Data 3'!B14) ->  | AU109: =IF(AM109="","",AM109/DG38) ->  | BM109: =IF(BE109="","",IF(BE100+BE103+BE106+BE109+BE112<1,0,BE109/(BE109+BE106+BE100+BE103+BE112))) ->  | BU109: =IF(OR(SUM(BE100:BL114)="",SUM(BE100:BL114)=0),0,BM109-$AU$109) -> 0 | CN109: =IF(CF109="","",IF(CF100+CF103+CF106+CF109+CF112<1,0,CF109/(CF109+CF106+CF100+CF103+CF112))) ->  | CV109: =IF(OR(SUM(CF100:CM114)="",SUM(CF100:CM114)=0),0,CN109-AU109) -> 0 | DO109: =IF(DG109="","",IF(DG100+DG103+DG106+DG109+DG112<1,0,DG109/(DG109+DG106+DG100+DG103+DG112))) ->  | DW109: =IF(OR(SUM(DG100:DN114)="",SUM(DG100:DN114)=0),0,DO109-AU109) -> 0 | EP109: =IF(EH109="","",IF(EH100+EH103+EH106+EH109+EH112<1,0,EH109/(EH109+EH106+EH100+EH103+EH112))) ->  | EX109: =IF(OR(SUM(EH100:EO114)="",SUM(EH100:EO114)=0),0,EP109-AU109) -> 0
B112: 65 Years and Over | AM112: =IF('E Data 3'!D3=0,"",'E Data 3'!B15) ->  | AU112: =IF(AM112="","",AM112/DG38) ->  | BM112: =IF(BE112="","",IF(BE100+BE103+BE106+BE109+BE112<1,0,BE112/(BE112+BE109+BE100+BE103+BE106))) ->  | BU112: =IF(OR(SUM(BE100:BL114)="",SUM(BE100:BL114)=0),0,BM112-AU112) -> 0 | CN112: =IF(CF112="","",IF(CF100+CF103+CF106+CF109+CF112<1,0,CF112/(CF112+CF109+CF100+CF103+CF106))) ->  | CV112: =IF(OR(SUM(CF100:CM114)="",SUM(CF100:CM114)=0),0,CN112-AU112) -> 0 | DO112: =IF(DG112="","",IF(DG100+DG103+DG106+DG109+DG112<1,0,DG112/(DG112+DG109+DG100+DG103+DG106))) ->  | DW112: =IF(OR(SUM(DG100:DN114)="",SUM(DG100:DN114)=0),0,DO112-AU112) -> 0 | EP112: =IF(EH112="","",IF(EH100+EH103+EH106+EH109+EH112<1,0,EH112/(EH112+EH109+EH100+EH103+EH106))) ->  | EX112: =IF(OR(SUM(EH100:EO114)="",SUM(EH100:EO114)=0),0,EP112-AU112) -> 0
B115: =IF(#REF!=0,"",#REF!) -> 
B116: Disability | AM116: Census | BE116: Applicants | CF116: Beneficiaries | DG116: Rejected Applicants | EH116: Waiting List
AM119: # | AU119: % | BE119: # | BM119: % | BU119: Difference | CF119: # | CN119: % | CV119: Difference | DG119: # | DO119: % | DW119: Difference | EH119: # | EP119: % | EX119: Difference
B122: Disabled | AM122: =IF('E Data 3'!D3=0,"",'E Data 3'!B16) ->  | AU122: =AM122/(AM122+AM125) ->  | BM122: =IF(BE122="","",IF(BE122<1,0,BE122/(BE125+BE122))) ->  | BU122: =IF(OR(SUM(BE122:BL127)="",SUM(BE122:BL127)=0),0,BM122-AU122) -> 0 | CN122: =IF(CF122="","",IF(CF122<1,0,CF122/(CF122+CF125))) ->  | CV122: =IF(OR(SUM(CF122:CM127)="",SUM(CF122:CM127)=0),0,CN122-AU122) -> 0 | DO122: =IF(DG122="","",IF(DG122<1,0,DG122/(DG122+DG125))) ->  | DW122: =IF(OR(SUM(DG122:DN127)="",SUM(DG122:DN127)=0),0,DO122-AU122) -> 0 | EP122: =IF(EH122="","",IF(EH122<1,0,EH122/(EH122+EH125))) ->  | EX122: =IF(OR(SUM(EH122:EO127)="",SUM(EH122:EO127)=0),0,EP122-AU122) -> 0
B125: Not Disabled | AM125: =IF('E Data 3'!D3=0,"",'E Data 3'!B17) ->  | AU125: =1-AU122 ->  | BM125: =IF(BE125="","",IF(BE125<1,0,BE125/(BE125+BE122))) ->  | BU125: =IF(OR(SUM(BE122:BL127)="",SUM(BE122:BL127)=0),0,BM125-AU125) -> 0 | CN125: =IF(CF125="","",IF(CF125<1,0,CF125/(CF122+CF125))) ->  | CV125: =IF(OR(SUM(CF122:CM127)="",SUM(CF122:CM127)=0),0,CN125-AU125) -> 0 | DO125: =IF(DG125="","",IF(DG125<1,0,DG125/(DG122+DG125))) ->  | DW125: =IF(OR(SUM(DG122:DN127)="",SUM(DG122:DN127)=0),0,DO125-AU125) -> 0 | EP125: =IF(EH125="","",IF(EH125<1,0,EH125/(EH125+EH122))) ->  | EX125: =IF(OR(SUM(EH122:EO127)="",SUM(EH122:EO127)=0),0,EP125-$AU$125) -> 0
BC128: =IF(AND(SUM(BE49+BE52)=SUM(BE62:BL79),SUM(BE49+BE52)=SUM(BE87:BL92), SUM(BE49+BE52)=SUM(BE100:BL114), SUM(BE49+BE52)=SUM(BE122:BL127)),"","COLUMN SECTION TOTALS MUST MATCH!") ->  | CD128: =IF(AND(SUM(CF49+CF52)=SUM(CF62:CF79),SUM(CF49+CF52)=SUM(CF87:CF92), SUM(CF49+CF52)=SUM(CF100:CF114), SUM(CF49+CF52)=SUM(CF122:CF127)),"","COLUMN SECTION TOTALS MUST MATCH!") ->  | DE128: =IF(AND(SUM(DG49+DG52)=SUM(DG62:DG79),SUM(DG49+DG52)=SUM(DG87:DG92), SUM(DG49+DG52)=SUM(DG100:DG114), SUM(DG49+DG52)=SUM(DG122:DG127)),"","COLUMN SECTION TOTALS MUST MATCH!") ->  | EF128: =IF(AND(SUM(EH49+EH52)=SUM(EH62:EH79),SUM(EH49+EH52)=SUM(EH87:EH92), SUM(EH49+EH52)=SUM(EH100:EH114), SUM(EH49+EH52)=SUM(EH122:EH127)),"","COLUMN SECTION TOTALS MUST MATCH!") -> 
B136: Prepared By: Name | AM136: Title | BZ136: Telephone Number | CV136: e-mail Address | EL136: Date
FO141: PAGE 2
B142: Questionnaire
B148: HUD has defined "impediments to fair housing choice" to include specific actions as well as the lack of actions as follows:
C152: l | E152: Any actions, omissions or decisions taken because of race, color, religion, sex, disability, familial status, or national origin which restrict housing choices; and
C156: l | E156: Any actions, omissions, or decisions which have the effect of restricting housing choices or the availability of housing choices on the basis of race, color, religion, sex, disability, familial status, or national origin.
B162: In its simplest form, a study of Fair Housing barriers addresses the question: Do all residents and potential residents of this Jurisdiction have equal access to housing regardless of their race, color, religion (creed), sex, disability, familial status, age, or national origin? If not, why?
B169: If "Difference" field is greater than 10%, field will turn red; please respond to questions below, in reference to these numbers.
B173: 1. | D173: Does any of the demographic data show low representation of any protected groups in either your applicants, beneficiaries, rejected applicants or waiting list?
B191: 2. | E191: What reasons have you identified for these low numbers?
B209: 3. | E209: What actions have you taken to date to correct the reasons for low numbers?
B227: 4. | E227: What actions do you plan to take in the future to correct these low numbers?
B245: 5. | D245: Has your organization set up and maintained records reflecting the study and actions taken? If not, why?
FO259: PAGE 3
B392: END OF DOCUMENT

Sheet E Data 3 (hidden)
H1: Hispanic or Latino 1 | I1: Not Hispanic or Latino 2 | J1: American Indian or Alaskan Native 3 | K1: Black or African American 4 | L1: Native Hawaiian or other Pacific Islander 5 | M1: White Alone 6 | N1: Other 7 | O1: Female 8 | P1: Male 9 | Q1: 0-19 10 | R1: 20-24 11 | S1: 25-44 12 | T1: 45-64 13 | U1: 65+ 14 | V1: No Disability 15 | W1: Disability 16 | X1: Total Population 17 | Y1: Asian 18 | Z1: Disability % | AA1: Disability Estimate
A2: 1 | B2: =VLOOKUP(D3,F2:H540,3,FALSE) -> 0 | D2: 539 | E2: 1 | F2: 001 | G2: Alameda County (Unincorporated) | H2: 48200 | I2: 99716 | J2: 346 | K2: 12263 | L2: 1316 | M2: 39096 | N2: 7448 | O2: 60373 | P2: 57962 | Q2: 28783 | R2: 6944 | S2: 33446 | T2: 31347 | U2: 17815 | V2: =X2-W2 -> 102988 | W2: 15347 | X2: 118335 | Y2: 38358 | Z2: 9.1 | AA2: =X2*0.09 -> 10650.15
A3: 2 | B3: =VLOOKUP(D3,F2:I540,4,FALSE) -> 0 | D3: =VLOOKUP(D2,E2:F540,2,FALSE) -> 0 | E3: 2 | F3: 003 | G3: Alpine County (Unincorporated) | H3: 60 | I3: 890 | J3: 30 | K3: 9 | L3: 0 | M3: 779 | N3: 53 | O3: 428 | P3: 522 | Q3: 136 | R3: 37 | S3: 203 | T3: 316 | U3: 258 | V3: 859 | W3: 91 | X3: 950 | Y3: 12 | Z3: 17.9 | AA3: =X3*0.09 -> 85.5
A4: 3 | B4: =VLOOKUP(D3,F2:J540,5,FALSE) -> 0 | D4: =VLOOKUP(D2,E2:G540,3,FALSE) -> Select a Jurisdiction | E4: 3 | F4: 005 | G4: Amador County (Unincorporated) | H4: 1496 | I4: 34460 | J4: 169 | K4: 96 | L4: 41 | M4: 10923 | N4: 2067 | O4: 6738 | P4: 7048 | Q4: 2506 | R4: 493 | S4: 2495 | T4: 4078 | U4: 4214 | V4: 10809 | W4: 2977 | X4: 13786 | Y4: 15 | Z4: 17.6 | AA4: 1240.74
A5: 4 | B5: =VLOOKUP(D3,F2:K540,6,FALSE) -> 0 | E5: 4 | F5: 007 | G5: Butte County (Unincorporated) | H5: 6673 | I5: 42968 | J5: 1166 | K5: 451 | L5: 80 | M5: 34957 | N5: 2243 | O5: 24408 | P5: 25233 | Q5: 11126 | R5: 2287 | S5: 10920 | T5: 13547 | U5: 11761 | V5: 40108 | W5: 9533 | X5: 49641 | Y5: 2823 | Z5: 17.4 | AA5: 4467.69
A6: 5 | B6: =VLOOKUP(D3,F2:L540,7,FALSE) -> 0 | E6: 5 | F6: 009 | G6: Calaveras County (Unincorporated) | H6: 3546 | I6: 23720 | J6: 284 | K6: 168 | L6: 35 | M6: 20899 | N6: 1165 | O6: 13161 | P6: 13155 | Q6: 5264 | R6: 1012 | S6: 5298 | T6: 7366 | U6: 7376 | V6: 21999 | W6: 4317 | X6: 26316 | Y6: 447 | Z6: 17.6 | AA6: 2368.44
A7: 6 | B7: =VLOOKUP(D3,F2:M540,8,FALSE) -> 0 | D7: 59 | E7: 6 | F7: 011 | G7: Colusa County (Unincorporated) | H7: 3746 | I7: 2019 | J7: 33 | K7: 56 | L7: 11 | M7: 1730 | N7: 124 | O7: 2824 | P7: 2941 | Q7: 1800 | R7: 347 | S7: 1495 | T7: 1336 | U7: 787 | V7: 5131 | W7: 634 | X7: 5765 | Y7: 39 | Z7: 12.5 | AA7: 518.85
A8: 7 | B8: =VLOOKUP(D3,F2:N540,9,FALSE) -> 0 | D8: =VLOOKUP(D7,E2:F59,2,FALSE) ->  | E8: 7 | F8: 013 | G8: Contra Costa County (Unincorporated) | H8: 45688 | I8: 118857 | J8: 390 | K8: 9441 | L8: 622 | M8: 72856 | N8: 1874 | O8: 85229 | P8: 82776 | Q8: 40909 | R8: 9154 | S8: 41388 | T8: 47498 | U8: 29056 | V8: 149595 | W8: 18410 | X8: 168005 | Y8: 25383 | Z8: 10.2 | AA8: 15120.45
A9: 8 | B9: =VLOOKUP(D3,F2:O540,10,FALSE) -> 0 | D9: =VLOOKUP(D7,E2:G545,3,FALSE) -> Adelanto city | E9: 8 | F9: 015 | G9: Del Norte County (Unincorporated) | H9: 900 | I9: 5497 | J9: 2136 | K9: 25 | L9: 7 | M9: 3874 | N9: 504 | O9: 3276 | P9: 3121 | Q9: 1546 | R9: 276 | S9: 1426 | T9: 1744 | U9: 1405 | V9: 4892 | W9: 1505 | X9: 6397 | Y9: 70 | Z9: 21.5 | AA9: 575.73
A10: 9 | B10: =VLOOKUP(D3,F2:P540,11,FALSE) -> 0 | E10: 9 | F10: 017 | G10: El Dorado County (Unincorporated) | H10: 12913 | I10: 92513 | J10: 561 | K10: 1010 | L10: 156 | M10: 76631 | N10: 5126 | O10: 53878 | P10: 51548 | Q10: 25911 | R10: 4729 | S10: 20662 | T10: 31212 | U10: 22912 | V10: 93343 | W10: 12083 | X10: 105426 | Y10: 6861 | Z10: 11.5 | AA10: 9488.34
A11: 10 | B11: =VLOOKUP(D3,F2:Q540,12,FALSE) -> 0 | E11: 10 | F11: 019 | G11: Fresno County (Unincorporated) | H11: 299670 | I11: 290533 | J11: 4010 | K11: 38326 | L11: 794 | M11: 146321 | N11: 18082 | O11: 23882 | P11: 24214 | Q11: 13842 | R11: 2916 | S11: 11829 | T11: 11409 | U11: 8100 | V11: 42175 | W11: 5921 | X11: 48096 | Y11: 79892 | Z11: 11.6 | AA11: 4328.64
A12: 11 | B12: =VLOOKUP(D3,F2:R540,13,FALSE) -> 0 | E12: 11 | F12: 021 | G12: Glenn County (Unincorporated) | H12: 2096 | I12: 600 | J12: 17 | K12: 17 | L12: 2 | M12: 477 | N12: 39 | O12: 1292 | P12: 1404 | Q12: 832 | R12: 164 | S12: 632 | T12: 660 | U12: 408 | V12: 2273 | W12: 423 | X12: 2696 | Y12: 44 | Z12: 15.8 | AA12: 242.64
A13: 12 | B13: =VLOOKUP(D3,F2:S540,14,FALSE) -> 0 | E13: 12 | F13: 023 | G13: Humboldt County (Unincorporated) | H13: 5587 | I13: 45094 | J13: 4551 | K13: 485 | L13: 117 | M13: 34390 | N13: 4048 | O13: 25725 | P13: 24956 | Q13: 11922 | R13: 2609 | S13: 13913 | T13: 12302 | U13: 9935 | V13: 41654 | W13: 9027 | X13: 50681 | Y13: 1139 | Z13: 15.7 | AA13: 4561.29
A14: 13 | B14: =VLOOKUP(D3,F2:T540,15,FALSE) -> 0 | E14: 13 | F14: 025 | G14: Imperial County (Unincorporated) | H14: 14813 | I14: 2627 | J14: 95 | K14: 223 | L14: 9 | M14: 1937 | N14: 233 | O14: 8751 | P14: 8689 | Q14: 5611 | R14: 1230 | S14: 4298 | T14: 3954 | U14: 2347 | V14: 15268 | W14: 2172 | X14: 17440 | Y14: 95 | Z14: 13.1 | AA14: 1569.6
A15: 14 | B15: =VLOOKUP(D3,F2:U540,16,FALSE) -> 0 | E15: 14 | F15: 027 | G15: Inyo County (Unincorporated) | H15: 2663 | I15: 9335 | J15: 876 | K15: 62 | L15: 4 | M15: 7578 | N15: 613 | O15: 5972 | P15: 6026 | Q15: 2530 | R15: 429 | S15: 2601 | T15: 3174 | U15: 3264 | V15: 10437 | W15: 1561 | X15: 11998 | Y15: 155 | Z15: 12.5 | AA15: 1079.82
A16: 15 | B16: =VLOOKUP(D3,F2:W541,18,FALSE) -> 0 | E16: 15 | F16: 029 | G16: Kern County (Unincorporated) | H16: 138079 | I16: 126362 | J16: 2012 | K16: 8980 | L16: 246 | M16: 100923 | N16: 9596 | O16: 132514 | P16: 131927 | Q16: 83214 | R16: 17051 | S16: 68955 | T16: 60931 | U16: 34290 | V16: 229050 | W16: 35391 | X16: 264441 | Y16: 3401 | Z16: 11.8 | AA16: 23799.69
A17: 16 | B17: =VLOOKUP(D3,F2:V541,17,FALSE) -> 0 | E17: 16 | F17: 031 | G17: Kings County (Unincorporated) | H17: 8400 | I17: 7117 | J17: 69 | K17: 1162 | L17: 84 | M17: 4449 | N17: 720 | O17: 7509 | P17: 8008 | Q17: 5576 | R17: 1894 | S17: 4909 | T17: 2143 | U17: 995 | V17: 14401 | W17: 1116 | X17: 15517 | Y17: 552 | Z17: 10.4 | AA17: 1396.53
A18: 17 | B18: =VLOOKUP(D3,F2:X540,19,FALSE) -> 0 | E18: 17 | F18: 033 | G18: Lake County (Unincorporated) | H18: 7058 | I18: 25169 | J18: 588 | K18: 423 | L18: 50 | M18: 21300 | N18: 2138 | O18: 16008 | P18: 16219 | Q18: 7168 | R18: 1430 | S18: 7327 | T18: 8932 | U18: 7370 | V18: 26783 | W18: 5444 | X18: 32227 | Y18: 480 | Z18: 20.9 | AA18: 2900.43
A19: 18 | B19: =VLOOKUP(D3,F2:Y540,20,FALSE) -> 0 | E19: 18 | F19: 035 | G19: Lassen County (Unincorporated) | H19: 776 | I19: 6768 | J19: 153 | K19: 74 | L19: 9 | M19: 5931 | N19: 503 | O19: 3571 | P19: 3973 | Q19: 1632 | R19: 340 | S19: 1662 | T19: 2221 | U19: 1689 | V19: 6152 | W19: 1392 | X19: 7544 | Y19: 58 | Z19: 17.3 | AA19: 678.96
E20: 19 | F20: 037 | G20: Los Angeles County (Unincorporated) | H20: 535420 | I20: 361481 | J20: 1724 | K20: 68320 | L20: 1426 | M20: 140148 | N20: 19676 | O20: 464662 | P20: 445556 | Q20: 229894 | R20: 65218 | S20: 246308 | T20: 236982 | U20: 131816 | V20: 817443 | W20: 92775 | X20: 910218 | Y20: 125819 | Z20: 9.5 | AA20: 81919.62
E21: 20 | F21: 039 | G21: Madera County (Unincorporated) | H21: 19319 | I21: 28835 | J21: 907 | K21: 536 | L21: 34 | M21: 24280 | N21: 336 | O21: 24272 | P21: 23882 | Q21: 12590 | R21: 2597 | S21: 10588 | T21: 11850 | U21: 10529 | V21: 40893 | W21: 7261 | X21: 48154 | Y21: 751 | Z21: 12.1 | AA21: 4333.86
B22: Enter a F/Y | E22: 21 | F22: 041 | G22: Marin County (Unincorporated) | H22: 5049 | I22: 45763 | J22: 80 | K22: 1173 | L22: 81 | M22: 37693 | N22: 3122 | O22: 26432 | P22: 24380 | Q22: 11527 | R22: 1813 | S22: 9443 | T22: 15517 | U22: 12512 | V22: 46131 | W22: 4681 | X22: 50812 | Y22: 3260 | Z22: 8.9 | AA22: 4573.08
B23: 2010-2011 | E23: 22 | F23: 043 | G23: Mariposa County (Unincorporated) | H23: 1100 | I23: 6416 | J23: 157 | K23: 38 | L23: 6 | M23: 5467 | N23: 564 | O23: 3720 | P23: 3796 | Q23: 1392 | R23: 315 | S23: 1642 | T23: 2185 | U23: 1982 | V23: 5900 | W23: 1616 | X23: 7516 | Y23: 129 | Z23: 18.5 | AA23: 676.44
B24: 2011-2012 | E24: 23 | F24: 045 | G24: Mendocino County (Unincorporated) | H24: 3969 | I24: 11677 | J24: 774 | K24: 69 | L24: 13 | M24: 9539 | N24: 878 | O24: 7695 | P24: 7951 | Q24: 3597 | R24: 699 | S24: 4015 | T24: 3926 | U24: 3409 | V24: 13389 | W24: 2257 | X24: 15646 | Y24: 315 | Z24: 16.1 | AA24: 1408.14
B25: 2012-2013 | E25: 24 | F25: 047 | G25: Merced County (Unincorporated) | H25: 34299 | I25: 16951 | J25: 177 | K25: 628 | L25: 57 | M25: 12128 | N25: 1232 | O25: 25471 | P25: 25779 | Q25: 16937 | R25: 3671 | S25: 13368 | T25: 11610 | U25: 5664 | V25: 44048 | W25: 7202 | X25: 51250 | Y25: 2572 | Z25: 15.5 | AA25: 4612.5
B26: 2013-2014 | E26: 25 | F26: 049 | G26: Modoc County (Unincorporated) | H26: 398 | I26: 1839 | J26: 131 | K26: 13 | L26: 5 | M26: 1550 | N26: 121 | O26: 1117 | P26: 1120 | Q26: 478 | R26: 75 | S26: 414 | T26: 634 | U26: 636 | V26: 1828 | W26: 409 | X26: 2237 | Y26: 5 | Z26: 21.1 | AA26: 201.33
B27: 2014-2015 | E27: 26 | F27: 051 | G27: Mono County (Unincorporated) | H27: 1004 | I27: 4451 | J27: 163 | K27: 22 | L27: 12 | M27: 3956 | N27: 213 | O27: 2619 | P27: 2836 | Q27: 1119 | R27: 204 | S27: 1281 | T27: 1596 | U27: 1255 | V27: 4909 | W27: 546 | X27: 5455 | Y27: 50 | Z27: 7.8 | AA27: 490.95
B28: 2015-2016 | E28: 27 | F28: 053 | G28: Monterey County (Unincorporated) | H28: 29814 | I28: 22686 | J28: 158 | K28: 288 | L28: 113 | M28: 18488 | N28: 1708 | O28: 26084 | P28: 26416 | Q28: 14239 | R28: 3225 | S28: 12539 | T28: 12998 | U28: 9499 | V28: 47153 | W28: 5347 | X28: 52500 | Y28: 1594 | Z28: 8.4 | AA28: 4725
B29: 2016-2017 | E29: 28 | F29: 055 | G29: Napa County (Unincorporated) | H29: 1220 | I29: 4056 | J29: 10 | K29: 115 | L29: 15 | M29: 3131 | N29: 257 | O29: 2789 | P29: 2487 | Q29: 1019 | R29: 575 | S29: 1051 | T29: 1299 | U29: 1332 | V29: 4723 | W29: 553 | X29: 5276 | Y29: 268 | Z29: 10.8 | AA29: 474.84
B30: 2017-2018 | E30: 29 | F30: 057 | G30: Nevada County (Unincorporated) | H30: 1686 | I30: 18124 | J30: 136 | K30: 79 | L30: 32 | M30: 16371 | N30: 1151 | O30: 10232 | P30: 9578 | Q30: 3683 | R30: 670 | S30: 3607 | T30: 5306 | U30: 6544 | V30: 16647 | W30: 3163 | X30: 19810 | Y30: 269 | Z30: 13.4 | AA30: 1782.9
B31: 2018-2019 | E31: 30 | F31: 059 | G31: Orange County (Unincorporated) | H31: 17033 | I31: 88065 | J31: 148 | K31: 951 | L31: 135 | M31: 64361 | N31: 5996 | O31: 53707 | P31: 51391 | Q31: 29788 | R31: 5678 | S31: 22659 | T31: 30726 | U31: 16247 | V31: 97020 | W31: 8078 | X31: 105098 | Y31: 16039 | Z31: 7.8 | AA31: 9458.82
B32: 2019-2020 | E32: 31 | F32: 061 | G32: Placer County (Unincorporated) | H32: 7928 | I32: 46628 | J32: 316 | K32: 351 | L32: 75 | M32: 40207 | N32: 1346 | O32: 27541 | P32: 27015 | Q32: 12325 | R32: 2441 | S32: 11522 | T32: 15893 | U32: 12375 | V32: 48766 | W32: 5790 | X32: 54556 | Y32: 2412 | Z32: 10.7 | AA32: 4910.04
B33: 2020-2021 | E33: 32 | F33: 063 | G33: Plumas County (Unincorporated) | H33: 1277 | I33: 13515 | J33: 276 | K33: 86 | L33: 20 | M33: 12149 | N33: 777 | O33: 7348 | P33: 7444 | Q33: 2710 | R33: 518 | S33: 2888 | T33: 4152 | U33: 4524 | V33: 12371 | W33: 2421 | X33: 14792 | Y33: 118 | Z33: 19.4 | AA33: 1331.28
B34: 2021-2022 | E34: 33 | F34: 065 | G34: Riverside County (Unincorporated) | H34: 160159 | I34: 153373 | J34: 1519 | K34: 12535 | L34: 590 | M34: 109935 | N34: 10892 | O34: 157221 | P34: 156311 | Q34: 88095 | R34: 19690 | S34: 77017 | T34: 77409 | U34: 51321 | V34: 274332 | W34: 39200 | X34: 313532 | Y34: 16442 | Z34: 10.7 | AA34: 28217.88
B35: 2022-2023 | E35: 34 | F35: 067 | G35: Sacramento County (Unincorporated) | H35: 129341 | I35: 467104 | J35: 3032 | K35: 47830 | L35: 5700 | M35: 284041 | N35: 40002 | O35: 306040 | P35: 290405 | Q35: 155685 | R35: 37142 | S35: 160814 | T35: 145971 | U35: 96833 | V35: 524161 | W35: 72284 | X35: 596445 | Y35: 82803 | Z35: 12.7 | AA35: 53680.05
B36: 2023-2024 | E36: 35 | F36: 069 | G36: San Benito County (Unincorporated) | H36: 2256 | I36: 4107 | J36: 13 | K36: 42 | L36: 8 | M36: 3536 | N36: 237 | O36: 3213 | P36: 3150 | Q36: 1298 | R36: 300 | S36: 1422 | T36: 1809 | U36: 1534 | V36: 5681 | W36: 682 | X36: 6363 | Y36: 206 | Z36: 8.7 | AA36: 572.67
B37: 2024-2025 | E37: 36 | F37: 071 | G37: San Bernardino County (Unincorporated) | H37: 73447 | I37: 106204 | J37: 1029 | K37: 5334 | L37: 484 | M37: 86104 | N37: 7150 | O37: 88526 | P37: 91125 | Q37: 46087 | R37: 11517 | S37: 44641 | T37: 47237 | U37: 30169 | V37: 155161 | W37: 24490 | X37: 179651 | Y37: 5049 | Z37: 10.9 | AA37: 16168.59
B38: 2025-2026 | E38: 37 | F38: 073 | G38: San Diego County (Unincorporated) | H38: 112233 | I38: 240992 | J38: 2569 | K38: 15097 | L38: 1304 | M38: 187229 | N38: 17755 | O38: 176252 | P38: 176973 | Q38: 88264 | R38: 28685 | S38: 86390 | T38: 87702 | U38: 62184 | V38: 314117 | W38: 39108 | X38: 353225 | Y38: 15109 | Z38: 9.4 | AA38: 31790.25
B39: 2026-2027 | E39: 38 | F39: 075 | G39: San Francisco County (Unincorporated) | H39: 0 | I39: 0 | J39: 0 | K39: 0 | L39: 0 | M39: 0 | N39: 0 | O39: 0 | P39: 0 | Q39: 0 | R39: 0 | S39: 0 | T39: 0 | U39: 0 | V39: 0 | W39: 0 | Z39: 10.6 | AA39: 0
E40: 39 | F40: 077 | G40: San Joaquin County (Unincorporated) | H40: 37701 | I40: 50428 | J40: 384 | K40: 3698 | L40: 343 | M40: 25620 | N40: 3612 | O40: 44217 | P40: 45548 | Q40: 27781 | R40: 5232 | S40: 25045 | T40: 20609 | U40: 11098 | V40: 79091 | W40: 9038 | X40: 88129 | Y40: 16337 | Z40: 11.7 | AA40: 7931.61
E41: 40 | F41: 079 | G41: San Luis Obispo County (Unincorporated) | H41: 23293 | I41: 60033 | J41: 312 | K41: 627 | L41: 80 | M41: 51892 | N41: 3546 | O41: 42471 | P41: 40855 | Q41: 18588 | R41: 8985 | S41: 17266 | T41: 19806 | U41: 18681 | V41: 73280 | W41: 10046 | X41: 83326 | Y41: 3075 | Z41: 10.8 | AA41: 7499.34
E42: 41 | F42: 081 | G42: San Mateo County (Unincorporated) | H42: 14538 | I42: 31081 | J42: 59 | K42: 403 | L42: 225 | M42: 21665 | N42: 2314 | O42: 22850 | P42: 22769 | Q42: 10787 | R42: 2375 | S42: 11295 | T42: 13280 | U42: 7882 | V42: 42123 | W42: 3496 | X42: 45619 | Y42: 6169 | Z42: 7.8 | AA42: 4105.71
E43: 42 | F43: 083 | G43: Santa Barbara County (Unincorporated) | H43: 32064 | I43: 91812 | J43: 460 | K43: 1758 | L43: 245 | M43: 71548 | N43: 6288 | O43: 63850 | P43: 60026 | Q43: 30897 | R43: 18517 | S43: 24591 | T43: 26267 | U43: 23604 | V43: 111419 | W43: 12457 | X43: 123876 | Y43: 10808 | Z43: 10 | AA43: 11148.84
E44: 43 | F44: 085 | G44: Santa Clara County (Unincorporated) | H44: 19613 | I44: 43021 | J44: 115 | K44: 1606 | L44: 331 | M44: 24913 | N44: 3174 | O44: 30599 | P44: 32035 | Q44: 11448 | R44: 9665 | S44: 21012 | T44: 13184 | U44: 7325 | V44: 58360 | W44: 4274 | X44: 62634 | Y44: 12404 | Z44: 7.7 | AA44: 5637.06
E45: 44 | F45: 087 | G45: Santa Cruz County (Unincorporated) | H45: 28008 | I45: 81974 | J45: 366 | K45: 745 | L45: 126 | M45: 70865 | N45: 5821 | O45: 55746 | P45: 54236 | Q45: 22382 | R45: 5770 | S45: 26629 | T45: 31470 | U45: 23731 | V45: 96820 | W45: 13162 | X45: 109982 | Y45: 3336 | Z45: 8.8 | AA45: 9898.38
E46: 45 | F46: 089 | G46: Shasta County (Unincorporated) | H46: 3120 | I46: 30458 | J46: 918 | K46: 107 | L46: 46 | M46: 26436 | N46: 2188 | O46: 16682 | P46: 16896 | Q46: 7652 | R46: 1300 | S46: 6682 | T46: 9618 | U46: 8326 | V46: 28243 | W46: 5335 | X46: 33578 | Y46: 598 | Z46: 17.9 | AA46: 3022.02
E47: 46 | F47: 091 | G47: Sierra County (Unincorporated) | H47: 203 | I47: 1732 | J47: 8 | K47: 3 | L47: 0 | M47: 1577 | N47: 123 | O47: 927 | P47: 1008 | Q47: 342 | R47: 41 | S47: 386 | T47: 573 | U47: 593 | V47: 1622 | W47: 313 | X47: 1935 | Y47: 7 | Z47: 20.3 | AA47: 174.15
